Workbook

Sheet Settings
A1: Counting races: | C1: 12
A3: Position | B3: Points
A4: 1 | B4: 60
A5: 2 | B5: 59
A6: 3 | B6: 58
A7: 4 | B7: 57
A8: 5 | B8: 56
A9: 6 | B9: 55
A10: 7 | B10: 54
A11: 8 | B11: 53
A12: 9 | B12: 52
A13: 10 | B13: 51
A14: 11 | B14: 50
A15: 12 | B15: 49
A16: 13 | B16: 48
A17: 14 | B17: 47
A18: 15 | B18: 46
A19: 16 | B19: 45
A20: 17 | B20: 44
A21: 18 | B21: 43
A22: 19 | B22: 42
A23: 20 | B23: 41
A24: 21 | B24: 40
A25: 22 | B25: 39
A26: 23 | B26: 38
A27: 24 | B27: 37
A28: 25 | B28: 36
A29: 26 | B29: 35
A30: 27 | B30: 34
A31: 28 | B31: 33
A32: 29 | B32: 32
A33: 30 | B33: 31
A34: 31 | B34: 30
A35: 32 | B35: 29
A36: 33 | B36: 28
A37: 34 | B37: 27
A38: 35 | B38: 26
A39: 36 | B39: 25
A40: 37 | B40: 24
A41: 38 | B41: 23
A42: 39 | B42: 22
A43: 40 | B43: 21
A44: 41 | B44: 20
A45: 42 | B45: 19
A46: 43 | B46: 18
A47: 44 | B47: 17
A48: 45 | B48: 16
A49: 46 | B49: 15
A50: 47 | B50: 14
A51: 48 | B51: 13
A52: 49 | B52: 12
A53: 50 | B53: 11
A54: 51 | B54: 10
A55: 52 | B55: 9
A56: 53 | B56: 8
A57: 54 | B57: 7
A58: 55 | B58: 6
A59: 56 | B59: 5
A60: 57 | B60: 4
A61: 58 | B61: 3
A62: 59 | B62: 2
A63: 60 | B63: 1

Sheet Overall League
A1: ="AV Points "&CountingRaces&" rides" -> AV Points 12 rides | B1: Last | C1: This | G1: 2018-04-04 | H1: 2018-04-10 | I1: 2018-04-17 | J1: 2018-04-24 | K1: 2018-05-01 | L1: 2018-05-08 | M1: 2018-05-15 | N1: 2018-05-22 | O1: 2018-05-29 | P1: 2018-06-05 | Q1: 2018-06-12 | R1: 2018-06-19 | S1: 2018-06-26 | T1: 2018-07-03 | U1: 2018-07-11 | V1: 2018-07-18 | W1: 2018-07-25 | X1: 2018-08-01 | Y1: 2018-08-08 | Z1: 2018-08-15 | AA1: 2018-08-22 | AB1: 2018-08-29 | AC1: TOTAL | AD1: Total | AE1: Best | AF1: Rides | AG1: This section gives the number of points earned in each race. | BG1: This section adjusts the points so that only the best 'n' count.
B2: Weeks | C2: Weeks | D2: Name | E2: Cat. | F2: Club | G2: Henley | H2: Henley | I2: Crowfield | J2: Crowfield | K2: Crowfield | L2: Crowfield | M2: Crowfield | N2: Crowfield | O2: Stow | P2: Stow | Q2: Stow | R2: Stow | S2: Stow | T2: Stow | U2: Henley | V2: Henley | W2: Henley | X2: Henley | Y2: Henley | Z2: Henley | AA2: Henley | AB2: Henley | AC2: POINTS | AD2: RIDES | AE2: =CountingRaces -> 12 | AF2: Counting | AG2: ICA 1 | AH2: ICA2 | AI2: ICA 3 | AJ2: ICA 4 | AK2: ICA 5 | AL2: ICA 6 | AM2: ICA 7 | AN2: ICA 8 | AO2: ICA 9 | AP2: ICA 10 | AQ2: ICA 11 | AR2: ICA 12 | AS2: ICA 13 | AT2: ICA 14 | AU2: ICA 15 | AV2: ICA 16 | AW2: ICA 17 | AX2: ICA 18 | AY2: ICA 19 | AZ2: ICA 20 | BA2: ICA 21 | BB2: ICA 22 | BG2: ICA 1 | BH2: ICA2 | BI2: ICA 3 | BJ2: ICA 4 | BK2: ICA 5 | BL2: ICA 6 | BM2: ICA 7 | BN2: ICA 8 | BO2: ICA 9 | BP2: ICA 10 | BQ2: ICA 11 | BR2: ICA 12 | BS2: ICA 13 | BT2: ICA 14 | BU2: ICA 15 | BV2: ICA 16 | BW2: ICA 17 | BX2: ICA 18 | BY2: ICA 19 | BZ2: ICA 20 | CA2: ICA 21 | CB2: ICA 22
B3: Placing | C3: Placing | D3: OVERALL | G3: 5mls | H3: 5mls | I3: 8.7 mls | J3: 10mls | K3: 10 mls | L3: 10mls | M3: 10 mls | N3: 10 mls | O3: 10 mls | P3: 10 mls | Q3: 10 mls | R3: 10 mls | S3: 10 mls | T3: 10mls | U3: 10mls | V3: 10mls | W3: 10mls | X3: 10mls | Y3: 10mls | Z3: 10mls | AA3: 5mls | AB3: 5mls | AE3: Rides
A4: =AE4/AF4 -> 59.83333333 | B4: 1 | C4: =IF(AF4 >0,RANK(AE4,AE$4:AE$128),"") -> 1 | D4: Simon Hance | E4: V40 | F4: IBC | G4: =IF(ISERROR(VLOOKUP($D4&$F4,'Rnd1'!$H:$I,2,FALSE)),"",VLOOKUP($D4&$F4,'Rnd1'!$H:$I,2,FALSE)) -> 00:12:37 | H4: =IF(ISERROR(VLOOKUP($D4&$F4,'Rnd2'!$H:$I,2,FALSE)),"",VLOOKUP($D4&$F4,'Rnd2'!$H:$I,2,FALSE)) -> 00:12:05 | I4: =IF(ISERROR(VLOOKUP($D4&$F4,'Rnd3'!$H:$I,2,FALSE)),"",VLOOKUP($D4&$F4,'Rnd3'!$H:$I,2,FALSE)) -> 00:19:33 | J4: =IF(ISERROR(VLOOKUP($D4&$F4,'Rnd4'!$H:$I,2,FALSE)),"",VLOOKUP($D4&$F4,'Rnd4'!$H:$I,2,FALSE)) -> 00:23:25 | K4: =IF(ISERROR(VLOOKUP($D4&$F4,'Rnd5'!$H:$I,2,FALSE)),"",VLOOKUP($D4&$F4,'Rnd5'!$H:$I,2,FALSE)) -> DNF | L4: =IF(ISERROR(VLOOKUP($D4&$F4,'Rnd6'!$H:$I,2,FALSE)),"",VLOOKUP($D4&$F4,'Rnd6'!$H:$I,2,FALSE)) -> 00:22:23 | M4: =IF(ISERROR(VLOOKUP($D4&$F4,'Rnd7'!$H:$I,2,FALSE)),"",VLOOKUP($D4&$F4,'Rnd7'!$H:$I,2,FALSE)) -> 00:22:24 | N4: =IF(ISERROR(VLOOKUP($D4&$F4,'Rnd8'!$H:$I,2,FALSE)),"",VLOOKUP($D4&$F4,'Rnd8'!$H:$I,2,FALSE)) -> 00:23:00 | O4: =IF(ISERROR(VLOOKUP($D4&$F4,'Rnd9'!$H:$I,2,FALSE)),"",VLOOKUP($D4&$F4,'Rnd9'!$H:$I,2,FALSE)) ->  | P4: =IF(ISERROR(VLOOKUP($D4&$F4,'Rnd10'!$H:$I,2,FALSE)),"",VLOOKUP($D4&$F4,'Rnd10'!$H:$I,2,FALSE)) -> 00:22:45 | Q4: =IF(ISERROR(VLOOKUP($D4&$F4,'Rnd11'!$H:$I,2,FALSE)),"",VLOOKUP($D4&$F4,'Rnd11'!$H:$I,2,FALSE)) -> 00:22:10 | R4: =IF(ISERROR(VLOOKUP($D4&$F4,'Rnd12'!$H:$I,2,FALSE)),"",VLOOKUP($D4&$F4,'Rnd12'!$H:$I,2,FALSE)) -> DNF | S4: =IF(ISERROR(VLOOKUP($D4&$F4,'Rnd13'!$H:$I,2,FALSE)),"",VLOOKUP($D4&$F4,'Rnd13'!$H:$I,2,FALSE)) -> 00:21:47 | T4: =IF(ISERROR(VLOOKUP($D4&$F4,'Rnd14'!$H:$I,2,FALSE)),"",VLOOKUP($D4&$F4,'Rnd14'!$H:$I,2,FALSE)) -> 00:22:07 | U4: =IF(ISERROR(VLOOKUP($D4&$F4,'Rnd15'!$H:$I,2,FALSE)),"",VLOOKUP($D4&$F4,'Rnd15'!$H:$I,2,FALSE)) ->  | V4: =IF(ISERROR(VLOOKUP($D4&$F4,'Rnd16'!$H:$I,2,FALSE)),"",VLOOKUP($D4&$F4,'Rnd16'!$H:$I,2,FALSE)) ->  | W4: =IF(ISERROR(VLOOKUP($D4&$F4,'Rnd17'!$H:$I,2,FALSE)),"",VLOOKUP($D4&$F4,'Rnd17'!$H:$I,2,FALSE)) -> 00:22:46 | X4: =IF(ISERROR(VLOOKUP($D4&$F4,'Rnd18'!$H:$I,2,FALSE)),"",VLOOKUP($D4&$F4,'Rnd18'!$H:$I,2,FALSE)) ->  | Y4: =IF(ISERROR(VLOOKUP($D4&$F4,'Rnd19'!$H:$I,2,FALSE)),"",VLOOKUP($D4&$F4,'Rnd19'!$H:$I,2,FALSE)) -> 00:22:25 | Z4: =IF(ISERROR(VLOOKUP($D4&$F4,'Rnd20'!$H:$I,2,FALSE)),"",VLOOKUP($D4&$F4,'Rnd20'!$H:$I,2,FALSE)) -> 00:22:23 | AA4: =IF(ISERROR(VLOOKUP($D4&$F4,'Rnd21'!$H:$I,2,FALSE)),"",VLOOKUP($D4&$F4,'Rnd21'!$H:$I,2,FALSE)) -> 00:11:10 | AB4: =IF(ISERROR(VLOOKUP($D4&$F4,'Rnd22'!$H:$I,2,FALSE)),"",VLOOKUP($D4&$F4,'Rnd22'!$H:$I,2,FALSE)) ->  | AC4: =SUM(AG4:BB4) -> 892 | AD4: =COUNT(AG4:BB4) -> 15 | AE4: =SUM(BG4:CB4) -> 718 | AF4: =COUNT(BG4:CB4) -> 12 | AG4: =IF(ISNUMBER(G4),VLOOKUP(_xlfn.RANK.EQ(G4,G$4:G$128,1),PointsTable,2),"") -> 57 | AH4: =IF(ISNUMBER(H4),VLOOKUP(_xlfn.RANK.EQ(H4,H$4:H$128,1),PointsTable,2),"") -> 59 | AI4: =IF(ISNUMBER(I4),VLOOKUP(_xlfn.RANK.EQ(I4,I$4:I$128,1),PointsTable,2),"") -> 60 | AJ4: =IF(ISNUMBER(J4),VLOOKUP(_xlfn.RANK.EQ(J4,J$4:J$128,1),PointsTable,2),"") -> 60 | AK4: =IF(ISNUMBER(K4),VLOOKUP(_xlfn.RANK.EQ(K4,K$4:K$128,1),PointsTable,2),"") ->  | AL4: =IF(ISNUMBER(L4),VLOOKUP(_xlfn.RANK.EQ(L4,L$4:L$128,1),PointsTable,2),"") -> 60 | AM4: =IF(ISNUMBER(M4),VLOOKUP(_xlfn.RANK.EQ(M4,M$4:M$128,1),PointsTable,2),"") -> 60 | AN4: =IF(ISNUMBER(N4),VLOOKUP(_xlfn.RANK.EQ(N4,N$4:N$128,1),PointsTable,2),"") -> 60 | AO4: =IF(ISNUMBER(O4),VLOOKUP(_xlfn.RANK.EQ(O4,O$4:O$128,1),PointsTable,2),"") ->  | AP4: =IF(ISNUMBER(P4),VLOOKUP(_xlfn.RANK.EQ(P4,P$4:P$128,1),PointsTable,2),"") -> 59 | AQ4: =IF(ISNUMBER(Q4),VLOOKUP(_xlfn.RANK.EQ(Q4,Q$4:Q$128,1),PointsTable,2),"") -> 60 | AR4: =IF(ISNUMBER(R4),VLOOKUP(_xlfn.RANK.EQ(R4,R$4:R$128,1),PointsTable,2),"") ->  | AS4: =IF(ISNUMBER(S4),VLOOKUP(_xlfn.RANK.EQ(S4,S$4:S$128,1),PointsTable,2),"") -> 60 | AT4: =IF(ISNUMBER(T4),VLOOKUP(_xlfn.RANK.EQ(T4,T$4:T$128,1),PointsTable,2),"") -> 60 | AU4: =IF(ISNUMBER(U4),VLOOKUP(_xlfn.RANK.EQ(U4,U$4:U$128,1),PointsTable,2),"") ->  | AV4: =IF(ISNUMBER(V4),VLOOKUP(_xlfn.RANK.EQ(V4,V$4:V$128,1),PointsTable,2),"") ->  | AW4: =IF(ISNUMBER(W4),VLOOKUP(_xlfn.RANK.EQ(W4,W$4:W$128,1),PointsTable,2),"") -> 60 | AX4: =IF(ISNUMBER(X4),VLOOKUP(_xlfn.RANK.EQ(X4,X$4:X$128,1),PointsTable,2),"") ->  | AY4: =IF(ISNUMBER(Y4),VLOOKUP(_xlfn.RANK.EQ(Y4,Y$4:Y$128,1),PointsTable,2),"") -> 58 | AZ4: =IF(ISNUMBER(Z4),VLOOKUP(_xlfn.RANK.EQ(Z4,Z$4:Z$128,1),PointsTable,2),"") -> 60 | BA4: =IF(ISNUMBER(AA4),VLOOKUP(_xlfn.RANK.EQ(AA4,AA$4:AA$128,1),PointsTable,2),"") -> 59 | BB4: =IF(ISNUMBER(AB4),VLOOKUP(_xlfn.RANK.EQ(AB4,AB$4:AB$128,1),PointsTable,2),"") ->  | BG4: =bestpoints(AG4, $AG4:$BB4, CountingRaces) ->  | BH4: =bestpoints(AH4, $AG4:$BB4, CountingRaces) -> 59 | BI4: =bestpoints(AI4, $AG4:$BB4, CountingRaces) -> 60 | BJ4: =bestpoints(AJ4, $AG4:$BB4, CountingRaces) -> 60 | BK4: =bestpoints(AK4, $AG4:$BB4, CountingRaces) ->  | BL4: =bestpoints(AL4, $AG4:$BB4, CountingRaces) -> 60 | BM4: =bestpoints(AM4, $AG4:$BB4, CountingRaces) -> 60 | BN4: =bestpoints(AN4, $AG4:$BB4, CountingRaces) -> 60 | BO4: =bestpoints(AO4, $AG4:$BB4, CountingRaces) ->  | BP4: =bestpoints(AP4, $AG4:$BB4, CountingRaces) -> 59 | BQ4: =bestpoints(AQ4, $AG4:$BB4, CountingRaces) -> 60 | BR4: =bestpoints(AR4, $AG4:$BB4, CountingRaces) ->  | BS4: =bestpoints(AS4, $AG4:$BB4, CountingRaces) -> 60 | BT4: =bestpoints(AT4, $AG4:$BB4, CountingRaces) -> 60 | BU4: =bestpoints(AU4, $AG4:$BB4, CountingRaces) ->  | BV4: =bestpoints(AV4, $AG4:$BB4, CountingRaces) ->  | BW4: =bestpoints(AW4, $AG4:$BB4, CountingRaces) -> 60 | BX4: =bestpoints(AX4, $AG4:$BB4, CountingRaces) ->  | BY4: =bestpoints(AY4, $AG4:$BB4, CountingRaces) ->  | BZ4: =bestpoints(AZ4, $AG4:$BB4, CountingRaces) -> 60 | CA4: =bestpoints(BA4, $AG4:$BB4, CountingRaces) ->  | CB4: =bestpoints(BB4, $AG4:$BB4, CountingRaces) -> 
A5: =AE5/AF5 -> 59.75 | B5: 2 | C5: =IF(AF5 >0,RANK(AE5,AE$4:AE$128),"") -> 2 | D5: Joe Spaulding | E5: S | F5: IBC | G5: =IF(ISERROR(VLOOKUP($D5&$F5,'Rnd1'!$H:$I,2,FALSE)),"",VLOOKUP($D5&$F5,'Rnd1'!$H:$I,2,FALSE)) -> 00:11:50 | H5: =IF(ISERROR(VLOOKUP($D5&$F5,'Rnd2'!$H:$I,2,FALSE)),"",VLOOKUP($D5&$F5,'Rnd2'!$H:$I,2,FALSE)) -> 00:11:44 | I5: =IF(ISERROR(VLOOKUP($D5&$F5,'Rnd3'!$H:$I,2,FALSE)),"",VLOOKUP($D5&$F5,'Rnd3'!$H:$I,2,FALSE)) -> 00:20:02 | J5: =IF(ISERROR(VLOOKUP($D5&$F5,'Rnd4'!$H:$I,2,FALSE)),"",VLOOKUP($D5&$F5,'Rnd4'!$H:$I,2,FALSE)) -> 00:23:56 | K5: =IF(ISERROR(VLOOKUP($D5&$F5,'Rnd5'!$H:$I,2,FALSE)),"",VLOOKUP($D5&$F5,'Rnd5'!$H:$I,2,FALSE)) -> 00:22:50 | L5: =IF(ISERROR(VLOOKUP($D5&$F5,'Rnd6'!$H:$I,2,FALSE)),"",VLOOKUP($D5&$F5,'Rnd6'!$H:$I,2,FALSE)) -> 00:23:06 | M5: =IF(ISERROR(VLOOKUP($D5&$F5,'Rnd7'!$H:$I,2,FALSE)),"",VLOOKUP($D5&$F5,'Rnd7'!$H:$I,2,FALSE)) -> 00:23:24 | N5: =IF(ISERROR(VLOOKUP($D5&$F5,'Rnd8'!$H:$I,2,FALSE)),"",VLOOKUP($D5&$F5,'Rnd8'!$H:$I,2,FALSE)) ->  | O5: =IF(ISERROR(VLOOKUP($D5&$F5,'Rnd9'!$H:$I,2,FALSE)),"",VLOOKUP($D5&$F5,'Rnd9'!$H:$I,2,FALSE)) ->  | P5: =IF(ISERROR(VLOOKUP($D5&$F5,'Rnd10'!$H:$I,2,FALSE)),"",VLOOKUP($D5&$F5,'Rnd10'!$H:$I,2,FALSE)) -> 00:22:44 | Q5: =IF(ISERROR(VLOOKUP($D5&$F5,'Rnd11'!$H:$I,2,FALSE)),"",VLOOKUP($D5&$F5,'Rnd11'!$H:$I,2,FALSE)) -> 00:22:15 | R5: =IF(ISERROR(VLOOKUP($D5&$F5,'Rnd12'!$H:$I,2,FALSE)),"",VLOOKUP($D5&$F5,'Rnd12'!$H:$I,2,FALSE)) -> 00:22:29 | S5: =IF(ISERROR(VLOOKUP($D5&$F5,'Rnd13'!$H:$I,2,FALSE)),"",VLOOKUP($D5&$F5,'Rnd13'!$H:$I,2,FALSE)) ->  | T5: =IF(ISERROR(VLOOKUP($D5&$F5,'Rnd14'!$H:$I,2,FALSE)),"",VLOOKUP($D5&$F5,'Rnd14'!$H:$I,2,FALSE)) ->  | U5: =IF(ISERROR(VLOOKUP($D5&$F5,'Rnd15'!$H:$I,2,FALSE)),"",VLOOKUP($D5&$F5,'Rnd15'!$H:$I,2,FALSE)) ->  | V5: =IF(ISERROR(VLOOKUP($D5&$F5,'Rnd16'!$H:$I,2,FALSE)),"",VLOOKUP($D5&$F5,'Rnd16'!$H:$I,2,FALSE)) -> 00:23:01 | W5: =IF(ISERROR(VLOOKUP($D5&$F5,'Rnd17'!$H:$I,2,FALSE)),"",VLOOKUP($D5&$F5,'Rnd17'!$H:$I,2,FALSE)) -> 00:22:47 | X5: =IF(ISERROR(VLOOKUP($D5&$F5,'Rnd18'!$H:$I,2,FALSE)),"",VLOOKUP($D5&$F5,'Rnd18'!$H:$I,2,FALSE)) -> 00:22:17 | Y5: =IF(ISERROR(VLOOKUP($D5&$F5,'Rnd19'!$H:$I,2,FALSE)),"",VLOOKUP($D5&$F5,'Rnd19'!$H:$I,2,FALSE)) -> 00:22:13 | Z5: =IF(ISERROR(VLOOKUP($D5&$F5,'Rnd20'!$H:$I,2,FALSE)),"",VLOOKUP($D5&$F5,'Rnd20'!$H:$I,2,FALSE)) -> 00:22:32 | AA5: =IF(ISERROR(VLOOKUP($D5&$F5,'Rnd21'!$H:$I,2,FALSE)),"",VLOOKUP($D5&$F5,'Rnd21'!$H:$I,2,FALSE)) -> 00:11:04 | AB5: =IF(ISERROR(VLOOKUP($D5&$F5,'Rnd22'!$H:$I,2,FALSE)),"",VLOOKUP($D5&$F5,'Rnd22'!$H:$I,2,FALSE)) -> 00:11:03 | AC5: =SUM(AG5:BB5) -> 1011 | AD5: =COUNT(AG5:BB5) -> 17 | AE5: =SUM(BG5:CB5) -> 717 | AF5: =COUNT(BG5:CB5) -> 12 | AG5: =IF(ISNUMBER(G5),VLOOKUP(_xlfn.RANK.EQ(G5,G$4:G$128,1),PointsTable,2),"") -> 60 | AH5: =IF(ISNUMBER(H5),VLOOKUP(_xlfn.RANK.EQ(H5,H$4:H$128,1),PointsTable,2),"") -> 60 | AI5: =IF(ISNUMBER(I5),VLOOKUP(_xlfn.RANK.EQ(I5,I$4:I$128,1),PointsTable,2),"") -> 59 | AJ5: =IF(ISNUMBER(J5),VLOOKUP(_xlfn.RANK.EQ(J5,J$4:J$128,1),PointsTable,2),"") -> 59 | AK5: =IF(ISNUMBER(K5),VLOOKUP(_xlfn.RANK.EQ(K5,K$4:K$128,1),PointsTable,2),"") -> 60 | AL5: =IF(ISNUMBER(L5),VLOOKUP(_xlfn.RANK.EQ(L5,L$4:L$128,1),PointsTable,2),"") -> 59 | AM5: =IF(ISNUMBER(M5),VLOOKUP(_xlfn.RANK.EQ(M5,M$4:M$128,1),PointsTable,2),"") -> 58 | AN5: =IF(ISNUMBER(N5),VLOOKUP(_xlfn.RANK.EQ(N5,N$4:N$128,1),PointsTable,2),"") ->  | AO5: =IF(ISNUMBER(O5),VLOOKUP(_xlfn.RANK.EQ(O5,O$4:O$128,1),PointsTable,2),"") ->  | AP5: =IF(ISNUMBER(P5),VLOOKUP(_xlfn.RANK.EQ(P5,P$4:P$128,1),PointsTable,2),"") -> 60 | AQ5: =IF(ISNUMBER(Q5),VLOOKUP(_xlfn.RANK.EQ(Q5,Q$4:Q$128,1),PointsTable,2),"") -> 59 | AR5: =IF(ISNUMBER(R5),VLOOKUP(_xlfn.RANK.EQ(R5,R$4:R$128,1),PointsTable,2),"") -> 60 | AS5: =IF(ISNUMBER(S5),VLOOKUP(_xlfn.RANK.EQ(S5,S$4:S$128,1),PointsTable,2),"") ->  | AT5: =IF(ISNUMBER(T5),VLOOKUP(_xlfn.RANK.EQ(T5,T$4:T$128,1),PointsTable,2),"") ->  | AU5: =IF(ISNUMBER(U5),VLOOKUP(_xlfn.RANK.EQ(U5,U$4:U$128,1),PointsTable,2),"") ->  | AV5: =IF(ISNUMBER(V5),VLOOKUP(_xlfn.RANK.EQ(V5,V$4:V$128,1),PointsTable,2),"") -> 60 | AW5: =IF(ISNUMBER(W5),VLOOKUP(_xlfn.RANK.EQ(W5,W$4:W$128,1),PointsTable,2),"") -> 59 | AX5: =IF(ISNUMBER(X5),VLOOKUP(_xlfn.RANK.EQ(X5,X$4:X$128,1),PointsTable,2),"") -> 60 | AY5: =IF(ISNUMBER(Y5),VLOOKUP(_xlfn.RANK.EQ(Y5,Y$4:Y$128,1),PointsTable,2),"") -> 59 | AZ5: =IF(ISNUMBER(Z5),VLOOKUP(_xlfn.RANK.EQ(Z5,Z$4:Z$128,1),PointsTable,2),"") -> 59 | BA5: =IF(ISNUMBER(AA5),VLOOKUP(_xlfn.RANK.EQ(AA5,AA$4:AA$128,1),PointsTable,2),"") -> 60 | BB5: =IF(ISNUMBER(AB5),VLOOKUP(_xlfn.RANK.EQ(AB5,AB$4:AB$128,1),PointsTable,2),"") -> 60 | BG5: =bestpoints(AG5, $AG5:$BB5, CountingRaces) -> 60 | BH5: =bestpoints(AH5, $AG5:$BB5, CountingRaces) -> 60 | BI5: =bestpoints(AI5, $AG5:$BB5, CountingRaces) -> 59 | BJ5: =bestpoints(AJ5, $AG5:$BB5, CountingRaces) -> 59 | BK5: =bestpoints(AK5, $AG5:$BB5, CountingRaces) -> 60 | BL5: =bestpoints(AL5, $AG5:$BB5, CountingRaces) -> 59 | BM5: =bestpoints(AM5, $AG5:$BB5, CountingRaces) ->  | BN5: =bestpoints(AN5, $AG5:$BB5, CountingRaces) ->  | BO5: =bestpoints(AO5, $AG5:$BB5, CountingRaces) ->  | BP5: =bestpoints(AP5, $AG5:$BB5, CountingRaces) -> 60 | BQ5: =bestpoints(AQ5, $AG5:$BB5, CountingRaces) ->  | BR5: =bestpoints(AR5, $AG5:$BB5, CountingRaces) -> 60 | BS5: =bestpoints(AS5, $AG5:$BB5, CountingRaces) ->  | BT5: =bestpoints(AT5, $AG5:$BB5, CountingRaces) ->  | BU5: =bestpoints(AU5, $AG5:$BB5, CountingRaces) ->  | BV5: =bestpoints(AV5, $AG5:$BB5, CountingRaces) -> 60 | BW5: =bestpoints(AW5, $AG5:$BB5, CountingRaces) ->  | BX5: =bestpoints(AX5, $AG5:$BB5, CountingRaces) -> 60 | BY5: =bestpoints(AY5, $AG5:$BB5, CountingRaces) ->  | BZ5: =bestpoints(AZ5, $AG5:$BB5, CountingRaces) ->  | CA5: =bestpoints(BA5, $AG5:$BB5, CountingRaces) -> 60 | CB5: =bestpoints(BB5, $AG5:$BB5, CountingRaces) -> 60
A6: =AE6/AF6 -> 58.08333333 | B6: 3 | C6: =IF(AF6 >0,RANK(AE6,AE$4:AE$128),"") -> 3 | D6: Steve Cave | E6: V40 | F6: Wolsey | G6: =IF(ISERROR(VLOOKUP($D6&$F6,'Rnd1'!$H:$I,2,FALSE)),"",VLOOKUP($D6&$F6,'Rnd1'!$H:$I,2,FALSE)) ->  | H6: =IF(ISERROR(VLOOKUP($D6&$F6,'Rnd2'!$H:$I,2,FALSE)),"",VLOOKUP($D6&$F6,'Rnd2'!$H:$I,2,FALSE)) -> 00:12:18 | I6: =IF(ISERROR(VLOOKUP($D6&$F6,'Rnd3'!$H:$I,2,FALSE)),"",VLOOKUP($D6&$F6,'Rnd3'!$H:$I,2,FALSE)) -> 00:20:20 | J6: =IF(ISERROR(VLOOKUP($D6&$F6,'Rnd4'!$H:$I,2,FALSE)),"",VLOOKUP($D6&$F6,'Rnd4'!$H:$I,2,FALSE)) ->  | K6: =IF(ISERROR(VLOOKUP($D6&$F6,'Rnd5'!$H:$I,2,FALSE)),"",VLOOKUP($D6&$F6,'Rnd5'!$H:$I,2,FALSE)) -> 00:24:02 | L6: =IF(ISERROR(VLOOKUP($D6&$F6,'Rnd6'!$H:$I,2,FALSE)),"",VLOOKUP($D6&$F6,'Rnd6'!$H:$I,2,FALSE)) ->  | M6: =IF(ISERROR(VLOOKUP($D6&$F6,'Rnd7'!$H:$I,2,FALSE)),"",VLOOKUP($D6&$F6,'Rnd7'!$H:$I,2,FALSE)) -> 00:23:19 | N6: =IF(ISERROR(VLOOKUP($D6&$F6,'Rnd8'!$H:$I,2,FALSE)),"",VLOOKUP($D6&$F6,'Rnd8'!$H:$I,2,FALSE)) ->  | O6: =IF(ISERROR(VLOOKUP($D6&$F6,'Rnd9'!$H:$I,2,FALSE)),"",VLOOKUP($D6&$F6,'Rnd9'!$H:$I,2,FALSE)) -> 00:23:18 | P6: =IF(ISERROR(VLOOKUP($D6&$F6,'Rnd10'!$H:$I,2,FALSE)),"",VLOOKUP($D6&$F6,'Rnd10'!$H:$I,2,FALSE)) -> 00:23:43 | Q6: =IF(ISERROR(VLOOKUP($D6&$F6,'Rnd11'!$H:$I,2,FALSE)),"",VLOOKUP($D6&$F6,'Rnd11'!$H:$I,2,FALSE)) -> 00:23:19 | R6: =IF(ISERROR(VLOOKUP($D6&$F6,'Rnd12'!$H:$I,2,FALSE)),"",VLOOKUP($D6&$F6,'Rnd12'!$H:$I,2,FALSE)) ->  | S6: =IF(ISERROR(VLOOKUP($D6&$F6,'Rnd13'!$H:$I,2,FALSE)),"",VLOOKUP($D6&$F6,'Rnd13'!$H:$I,2,FALSE)) -> 00:23:05 | T6: =IF(ISERROR(VLOOKUP($D6&$F6,'Rnd14'!$H:$I,2,FALSE)),"",VLOOKUP($D6&$F6,'Rnd14'!$H:$I,2,FALSE)) -> 00:22:55 | U6: =IF(ISERROR(VLOOKUP($D6&$F6,'Rnd15'!$H:$I,2,FALSE)),"",VLOOKUP($D6&$F6,'Rnd15'!$H:$I,2,FALSE)) ->  | V6: =IF(ISERROR(VLOOKUP($D6&$F6,'Rnd16'!$H:$I,2,FALSE)),"",VLOOKUP($D6&$F6,'Rnd16'!$H:$I,2,FALSE)) -> 00:23:32 | W6: =IF(ISERROR(VLOOKUP($D6&$F6,'Rnd17'!$H:$I,2,FALSE)),"",VLOOKUP($D6&$F6,'Rnd17'!$H:$I,2,FALSE)) -> 00:23:34 | X6: =IF(ISERROR(VLOOKUP($D6&$F6,'Rnd18'!$H:$I,2,FALSE)),"",VLOOKUP($D6&$F6,'Rnd18'!$H:$I,2,FALSE)) -> 00:23:40 | Y6: =IF(ISERROR(VLOOKUP($D6&$F6,'Rnd19'!$H:$I,2,FALSE)),"",VLOOKUP($D6&$F6,'Rnd19'!$H:$I,2,FALSE)) ->  | Z6: =IF(ISERROR(VLOOKUP($D6&$F6,'Rnd20'!$H:$I,2,FALSE)),"",VLOOKUP($D6&$F6,'Rnd20'!$H:$I,2,FALSE)) -> 00:25:02 | AA6: =IF(ISERROR(VLOOKUP($D6&$F6,'Rnd21'!$H:$I,2,FALSE)),"",VLOOKUP($D6&$F6,'Rnd21'!$H:$I,2,FALSE)) -> 00:12:05 | AB6: =IF(ISERROR(VLOOKUP($D6&$F6,'Rnd22'!$H:$I,2,FALSE)),"",VLOOKUP($D6&$F6,'Rnd22'!$H:$I,2,FALSE)) -> 00:12:15 | AC6: =SUM(AG6:BB6) -> 858 | AD6: =COUNT(AG6:BB6) -> 15 | AE6: =SUM(BG6:CB6) -> 697 | AF6: =COUNT(BG6:CB6) -> 12 | AG6: =IF(ISNUMBER(G6),VLOOKUP(_xlfn.RANK.EQ(G6,G$4:G$128,1),PointsTable,2),"") ->  | AH6: =IF(ISNUMBER(H6),VLOOKUP(_xlfn.RANK.EQ(H6,H$4:H$128,1),PointsTable,2),"") -> 58 | AI6: =IF(ISNUMBER(I6),VLOOKUP(_xlfn.RANK.EQ(I6,I$4:I$128,1),PointsTable,2),"") -> 58 | AJ6: =IF(ISNUMBER(J6),VLOOKUP(_xlfn.RANK.EQ(J6,J$4:J$128,1),PointsTable,2),"") ->  | AK6: =IF(ISNUMBER(K6),VLOOKUP(_xlfn.RANK.EQ(K6,K$4:K$128,1),PointsTable,2),"") -> 59 | AL6: =IF(ISNUMBER(L6),VLOOKUP(_xlfn.RANK.EQ(L6,L$4:L$128,1),PointsTable,2),"") ->  | AM6: =IF(ISNUMBER(M6),VLOOKUP(_xlfn.RANK.EQ(M6,M$4:M$128,1),PointsTable,2),"") -> 59 | AN6: =IF(ISNUMBER(N6),VLOOKUP(_xlfn.RANK.EQ(N6,N$4:N$128,1),PointsTable,2),"") ->  | AO6: =IF(ISNUMBER(O6),VLOOKUP(_xlfn.RANK.EQ(O6,O$4:O$128,1),PointsTable,2),"") -> 59 | AP6: =IF(ISNUMBER(P6),VLOOKUP(_xlfn.RANK.EQ(P6,P$4:P$128,1),PointsTable,2),"") -> 54 | AQ6: =IF(ISNUMBER(Q6),VLOOKUP(_xlfn.RANK.EQ(Q6,Q$4:Q$128,1),PointsTable,2),"") -> 56 | AR6: =IF(ISNUMBER(R6),VLOOKUP(_xlfn.RANK.EQ(R6,R$4:R$128,1),PointsTable,2),"") ->  | AS6: =IF(ISNUMBER(S6),VLOOKUP(_xlfn.RANK.EQ(S6,S$4:S$128,1),PointsTable,2),"") -> 58 | AT6: =IF(ISNUMBER(T6),VLOOKUP(_xlfn.RANK.EQ(T6,T$4:T$128,1),PointsTable,2),"") -> 59 | AU6: =IF(ISNUMBER(U6),VLOOKUP(_xlfn.RANK.EQ(U6,U$4:U$128,1),PointsTable,2),"") ->  | AV6: =IF(ISNUMBER(V6),VLOOKUP(_xlfn.RANK.EQ(V6,V$4:V$128,1),PointsTable,2),"") -> 57 | AW6: =IF(ISNUMBER(W6),VLOOKUP(_xlfn.RANK.EQ(W6,W$4:W$128,1),PointsTable,2),"") -> 58 | AX6: =IF(ISNUMBER(X6),VLOOKUP(_xlfn.RANK.EQ(X6,X$4:X$128,1),PointsTable,2),"") -> 58 | AY6: =IF(ISNUMBER(Y6),VLOOKUP(_xlfn.RANK.EQ(Y6,Y$4:Y$128,1),PointsTable,2),"") ->  | AZ6: =IF(ISNUMBER(Z6),VLOOKUP(_xlfn.RANK.EQ(Z6,Z$4:Z$128,1),PointsTable,2),"") -> 51 | BA6: =IF(ISNUMBER(AA6),VLOOKUP(_xlfn.RANK.EQ(AA6,AA$4:AA$128,1),PointsTable,2),"") -> 56 | BB6: =IF(ISNUMBER(AB6),VLOOKUP(_xlfn.RANK.EQ(AB6,AB$4:AB$128,1),PointsTable,2),"") -> 58 | BG6: =bestpoints(AG6, $AG6:$BB6, CountingRaces) ->  | BH6: =bestpoints(AH6, $AG6:$BB6, CountingRaces) -> 58 | BI6: =bestpoints(AI6, $AG6:$BB6, CountingRaces) -> 58 | BJ6: =bestpoints(AJ6, $AG6:$BB6, CountingRaces) ->  | BK6: =bestpoints(AK6, $AG6:$BB6, CountingRaces) -> 59 | BL6: =bestpoints(AL6, $AG6:$BB6, CountingRaces) ->  | BM6: =bestpoints(AM6, $AG6:$BB6, CountingRaces) -> 59 | BN6: =bestpoints(AN6, $AG6:$BB6, CountingRaces) ->  | BO6: =bestpoints(AO6, $AG6:$BB6, CountingRaces) -> 59 | BP6: =bestpoints(AP6, $AG6:$BB6, CountingRaces) ->  | BQ6: =bestpoints(AQ6, $AG6:$BB6, CountingRaces) -> 56 | BR6: =bestpoints(AR6, $AG6:$BB6, CountingRaces) ->  | BS6: =bestpoints(AS6, $AG6:$BB6, CountingRaces) -> 58 | BT6: =bestpoints(AT6, $AG6:$BB6, CountingRaces) -> 59 | BU6: =bestpoints(AU6, $AG6:$BB6, CountingRaces) ->  | BV6: =bestpoints(AV6, $AG6:$BB6, CountingRaces) -> 57 | BW6: =bestpoints(AW6, $AG6:$BB6, CountingRaces) -> 58 | BX6: =bestpoints(AX6, $AG6:$BB6, CountingRaces) -> 58 | BY6: =bestpoints(AY6, $AG6:$BB6, CountingRaces) ->  | BZ6: =bestpoints(AZ6, $AG6:$BB6, CountingRaces) ->  | CA6: =bestpoints(BA6, $AG6:$BB6, CountingRaces) ->  | CB6: =bestpoints(BB6, $AG6:$BB6, CountingRaces) -> 58
A7: =AE7/AF7 -> 57.66666667 | B7: 4 | C7: =IF(AF7 >0,RANK(AE7,AE$4:AE$128),"") -> 4 | D7: Adrian Pettitt | E7: V40 | F7: SDCC | G7: =IF(ISERROR(VLOOKUP($D7&$F7,'Rnd1'!$H:$I,2,FALSE)),"",VLOOKUP($D7&$F7,'Rnd1'!$H:$I,2,FALSE)) ->  | H7: =IF(ISERROR(VLOOKUP($D7&$F7,'Rnd2'!$H:$I,2,FALSE)),"",VLOOKUP($D7&$F7,'Rnd2'!$H:$I,2,FALSE)) ->  | I7: =IF(ISERROR(VLOOKUP($D7&$F7,'Rnd3'!$H:$I,2,FALSE)),"",VLOOKUP($D7&$F7,'Rnd3'!$H:$I,2,FALSE)) -> 00:20:37 | J7: =IF(ISERROR(VLOOKUP($D7&$F7,'Rnd4'!$H:$I,2,FALSE)),"",VLOOKUP($D7&$F7,'Rnd4'!$H:$I,2,FALSE)) -> 00:24:21 | K7: =IF(ISERROR(VLOOKUP($D7&$F7,'Rnd5'!$H:$I,2,FALSE)),"",VLOOKUP($D7&$F7,'Rnd5'!$H:$I,2,FALSE)) -> 00:24:05 | L7: =IF(ISERROR(VLOOKUP($D7&$F7,'Rnd6'!$H:$I,2,FALSE)),"",VLOOKUP($D7&$F7,'Rnd6'!$H:$I,2,FALSE)) ->  | M7: =IF(ISERROR(VLOOKUP($D7&$F7,'Rnd7'!$H:$I,2,FALSE)),"",VLOOKUP($D7&$F7,'Rnd7'!$H:$I,2,FALSE)) -> 00:23:51 | N7: =IF(ISERROR(VLOOKUP($D7&$F7,'Rnd8'!$H:$I,2,FALSE)),"",VLOOKUP($D7&$F7,'Rnd8'!$H:$I,2,FALSE)) -> 00:23:52 | O7: =IF(ISERROR(VLOOKUP($D7&$F7,'Rnd9'!$H:$I,2,FALSE)),"",VLOOKUP($D7&$F7,'Rnd9'!$H:$I,2,FALSE)) -> 00:23:10 | P7: =IF(ISERROR(VLOOKUP($D7&$F7,'Rnd10'!$H:$I,2,FALSE)),"",VLOOKUP($D7&$F7,'Rnd10'!$H:$I,2,FALSE)) -> 00:23:15 | Q7: =IF(ISERROR(VLOOKUP($D7&$F7,'Rnd11'!$H:$I,2,FALSE)),"",VLOOKUP($D7&$F7,'Rnd11'!$H:$I,2,FALSE)) -> 00:23:15 | R7: =IF(ISERROR(VLOOKUP($D7&$F7,'Rnd12'!$H:$I,2,FALSE)),"",VLOOKUP($D7&$F7,'Rnd12'!$H:$I,2,FALSE)) -> 00:23:07 | S7: =IF(ISERROR(VLOOKUP($D7&$F7,'Rnd13'!$H:$I,2,FALSE)),"",VLOOKUP($D7&$F7,'Rnd13'!$H:$I,2,FALSE)) -> 00:23:01 | T7: =IF(ISERROR(VLOOKUP($D7&$F7,'Rnd14'!$H:$I,2,FALSE)),"",VLOOKUP($D7&$F7,'Rnd14'!$H:$I,2,FALSE)) -> 00:23:12 | U7: =IF(ISERROR(VLOOKUP($D7&$F7,'Rnd15'!$H:$I,2,FALSE)),"",VLOOKUP($D7&$F7,'Rnd15'!$H:$I,2,FALSE)) ->  | V7: =IF(ISERROR(VLOOKUP($D7&$F7,'Rnd16'!$H:$I,2,FALSE)),"",VLOOKUP($D7&$F7,'Rnd16'!$H:$I,2,FALSE)) ->  | W7: =IF(ISERROR(VLOOKUP($D7&$F7,'Rnd17'!$H:$I,2,FALSE)),"",VLOOKUP($D7&$F7,'Rnd17'!$H:$I,2,FALSE)) ->  | X7: =IF(ISERROR(VLOOKUP($D7&$F7,'Rnd18'!$H:$I,2,FALSE)),"",VLOOKUP($D7&$F7,'Rnd18'!$H:$I,2,FALSE)) -> 00:23:55 | Y7: =IF(ISERROR(VLOOKUP($D7&$F7,'Rnd19'!$H:$I,2,FALSE)),"",VLOOKUP($D7&$F7,'Rnd19'!$H:$I,2,FALSE)) ->  | Z7: =IF(ISERROR(VLOOKUP($D7&$F7,'Rnd20'!$H:$I,2,FALSE)),"",VLOOKUP($D7&$F7,'Rnd20'!$H:$I,2,FALSE)) ->  | AA7: =IF(ISERROR(VLOOKUP($D7&$F7,'Rnd21'!$H:$I,2,FALSE)),"",VLOOKUP($D7&$F7,'Rnd21'!$H:$I,2,FALSE)) ->  | AB7: =IF(ISERROR(VLOOKUP($D7&$F7,'Rnd22'!$H:$I,2,FALSE)),"",VLOOKUP($D7&$F7,'Rnd22'!$H:$I,2,FALSE)) ->  | AC7: =SUM(AG7:BB7) -> 692 | AD7: =COUNT(AG7:BB7) -> 12 | AE7: =SUM(BG7:CB7) -> 692 | AF7: =COUNT(BG7:CB7) -> 12 | AG7: =IF(ISNUMBER(G7),VLOOKUP(_xlfn.RANK.EQ(G7,G$4:G$128,1),PointsTable,2),"") ->  | AH7: =IF(ISNUMBER(H7),VLOOKUP(_xlfn.RANK.EQ(H7,H$4:H$128,1),PointsTable,2),"") ->  | AI7: =IF(ISNUMBER(I7),VLOOKUP(_xlfn.RANK.EQ(I7,I$4:I$128,1),PointsTable,2),"") -> 56 | AJ7: =IF(ISNUMBER(J7),VLOOKUP(_xlfn.RANK.EQ(J7,J$4:J$128,1),PointsTable,2),"") -> 57 | AK7: =IF(ISNUMBER(K7),VLOOKUP(_xlfn.RANK.EQ(K7,K$4:K$128,1),PointsTable,2),"") -> 58 | AL7: =IF(ISNUMBER(L7),VLOOKUP(_xlfn.RANK.EQ(L7,L$4:L$128,1),PointsTable,2),"") ->  | AM7: =IF(ISNUMBER(M7),VLOOKUP(_xlfn.RANK.EQ(M7,M$4:M$128,1),PointsTable,2),"") -> 57 | AN7: =IF(ISNUMBER(N7),VLOOKUP(_xlfn.RANK.EQ(N7,N$4:N$128,1),PointsTable,2),"") -> 59 | AO7: =IF(ISNUMBER(O7),VLOOKUP(_xlfn.RANK.EQ(O7,O$4:O$128,1),PointsTable,2),"") -> 60 | AP7: =IF(ISNUMBER(P7),VLOOKUP(_xlfn.RANK.EQ(P7,P$4:P$128,1),PointsTable,2),"") -> 58 | AQ7: =IF(ISNUMBER(Q7),VLOOKUP(_xlfn.RANK.EQ(Q7,Q$4:Q$128,1),PointsTable,2),"") -> 58 | AR7: =IF(ISNUMBER(R7),VLOOKUP(_xlfn.RANK.EQ(R7,R$4:R$128,1),PointsTable,2),"") -> 59 | AS7: =IF(ISNUMBER(S7),VLOOKUP(_xlfn.RANK.EQ(S7,S$4:S$128,1),PointsTable,2),"") -> 59 | AT7: =IF(ISNUMBER(T7),VLOOKUP(_xlfn.RANK.EQ(T7,T$4:T$128,1),PointsTable,2),"") -> 56 | AU7: =IF(ISNUMBER(U7),VLOOKUP(_xlfn.RANK.EQ(U7,U$4:U$128,1),PointsTable,2),"") ->  | AV7: =IF(ISNUMBER(V7),VLOOKUP(_xlfn.RANK.EQ(V7,V$4:V$128,1),PointsTable,2),"") ->  | AW7: =IF(ISNUMBER(W7),VLOOKUP(_xlfn.RANK.EQ(W7,W$4:W$128,1),PointsTable,2),"") ->  | AX7: =IF(ISNUMBER(X7),VLOOKUP(_xlfn.RANK.EQ(X7,X$4:X$128,1),PointsTable,2),"") -> 55 | AY7: =IF(ISNUMBER(Y7),VLOOKUP(_xlfn.RANK.EQ(Y7,Y$4:Y$128,1),PointsTable,2),"") ->  | AZ7: =IF(ISNUMBER(Z7),VLOOKUP(_xlfn.RANK.EQ(Z7,Z$4:Z$128,1),PointsTable,2),"") ->  | BA7: =IF(ISNUMBER(AA7),VLOOKUP(_xlfn.RANK.EQ(AA7,AA$4:AA$128,1),PointsTable,2),"") ->  | BB7: =IF(ISNUMBER(AB7),VLOOKUP(_xlfn.RANK.EQ(AB7,AB$4:AB$128,1),PointsTable,2),"") ->  | BG7: =bestpoints(AG7, $AG7:$BB7, CountingRaces) ->  | BH7: =bestpoints(AH7, $AG7:$BB7, CountingRaces) ->  | BI7: =bestpoints(AI7, $AG7:$BB7, CountingRaces) -> 56 | BJ7: =bestpoints(AJ7, $AG7:$BB7, CountingRaces) -> 57 | BK7: =bestpoints(AK7, $AG7:$BB7, CountingRaces) -> 58 | BL7: =bestpoints(AL7, $AG7:$BB7, CountingRaces) ->  | BM7: =bestpoints(AM7, $AG7:$BB7, CountingRaces) -> 57 | BN7: =bestpoints(AN7, $AG7:$BB7, CountingRaces) -> 59 | BO7: =bestpoints(AO7, $AG7:$BB7, CountingRaces) -> 60 | BP7: =bestpoints(AP7, $AG7:$BB7, CountingRaces) -> 58 | BQ7: =bestpoints(AQ7, $AG7:$BB7, CountingRaces) -> 58 | BR7: =bestpoints(AR7, $AG7:$BB7, CountingRaces) -> 59 | BS7: =bestpoints(AS7, $AG7:$BB7, CountingRaces) -> 59 | BT7: =bestpoints(AT7, $AG7:$BB7, CountingRaces) -> 56 | BU7: =bestpoints(AU7, $AG7:$BB7, CountingRaces) ->  | BV7: =bestpoints(AV7, $AG7:$BB7, CountingRaces) ->  | BW7: =bestpoints(AW7, $AG7:$BB7, CountingRaces) ->  | BX7: =bestpoints(AX7, $AG7:$BB7, CountingRaces) -> 55 | BY7: =bestpoints(AY7, $AG7:$BB7, CountingRaces) ->  | BZ7: =bestpoints(AZ7, $AG7:$BB7, CountingRaces) ->  | CA7: =bestpoints(BA7, $AG7:$BB7, CountingRaces) ->  | CB7: =bestpoints(BB7, $AG7:$BB7, CountingRaces) -> 
A8: =AE8/AF8 -> 57.58333333 | B8: 5 | C8: =IF(AF8 >0,RANK(AE8,AE$4:AE$128),"") -> 5 | D8: Peter Kerry | E8: V40 | F8: ITC | G8: =IF(ISERROR(VLOOKUP($D8&$F8,'Rnd1'!$H:$I,2,FALSE)),"",VLOOKUP($D8&$F8,'Rnd1'!$H:$I,2,FALSE)) -> 00:12:52 | H8: =IF(ISERROR(VLOOKUP($D8&$F8,'Rnd2'!$H:$I,2,FALSE)),"",VLOOKUP($D8&$F8,'Rnd2'!$H:$I,2,FALSE)) -> 00:12:48 | I8: =IF(ISERROR(VLOOKUP($D8&$F8,'Rnd3'!$H:$I,2,FALSE)),"",VLOOKUP($D8&$F8,'Rnd3'!$H:$I,2,FALSE)) -> 00:20:53 | J8: =IF(ISERROR(VLOOKUP($D8&$F8,'Rnd4'!$H:$I,2,FALSE)),"",VLOOKUP($D8&$F8,'Rnd4'!$H:$I,2,FALSE)) -> 00:24:40 | K8: =IF(ISERROR(VLOOKUP($D8&$F8,'Rnd5'!$H:$I,2,FALSE)),"",VLOOKUP($D8&$F8,'Rnd5'!$H:$I,2,FALSE)) -> 00:24:13 | L8: =IF(ISERROR(VLOOKUP($D8&$F8,'Rnd6'!$H:$I,2,FALSE)),"",VLOOKUP($D8&$F8,'Rnd6'!$H:$I,2,FALSE)) -> 00:24:01 | M8: =IF(ISERROR(VLOOKUP($D8&$F8,'Rnd7'!$H:$I,2,FALSE)),"",VLOOKUP($D8&$F8,'Rnd7'!$H:$I,2,FALSE)) -> 00:24:03 | N8: =IF(ISERROR(VLOOKUP($D8&$F8,'Rnd8'!$H:$I,2,FALSE)),"",VLOOKUP($D8&$F8,'Rnd8'!$H:$I,2,FALSE)) -> 00:24:03 | O8: =IF(ISERROR(VLOOKUP($D8&$F8,'Rnd9'!$H:$I,2,FALSE)),"",VLOOKUP($D8&$F8,'Rnd9'!$H:$I,2,FALSE)) -> 00:23:53 | P8: =IF(ISERROR(VLOOKUP($D8&$F8,'Rnd10'!$H:$I,2,FALSE)),"",VLOOKUP($D8&$F8,'Rnd10'!$H:$I,2,FALSE)) -> 00:23:39 | Q8: =IF(ISERROR(VLOOKUP($D8&$F8,'Rnd11'!$H:$I,2,FALSE)),"",VLOOKUP($D8&$F8,'Rnd11'!$H:$I,2,FALSE)) -> 00:23:44 | R8: =IF(ISERROR(VLOOKUP($D8&$F8,'Rnd12'!$H:$I,2,FALSE)),"",VLOOKUP($D8&$F8,'Rnd12'!$H:$I,2,FALSE)) -> 00:23:33 | S8: =IF(ISERROR(VLOOKUP($D8&$F8,'Rnd13'!$H:$I,2,FALSE)),"",VLOOKUP($D8&$F8,'Rnd13'!$H:$I,2,FALSE)) -> 00:23:26 | T8: =IF(ISERROR(VLOOKUP($D8&$F8,'Rnd14'!$H:$I,2,FALSE)),"",VLOOKUP($D8&$F8,'Rnd14'!$H:$I,2,FALSE)) -> 00:23:24 | U8: =IF(ISERROR(VLOOKUP($D8&$F8,'Rnd15'!$H:$I,2,FALSE)),"",VLOOKUP($D8&$F8,'Rnd15'!$H:$I,2,FALSE)) -> 00:23:57 | V8: =IF(ISERROR(VLOOKUP($D8&$F8,'Rnd16'!$H:$I,2,FALSE)),"",VLOOKUP($D8&$F8,'Rnd16'!$H:$I,2,FALSE)) -> 00:23:50 | W8: =IF(ISERROR(VLOOKUP($D8&$F8,'Rnd17'!$H:$I,2,FALSE)),"",VLOOKUP($D8&$F8,'Rnd17'!$H:$I,2,FALSE)) -> 00:23:34 | X8: =IF(ISERROR(VLOOKUP($D8&$F8,'Rnd18'!$H:$I,2,FALSE)),"",VLOOKUP($D8&$F8,'Rnd18'!$H:$I,2,FALSE)) -> 00:23:16 | Y8: =IF(ISERROR(VLOOKUP($D8&$F8,'Rnd19'!$H:$I,2,FALSE)),"",VLOOKUP($D8&$F8,'Rnd19'!$H:$I,2,FALSE)) -> 00:23:06 | Z8: =IF(ISERROR(VLOOKUP($D8&$F8,'Rnd20'!$H:$I,2,FALSE)),"",VLOOKUP($D8&$F8,'Rnd20'!$H:$I,2,FALSE)) -> 00:23:38 | AA8: =IF(ISERROR(VLOOKUP($D8&$F8,'Rnd21'!$H:$I,2,FALSE)),"",VLOOKUP($D8&$F8,'Rnd21'!$H:$I,2,FALSE)) -> 00:11:55 | AB8: =IF(ISERROR(VLOOKUP($D8&$F8,'Rnd22'!$H:$I,2,FALSE)),"",VLOOKUP($D8&$F8,'Rnd22'!$H:$I,2,FALSE)) ->  | AC8: =SUM(AG8:BB8) -> 1182 | AD8: =COUNT(AG8:BB8) -> 21 | AE8: =SUM(BG8:CB8) -> 691 | AF8: =COUNT(BG8:CB8) -> 12 | AG8: =IF(ISNUMBER(G8),VLOOKUP(_xlfn.RANK.EQ(G8,G$4:G$128,1),PointsTable,2),"") -> 55 | AH8: =IF(ISNUMBER(H8),VLOOKUP(_xlfn.RANK.EQ(H8,H$4:H$128,1),PointsTable,2),"") -> 53 | AI8: =IF(ISNUMBER(I8),VLOOKUP(_xlfn.RANK.EQ(I8,I$4:I$128,1),PointsTable,2),"") -> 55 | AJ8: =IF(ISNUMBER(J8),VLOOKUP(_xlfn.RANK.EQ(J8,J$4:J$128,1),PointsTable,2),"") -> 54 | AK8: =IF(ISNUMBER(K8),VLOOKUP(_xlfn.RANK.EQ(K8,K$4:K$128,1),PointsTable,2),"") -> 57 | AL8: =IF(ISNUMBER(L8),VLOOKUP(_xlfn.RANK.EQ(L8,L$4:L$128,1),PointsTable,2),"") -> 57 | AM8: =IF(ISNUMBER(M8),VLOOKUP(_xlfn.RANK.EQ(M8,M$4:M$128,1),PointsTable,2),"") -> 56 | AN8: =IF(ISNUMBER(N8),VLOOKUP(_xlfn.RANK.EQ(N8,N$4:N$128,1),PointsTable,2),"") -> 58 | AO8: =IF(ISNUMBER(O8),VLOOKUP(_xlfn.RANK.EQ(O8,O$4:O$128,1),PointsTable,2),"") -> 56 | AP8: =IF(ISNUMBER(P8),VLOOKUP(_xlfn.RANK.EQ(P8,P$4:P$128,1),PointsTable,2),"") -> 55 | AQ8: =IF(ISNUMBER(Q8),VLOOKUP(_xlfn.RANK.EQ(Q8,Q$4:Q$128,1),PointsTable,2),"") -> 55 | AR8: =IF(ISNUMBER(R8),VLOOKUP(_xlfn.RANK.EQ(R8,R$4:R$128,1),PointsTable,2),"") -> 57 | AS8: =IF(ISNUMBER(S8),VLOOKUP(_xlfn.RANK.EQ(S8,S$4:S$128,1),PointsTable,2),"") -> 55 | AT8: =IF(ISNUMBER(T8),VLOOKUP(_xlfn.RANK.EQ(T8,T$4:T$128,1),PointsTable,2),"") -> 54 | AU8: =IF(ISNUMBER(U8),VLOOKUP(_xlfn.RANK.EQ(U8,U$4:U$128,1),PointsTable,2),"") -> 60 | AV8: =IF(ISNUMBER(V8),VLOOKUP(_xlfn.RANK.EQ(V8,V$4:V$128,1),PointsTable,2),"") -> 55 | AW8: =IF(ISNUMBER(W8),VLOOKUP(_xlfn.RANK.EQ(W8,W$4:W$128,1),PointsTable,2),"") -> 58 | AX8: =IF(ISNUMBER(X8),VLOOKUP(_xlfn.RANK.EQ(X8,X$4:X$128,1),PointsTable,2),"") -> 59 | AY8: =IF(ISNUMBER(Y8),VLOOKUP(_xlfn.RANK.EQ(Y8,Y$4:Y$128,1),PointsTable,2),"") -> 57 | AZ8: =IF(ISNUMBER(Z8),VLOOKUP(_xlfn.RANK.EQ(Z8,Z$4:Z$128,1),PointsTable,2),"") -> 58 | BA8: =IF(ISNUMBER(AA8),VLOOKUP(_xlfn.RANK.EQ(AA8,AA$4:AA$128,1),PointsTable,2),"") -> 58 | BB8: =IF(ISNUMBER(AB8),VLOOKUP(_xlfn.RANK.EQ(AB8,AB$4:AB$128,1),PointsTable,2),"") ->  | BG8: =bestpoints(AG8, $AG8:$BB8, CountingRaces) ->  | BH8: =bestpoints(AH8, $AG8:$BB8, CountingRaces) ->  | BI8: =bestpoints(AI8, $AG8:$BB8, CountingRaces) ->  | BJ8: =bestpoints(AJ8, $AG8:$BB8, CountingRaces) ->  | BK8: =bestpoints(AK8, $AG8:$BB8, CountingRaces) -> 57 | BL8: =bestpoints(AL8, $AG8:$BB8, CountingRaces) -> 57 | BM8: =bestpoints(AM8, $AG8:$BB8, CountingRaces) -> 56 | BN8: =bestpoints(AN8, $AG8:$BB8, CountingRaces) -> 58 | BO8: =bestpoints(AO8, $AG8:$BB8, CountingRaces) -> 56 | BP8: =bestpoints(AP8, $AG8:$BB8, CountingRaces) ->  | BQ8: =bestpoints(AQ8, $AG8:$BB8, CountingRaces) ->  | BR8: =bestpoints(AR8, $AG8:$BB8, CountingRaces) -> 57 | BS8: =bestpoints(AS8, $AG8:$BB8, CountingRaces) ->  | BT8: =bestpoints(AT8, $AG8:$BB8, CountingRaces) ->  | BU8: =bestpoints(AU8, $AG8:$BB8, CountingRaces) -> 60 | BV8: =bestpoints(AV8, $AG8:$BB8, CountingRaces) ->  | BW8: =bestpoints(AW8, $AG8:$BB8, CountingRaces) -> 58 | BX8: =bestpoints(AX8, $AG8:$BB8, CountingRaces) -> 59 | BY8: =bestpoints(AY8, $AG8:$BB8, CountingRaces) -> 57 | BZ8: =bestpoints(AZ8, $AG8:$BB8, CountingRaces) -> 58 | CA8: =bestpoints(BA8, $AG8:$BB8, CountingRaces) -> 58 | CB8: =bestpoints(BB8, $AG8:$BB8, CountingRaces) -> 
A9: =AE9/AF9 -> 56.91666667 | B9: 6 | C9: =IF(AF9 >0,RANK(AE9,AE$4:AE$128),"") -> 6 | D9: James Potter | E9: S | F9: IBC | G9: =IF(ISERROR(VLOOKUP($D9&$F9,'Rnd1'!$H:$I,2,FALSE)),"",VLOOKUP($D9&$F9,'Rnd1'!$H:$I,2,FALSE)) -> 00:12:50 | H9: =IF(ISERROR(VLOOKUP($D9&$F9,'Rnd2'!$H:$I,2,FALSE)),"",VLOOKUP($D9&$F9,'Rnd2'!$H:$I,2,FALSE)) -> 00:12:41 | I9: =IF(ISERROR(VLOOKUP($D9&$F9,'Rnd3'!$H:$I,2,FALSE)),"",VLOOKUP($D9&$F9,'Rnd3'!$H:$I,2,FALSE)) -> 00:21:01 | J9: =IF(ISERROR(VLOOKUP($D9&$F9,'Rnd4'!$H:$I,2,FALSE)),"",VLOOKUP($D9&$F9,'Rnd4'!$H:$I,2,FALSE)) -> 00:25:00 | K9: =IF(ISERROR(VLOOKUP($D9&$F9,'Rnd5'!$H:$I,2,FALSE)),"",VLOOKUP($D9&$F9,'Rnd5'!$H:$I,2,FALSE)) -> 00:24:48 | L9: =IF(ISERROR(VLOOKUP($D9&$F9,'Rnd6'!$H:$I,2,FALSE)),"",VLOOKUP($D9&$F9,'Rnd6'!$H:$I,2,FALSE)) -> 00:24:03 | M9: =IF(ISERROR(VLOOKUP($D9&$F9,'Rnd7'!$H:$I,2,FALSE)),"",VLOOKUP($D9&$F9,'Rnd7'!$H:$I,2,FALSE)) -> 00:24:21 | N9: =IF(ISERROR(VLOOKUP($D9&$F9,'Rnd8'!$H:$I,2,FALSE)),"",VLOOKUP($D9&$F9,'Rnd8'!$H:$I,2,FALSE)) -> 00:24:26 | O9: =IF(ISERROR(VLOOKUP($D9&$F9,'Rnd9'!$H:$I,2,FALSE)),"",VLOOKUP($D9&$F9,'Rnd9'!$H:$I,2,FALSE)) -> 00:23:34 | P9: =IF(ISERROR(VLOOKUP($D9&$F9,'Rnd10'!$H:$I,2,FALSE)),"",VLOOKUP($D9&$F9,'Rnd10'!$H:$I,2,FALSE)) -> 00:23:38 | Q9: =IF(ISERROR(VLOOKUP($D9&$F9,'Rnd11'!$H:$I,2,FALSE)),"",VLOOKUP($D9&$F9,'Rnd11'!$H:$I,2,FALSE)) -> 00:23:56 | R9: =IF(ISERROR(VLOOKUP($D9&$F9,'Rnd12'!$H:$I,2,FALSE)),"",VLOOKUP($D9&$F9,'Rnd12'!$H:$I,2,FALSE)) -> 00:23:21 | S9: =IF(ISERROR(VLOOKUP($D9&$F9,'Rnd13'!$H:$I,2,FALSE)),"",VLOOKUP($D9&$F9,'Rnd13'!$H:$I,2,FALSE)) -> 00:23:23 | T9: =IF(ISERROR(VLOOKUP($D9&$F9,'Rnd14'!$H:$I,2,FALSE)),"",VLOOKUP($D9&$F9,'Rnd14'!$H:$I,2,FALSE)) -> 00:23:05 | U9: =IF(ISERROR(VLOOKUP($D9&$F9,'Rnd15'!$H:$I,2,FALSE)),"",VLOOKUP($D9&$F9,'Rnd15'!$H:$I,2,FALSE)) -> 00:24:24 | V9: =IF(ISERROR(VLOOKUP($D9&$F9,'Rnd16'!$H:$I,2,FALSE)),"",VLOOKUP($D9&$F9,'Rnd16'!$H:$I,2,FALSE)) -> 00:23:41 | W9: =IF(ISERROR(VLOOKUP($D9&$F9,'Rnd17'!$H:$I,2,FALSE)),"",VLOOKUP($D9&$F9,'Rnd17'!$H:$I,2,FALSE)) -> 00:23:47 | X9: =IF(ISERROR(VLOOKUP($D9&$F9,'Rnd18'!$H:$I,2,FALSE)),"",VLOOKUP($D9&$F9,'Rnd18'!$H:$I,2,FALSE)) -> 00:23:43 | Y9: =IF(ISERROR(VLOOKUP($D9&$F9,'Rnd19'!$H:$I,2,FALSE)),"",VLOOKUP($D9&$F9,'Rnd19'!$H:$I,2,FALSE)) -> 00:23:49 | Z9: =IF(ISERROR(VLOOKUP($D9&$F9,'Rnd20'!$H:$I,2,FALSE)),"",VLOOKUP($D9&$F9,'Rnd20'!$H:$I,2,FALSE)) -> 00:24:16 | AA9: =IF(ISERROR(VLOOKUP($D9&$F9,'Rnd21'!$H:$I,2,FALSE)),"",VLOOKUP($D9&$F9,'Rnd21'!$H:$I,2,FALSE)) -> 00:11:55 | AB9: =IF(ISERROR(VLOOKUP($D9&$F9,'Rnd22'!$H:$I,2,FALSE)),"",VLOOKUP($D9&$F9,'Rnd22'!$H:$I,2,FALSE)) -> 00:12:05 | AC9: =SUM(AG9:BB9) -> 1232 | AD9: =COUNT(AG9:BB9) -> 22 | AE9: =SUM(BG9:CB9) -> 683 | AF9: =COUNT(BG9:CB9) -> 12 | AG9: =IF(ISNUMBER(G9),VLOOKUP(_xlfn.RANK.EQ(G9,G$4:G$128,1),PointsTable,2),"") -> 56 | AH9: =IF(ISNUMBER(H9),VLOOKUP(_xlfn.RANK.EQ(H9,H$4:H$128,1),PointsTable,2),"") -> 56 | AI9: =IF(ISNUMBER(I9),VLOOKUP(_xlfn.RANK.EQ(I9,I$4:I$128,1),PointsTable,2),"") -> 54 | AJ9: =IF(ISNUMBER(J9),VLOOKUP(_xlfn.RANK.EQ(J9,J$4:J$128,1),PointsTable,2),"") -> 53 | AK9: =IF(ISNUMBER(K9),VLOOKUP(_xlfn.RANK.EQ(K9,K$4:K$128,1),PointsTable,2),"") -> 55 | AL9: =IF(ISNUMBER(L9),VLOOKUP(_xlfn.RANK.EQ(L9,L$4:L$128,1),PointsTable,2),"") -> 56 | AM9: =IF(ISNUMBER(M9),VLOOKUP(_xlfn.RANK.EQ(M9,M$4:M$128,1),PointsTable,2),"") -> 53 | AN9: =IF(ISNUMBER(N9),VLOOKUP(_xlfn.RANK.EQ(N9,N$4:N$128,1),PointsTable,2),"") -> 56 | AO9: =IF(ISNUMBER(O9),VLOOKUP(_xlfn.RANK.EQ(O9,O$4:O$128,1),PointsTable,2),"") -> 57 | AP9: =IF(ISNUMBER(P9),VLOOKUP(_xlfn.RANK.EQ(P9,P$4:P$128,1),PointsTable,2),"") -> 56 | AQ9: =IF(ISNUMBER(Q9),VLOOKUP(_xlfn.RANK.EQ(Q9,Q$4:Q$128,1),PointsTable,2),"") -> 54 | AR9: =IF(ISNUMBER(R9),VLOOKUP(_xlfn.RANK.EQ(R9,R$4:R$128,1),PointsTable,2),"") -> 58 | AS9: =IF(ISNUMBER(S9),VLOOKUP(_xlfn.RANK.EQ(S9,S$4:S$128,1),PointsTable,2),"") -> 56 | AT9: =IF(ISNUMBER(T9),VLOOKUP(_xlfn.RANK.EQ(T9,T$4:T$128,1),PointsTable,2),"") -> 58 | AU9: =IF(ISNUMBER(U9),VLOOKUP(_xlfn.RANK.EQ(U9,U$4:U$128,1),PointsTable,2),"") -> 57 | AV9: =IF(ISNUMBER(V9),VLOOKUP(_xlfn.RANK.EQ(V9,V$4:V$128,1),PointsTable,2),"") -> 56 | AW9: =IF(ISNUMBER(W9),VLOOKUP(_xlfn.RANK.EQ(W9,W$4:W$128,1),PointsTable,2),"") -> 56 | AX9: =IF(ISNUMBER(X9),VLOOKUP(_xlfn.RANK.EQ(X9,X$4:X$128,1),PointsTable,2),"") -> 56 | AY9: =IF(ISNUMBER(Y9),VLOOKUP(_xlfn.RANK.EQ(Y9,Y$4:Y$128,1),PointsTable,2),"") -> 56 | AZ9: =IF(ISNUMBER(Z9),VLOOKUP(_xlfn.RANK.EQ(Z9,Z$4:Z$128,1),PointsTable,2),"") -> 56 | BA9: =IF(ISNUMBER(AA9),VLOOKUP(_xlfn.RANK.EQ(AA9,AA$4:AA$128,1),PointsTable,2),"") -> 58 | BB9: =IF(ISNUMBER(AB9),VLOOKUP(_xlfn.RANK.EQ(AB9,AB$4:AB$128,1),PointsTable,2),"") -> 59 | BG9: =bestpoints(AG9, $AG9:$BB9, CountingRaces) -> 56 | BH9: =bestpoints(AH9, $AG9:$BB9, CountingRaces) -> 56 | BI9: =bestpoints(AI9, $AG9:$BB9, CountingRaces) ->  | BJ9: =bestpoints(AJ9, $AG9:$BB9, CountingRaces) ->  | BK9: =bestpoints(AK9, $AG9:$BB9, CountingRaces) ->  | BL9: =bestpoints(AL9, $AG9:$BB9, CountingRaces) -> 56 | BM9: =bestpoints(AM9, $AG9:$BB9, CountingRaces) ->  | BN9: =bestpoints(AN9, $AG9:$BB9, CountingRaces) -> 56 | BO9: =bestpoints(AO9, $AG9:$BB9, CountingRaces) -> 57 | BP9: =bestpoints(AP9, $AG9:$BB9, CountingRaces) -> 56 | BQ9: =bestpoints(AQ9, $AG9:$BB9, CountingRaces) ->  | BR9: =bestpoints(AR9, $AG9:$BB9, CountingRaces) -> 58 | BS9: =bestpoints(AS9, $AG9:$BB9, CountingRaces) -> 56 | BT9: =bestpoints(AT9, $AG9:$BB9, CountingRaces) -> 58 | BU9: =bestpoints(AU9, $AG9:$BB9, CountingRaces) -> 57 | BV9: =bestpoints(AV9, $AG9:$BB9, CountingRaces) ->  | BW9: =bestpoints(AW9, $AG9:$BB9, CountingRaces) ->  | BX9: =bestpoints(AX9, $AG9:$BB9, CountingRaces) ->  | BY9: =bestpoints(AY9, $AG9:$BB9, CountingRaces) ->  | BZ9: =bestpoints(AZ9, $AG9:$BB9, CountingRaces) ->  | CA9: =bestpoints(BA9, $AG9:$BB9, CountingRaces) -> 58 | CB9: =bestpoints(BB9, $AG9:$BB9, CountingRaces) -> 59
A10: =AE10/AF10 -> 55.83333333 | B10: 7 | C10: =IF(AF10 >0,RANK(AE10,AE$4:AE$128),"") -> 7 | D10: James Hayward | E10: S | F10: ITC | G10: =IF(ISERROR(VLOOKUP($D10&$F10,'Rnd1'!$H:$I,2,FALSE)),"",VLOOKUP($D10&$F10,'Rnd1'!$H:$I,2,FALSE)) -> 00:14:29 | H10: =IF(ISERROR(VLOOKUP($D10&$F10,'Rnd2'!$H:$I,2,FALSE)),"",VLOOKUP($D10&$F10,'Rnd2'!$H:$I,2,FALSE)) -> 00:12:21 | I10: =IF(ISERROR(VLOOKUP($D10&$F10,'Rnd3'!$H:$I,2,FALSE)),"",VLOOKUP($D10&$F10,'Rnd3'!$H:$I,2,FALSE)) -> 00:21:16 | J10: =IF(ISERROR(VLOOKUP($D10&$F10,'Rnd4'!$H:$I,2,FALSE)),"",VLOOKUP($D10&$F10,'Rnd4'!$H:$I,2,FALSE)) -> 00:25:07 | K10: =IF(ISERROR(VLOOKUP($D10&$F10,'Rnd5'!$H:$I,2,FALSE)),"",VLOOKUP($D10&$F10,'Rnd5'!$H:$I,2,FALSE)) -> 00:24:37 | L10: =IF(ISERROR(VLOOKUP($D10&$F10,'Rnd6'!$H:$I,2,FALSE)),"",VLOOKUP($D10&$F10,'Rnd6'!$H:$I,2,FALSE)) -> 00:24:31 | M10: =IF(ISERROR(VLOOKUP($D10&$F10,'Rnd7'!$H:$I,2,FALSE)),"",VLOOKUP($D10&$F10,'Rnd7'!$H:$I,2,FALSE)) ->  | N10: =IF(ISERROR(VLOOKUP($D10&$F10,'Rnd8'!$H:$I,2,FALSE)),"",VLOOKUP($D10&$F10,'Rnd8'!$H:$I,2,FALSE)) ->  | O10: =IF(ISERROR(VLOOKUP($D10&$F10,'Rnd9'!$H:$I,2,FALSE)),"",VLOOKUP($D10&$F10,'Rnd9'!$H:$I,2,FALSE)) -> 00:24:57 | P10: =IF(ISERROR(VLOOKUP($D10&$F10,'Rnd10'!$H:$I,2,FALSE)),"",VLOOKUP($D10&$F10,'Rnd10'!$H:$I,2,FALSE)) -> 00:24:34 | Q10: =IF(ISERROR(VLOOKUP($D10&$F10,'Rnd11'!$H:$I,2,FALSE)),"",VLOOKUP($D10&$F10,'Rnd11'!$H:$I,2,FALSE)) -> 00:23:57 | R10: =IF(ISERROR(VLOOKUP($D10&$F10,'Rnd12'!$H:$I,2,FALSE)),"",VLOOKUP($D10&$F10,'Rnd12'!$H:$I,2,FALSE)) -> 00:23:44 | S10: =IF(ISERROR(VLOOKUP($D10&$F10,'Rnd13'!$H:$I,2,FALSE)),"",VLOOKUP($D10&$F10,'Rnd13'!$H:$I,2,FALSE)) -> 00:23:46 | T10: =IF(ISERROR(VLOOKUP($D10&$F10,'Rnd14'!$H:$I,2,FALSE)),"",VLOOKUP($D10&$F10,'Rnd14'!$H:$I,2,FALSE)) -> 00:23:33 | U10: =IF(ISERROR(VLOOKUP($D10&$F10,'Rnd15'!$H:$I,2,FALSE)),"",VLOOKUP($D10&$F10,'Rnd15'!$H:$I,2,FALSE)) -> 00:24:18 | V10: =IF(ISERROR(VLOOKUP($D10&$F10,'Rnd16'!$H:$I,2,FALSE)),"",VLOOKUP($D10&$F10,'Rnd16'!$H:$I,2,FALSE)) -> 00:23:26 | W10: =IF(ISERROR(VLOOKUP($D10&$F10,'Rnd17'!$H:$I,2,FALSE)),"",VLOOKUP($D10&$F10,'Rnd17'!$H:$I,2,FALSE)) -> 00:24:05 | X10: =IF(ISERROR(VLOOKUP($D10&$F10,'Rnd18'!$H:$I,2,FALSE)),"",VLOOKUP($D10&$F10,'Rnd18'!$H:$I,2,FALSE)) -> 00:23:40 | Y10: =IF(ISERROR(VLOOKUP($D10&$F10,'Rnd19'!$H:$I,2,FALSE)),"",VLOOKUP($D10&$F10,'Rnd19'!$H:$I,2,FALSE)) -> 00:24:07 | Z10: =IF(ISERROR(VLOOKUP($D10&$F10,'Rnd20'!$H:$I,2,FALSE)),"",VLOOKUP($D10&$F10,'Rnd20'!$H:$I,2,FALSE)) -> 00:23:58 | AA10: =IF(ISERROR(VLOOKUP($D10&$F10,'Rnd21'!$H:$I,2,FALSE)),"",VLOOKUP($D10&$F10,'Rnd21'!$H:$I,2,FALSE)) ->  | AB10: =IF(ISERROR(VLOOKUP($D10&$F10,'Rnd22'!$H:$I,2,FALSE)),"",VLOOKUP($D10&$F10,'Rnd22'!$H:$I,2,FALSE)) ->  | AC10: =SUM(AG10:BB10) -> 969 | AD10: =COUNT(AG10:BB10) -> 18 | AE10: =SUM(BG10:CB10) -> 670 | AF10: =COUNT(BG10:CB10) -> 12 | AG10: =IF(ISNUMBER(G10),VLOOKUP(_xlfn.RANK.EQ(G10,G$4:G$128,1),PointsTable,2),"") -> 45 | AH10: =IF(ISNUMBER(H10),VLOOKUP(_xlfn.RANK.EQ(H10,H$4:H$128,1),PointsTable,2),"") -> 57 | AI10: =IF(ISNUMBER(I10),VLOOKUP(_xlfn.RANK.EQ(I10,I$4:I$128,1),PointsTable,2),"") -> 51 | AJ10: =IF(ISNUMBER(J10),VLOOKUP(_xlfn.RANK.EQ(J10,J$4:J$128,1),PointsTable,2),"") -> 52 | AK10: =IF(ISNUMBER(K10),VLOOKUP(_xlfn.RANK.EQ(K10,K$4:K$128,1),PointsTable,2),"") -> 56 | AL10: =IF(ISNUMBER(L10),VLOOKUP(_xlfn.RANK.EQ(L10,L$4:L$128,1),PointsTable,2),"") -> 54 | AM10: =IF(ISNUMBER(M10),VLOOKUP(_xlfn.RANK.EQ(M10,M$4:M$128,1),PointsTable,2),"") ->  | AN10: =IF(ISNUMBER(N10),VLOOKUP(_xlfn.RANK.EQ(N10,N$4:N$128,1),PointsTable,2),"") ->  | AO10: =IF(ISNUMBER(O10),VLOOKUP(_xlfn.RANK.EQ(O10,O$4:O$128,1),PointsTable,2),"") -> 49 | AP10: =IF(ISNUMBER(P10),VLOOKUP(_xlfn.RANK.EQ(P10,P$4:P$128,1),PointsTable,2),"") -> 49 | AQ10: =IF(ISNUMBER(Q10),VLOOKUP(_xlfn.RANK.EQ(Q10,Q$4:Q$128,1),PointsTable,2),"") -> 53 | AR10: =IF(ISNUMBER(R10),VLOOKUP(_xlfn.RANK.EQ(R10,R$4:R$128,1),PointsTable,2),"") -> 55 | AS10: =IF(ISNUMBER(S10),VLOOKUP(_xlfn.RANK.EQ(S10,S$4:S$128,1),PointsTable,2),"") -> 54 | AT10: =IF(ISNUMBER(T10),VLOOKUP(_xlfn.RANK.EQ(T10,T$4:T$128,1),PointsTable,2),"") -> 53 | AU10: =IF(ISNUMBER(U10),VLOOKUP(_xlfn.RANK.EQ(U10,U$4:U$128,1),PointsTable,2),"") -> 59 | AV10: =IF(ISNUMBER(V10),VLOOKUP(_xlfn.RANK.EQ(V10,V$4:V$128,1),PointsTable,2),"") -> 58 | AW10: =IF(ISNUMBER(W10),VLOOKUP(_xlfn.RANK.EQ(W10,W$4:W$128,1),PointsTable,2),"") -> 55 | AX10: =IF(ISNUMBER(X10),VLOOKUP(_xlfn.RANK.EQ(X10,X$4:X$128,1),PointsTable,2),"") -> 58 | AY10: =IF(ISNUMBER(Y10),VLOOKUP(_xlfn.RANK.EQ(Y10,Y$4:Y$128,1),PointsTable,2),"") -> 54 | AZ10: =IF(ISNUMBER(Z10),VLOOKUP(_xlfn.RANK.EQ(Z10,Z$4:Z$128,1),PointsTable,2),"") -> 57 | BA10: =IF(ISNUMBER(AA10),VLOOKUP(_xlfn.RANK.EQ(AA10,AA$4:AA$128,1),PointsTable,2),"") ->  | BB10: =IF(ISNUMBER(AB10),VLOOKUP(_xlfn.RANK.EQ(AB10,AB$4:AB$128,1),PointsTable,2),"") ->  | BG10: =bestpoints(AG10, $AG10:$BB10, CountingRaces) ->  | BH10: =bestpoints(AH10, $AG10:$BB10, CountingRaces) -> 57 | BI10: =bestpoints(AI10, $AG10:$BB10, CountingRaces) ->  | BJ10: =bestpoints(AJ10, $AG10:$BB10, CountingRaces) ->  | BK10: =bestpoints(AK10, $AG10:$BB10, CountingRaces) -> 56 | BL10: =bestpoints(AL10, $AG10:$BB10, CountingRaces) -> 54 | BM10: =bestpoints(AM10, $AG10:$BB10, CountingRaces) ->  | BN10: =bestpoints(AN10, $AG10:$BB10, CountingRaces) ->  | BO10: =bestpoints(AO10, $AG10:$BB10, CountingRaces) ->  | BP10: =bestpoints(AP10, $AG10:$BB10, CountingRaces) ->  | BQ10: =bestpoints(AQ10, $AG10:$BB10, CountingRaces) -> 53 | BR10: =bestpoints(AR10, $AG10:$BB10, CountingRaces) -> 55 | BS10: =bestpoints(AS10, $AG10:$BB10, CountingRaces) -> 54 | BT10: =bestpoints(AT10, $AG10:$BB10, CountingRaces) ->  | BU10: =bestpoints(AU10, $AG10:$BB10, CountingRaces) -> 59 | BV10: =bestpoints(AV10, $AG10:$BB10, CountingRaces) -> 58 | BW10: =bestpoints(AW10, $AG10:$BB10, CountingRaces) -> 55 | BX10: =bestpoints(AX10, $AG10:$BB10, CountingRaces) -> 58 | BY10: =bestpoints(AY10, $AG10:$BB10, CountingRaces) -> 54 | BZ10: =bestpoints(AZ10, $AG10:$BB10, CountingRaces) -> 57 | CA10: =bestpoints(BA10, $AG10:$BB10, CountingRaces) ->  | CB10: =bestpoints(BB10, $AG10:$BB10, CountingRaces) -> 
A11: =AE11/AF11 -> 54.16666667 | B11: 9 | C11: =IF(AF11 >0,RANK(AE11,AE$4:AE$128),"") -> 8 | D11: Peter Hurry | E11: V50 | F11: Wolsey | G11: =IF(ISERROR(VLOOKUP($D11&$F11,'Rnd1'!$H:$I,2,FALSE)),"",VLOOKUP($D11&$F11,'Rnd1'!$H:$I,2,FALSE)) ->  | H11: =IF(ISERROR(VLOOKUP($D11&$F11,'Rnd2'!$H:$I,2,FALSE)),"",VLOOKUP($D11&$F11,'Rnd2'!$H:$I,2,FALSE)) -> 00:12:47 | I11: =IF(ISERROR(VLOOKUP($D11&$F11,'Rnd3'!$H:$I,2,FALSE)),"",VLOOKUP($D11&$F11,'Rnd3'!$H:$I,2,FALSE)) -> 00:21:15 | J11: =IF(ISERROR(VLOOKUP($D11&$F11,'Rnd4'!$H:$I,2,FALSE)),"",VLOOKUP($D11&$F11,'Rnd4'!$H:$I,2,FALSE)) ->  | K11: =IF(ISERROR(VLOOKUP($D11&$F11,'Rnd5'!$H:$I,2,FALSE)),"",VLOOKUP($D11&$F11,'Rnd5'!$H:$I,2,FALSE)) -> 00:25:23 | L11: =IF(ISERROR(VLOOKUP($D11&$F11,'Rnd6'!$H:$I,2,FALSE)),"",VLOOKUP($D11&$F11,'Rnd6'!$H:$I,2,FALSE)) -> 00:24:18 | M11: =IF(ISERROR(VLOOKUP($D11&$F11,'Rnd7'!$H:$I,2,FALSE)),"",VLOOKUP($D11&$F11,'Rnd7'!$H:$I,2,FALSE)) -> 00:24:03 | N11: =IF(ISERROR(VLOOKUP($D11&$F11,'Rnd8'!$H:$I,2,FALSE)),"",VLOOKUP($D11&$F11,'Rnd8'!$H:$I,2,FALSE)) -> 00:24:54 | O11: =IF(ISERROR(VLOOKUP($D11&$F11,'Rnd9'!$H:$I,2,FALSE)),"",VLOOKUP($D11&$F11,'Rnd9'!$H:$I,2,FALSE)) -> 00:23:58 | P11: =IF(ISERROR(VLOOKUP($D11&$F11,'Rnd10'!$H:$I,2,FALSE)),"",VLOOKUP($D11&$F11,'Rnd10'!$H:$I,2,FALSE)) ->  | Q11: =IF(ISERROR(VLOOKUP($D11&$F11,'Rnd11'!$H:$I,2,FALSE)),"",VLOOKUP($D11&$F11,'Rnd11'!$H:$I,2,FALSE)) ->  | R11: =IF(ISERROR(VLOOKUP($D11&$F11,'Rnd12'!$H:$I,2,FALSE)),"",VLOOKUP($D11&$F11,'Rnd12'!$H:$I,2,FALSE)) ->  | S11: =IF(ISERROR(VLOOKUP($D11&$F11,'Rnd13'!$H:$I,2,FALSE)),"",VLOOKUP($D11&$F11,'Rnd13'!$H:$I,2,FALSE)) -> 00:23:58 | T11: =IF(ISERROR(VLOOKUP($D11&$F11,'Rnd14'!$H:$I,2,FALSE)),"",VLOOKUP($D11&$F11,'Rnd14'!$H:$I,2,FALSE)) ->  | U11: =IF(ISERROR(VLOOKUP($D11&$F11,'Rnd15'!$H:$I,2,FALSE)),"",VLOOKUP($D11&$F11,'Rnd15'!$H:$I,2,FALSE)) -> 00:24:31 | V11: =IF(ISERROR(VLOOKUP($D11&$F11,'Rnd16'!$H:$I,2,FALSE)),"",VLOOKUP($D11&$F11,'Rnd16'!$H:$I,2,FALSE)) -> 00:23:59 | W11: =IF(ISERROR(VLOOKUP($D11&$F11,'Rnd17'!$H:$I,2,FALSE)),"",VLOOKUP($D11&$F11,'Rnd17'!$H:$I,2,FALSE)) -> 00:24:29 | X11: =IF(ISERROR(VLOOKUP($D11&$F11,'Rnd18'!$H:$I,2,FALSE)),"",VLOOKUP($D11&$F11,'Rnd18'!$H:$I,2,FALSE)) ->  | Y11: =IF(ISERROR(VLOOKUP($D11&$F11,'Rnd19'!$H:$I,2,FALSE)),"",VLOOKUP($D11&$F11,'Rnd19'!$H:$I,2,FALSE)) -> 00:24:18 | Z11: =IF(ISERROR(VLOOKUP($D11&$F11,'Rnd20'!$H:$I,2,FALSE)),"",VLOOKUP($D11&$F11,'Rnd20'!$H:$I,2,FALSE)) -> 00:24:42 | AA11: =IF(ISERROR(VLOOKUP($D11&$F11,'Rnd21'!$H:$I,2,FALSE)),"",VLOOKUP($D11&$F11,'Rnd21'!$H:$I,2,FALSE)) ->  | AB11: =IF(ISERROR(VLOOKUP($D11&$F11,'Rnd22'!$H:$I,2,FALSE)),"",VLOOKUP($D11&$F11,'Rnd22'!$H:$I,2,FALSE)) -> 00:12:19 | AC11: =SUM(AG11:BB11) -> 754 | AD11: =COUNT(AG11:BB11) -> 14 | AE11: =SUM(BG11:CB11) -> 650 | AF11: =COUNT(BG11:CB11) -> 12 | AG11: =IF(ISNUMBER(G11),VLOOKUP(_xlfn.RANK.EQ(G11,G$4:G$128,1),PointsTable,2),"") ->  | AH11: =IF(ISNUMBER(H11),VLOOKUP(_xlfn.RANK.EQ(H11,H$4:H$128,1),PointsTable,2),"") -> 54 | AI11: =IF(ISNUMBER(I11),VLOOKUP(_xlfn.RANK.EQ(I11,I$4:I$128,1),PointsTable,2),"") -> 52 | AJ11: =IF(ISNUMBER(J11),VLOOKUP(_xlfn.RANK.EQ(J11,J$4:J$128,1),PointsTable,2),"") ->  | AK11: =IF(ISNUMBER(K11),VLOOKUP(_xlfn.RANK.EQ(K11,K$4:K$128,1),PointsTable,2),"") -> 52 | AL11: =IF(ISNUMBER(L11),VLOOKUP(_xlfn.RANK.EQ(L11,L$4:L$128,1),PointsTable,2),"") -> 55 | AM11: =IF(ISNUMBER(M11),VLOOKUP(_xlfn.RANK.EQ(M11,M$4:M$128,1),PointsTable,2),"") -> 56 | AN11: =IF(ISNUMBER(N11),VLOOKUP(_xlfn.RANK.EQ(N11,N$4:N$128,1),PointsTable,2),"") -> 54 | AO11: =IF(ISNUMBER(O11),VLOOKUP(_xlfn.RANK.EQ(O11,O$4:O$128,1),PointsTable,2),"") -> 54 | AP11: =IF(ISNUMBER(P11),VLOOKUP(_xlfn.RANK.EQ(P11,P$4:P$128,1),PointsTable,2),"") ->  | AQ11: =IF(ISNUMBER(Q11),VLOOKUP(_xlfn.RANK.EQ(Q11,Q$4:Q$128,1),PointsTable,2),"") ->  | AR11: =IF(ISNUMBER(R11),VLOOKUP(_xlfn.RANK.EQ(R11,R$4:R$128,1),PointsTable,2),"") ->  | AS11: =IF(ISNUMBER(S11),VLOOKUP(_xlfn.RANK.EQ(S11,S$4:S$128,1),PointsTable,2),"") -> 52 | AT11: =IF(ISNUMBER(T11),VLOOKUP(_xlfn.RANK.EQ(T11,T$4:T$128,1),PointsTable,2),"") ->  | AU11: =IF(ISNUMBER(U11),VLOOKUP(_xlfn.RANK.EQ(U11,U$4:U$128,1),PointsTable,2),"") -> 55 | AV11: =IF(ISNUMBER(V11),VLOOKUP(_xlfn.RANK.EQ(V11,V$4:V$128,1),PointsTable,2),"") -> 53 | AW11: =IF(ISNUMBER(W11),VLOOKUP(_xlfn.RANK.EQ(W11,W$4:W$128,1),PointsTable,2),"") -> 53 | AX11: =IF(ISNUMBER(X11),VLOOKUP(_xlfn.RANK.EQ(X11,X$4:X$128,1),PointsTable,2),"") ->  | AY11: =IF(ISNUMBER(Y11),VLOOKUP(_xlfn.RANK.EQ(Y11,Y$4:Y$128,1),PointsTable,2),"") -> 53 | AZ11: =IF(ISNUMBER(Z11),VLOOKUP(_xlfn.RANK.EQ(Z11,Z$4:Z$128,1),PointsTable,2),"") -> 54 | BA11: =IF(ISNUMBER(AA11),VLOOKUP(_xlfn.RANK.EQ(AA11,AA$4:AA$128,1),PointsTable,2),"") ->  | BB11: =IF(ISNUMBER(AB11),VLOOKUP(_xlfn.RANK.EQ(AB11,AB$4:AB$128,1),PointsTable,2),"") -> 57 | BG11: =bestpoints(AG11, $AG11:$BB11, CountingRaces) ->  | BH11: =bestpoints(AH11, $AG11:$BB11, CountingRaces) -> 54 | BI11: =bestpoints(AI11, $AG11:$BB11, CountingRaces) -> 52 | BJ11: =bestpoints(AJ11, $AG11:$BB11, CountingRaces) ->  | BK11: =bestpoints(AK11, $AG11:$BB11, CountingRaces) ->  | BL11: =bestpoints(AL11, $AG11:$BB11, CountingRaces) -> 55 | BM11: =bestpoints(AM11, $AG11:$BB11, CountingRaces) -> 56 | BN11: =bestpoints(AN11, $AG11:$BB11, CountingRaces) -> 54 | BO11: =bestpoints(AO11, $AG11:$BB11, CountingRaces) -> 54 | BP11: =bestpoints(AP11, $AG11:$BB11, CountingRaces) ->  | BQ11: =bestpoints(AQ11, $AG11:$BB11, CountingRaces) ->  | BR11: =bestpoints(AR11, $AG11:$BB11, CountingRaces) ->  | BS11: =bestpoints(AS11, $AG11:$BB11, CountingRaces) ->  | BT11: =bestpoints(AT11, $AG11:$BB11, CountingRaces) ->  | BU11: =bestpoints(AU11, $AG11:$BB11, CountingRaces) -> 55 | BV11: =bestpoints(AV11, $AG11:$BB11, CountingRaces) -> 53 | BW11: =bestpoints(AW11, $AG11:$BB11, CountingRaces) -> 53 | BX11: =bestpoints(AX11, $AG11:$BB11, CountingRaces) ->  | BY11: =bestpoints(AY11, $AG11:$BB11, CountingRaces) -> 53 | BZ11: =bestpoints(AZ11, $AG11:$BB11, CountingRaces) -> 54 | CA11: =bestpoints(BA11, $AG11:$BB11, CountingRaces) ->  | CB11: =bestpoints(BB11, $AG11:$BB11, CountingRaces) -> 57
A12: =AE12/AF12 -> 54 | B12: 8 | C12: =IF(AF12 >0,RANK(AE12,AE$4:AE$128),"") -> 9 | D12: Jules Bosley | E12: V40 | F12: SDCC | G12: =IF(ISERROR(VLOOKUP($D12&$F12,'Rnd1'!$H:$I,2,FALSE)),"",VLOOKUP($D12&$F12,'Rnd1'!$H:$I,2,FALSE)) -> 00:13:14 | H12: =IF(ISERROR(VLOOKUP($D12&$F12,'Rnd2'!$H:$I,2,FALSE)),"",VLOOKUP($D12&$F12,'Rnd2'!$H:$I,2,FALSE)) ->  | I12: =IF(ISERROR(VLOOKUP($D12&$F12,'Rnd3'!$H:$I,2,FALSE)),"",VLOOKUP($D12&$F12,'Rnd3'!$H:$I,2,FALSE)) -> 00:21:20 | J12: =IF(ISERROR(VLOOKUP($D12&$F12,'Rnd4'!$H:$I,2,FALSE)),"",VLOOKUP($D12&$F12,'Rnd4'!$H:$I,2,FALSE)) -> 00:25:54 | K12: =IF(ISERROR(VLOOKUP($D12&$F12,'Rnd5'!$H:$I,2,FALSE)),"",VLOOKUP($D12&$F12,'Rnd5'!$H:$I,2,FALSE)) -> 00:24:51 | L12: =IF(ISERROR(VLOOKUP($D12&$F12,'Rnd6'!$H:$I,2,FALSE)),"",VLOOKUP($D12&$F12,'Rnd6'!$H:$I,2,FALSE)) -> 00:23:43 | M12: =IF(ISERROR(VLOOKUP($D12&$F12,'Rnd7'!$H:$I,2,FALSE)),"",VLOOKUP($D12&$F12,'Rnd7'!$H:$I,2,FALSE)) ->  | N12: =IF(ISERROR(VLOOKUP($D12&$F12,'Rnd8'!$H:$I,2,FALSE)),"",VLOOKUP($D12&$F12,'Rnd8'!$H:$I,2,FALSE)) -> 00:24:29 | O12: =IF(ISERROR(VLOOKUP($D12&$F12,'Rnd9'!$H:$I,2,FALSE)),"",VLOOKUP($D12&$F12,'Rnd9'!$H:$I,2,FALSE)) ->  | P12: =IF(ISERROR(VLOOKUP($D12&$F12,'Rnd10'!$H:$I,2,FALSE)),"",VLOOKUP($D12&$F12,'Rnd10'!$H:$I,2,FALSE)) -> 00:23:48 | Q12: =IF(ISERROR(VLOOKUP($D12&$F12,'Rnd11'!$H:$I,2,FALSE)),"",VLOOKUP($D12&$F12,'Rnd11'!$H:$I,2,FALSE)) -> DNF | R12: =IF(ISERROR(VLOOKUP($D12&$F12,'Rnd12'!$H:$I,2,FALSE)),"",VLOOKUP($D12&$F12,'Rnd12'!$H:$I,2,FALSE)) -> 00:23:50 | S12: =IF(ISERROR(VLOOKUP($D12&$F12,'Rnd13'!$H:$I,2,FALSE)),"",VLOOKUP($D12&$F12,'Rnd13'!$H:$I,2,FALSE)) ->  | T12: =IF(ISERROR(VLOOKUP($D12&$F12,'Rnd14'!$H:$I,2,FALSE)),"",VLOOKUP($D12&$F12,'Rnd14'!$H:$I,2,FALSE)) -> 00:23:38 | U12: =IF(ISERROR(VLOOKUP($D12&$F12,'Rnd15'!$H:$I,2,FALSE)),"",VLOOKUP($D12&$F12,'Rnd15'!$H:$I,2,FALSE)) ->  | V12: =IF(ISERROR(VLOOKUP($D12&$F12,'Rnd16'!$H:$I,2,FALSE)),"",VLOOKUP($D12&$F12,'Rnd16'!$H:$I,2,FALSE)) -> 00:23:58 | W12: =IF(ISERROR(VLOOKUP($D12&$F12,'Rnd17'!$H:$I,2,FALSE)),"",VLOOKUP($D12&$F12,'Rnd17'!$H:$I,2,FALSE)) -> 00:24:38 | X12: =IF(ISERROR(VLOOKUP($D12&$F12,'Rnd18'!$H:$I,2,FALSE)),"",VLOOKUP($D12&$F12,'Rnd18'!$H:$I,2,FALSE)) -> 00:24:02 | Y12: =IF(ISERROR(VLOOKUP($D12&$F12,'Rnd19'!$H:$I,2,FALSE)),"",VLOOKUP($D12&$F12,'Rnd19'!$H:$I,2,FALSE)) -> 00:24:01 | Z12: =IF(ISERROR(VLOOKUP($D12&$F12,'Rnd20'!$H:$I,2,FALSE)),"",VLOOKUP($D12&$F12,'Rnd20'!$H:$I,2,FALSE)) -> 00:24:20 | AA12: =IF(ISERROR(VLOOKUP($D12&$F12,'Rnd21'!$H:$I,2,FALSE)),"",VLOOKUP($D12&$F12,'Rnd21'!$H:$I,2,FALSE)) ->  | AB12: =IF(ISERROR(VLOOKUP($D12&$F12,'Rnd22'!$H:$I,2,FALSE)),"",VLOOKUP($D12&$F12,'Rnd22'!$H:$I,2,FALSE)) ->  | AC12: =SUM(AG12:BB12) -> 747 | AD12: =COUNT(AG12:BB12) -> 14 | AE12: =SUM(BG12:CB12) -> 648 | AF12: =COUNT(BG12:CB12) -> 12 | AG12: =IF(ISNUMBER(G12),VLOOKUP(_xlfn.RANK.EQ(G12,G$4:G$128,1),PointsTable,2),"") -> 52 | AH12: =IF(ISNUMBER(H12),VLOOKUP(_xlfn.RANK.EQ(H12,H$4:H$128,1),PointsTable,2),"") ->  | AI12: =IF(ISNUMBER(I12),VLOOKUP(_xlfn.RANK.EQ(I12,I$4:I$128,1),PointsTable,2),"") -> 50 | AJ12: =IF(ISNUMBER(J12),VLOOKUP(_xlfn.RANK.EQ(J12,J$4:J$128,1),PointsTable,2),"") -> 49 | AK12: =IF(ISNUMBER(K12),VLOOKUP(_xlfn.RANK.EQ(K12,K$4:K$128,1),PointsTable,2),"") -> 54 | AL12: =IF(ISNUMBER(L12),VLOOKUP(_xlfn.RANK.EQ(L12,L$4:L$128,1),PointsTable,2),"") -> 58 | AM12: =IF(ISNUMBER(M12),VLOOKUP(_xlfn.RANK.EQ(M12,M$4:M$128,1),PointsTable,2),"") ->  | AN12: =IF(ISNUMBER(N12),VLOOKUP(_xlfn.RANK.EQ(N12,N$4:N$128,1),PointsTable,2),"") -> 55 | AO12: =IF(ISNUMBER(O12),VLOOKUP(_xlfn.RANK.EQ(O12,O$4:O$128,1),PointsTable,2),"") ->  | AP12: =IF(ISNUMBER(P12),VLOOKUP(_xlfn.RANK.EQ(P12,P$4:P$128,1),PointsTable,2),"") -> 53 | AQ12: =IF(ISNUMBER(Q12),VLOOKUP(_xlfn.RANK.EQ(Q12,Q$4:Q$128,1),PointsTable,2),"") ->  | AR12: =IF(ISNUMBER(R12),VLOOKUP(_xlfn.RANK.EQ(R12,R$4:R$128,1),PointsTable,2),"") -> 54 | AS12: =IF(ISNUMBER(S12),VLOOKUP(_xlfn.RANK.EQ(S12,S$4:S$128,1),PointsTable,2),"") ->  | AT12: =IF(ISNUMBER(T12),VLOOKUP(_xlfn.RANK.EQ(T12,T$4:T$128,1),PointsTable,2),"") -> 52 | AU12: =IF(ISNUMBER(U12),VLOOKUP(_xlfn.RANK.EQ(U12,U$4:U$128,1),PointsTable,2),"") ->  | AV12: =IF(ISNUMBER(V12),VLOOKUP(_xlfn.RANK.EQ(V12,V$4:V$128,1),PointsTable,2),"") -> 54 | AW12: =IF(ISNUMBER(W12),VLOOKUP(_xlfn.RANK.EQ(W12,W$4:W$128,1),PointsTable,2),"") -> 52 | AX12: =IF(ISNUMBER(X12),VLOOKUP(_xlfn.RANK.EQ(X12,X$4:X$128,1),PointsTable,2),"") -> 54 | AY12: =IF(ISNUMBER(Y12),VLOOKUP(_xlfn.RANK.EQ(Y12,Y$4:Y$128,1),PointsTable,2),"") -> 55 | AZ12: =IF(ISNUMBER(Z12),VLOOKUP(_xlfn.RANK.EQ(Z12,Z$4:Z$128,1),PointsTable,2),"") -> 55 | BA12: =IF(ISNUMBER(AA12),VLOOKUP(_xlfn.RANK.EQ(AA12,AA$4:AA$128,1),PointsTable,2),"") ->  | BB12: =IF(ISNUMBER(AB12),VLOOKUP(_xlfn.RANK.EQ(AB12,AB$4:AB$128,1),PointsTable,2),"") ->  | BG12: =bestpoints(AG12, $AG12:$BB12, CountingRaces) -> 52 | BH12: =bestpoints(AH12, $AG12:$BB12, CountingRaces) ->  | BI12: =bestpoints(AI12, $AG12:$BB12, CountingRaces) ->  | BJ12: =bestpoints(AJ12, $AG12:$BB12, CountingRaces) ->  | BK12: =bestpoints(AK12, $AG12:$BB12, CountingRaces) -> 54 | BL12: =bestpoints(AL12, $AG12:$BB12, CountingRaces) -> 58 | BM12: =bestpoints(AM12, $AG12:$BB12, CountingRaces) ->  | BN12: =bestpoints(AN12, $AG12:$BB12, CountingRaces) -> 55 | BO12: =bestpoints(AO12, $AG12:$BB12, CountingRaces) ->  | BP12: =bestpoints(AP12, $AG12:$BB12, CountingRaces) -> 53 | BQ12: =bestpoints(AQ12, $AG12:$BB12, CountingRaces) ->  | BR12: =bestpoints(AR12, $AG12:$BB12, CountingRaces) -> 54 | BS12: =bestpoints(AS12, $AG12:$BB12, CountingRaces) ->  | BT12: =bestpoints(AT12, $AG12:$BB12, CountingRaces) -> 52 | BU12: =bestpoints(AU12, $AG12:$BB12, CountingRaces) ->  | BV12: =bestpoints(AV12, $AG12:$BB12, CountingRaces) -> 54 | BW12: =bestpoints(AW12, $AG12:$BB12, CountingRaces) -> 52 | BX12: =bestpoints(AX12, $AG12:$BB12, CountingRaces) -> 54 | BY12: =bestpoints(AY12, $AG12:$BB12, CountingRaces) -> 55 | BZ12: =bestpoints(AZ12, $AG12:$BB12, CountingRaces) -> 55 | CA12: =bestpoints(BA12, $AG12:$BB12, CountingRaces) ->  | CB12: =bestpoints(BB12, $AG12:$BB12, CountingRaces) -> 
A13: =AE13/AF13 -> 53.33333333 | B13: 10 | C13: =IF(AF13 >0,RANK(AE13,AE$4:AE$128),"") -> 10 | D13: Keith Wolferstan | E13: V50 | F13: SDCC | G13: =IF(ISERROR(VLOOKUP($D13&$F13,'Rnd1'!$H:$I,2,FALSE)),"",VLOOKUP($D13&$F13,'Rnd1'!$H:$I,2,FALSE)) ->  | H13: =IF(ISERROR(VLOOKUP($D13&$F13,'Rnd2'!$H:$I,2,FALSE)),"",VLOOKUP($D13&$F13,'Rnd2'!$H:$I,2,FALSE)) -> 00:12:41 | I13: =IF(ISERROR(VLOOKUP($D13&$F13,'Rnd3'!$H:$I,2,FALSE)),"",VLOOKUP($D13&$F13,'Rnd3'!$H:$I,2,FALSE)) -> 00:21:07 | J13: =IF(ISERROR(VLOOKUP($D13&$F13,'Rnd4'!$H:$I,2,FALSE)),"",VLOOKUP($D13&$F13,'Rnd4'!$H:$I,2,FALSE)) ->  | K13: =IF(ISERROR(VLOOKUP($D13&$F13,'Rnd5'!$H:$I,2,FALSE)),"",VLOOKUP($D13&$F13,'Rnd5'!$H:$I,2,FALSE)) ->  | L13: =IF(ISERROR(VLOOKUP($D13&$F13,'Rnd6'!$H:$I,2,FALSE)),"",VLOOKUP($D13&$F13,'Rnd6'!$H:$I,2,FALSE)) ->  | M13: =IF(ISERROR(VLOOKUP($D13&$F13,'Rnd7'!$H:$I,2,FALSE)),"",VLOOKUP($D13&$F13,'Rnd7'!$H:$I,2,FALSE)) -> 00:24:50 | N13: =IF(ISERROR(VLOOKUP($D13&$F13,'Rnd8'!$H:$I,2,FALSE)),"",VLOOKUP($D13&$F13,'Rnd8'!$H:$I,2,FALSE)) ->  | O13: =IF(ISERROR(VLOOKUP($D13&$F13,'Rnd9'!$H:$I,2,FALSE)),"",VLOOKUP($D13&$F13,'Rnd9'!$H:$I,2,FALSE)) -> 00:23:56 | P13: =IF(ISERROR(VLOOKUP($D13&$F13,'Rnd10'!$H:$I,2,FALSE)),"",VLOOKUP($D13&$F13,'Rnd10'!$H:$I,2,FALSE)) -> 00:24:15 | Q13: =IF(ISERROR(VLOOKUP($D13&$F13,'Rnd11'!$H:$I,2,FALSE)),"",VLOOKUP($D13&$F13,'Rnd11'!$H:$I,2,FALSE)) -> 00:24:12 | R13: =IF(ISERROR(VLOOKUP($D13&$F13,'Rnd12'!$H:$I,2,FALSE)),"",VLOOKUP($D13&$F13,'Rnd12'!$H:$I,2,FALSE)) ->  | S13: =IF(ISERROR(VLOOKUP($D13&$F13,'Rnd13'!$H:$I,2,FALSE)),"",VLOOKUP($D13&$F13,'Rnd13'!$H:$I,2,FALSE)) -> 00:23:57 | T13: =IF(ISERROR(VLOOKUP($D13&$F13,'Rnd14'!$H:$I,2,FALSE)),"",VLOOKUP($D13&$F13,'Rnd14'!$H:$I,2,FALSE)) -> 00:23:58 | U13: =IF(ISERROR(VLOOKUP($D13&$F13,'Rnd15'!$H:$I,2,FALSE)),"",VLOOKUP($D13&$F13,'Rnd15'!$H:$I,2,FALSE)) -> 00:24:54 | V13: =IF(ISERROR(VLOOKUP($D13&$F13,'Rnd16'!$H:$I,2,FALSE)),"",VLOOKUP($D13&$F13,'Rnd16'!$H:$I,2,FALSE)) -> 00:24:21 | W13: =IF(ISERROR(VLOOKUP($D13&$F13,'Rnd17'!$H:$I,2,FALSE)),"",VLOOKUP($D13&$F13,'Rnd17'!$H:$I,2,FALSE)) -> 00:24:27 | X13: =IF(ISERROR(VLOOKUP($D13&$F13,'Rnd18'!$H:$I,2,FALSE)),"",VLOOKUP($D13&$F13,'Rnd18'!$H:$I,2,FALSE)) -> 00:24:25 | Y13: =IF(ISERROR(VLOOKUP($D13&$F13,'Rnd19'!$H:$I,2,FALSE)),"",VLOOKUP($D13&$F13,'Rnd19'!$H:$I,2,FALSE)) ->  | Z13: =IF(ISERROR(VLOOKUP($D13&$F13,'Rnd20'!$H:$I,2,FALSE)),"",VLOOKUP($D13&$F13,'Rnd20'!$H:$I,2,FALSE)) ->  | AA13: =IF(ISERROR(VLOOKUP($D13&$F13,'Rnd21'!$H:$I,2,FALSE)),"",VLOOKUP($D13&$F13,'Rnd21'!$H:$I,2,FALSE)) -> 00:12:14 | AB13: =IF(ISERROR(VLOOKUP($D13&$F13,'Rnd22'!$H:$I,2,FALSE)),"",VLOOKUP($D13&$F13,'Rnd22'!$H:$I,2,FALSE)) ->  | AC13: =SUM(AG13:BB13) -> 690 | AD13: =COUNT(AG13:BB13) -> 13 | AE13: =SUM(BG13:CB13) -> 640 | AF13: =COUNT(BG13:CB13) -> 12 | AG13: =IF(ISNUMBER(G13),VLOOKUP(_xlfn.RANK.EQ(G13,G$4:G$128,1),PointsTable,2),"") ->  | AH13: =IF(ISNUMBER(H13),VLOOKUP(_xlfn.RANK.EQ(H13,H$4:H$128,1),PointsTable,2),"") -> 56 | AI13: =IF(ISNUMBER(I13),VLOOKUP(_xlfn.RANK.EQ(I13,I$4:I$128,1),PointsTable,2),"") -> 53 | AJ13: =IF(ISNUMBER(J13),VLOOKUP(_xlfn.RANK.EQ(J13,J$4:J$128,1),PointsTable,2),"") ->  | AK13: =IF(ISNUMBER(K13),VLOOKUP(_xlfn.RANK.EQ(K13,K$4:K$128,1),PointsTable,2),"") ->  | AL13: =IF(ISNUMBER(L13),VLOOKUP(_xlfn.RANK.EQ(L13,L$4:L$128,1),PointsTable,2),"") ->  | AM13: =IF(ISNUMBER(M13),VLOOKUP(_xlfn.RANK.EQ(M13,M$4:M$128,1),PointsTable,2),"") -> 52 | AN13: =IF(ISNUMBER(N13),VLOOKUP(_xlfn.RANK.EQ(N13,N$4:N$128,1),PointsTable,2),"") ->  | AO13: =IF(ISNUMBER(O13),VLOOKUP(_xlfn.RANK.EQ(O13,O$4:O$128,1),PointsTable,2),"") -> 55 | AP13: =IF(ISNUMBER(P13),VLOOKUP(_xlfn.RANK.EQ(P13,P$4:P$128,1),PointsTable,2),"") -> 51 | AQ13: =IF(ISNUMBER(Q13),VLOOKUP(_xlfn.RANK.EQ(Q13,Q$4:Q$128,1),PointsTable,2),"") -> 52 | AR13: =IF(ISNUMBER(R13),VLOOKUP(_xlfn.RANK.EQ(R13,R$4:R$128,1),PointsTable,2),"") ->  | AS13: =IF(ISNUMBER(S13),VLOOKUP(_xlfn.RANK.EQ(S13,S$4:S$128,1),PointsTable,2),"") -> 53 | AT13: =IF(ISNUMBER(T13),VLOOKUP(_xlfn.RANK.EQ(T13,T$4:T$128,1),PointsTable,2),"") -> 50 | AU13: =IF(ISNUMBER(U13),VLOOKUP(_xlfn.RANK.EQ(U13,U$4:U$128,1),PointsTable,2),"") -> 54 | AV13: =IF(ISNUMBER(V13),VLOOKUP(_xlfn.RANK.EQ(V13,V$4:V$128,1),PointsTable,2),"") -> 52 | AW13: =IF(ISNUMBER(W13),VLOOKUP(_xlfn.RANK.EQ(W13,W$4:W$128,1),PointsTable,2),"") -> 54 | AX13: =IF(ISNUMBER(X13),VLOOKUP(_xlfn.RANK.EQ(X13,X$4:X$128,1),PointsTable,2),"") -> 53 | AY13: =IF(ISNUMBER(Y13),VLOOKUP(_xlfn.RANK.EQ(Y13,Y$4:Y$128,1),PointsTable,2),"") ->  | AZ13: =IF(ISNUMBER(Z13),VLOOKUP(_xlfn.RANK.EQ(Z13,Z$4:Z$128,1),PointsTable,2),"") ->  | BA13: =IF(ISNUMBER(AA13),VLOOKUP(_xlfn.RANK.EQ(AA13,AA$4:AA$128,1),PointsTable,2),"") -> 55 | BB13: =IF(ISNUMBER(AB13),VLOOKUP(_xlfn.RANK.EQ(AB13,AB$4:AB$128,1),PointsTable,2),"") ->  | BG13: =bestpoints(AG13, $AG13:$BB13, CountingRaces) ->  | BH13: =bestpoints(AH13, $AG13:$BB13, CountingRaces) -> 56 | BI13: =bestpoints(AI13, $AG13:$BB13, CountingRaces) -> 53 | BJ13: =bestpoints(AJ13, $AG13:$BB13, CountingRaces) ->  | BK13: =bestpoints(AK13, $AG13:$BB13, CountingRaces) ->  | BL13: =bestpoints(AL13, $AG13:$BB13, CountingRaces) ->  | BM13: =bestpoints(AM13, $AG13:$BB13, CountingRaces) -> 52 | BN13: =bestpoints(AN13, $AG13:$BB13, CountingRaces) ->  | BO13: =bestpoints(AO13, $AG13:$BB13, CountingRaces) -> 55 | BP13: =bestpoints(AP13, $AG13:$BB13, CountingRaces) -> 51 | BQ13: =bestpoints(AQ13, $AG13:$BB13, CountingRaces) -> 52 | BR13: =bestpoints(AR13, $AG13:$BB13, CountingRaces) ->  | BS13: =bestpoints(AS13, $AG13:$BB13, CountingRaces) -> 53 | BT13: =bestpoints(AT13, $AG13:$BB13, CountingRaces) ->  | BU13: =bestpoints(AU13, $AG13:$BB13, CountingRaces) -> 54 | BV13: =bestpoints(AV13, $AG13:$BB13, CountingRaces) -> 52 | BW13: =bestpoints(AW13, $AG13:$BB13, CountingRaces) -> 54 | BX13: =bestpoints(AX13, $AG13:$BB13, CountingRaces) -> 53 | BY13: =bestpoints(AY13, $AG13:$BB13, CountingRaces) ->  | BZ13: =bestpoints(AZ13, $AG13:$BB13, CountingRaces) ->  | CA13: =bestpoints(BA13, $AG13:$BB13, CountingRaces) -> 55 | CB13: =bestpoints(BB13, $AG13:$BB13, CountingRaces) -> 
A14: =AE14/AF14 -> 51.08333333 | B14: 11 | C14: =IF(AF14 >0,RANK(AE14,AE$4:AE$128),"") -> 11 | D14: Ben Caisey | E14: V40 | F14: ITC | G14: =IF(ISERROR(VLOOKUP($D14&$F14,'Rnd1'!$H:$I,2,FALSE)),"",VLOOKUP($D14&$F14,'Rnd1'!$H:$I,2,FALSE)) ->  | H14: =IF(ISERROR(VLOOKUP($D14&$F14,'Rnd2'!$H:$I,2,FALSE)),"",VLOOKUP($D14&$F14,'Rnd2'!$H:$I,2,FALSE)) -> 00:13:13 | I14: =IF(ISERROR(VLOOKUP($D14&$F14,'Rnd3'!$H:$I,2,FALSE)),"",VLOOKUP($D14&$F14,'Rnd3'!$H:$I,2,FALSE)) ->  | J14: =IF(ISERROR(VLOOKUP($D14&$F14,'Rnd4'!$H:$I,2,FALSE)),"",VLOOKUP($D14&$F14,'Rnd4'!$H:$I,2,FALSE)) ->  | K14: =IF(ISERROR(VLOOKUP($D14&$F14,'Rnd5'!$H:$I,2,FALSE)),"",VLOOKUP($D14&$F14,'Rnd5'!$H:$I,2,FALSE)) ->  | L14: =IF(ISERROR(VLOOKUP($D14&$F14,'Rnd6'!$H:$I,2,FALSE)),"",VLOOKUP($D14&$F14,'Rnd6'!$H:$I,2,FALSE)) -> 00:25:23 | M14: =IF(ISERROR(VLOOKUP($D14&$F14,'Rnd7'!$H:$I,2,FALSE)),"",VLOOKUP($D14&$F14,'Rnd7'!$H:$I,2,FALSE)) -> 00:25:53 | N14: =IF(ISERROR(VLOOKUP($D14&$F14,'Rnd8'!$H:$I,2,FALSE)),"",VLOOKUP($D14&$F14,'Rnd8'!$H:$I,2,FALSE)) -> 00:24:59 | O14: =IF(ISERROR(VLOOKUP($D14&$F14,'Rnd9'!$H:$I,2,FALSE)),"",VLOOKUP($D14&$F14,'Rnd9'!$H:$I,2,FALSE)) -> 00:25:21 | P14: =IF(ISERROR(VLOOKUP($D14&$F14,'Rnd10'!$H:$I,2,FALSE)),"",VLOOKUP($D14&$F14,'Rnd10'!$H:$I,2,FALSE)) ->  | Q14: =IF(ISERROR(VLOOKUP($D14&$F14,'Rnd11'!$H:$I,2,FALSE)),"",VLOOKUP($D14&$F14,'Rnd11'!$H:$I,2,FALSE)) -> 00:25:08 | R14: =IF(ISERROR(VLOOKUP($D14&$F14,'Rnd12'!$H:$I,2,FALSE)),"",VLOOKUP($D14&$F14,'Rnd12'!$H:$I,2,FALSE)) ->  | S14: =IF(ISERROR(VLOOKUP($D14&$F14,'Rnd13'!$H:$I,2,FALSE)),"",VLOOKUP($D14&$F14,'Rnd13'!$H:$I,2,FALSE)) -> 00:24:25 | T14: =IF(ISERROR(VLOOKUP($D14&$F14,'Rnd14'!$H:$I,2,FALSE)),"",VLOOKUP($D14&$F14,'Rnd14'!$H:$I,2,FALSE)) -> 00:24:18 | U14: =IF(ISERROR(VLOOKUP($D14&$F14,'Rnd15'!$H:$I,2,FALSE)),"",VLOOKUP($D14&$F14,'Rnd15'!$H:$I,2,FALSE)) -> 00:24:19 | V14: =IF(ISERROR(VLOOKUP($D14&$F14,'Rnd16'!$H:$I,2,FALSE)),"",VLOOKUP($D14&$F14,'Rnd16'!$H:$I,2,FALSE)) -> 00:24:36 | W14: =IF(ISERROR(VLOOKUP($D14&$F14,'Rnd17'!$H:$I,2,FALSE)),"",VLOOKUP($D14&$F14,'Rnd17'!$H:$I,2,FALSE)) -> 00:24:44 | X14: =IF(ISERROR(VLOOKUP($D14&$F14,'Rnd18'!$H:$I,2,FALSE)),"",VLOOKUP($D14&$F14,'Rnd18'!$H:$I,2,FALSE)) ->  | Y14: =IF(ISERROR(VLOOKUP($D14&$F14,'Rnd19'!$H:$I,2,FALSE)),"",VLOOKUP($D14&$F14,'Rnd19'!$H:$I,2,FALSE)) -> 00:25:12 | Z14: =IF(ISERROR(VLOOKUP($D14&$F14,'Rnd20'!$H:$I,2,FALSE)),"",VLOOKUP($D14&$F14,'Rnd20'!$H:$I,2,FALSE)) -> 00:24:57 | AA14: =IF(ISERROR(VLOOKUP($D14&$F14,'Rnd21'!$H:$I,2,FALSE)),"",VLOOKUP($D14&$F14,'Rnd21'!$H:$I,2,FALSE)) -> 00:12:50 | AB14: =IF(ISERROR(VLOOKUP($D14&$F14,'Rnd22'!$H:$I,2,FALSE)),"",VLOOKUP($D14&$F14,'Rnd22'!$H:$I,2,FALSE)) ->  | AC14: =SUM(AG14:BB14) -> 707 | AD14: =COUNT(AG14:BB14) -> 14 | AE14: =SUM(BG14:CB14) -> 613 | AF14: =COUNT(BG14:CB14) -> 12 | AG14: =IF(ISNUMBER(G14),VLOOKUP(_xlfn.RANK.EQ(G14,G$4:G$128,1),PointsTable,2),"") ->  | AH14: =IF(ISNUMBER(H14),VLOOKUP(_xlfn.RANK.EQ(H14,H$4:H$128,1),PointsTable,2),"") -> 50 | AI14: =IF(ISNUMBER(I14),VLOOKUP(_xlfn.RANK.EQ(I14,I$4:I$128,1),PointsTable,2),"") ->  | AJ14: =IF(ISNUMBER(J14),VLOOKUP(_xlfn.RANK.EQ(J14,J$4:J$128,1),PointsTable,2),"") ->  | AK14: =IF(ISNUMBER(K14),VLOOKUP(_xlfn.RANK.EQ(K14,K$4:K$128,1),PointsTable,2),"") ->  | AL14: =IF(ISNUMBER(L14),VLOOKUP(_xlfn.RANK.EQ(L14,L$4:L$128,1),PointsTable,2),"") -> 50 | AM14: =IF(ISNUMBER(M14),VLOOKUP(_xlfn.RANK.EQ(M14,M$4:M$128,1),PointsTable,2),"") -> 50 | AN14: =IF(ISNUMBER(N14),VLOOKUP(_xlfn.RANK.EQ(N14,N$4:N$128,1),PointsTable,2),"") -> 53 | AO14: =IF(ISNUMBER(O14),VLOOKUP(_xlfn.RANK.EQ(O14,O$4:O$128,1),PointsTable,2),"") -> 46 | AP14: =IF(ISNUMBER(P14),VLOOKUP(_xlfn.RANK.EQ(P14,P$4:P$128,1),PointsTable,2),"") ->  | AQ14: =IF(ISNUMBER(Q14),VLOOKUP(_xlfn.RANK.EQ(Q14,Q$4:Q$128,1),PointsTable,2),"") -> 48 | AR14: =IF(ISNUMBER(R14),VLOOKUP(_xlfn.RANK.EQ(R14,R$4:R$128,1),PointsTable,2),"") ->  | AS14: =IF(ISNUMBER(S14),VLOOKUP(_xlfn.RANK.EQ(S14,S$4:S$128,1),PointsTable,2),"") -> 50 | AT14: =IF(ISNUMBER(T14),VLOOKUP(_xlfn.RANK.EQ(T14,T$4:T$128,1),PointsTable,2),"") -> 48 | AU14: =IF(ISNUMBER(U14),VLOOKUP(_xlfn.RANK.EQ(U14,U$4:U$128,1),PointsTable,2),"") -> 58 | AV14: =IF(ISNUMBER(V14),VLOOKUP(_xlfn.RANK.EQ(V14,V$4:V$128,1),PointsTable,2),"") -> 49 | AW14: =IF(ISNUMBER(W14),VLOOKUP(_xlfn.RANK.EQ(W14,W$4:W$128,1),PointsTable,2),"") -> 51 | AX14: =IF(ISNUMBER(X14),VLOOKUP(_xlfn.RANK.EQ(X14,X$4:X$128,1),PointsTable,2),"") ->  | AY14: =IF(ISNUMBER(Y14),VLOOKUP(_xlfn.RANK.EQ(Y14,Y$4:Y$128,1),PointsTable,2),"") -> 49 | AZ14: =IF(ISNUMBER(Z14),VLOOKUP(_xlfn.RANK.EQ(Z14,Z$4:Z$128,1),PointsTable,2),"") -> 52 | BA14: =IF(ISNUMBER(AA14),VLOOKUP(_xlfn.RANK.EQ(AA14,AA$4:AA$128,1),PointsTable,2),"") -> 53 | BB14: =IF(ISNUMBER(AB14),VLOOKUP(_xlfn.RANK.EQ(AB14,AB$4:AB$128,1),PointsTable,2),"") ->  | BG14: =bestpoints(AG14, $AG14:$BB14, CountingRaces) ->  | BH14: =bestpoints(AH14, $AG14:$BB14, CountingRaces) -> 50 | BI14: =bestpoints(AI14, $AG14:$BB14, CountingRaces) ->  | BJ14: =bestpoints(AJ14, $AG14:$BB14, CountingRaces) ->  | BK14: =bestpoints(AK14, $AG14:$BB14, CountingRaces) ->  | BL14: =bestpoints(AL14, $AG14:$BB14, CountingRaces) -> 50 | BM14: =bestpoints(AM14, $AG14:$BB14, CountingRaces) -> 50 | BN14: =bestpoints(AN14, $AG14:$BB14, CountingRaces) -> 53 | BO14: =bestpoints(AO14, $AG14:$BB14, CountingRaces) ->  | BP14: =bestpoints(AP14, $AG14:$BB14, CountingRaces) ->  | BQ14: =bestpoints(AQ14, $AG14:$BB14, CountingRaces) -> 48 | BR14: =bestpoints(AR14, $AG14:$BB14, CountingRaces) ->  | BS14: =bestpoints(AS14, $AG14:$BB14, CountingRaces) -> 50 | BT14: =bestpoints(AT14, $AG14:$BB14, CountingRaces) ->  | BU14: =bestpoints(AU14, $AG14:$BB14, CountingRaces) -> 58 | BV14: =bestpoints(AV14, $AG14:$BB14, CountingRaces) -> 49 | BW14: =bestpoints(AW14, $AG14:$BB14, CountingRaces) -> 51 | BX14: =bestpoints(AX14, $AG14:$BB14, CountingRaces) ->  | BY14: =bestpoints(AY14, $AG14:$BB14, CountingRaces) -> 49 | BZ14: =bestpoints(AZ14, $AG14:$BB14, CountingRaces) -> 52 | CA14: =bestpoints(BA14, $AG14:$BB14, CountingRaces) -> 53 | CB14: =bestpoints(BB14, $AG14:$BB14, CountingRaces) -> 
A15: =AE15/AF15 -> 51 | B15: 12 | C15: =IF(AF15 >0,RANK(AE15,AE$4:AE$128),"") -> 12 | D15: Matt Peck | E15: S | F15: IBC | G15: =IF(ISERROR(VLOOKUP($D15&$F15,'Rnd1'!$H:$I,2,FALSE)),"",VLOOKUP($D15&$F15,'Rnd1'!$H:$I,2,FALSE)) -> 00:14:28 | H15: =IF(ISERROR(VLOOKUP($D15&$F15,'Rnd2'!$H:$I,2,FALSE)),"",VLOOKUP($D15&$F15,'Rnd2'!$H:$I,2,FALSE)) ->  | I15: =IF(ISERROR(VLOOKUP($D15&$F15,'Rnd3'!$H:$I,2,FALSE)),"",VLOOKUP($D15&$F15,'Rnd3'!$H:$I,2,FALSE)) -> 00:21:21 | J15: =IF(ISERROR(VLOOKUP($D15&$F15,'Rnd4'!$H:$I,2,FALSE)),"",VLOOKUP($D15&$F15,'Rnd4'!$H:$I,2,FALSE)) -> 00:25:38 | K15: =IF(ISERROR(VLOOKUP($D15&$F15,'Rnd5'!$H:$I,2,FALSE)),"",VLOOKUP($D15&$F15,'Rnd5'!$H:$I,2,FALSE)) -> 00:25:09 | L15: =IF(ISERROR(VLOOKUP($D15&$F15,'Rnd6'!$H:$I,2,FALSE)),"",VLOOKUP($D15&$F15,'Rnd6'!$H:$I,2,FALSE)) ->  | M15: =IF(ISERROR(VLOOKUP($D15&$F15,'Rnd7'!$H:$I,2,FALSE)),"",VLOOKUP($D15&$F15,'Rnd7'!$H:$I,2,FALSE)) ->  | N15: =IF(ISERROR(VLOOKUP($D15&$F15,'Rnd8'!$H:$I,2,FALSE)),"",VLOOKUP($D15&$F15,'Rnd8'!$H:$I,2,FALSE)) -> 00:25:11 | O15: =IF(ISERROR(VLOOKUP($D15&$F15,'Rnd9'!$H:$I,2,FALSE)),"",VLOOKUP($D15&$F15,'Rnd9'!$H:$I,2,FALSE)) -> 00:24:18 | P15: =IF(ISERROR(VLOOKUP($D15&$F15,'Rnd10'!$H:$I,2,FALSE)),"",VLOOKUP($D15&$F15,'Rnd10'!$H:$I,2,FALSE)) -> 00:24:00 | Q15: =IF(ISERROR(VLOOKUP($D15&$F15,'Rnd11'!$H:$I,2,FALSE)),"",VLOOKUP($D15&$F15,'Rnd11'!$H:$I,2,FALSE)) ->  | R15: =IF(ISERROR(VLOOKUP($D15&$F15,'Rnd12'!$H:$I,2,FALSE)),"",VLOOKUP($D15&$F15,'Rnd12'!$H:$I,2,FALSE)) ->  | S15: =IF(ISERROR(VLOOKUP($D15&$F15,'Rnd13'!$H:$I,2,FALSE)),"",VLOOKUP($D15&$F15,'Rnd13'!$H:$I,2,FALSE)) -> 00:24:00 | T15: =IF(ISERROR(VLOOKUP($D15&$F15,'Rnd14'!$H:$I,2,FALSE)),"",VLOOKUP($D15&$F15,'Rnd14'!$H:$I,2,FALSE)) ->  | U15: =IF(ISERROR(VLOOKUP($D15&$F15,'Rnd15'!$H:$I,2,FALSE)),"",VLOOKUP($D15&$F15,'Rnd15'!$H:$I,2,FALSE)) -> 00:24:26 | V15: =IF(ISERROR(VLOOKUP($D15&$F15,'Rnd16'!$H:$I,2,FALSE)),"",VLOOKUP($D15&$F15,'Rnd16'!$H:$I,2,FALSE)) -> 00:24:22 | W15: =IF(ISERROR(VLOOKUP($D15&$F15,'Rnd17'!$H:$I,2,FALSE)),"",VLOOKUP($D15&$F15,'Rnd17'!$H:$I,2,FALSE)) ->  | X15: =IF(ISERROR(VLOOKUP($D15&$F15,'Rnd18'!$H:$I,2,FALSE)),"",VLOOKUP($D15&$F15,'Rnd18'!$H:$I,2,FALSE)) -> 00:24:25 | Y15: =IF(ISERROR(VLOOKUP($D15&$F15,'Rnd19'!$H:$I,2,FALSE)),"",VLOOKUP($D15&$F15,'Rnd19'!$H:$I,2,FALSE)) -> 00:26:36 | Z15: =IF(ISERROR(VLOOKUP($D15&$F15,'Rnd20'!$H:$I,2,FALSE)),"",VLOOKUP($D15&$F15,'Rnd20'!$H:$I,2,FALSE)) ->  | AA15: =IF(ISERROR(VLOOKUP($D15&$F15,'Rnd21'!$H:$I,2,FALSE)),"",VLOOKUP($D15&$F15,'Rnd21'!$H:$I,2,FALSE)) ->  | AB15: =IF(ISERROR(VLOOKUP($D15&$F15,'Rnd22'!$H:$I,2,FALSE)),"",VLOOKUP($D15&$F15,'Rnd22'!$H:$I,2,FALSE)) ->  | AC15: =SUM(AG15:BB15) -> 612 | AD15: =COUNT(AG15:BB15) -> 12 | AE15: =SUM(BG15:CB15) -> 612 | AF15: =COUNT(BG15:CB15) -> 12 | AG15: =IF(ISNUMBER(G15),VLOOKUP(_xlfn.RANK.EQ(G15,G$4:G$128,1),PointsTable,2),"") -> 46 | AH15: =IF(ISNUMBER(H15),VLOOKUP(_xlfn.RANK.EQ(H15,H$4:H$128,1),PointsTable,2),"") ->  | AI15: =IF(ISNUMBER(I15),VLOOKUP(_xlfn.RANK.EQ(I15,I$4:I$128,1),PointsTable,2),"") -> 49 | AJ15: =IF(ISNUMBER(J15),VLOOKUP(_xlfn.RANK.EQ(J15,J$4:J$128,1),PointsTable,2),"") -> 51 | AK15: =IF(ISNUMBER(K15),VLOOKUP(_xlfn.RANK.EQ(K15,K$4:K$128,1),PointsTable,2),"") -> 53 | AL15: =IF(ISNUMBER(L15),VLOOKUP(_xlfn.RANK.EQ(L15,L$4:L$128,1),PointsTable,2),"") ->  | AM15: =IF(ISNUMBER(M15),VLOOKUP(_xlfn.RANK.EQ(M15,M$4:M$128,1),PointsTable,2),"") ->  | AN15: =IF(ISNUMBER(N15),VLOOKUP(_xlfn.RANK.EQ(N15,N$4:N$128,1),PointsTable,2),"") -> 52 | AO15: =IF(ISNUMBER(O15),VLOOKUP(_xlfn.RANK.EQ(O15,O$4:O$128,1),PointsTable,2),"") -> 52 | AP15: =IF(ISNUMBER(P15),VLOOKUP(_xlfn.RANK.EQ(P15,P$4:P$128,1),PointsTable,2),"") -> 52 | AQ15: =IF(ISNUMBER(Q15),VLOOKUP(_xlfn.RANK.EQ(Q15,Q$4:Q$128,1),PointsTable,2),"") ->  | AR15: =IF(ISNUMBER(R15),VLOOKUP(_xlfn.RANK.EQ(R15,R$4:R$128,1),PointsTable,2),"") ->  | AS15: =IF(ISNUMBER(S15),VLOOKUP(_xlfn.RANK.EQ(S15,S$4:S$128,1),PointsTable,2),"") -> 51 | AT15: =IF(ISNUMBER(T15),VLOOKUP(_xlfn.RANK.EQ(T15,T$4:T$128,1),PointsTable,2),"") ->  | AU15: =IF(ISNUMBER(U15),VLOOKUP(_xlfn.RANK.EQ(U15,U$4:U$128,1),PointsTable,2),"") -> 56 | AV15: =IF(ISNUMBER(V15),VLOOKUP(_xlfn.RANK.EQ(V15,V$4:V$128,1),PointsTable,2),"") -> 51 | AW15: =IF(ISNUMBER(W15),VLOOKUP(_xlfn.RANK.EQ(W15,W$4:W$128,1),PointsTable,2),"") ->  | AX15: =IF(ISNUMBER(X15),VLOOKUP(_xlfn.RANK.EQ(X15,X$4:X$128,1),PointsTable,2),"") -> 53 | AY15: =IF(ISNUMBER(Y15),VLOOKUP(_xlfn.RANK.EQ(Y15,Y$4:Y$128,1),PointsTable,2),"") -> 46 | AZ15: =IF(ISNUMBER(Z15),VLOOKUP(_xlfn.RANK.EQ(Z15,Z$4:Z$128,1),PointsTable,2),"") ->  | BA15: =IF(ISNUMBER(AA15),VLOOKUP(_xlfn.RANK.EQ(AA15,AA$4:AA$128,1),PointsTable,2),"") ->  | BB15: =IF(ISNUMBER(AB15),VLOOKUP(_xlfn.RANK.EQ(AB15,AB$4:AB$128,1),PointsTable,2),"") ->  | BG15: =bestpoints(AG15, $AG15:$BB15, CountingRaces) -> 46 | BH15: =bestpoints(AH15, $AG15:$BB15, CountingRaces) ->  | BI15: =bestpoints(AI15, $AG15:$BB15, CountingRaces) -> 49 | BJ15: =bestpoints(AJ15, $AG15:$BB15, CountingRaces) -> 51 | BK15: =bestpoints(AK15, $AG15:$BB15, CountingRaces) -> 53 | BL15: =bestpoints(AL15, $AG15:$BB15, CountingRaces) ->  | BM15: =bestpoints(AM15, $AG15:$BB15, CountingRaces) ->  | BN15: =bestpoints(AN15, $AG15:$BB15, CountingRaces) -> 52 | BO15: =bestpoints(AO15, $AG15:$BB15, CountingRaces) -> 52 | BP15: =bestpoints(AP15, $AG15:$BB15, CountingRaces) -> 52 | BQ15: =bestpoints(AQ15, $AG15:$BB15, CountingRaces) ->  | BR15: =bestpoints(AR15, $AG15:$BB15, CountingRaces) ->  | BS15: =bestpoints(AS15, $AG15:$BB15, CountingRaces) -> 51 | BT15: =bestpoints(AT15, $AG15:$BB15, CountingRaces) ->  | BU15: =bestpoints(AU15, $AG15:$BB15, CountingRaces) -> 56 | BV15: =bestpoints(AV15, $AG15:$BB15, CountingRaces) -> 51 | BW15: =bestpoints(AW15, $AG15:$BB15, CountingRaces) ->  | BX15: =bestpoints(AX15, $AG15:$BB15, CountingRaces) -> 53 | BY15: =bestpoints(AY15, $AG15:$BB15, CountingRaces) -> 46 | BZ15: =bestpoints(AZ15, $AG15:$BB15, CountingRaces) ->  | CA15: =bestpoints(BA15, $AG15:$BB15, CountingRaces) ->  | CB15: =bestpoints(BB15, $AG15:$BB15, CountingRaces) -> 
A16: =AE16/AF16 -> 50.66666667 | B16: 13 | C16: =IF(AF16 >0,RANK(AE16,AE$4:AE$128),"") -> 13 | D16: Paul Moss | E16: V50 | F16: SDCC | G16: =IF(ISERROR(VLOOKUP($D16&$F16,'Rnd1'!$H:$I,2,FALSE)),"",VLOOKUP($D16&$F16,'Rnd1'!$H:$I,2,FALSE)) -> 00:13:13 | H16: =IF(ISERROR(VLOOKUP($D16&$F16,'Rnd2'!$H:$I,2,FALSE)),"",VLOOKUP($D16&$F16,'Rnd2'!$H:$I,2,FALSE)) -> 00:13:20 | I16: =IF(ISERROR(VLOOKUP($D16&$F16,'Rnd3'!$H:$I,2,FALSE)),"",VLOOKUP($D16&$F16,'Rnd3'!$H:$I,2,FALSE)) -> 00:21:48 | J16: =IF(ISERROR(VLOOKUP($D16&$F16,'Rnd4'!$H:$I,2,FALSE)),"",VLOOKUP($D16&$F16,'Rnd4'!$H:$I,2,FALSE)) -> 00:26:28 | K16: =IF(ISERROR(VLOOKUP($D16&$F16,'Rnd5'!$H:$I,2,FALSE)),"",VLOOKUP($D16&$F16,'Rnd5'!$H:$I,2,FALSE)) -> 00:25:29 | L16: =IF(ISERROR(VLOOKUP($D16&$F16,'Rnd6'!$H:$I,2,FALSE)),"",VLOOKUP($D16&$F16,'Rnd6'!$H:$I,2,FALSE)) ->  | M16: =IF(ISERROR(VLOOKUP($D16&$F16,'Rnd7'!$H:$I,2,FALSE)),"",VLOOKUP($D16&$F16,'Rnd7'!$H:$I,2,FALSE)) ->  | N16: =IF(ISERROR(VLOOKUP($D16&$F16,'Rnd8'!$H:$I,2,FALSE)),"",VLOOKUP($D16&$F16,'Rnd8'!$H:$I,2,FALSE)) -> 00:25:28 | O16: =IF(ISERROR(VLOOKUP($D16&$F16,'Rnd9'!$H:$I,2,FALSE)),"",VLOOKUP($D16&$F16,'Rnd9'!$H:$I,2,FALSE)) -> 00:24:57 | P16: =IF(ISERROR(VLOOKUP($D16&$F16,'Rnd10'!$H:$I,2,FALSE)),"",VLOOKUP($D16&$F16,'Rnd10'!$H:$I,2,FALSE)) -> 00:25:05 | Q16: =IF(ISERROR(VLOOKUP($D16&$F16,'Rnd11'!$H:$I,2,FALSE)),"",VLOOKUP($D16&$F16,'Rnd11'!$H:$I,2,FALSE)) -> 00:25:08 | R16: =IF(ISERROR(VLOOKUP($D16&$F16,'Rnd12'!$H:$I,2,FALSE)),"",VLOOKUP($D16&$F16,'Rnd12'!$H:$I,2,FALSE)) -> 00:24:39 | S16: =IF(ISERROR(VLOOKUP($D16&$F16,'Rnd13'!$H:$I,2,FALSE)),"",VLOOKUP($D16&$F16,'Rnd13'!$H:$I,2,FALSE)) -> 00:24:56 | T16: =IF(ISERROR(VLOOKUP($D16&$F16,'Rnd14'!$H:$I,2,FALSE)),"",VLOOKUP($D16&$F16,'Rnd14'!$H:$I,2,FALSE)) -> 00:24:33 | U16: =IF(ISERROR(VLOOKUP($D16&$F16,'Rnd15'!$H:$I,2,FALSE)),"",VLOOKUP($D16&$F16,'Rnd15'!$H:$I,2,FALSE)) ->  | V16: =IF(ISERROR(VLOOKUP($D16&$F16,'Rnd16'!$H:$I,2,FALSE)),"",VLOOKUP($D16&$F16,'Rnd16'!$H:$I,2,FALSE)) -> 00:25:37 | W16: =IF(ISERROR(VLOOKUP($D16&$F16,'Rnd17'!$H:$I,2,FALSE)),"",VLOOKUP($D16&$F16,'Rnd17'!$H:$I,2,FALSE)) -> 00:25:07 | X16: =IF(ISERROR(VLOOKUP($D16&$F16,'Rnd18'!$H:$I,2,FALSE)),"",VLOOKUP($D16&$F16,'Rnd18'!$H:$I,2,FALSE)) ->  | Y16: =IF(ISERROR(VLOOKUP($D16&$F16,'Rnd19'!$H:$I,2,FALSE)),"",VLOOKUP($D16&$F16,'Rnd19'!$H:$I,2,FALSE)) -> 00:25:11 | Z16: =IF(ISERROR(VLOOKUP($D16&$F16,'Rnd20'!$H:$I,2,FALSE)),"",VLOOKUP($D16&$F16,'Rnd20'!$H:$I,2,FALSE)) -> 00:25:21 | AA16: =IF(ISERROR(VLOOKUP($D16&$F16,'Rnd21'!$H:$I,2,FALSE)),"",VLOOKUP($D16&$F16,'Rnd21'!$H:$I,2,FALSE)) -> 00:12:33 | AB16: =IF(ISERROR(VLOOKUP($D16&$F16,'Rnd22'!$H:$I,2,FALSE)),"",VLOOKUP($D16&$F16,'Rnd22'!$H:$I,2,FALSE)) -> 00:12:40 | AC16: =SUM(AG16:BB16) -> 889 | AD16: =COUNT(AG16:BB16) -> 18 | AE16: =SUM(BG16:CB16) -> 608 | AF16: =COUNT(BG16:CB16) -> 12 | AG16: =IF(ISNUMBER(G16),VLOOKUP(_xlfn.RANK.EQ(G16,G$4:G$128,1),PointsTable,2),"") -> 53 | AH16: =IF(ISNUMBER(H16),VLOOKUP(_xlfn.RANK.EQ(H16,H$4:H$128,1),PointsTable,2),"") -> 49 | AI16: =IF(ISNUMBER(I16),VLOOKUP(_xlfn.RANK.EQ(I16,I$4:I$128,1),PointsTable,2),"") -> 47 | AJ16: =IF(ISNUMBER(J16),VLOOKUP(_xlfn.RANK.EQ(J16,J$4:J$128,1),PointsTable,2),"") -> 48 | AK16: =IF(ISNUMBER(K16),VLOOKUP(_xlfn.RANK.EQ(K16,K$4:K$128,1),PointsTable,2),"") -> 51 | AL16: =IF(ISNUMBER(L16),VLOOKUP(_xlfn.RANK.EQ(L16,L$4:L$128,1),PointsTable,2),"") ->  | AM16: =IF(ISNUMBER(M16),VLOOKUP(_xlfn.RANK.EQ(M16,M$4:M$128,1),PointsTable,2),"") ->  | AN16: =IF(ISNUMBER(N16),VLOOKUP(_xlfn.RANK.EQ(N16,N$4:N$128,1),PointsTable,2),"") -> 49 | AO16: =IF(ISNUMBER(O16),VLOOKUP(_xlfn.RANK.EQ(O16,O$4:O$128,1),PointsTable,2),"") -> 49 | AP16: =IF(ISNUMBER(P16),VLOOKUP(_xlfn.RANK.EQ(P16,P$4:P$128,1),PointsTable,2),"") -> 46 | AQ16: =IF(ISNUMBER(Q16),VLOOKUP(_xlfn.RANK.EQ(Q16,Q$4:Q$128,1),PointsTable,2),"") -> 48 | AR16: =IF(ISNUMBER(R16),VLOOKUP(_xlfn.RANK.EQ(R16,R$4:R$128,1),PointsTable,2),"") -> 53 | AS16: =IF(ISNUMBER(S16),VLOOKUP(_xlfn.RANK.EQ(S16,S$4:S$128,1),PointsTable,2),"") -> 47 | AT16: =IF(ISNUMBER(T16),VLOOKUP(_xlfn.RANK.EQ(T16,T$4:T$128,1),PointsTable,2),"") -> 46 | AU16: =IF(ISNUMBER(U16),VLOOKUP(_xlfn.RANK.EQ(U16,U$4:U$128,1),PointsTable,2),"") ->  | AV16: =IF(ISNUMBER(V16),VLOOKUP(_xlfn.RANK.EQ(V16,V$4:V$128,1),PointsTable,2),"") -> 47 | AW16: =IF(ISNUMBER(W16),VLOOKUP(_xlfn.RANK.EQ(W16,W$4:W$128,1),PointsTable,2),"") -> 48 | AX16: =IF(ISNUMBER(X16),VLOOKUP(_xlfn.RANK.EQ(X16,X$4:X$128,1),PointsTable,2),"") ->  | AY16: =IF(ISNUMBER(Y16),VLOOKUP(_xlfn.RANK.EQ(Y16,Y$4:Y$128,1),PointsTable,2),"") -> 50 | AZ16: =IF(ISNUMBER(Z16),VLOOKUP(_xlfn.RANK.EQ(Z16,Z$4:Z$128,1),PointsTable,2),"") -> 48 | BA16: =IF(ISNUMBER(AA16),VLOOKUP(_xlfn.RANK.EQ(AA16,AA$4:AA$128,1),PointsTable,2),"") -> 54 | BB16: =IF(ISNUMBER(AB16),VLOOKUP(_xlfn.RANK.EQ(AB16,AB$4:AB$128,1),PointsTable,2),"") -> 56 | BG16: =bestpoints(AG16, $AG16:$BB16, CountingRaces) -> 53 | BH16: =bestpoints(AH16, $AG16:$BB16, CountingRaces) -> 49 | BI16: =bestpoints(AI16, $AG16:$BB16, CountingRaces) ->  | BJ16: =bestpoints(AJ16, $AG16:$BB16, CountingRaces) -> 48 | BK16: =bestpoints(AK16, $AG16:$BB16, CountingRaces) -> 51 | BL16: =bestpoints(AL16, $AG16:$BB16, CountingRaces) ->  | BM16: =bestpoints(AM16, $AG16:$BB16, CountingRaces) ->  | BN16: =bestpoints(AN16, $AG16:$BB16, CountingRaces) -> 49 | BO16: =bestpoints(AO16, $AG16:$BB16, CountingRaces) -> 49 | BP16: =bestpoints(AP16, $AG16:$BB16, CountingRaces) ->  | BQ16: =bestpoints(AQ16, $AG16:$BB16, CountingRaces) -> 48 | BR16: =bestpoints(AR16, $AG16:$BB16, CountingRaces) -> 53 | BS16: =bestpoints(AS16, $AG16:$BB16, CountingRaces) ->  | BT16: =bestpoints(AT16, $AG16:$BB16, CountingRaces) ->  | BU16: =bestpoints(AU16, $AG16:$BB16, CountingRaces) ->  | BV16: =bestpoints(AV16, $AG16:$BB16, CountingRaces) ->  | BW16: =bestpoints(AW16, $AG16:$BB16, CountingRaces) -> 48 | BX16: =bestpoints(AX16, $AG16:$BB16, CountingRaces) ->  | BY16: =bestpoints(AY16, $AG16:$BB16, CountingRaces) -> 50 | BZ16: =bestpoints(AZ16, $AG16:$BB16, CountingRaces) ->  | CA16: =bestpoints(BA16, $AG16:$BB16, CountingRaces) -> 54 | CB16: =bestpoints(BB16, $AG16:$BB16, CountingRaces) -> 56
A17: =AE17/AF17 -> 48.83333333 | B17: 14 | C17: =IF(AF17 >0,RANK(AE17,AE$4:AE$128),"") -> 14 | D17: Dave Copland | E17: V50 | F17: IBC | G17: =IF(ISERROR(VLOOKUP($D17&$F17,'Rnd1'!$H:$I,2,FALSE)),"",VLOOKUP($D17&$F17,'Rnd1'!$H:$I,2,FALSE)) ->  | H17: =IF(ISERROR(VLOOKUP($D17&$F17,'Rnd2'!$H:$I,2,FALSE)),"",VLOOKUP($D17&$F17,'Rnd2'!$H:$I,2,FALSE)) ->  | I17: =IF(ISERROR(VLOOKUP($D17&$F17,'Rnd3'!$H:$I,2,FALSE)),"",VLOOKUP($D17&$F17,'Rnd3'!$H:$I,2,FALSE)) -> 00:21:41 | J17: =IF(ISERROR(VLOOKUP($D17&$F17,'Rnd4'!$H:$I,2,FALSE)),"",VLOOKUP($D17&$F17,'Rnd4'!$H:$I,2,FALSE)) -> 00:25:47 | K17: =IF(ISERROR(VLOOKUP($D17&$F17,'Rnd5'!$H:$I,2,FALSE)),"",VLOOKUP($D17&$F17,'Rnd5'!$H:$I,2,FALSE)) ->  | L17: =IF(ISERROR(VLOOKUP($D17&$F17,'Rnd6'!$H:$I,2,FALSE)),"",VLOOKUP($D17&$F17,'Rnd6'!$H:$I,2,FALSE)) -> 00:24:59 | M17: =IF(ISERROR(VLOOKUP($D17&$F17,'Rnd7'!$H:$I,2,FALSE)),"",VLOOKUP($D17&$F17,'Rnd7'!$H:$I,2,FALSE)) ->  | N17: =IF(ISERROR(VLOOKUP($D17&$F17,'Rnd8'!$H:$I,2,FALSE)),"",VLOOKUP($D17&$F17,'Rnd8'!$H:$I,2,FALSE)) -> 00:25:22 | O17: =IF(ISERROR(VLOOKUP($D17&$F17,'Rnd9'!$H:$I,2,FALSE)),"",VLOOKUP($D17&$F17,'Rnd9'!$H:$I,2,FALSE)) -> 00:25:43 | P17: =IF(ISERROR(VLOOKUP($D17&$F17,'Rnd10'!$H:$I,2,FALSE)),"",VLOOKUP($D17&$F17,'Rnd10'!$H:$I,2,FALSE)) -> 00:25:13 | Q17: =IF(ISERROR(VLOOKUP($D17&$F17,'Rnd11'!$H:$I,2,FALSE)),"",VLOOKUP($D17&$F17,'Rnd11'!$H:$I,2,FALSE)) ->  | R17: =IF(ISERROR(VLOOKUP($D17&$F17,'Rnd12'!$H:$I,2,FALSE)),"",VLOOKUP($D17&$F17,'Rnd12'!$H:$I,2,FALSE)) ->  | S17: =IF(ISERROR(VLOOKUP($D17&$F17,'Rnd13'!$H:$I,2,FALSE)),"",VLOOKUP($D17&$F17,'Rnd13'!$H:$I,2,FALSE)) -> 00:25:24 | T17: =IF(ISERROR(VLOOKUP($D17&$F17,'Rnd14'!$H:$I,2,FALSE)),"",VLOOKUP($D17&$F17,'Rnd14'!$H:$I,2,FALSE)) ->  | U17: =IF(ISERROR(VLOOKUP($D17&$F17,'Rnd15'!$H:$I,2,FALSE)),"",VLOOKUP($D17&$F17,'Rnd15'!$H:$I,2,FALSE)) ->  | V17: =IF(ISERROR(VLOOKUP($D17&$F17,'Rnd16'!$H:$I,2,FALSE)),"",VLOOKUP($D17&$F17,'Rnd16'!$H:$I,2,FALSE)) -> 00:24:32 | W17: =IF(ISERROR(VLOOKUP($D17&$F17,'Rnd17'!$H:$I,2,FALSE)),"",VLOOKUP($D17&$F17,'Rnd17'!$H:$I,2,FALSE)) -> 00:24:51 | X17: =IF(ISERROR(VLOOKUP($D17&$F17,'Rnd18'!$H:$I,2,FALSE)),"",VLOOKUP($D17&$F17,'Rnd18'!$H:$I,2,FALSE)) -> 00:24:55 | Y17: =IF(ISERROR(VLOOKUP($D17&$F17,'Rnd19'!$H:$I,2,FALSE)),"",VLOOKUP($D17&$F17,'Rnd19'!$H:$I,2,FALSE)) -> 00:25:09 | Z17: =IF(ISERROR(VLOOKUP($D17&$F17,'Rnd20'!$H:$I,2,FALSE)),"",VLOOKUP($D17&$F17,'Rnd20'!$H:$I,2,FALSE)) -> 00:24:52 | AA17: =IF(ISERROR(VLOOKUP($D17&$F17,'Rnd21'!$H:$I,2,FALSE)),"",VLOOKUP($D17&$F17,'Rnd21'!$H:$I,2,FALSE)) ->  | AB17: =IF(ISERROR(VLOOKUP($D17&$F17,'Rnd22'!$H:$I,2,FALSE)),"",VLOOKUP($D17&$F17,'Rnd22'!$H:$I,2,FALSE)) ->  | AC17: =SUM(AG17:BB17) -> 586 | AD17: =COUNT(AG17:BB17) -> 12 | AE17: =SUM(BG17:CB17) -> 586 | AF17: =COUNT(BG17:CB17) -> 12 | AG17: =IF(ISNUMBER(G17),VLOOKUP(_xlfn.RANK.EQ(G17,G$4:G$128,1),PointsTable,2),"") ->  | AH17: =IF(ISNUMBER(H17),VLOOKUP(_xlfn.RANK.EQ(H17,H$4:H$128,1),PointsTable,2),"") ->  | AI17: =IF(ISNUMBER(I17),VLOOKUP(_xlfn.RANK.EQ(I17,I$4:I$128,1),PointsTable,2),"") -> 48 | AJ17: =IF(ISNUMBER(J17),VLOOKUP(_xlfn.RANK.EQ(J17,J$4:J$128,1),PointsTable,2),"") -> 50 | AK17: =IF(ISNUMBER(K17),VLOOKUP(_xlfn.RANK.EQ(K17,K$4:K$128,1),PointsTable,2),"") ->  | AL17: =IF(ISNUMBER(L17),VLOOKUP(_xlfn.RANK.EQ(L17,L$4:L$128,1),PointsTable,2),"") -> 52 | AM17: =IF(ISNUMBER(M17),VLOOKUP(_xlfn.RANK.EQ(M17,M$4:M$128,1),PointsTable,2),"") ->  | AN17: =IF(ISNUMBER(N17),VLOOKUP(_xlfn.RANK.EQ(N17,N$4:N$128,1),PointsTable,2),"") -> 51 | AO17: =IF(ISNUMBER(O17),VLOOKUP(_xlfn.RANK.EQ(O17,O$4:O$128,1),PointsTable,2),"") -> 43 | AP17: =IF(ISNUMBER(P17),VLOOKUP(_xlfn.RANK.EQ(P17,P$4:P$128,1),PointsTable,2),"") -> 44 | AQ17: =IF(ISNUMBER(Q17),VLOOKUP(_xlfn.RANK.EQ(Q17,Q$4:Q$128,1),PointsTable,2),"") ->  | AR17: =IF(ISNUMBER(R17),VLOOKUP(_xlfn.RANK.EQ(R17,R$4:R$128,1),PointsTable,2),"") ->  | AS17: =IF(ISNUMBER(S17),VLOOKUP(_xlfn.RANK.EQ(S17,S$4:S$128,1),PointsTable,2),"") -> 44 | AT17: =IF(ISNUMBER(T17),VLOOKUP(_xlfn.RANK.EQ(T17,T$4:T$128,1),PointsTable,2),"") ->  | AU17: =IF(ISNUMBER(U17),VLOOKUP(_xlfn.RANK.EQ(U17,U$4:U$128,1),PointsTable,2),"") ->  | AV17: =IF(ISNUMBER(V17),VLOOKUP(_xlfn.RANK.EQ(V17,V$4:V$128,1),PointsTable,2),"") -> 50 | AW17: =IF(ISNUMBER(W17),VLOOKUP(_xlfn.RANK.EQ(W17,W$4:W$128,1),PointsTable,2),"") -> 49 | AX17: =IF(ISNUMBER(X17),VLOOKUP(_xlfn.RANK.EQ(X17,X$4:X$128,1),PointsTable,2),"") -> 51 | AY17: =IF(ISNUMBER(Y17),VLOOKUP(_xlfn.RANK.EQ(Y17,Y$4:Y$128,1),PointsTable,2),"") -> 51 | AZ17: =IF(ISNUMBER(Z17),VLOOKUP(_xlfn.RANK.EQ(Z17,Z$4:Z$128,1),PointsTable,2),"") -> 53 | BA17: =IF(ISNUMBER(AA17),VLOOKUP(_xlfn.RANK.EQ(AA17,AA$4:AA$128,1),PointsTable,2),"") ->  | BB17: =IF(ISNUMBER(AB17),VLOOKUP(_xlfn.RANK.EQ(AB17,AB$4:AB$128,1),PointsTable,2),"") ->  | BG17: =bestpoints(AG17, $AG17:$BB17, CountingRaces) ->  | BH17: =bestpoints(AH17, $AG17:$BB17, CountingRaces) ->  | BI17: =bestpoints(AI17, $AG17:$BB17, CountingRaces) -> 48 | BJ17: =bestpoints(AJ17, $AG17:$BB17, CountingRaces) -> 50 | BK17: =bestpoints(AK17, $AG17:$BB17, CountingRaces) ->  | BL17: =bestpoints(AL17, $AG17:$BB17, CountingRaces) -> 52 | BM17: =bestpoints(AM17, $AG17:$BB17, CountingRaces) ->  | BN17: =bestpoints(AN17, $AG17:$BB17, CountingRaces) -> 51 | BO17: =bestpoints(AO17, $AG17:$BB17, CountingRaces) -> 43 | BP17: =bestpoints(AP17, $AG17:$BB17, CountingRaces) -> 44 | BQ17: =bestpoints(AQ17, $AG17:$BB17, CountingRaces) ->  | BR17: =bestpoints(AR17, $AG17:$BB17, CountingRaces) ->  | BS17: =bestpoints(AS17, $AG17:$BB17, CountingRaces) -> 44 | BT17: =bestpoints(AT17, $AG17:$BB17, CountingRaces) ->  | BU17: =bestpoints(AU17, $AG17:$BB17, CountingRaces) ->  | BV17: =bestpoints(AV17, $AG17:$BB17, CountingRaces) -> 50 | BW17: =bestpoints(AW17, $AG17:$BB17, CountingRaces) -> 49 | BX17: =bestpoints(AX17, $AG17:$BB17, CountingRaces) -> 51 | BY17: =bestpoints(AY17, $AG17:$BB17, CountingRaces) -> 51 | BZ17: =bestpoints(AZ17, $AG17:$BB17, CountingRaces) -> 53 | CA17: =bestpoints(BA17, $AG17:$BB17, CountingRaces) ->  | CB17: =bestpoints(BB17, $AG17:$BB17, CountingRaces) -> 
A18: =AE18/AF18 -> 48.75 | B18: 15 | C18: =IF(AF18 >0,RANK(AE18,AE$4:AE$128),"") -> 15 | D18: Arthur Hitchen | E18: Juv | F18: IBC | G18: =IF(ISERROR(VLOOKUP($D18&$F18,'Rnd1'!$H:$I,2,FALSE)),"",VLOOKUP($D18&$F18,'Rnd1'!$H:$I,2,FALSE)) -> 00:14:19 | H18: =IF(ISERROR(VLOOKUP($D18&$F18,'Rnd2'!$H:$I,2,FALSE)),"",VLOOKUP($D18&$F18,'Rnd2'!$H:$I,2,FALSE)) -> 00:14:04 | I18: =IF(ISERROR(VLOOKUP($D18&$F18,'Rnd3'!$H:$I,2,FALSE)),"",VLOOKUP($D18&$F18,'Rnd3'!$H:$I,2,FALSE)) -> 00:23:01 | J18: =IF(ISERROR(VLOOKUP($D18&$F18,'Rnd4'!$H:$I,2,FALSE)),"",VLOOKUP($D18&$F18,'Rnd4'!$H:$I,2,FALSE)) -> 00:27:51 | K18: =IF(ISERROR(VLOOKUP($D18&$F18,'Rnd5'!$H:$I,2,FALSE)),"",VLOOKUP($D18&$F18,'Rnd5'!$H:$I,2,FALSE)) -> 00:26:35 | L18: =IF(ISERROR(VLOOKUP($D18&$F18,'Rnd6'!$H:$I,2,FALSE)),"",VLOOKUP($D18&$F18,'Rnd6'!$H:$I,2,FALSE)) -> 00:26:39 | M18: =IF(ISERROR(VLOOKUP($D18&$F18,'Rnd7'!$H:$I,2,FALSE)),"",VLOOKUP($D18&$F18,'Rnd7'!$H:$I,2,FALSE)) -> 00:27:53 | N18: =IF(ISERROR(VLOOKUP($D18&$F18,'Rnd8'!$H:$I,2,FALSE)),"",VLOOKUP($D18&$F18,'Rnd8'!$H:$I,2,FALSE)) -> 00:27:22 | O18: =IF(ISERROR(VLOOKUP($D18&$F18,'Rnd9'!$H:$I,2,FALSE)),"",VLOOKUP($D18&$F18,'Rnd9'!$H:$I,2,FALSE)) -> 00:26:36 | P18: =IF(ISERROR(VLOOKUP($D18&$F18,'Rnd10'!$H:$I,2,FALSE)),"",VLOOKUP($D18&$F18,'Rnd10'!$H:$I,2,FALSE)) -> 00:24:48 | Q18: =IF(ISERROR(VLOOKUP($D18&$F18,'Rnd11'!$H:$I,2,FALSE)),"",VLOOKUP($D18&$F18,'Rnd11'!$H:$I,2,FALSE)) -> 00:24:50 | R18: =IF(ISERROR(VLOOKUP($D18&$F18,'Rnd12'!$H:$I,2,FALSE)),"",VLOOKUP($D18&$F18,'Rnd12'!$H:$I,2,FALSE)) -> 00:26:14 | S18: =IF(ISERROR(VLOOKUP($D18&$F18,'Rnd13'!$H:$I,2,FALSE)),"",VLOOKUP($D18&$F18,'Rnd13'!$H:$I,2,FALSE)) -> 00:26:06 | T18: =IF(ISERROR(VLOOKUP($D18&$F18,'Rnd14'!$H:$I,2,FALSE)),"",VLOOKUP($D18&$F18,'Rnd14'!$H:$I,2,FALSE)) -> 00:24:45 | U18: =IF(ISERROR(VLOOKUP($D18&$F18,'Rnd15'!$H:$I,2,FALSE)),"",VLOOKUP($D18&$F18,'Rnd15'!$H:$I,2,FALSE)) ->  | V18: =IF(ISERROR(VLOOKUP($D18&$F18,'Rnd16'!$H:$I,2,FALSE)),"",VLOOKUP($D18&$F18,'Rnd16'!$H:$I,2,FALSE)) ->  | W18: =IF(ISERROR(VLOOKUP($D18&$F18,'Rnd17'!$H:$I,2,FALSE)),"",VLOOKUP($D18&$F18,'Rnd17'!$H:$I,2,FALSE)) -> 00:25:17 | X18: =IF(ISERROR(VLOOKUP($D18&$F18,'Rnd18'!$H:$I,2,FALSE)),"",VLOOKUP($D18&$F18,'Rnd18'!$H:$I,2,FALSE)) -> 00:25:29 | Y18: =IF(ISERROR(VLOOKUP($D18&$F18,'Rnd19'!$H:$I,2,FALSE)),"",VLOOKUP($D18&$F18,'Rnd19'!$H:$I,2,FALSE)) -> 00:25:14 | Z18: =IF(ISERROR(VLOOKUP($D18&$F18,'Rnd20'!$H:$I,2,FALSE)),"",VLOOKUP($D18&$F18,'Rnd20'!$H:$I,2,FALSE)) -> 00:25:19 | AA18: =IF(ISERROR(VLOOKUP($D18&$F18,'Rnd21'!$H:$I,2,FALSE)),"",VLOOKUP($D18&$F18,'Rnd21'!$H:$I,2,FALSE)) -> 00:12:53 | AB18: =IF(ISERROR(VLOOKUP($D18&$F18,'Rnd22'!$H:$I,2,FALSE)),"",VLOOKUP($D18&$F18,'Rnd22'!$H:$I,2,FALSE)) -> 00:13:10 | AC18: =SUM(AG18:BB18) -> 900 | AD18: =COUNT(AG18:BB18) -> 20 | AE18: =SUM(BG18:CB18) -> 585 | AF18: =COUNT(BG18:CB18) -> 12 | AG18: =IF(ISNUMBER(G18),VLOOKUP(_xlfn.RANK.EQ(G18,G$4:G$128,1),PointsTable,2),"") -> 47 | AH18: =IF(ISNUMBER(H18),VLOOKUP(_xlfn.RANK.EQ(H18,H$4:H$128,1),PointsTable,2),"") -> 40 | AI18: =IF(ISNUMBER(I18),VLOOKUP(_xlfn.RANK.EQ(I18,I$4:I$128,1),PointsTable,2),"") -> 39 | AJ18: =IF(ISNUMBER(J18),VLOOKUP(_xlfn.RANK.EQ(J18,J$4:J$128,1),PointsTable,2),"") -> 40 | AK18: =IF(ISNUMBER(K18),VLOOKUP(_xlfn.RANK.EQ(K18,K$4:K$128,1),PointsTable,2),"") -> 46 | AL18: =IF(ISNUMBER(L18),VLOOKUP(_xlfn.RANK.EQ(L18,L$4:L$128,1),PointsTable,2),"") -> 42 | AM18: =IF(ISNUMBER(M18),VLOOKUP(_xlfn.RANK.EQ(M18,M$4:M$128,1),PointsTable,2),"") -> 37 | AN18: =IF(ISNUMBER(N18),VLOOKUP(_xlfn.RANK.EQ(N18,N$4:N$128,1),PointsTable,2),"") -> 40 | AO18: =IF(ISNUMBER(O18),VLOOKUP(_xlfn.RANK.EQ(O18,O$4:O$128,1),PointsTable,2),"") -> 38 | AP18: =IF(ISNUMBER(P18),VLOOKUP(_xlfn.RANK.EQ(P18,P$4:P$128,1),PointsTable,2),"") -> 47 | AQ18: =IF(ISNUMBER(Q18),VLOOKUP(_xlfn.RANK.EQ(Q18,Q$4:Q$128,1),PointsTable,2),"") -> 50 | AR18: =IF(ISNUMBER(R18),VLOOKUP(_xlfn.RANK.EQ(R18,R$4:R$128,1),PointsTable,2),"") -> 50 | AS18: =IF(ISNUMBER(S18),VLOOKUP(_xlfn.RANK.EQ(S18,S$4:S$128,1),PointsTable,2),"") -> 39 | AT18: =IF(ISNUMBER(T18),VLOOKUP(_xlfn.RANK.EQ(T18,T$4:T$128,1),PointsTable,2),"") -> 44 | AU18: =IF(ISNUMBER(U18),VLOOKUP(_xlfn.RANK.EQ(U18,U$4:U$128,1),PointsTable,2),"") ->  | AV18: =IF(ISNUMBER(V18),VLOOKUP(_xlfn.RANK.EQ(V18,V$4:V$128,1),PointsTable,2),"") ->  | AW18: =IF(ISNUMBER(W18),VLOOKUP(_xlfn.RANK.EQ(W18,W$4:W$128,1),PointsTable,2),"") -> 47 | AX18: =IF(ISNUMBER(X18),VLOOKUP(_xlfn.RANK.EQ(X18,X$4:X$128,1),PointsTable,2),"") -> 50 | AY18: =IF(ISNUMBER(Y18),VLOOKUP(_xlfn.RANK.EQ(Y18,Y$4:Y$128,1),PointsTable,2),"") -> 48 | AZ18: =IF(ISNUMBER(Z18),VLOOKUP(_xlfn.RANK.EQ(Z18,Z$4:Z$128,1),PointsTable,2),"") -> 50 | BA18: =IF(ISNUMBER(AA18),VLOOKUP(_xlfn.RANK.EQ(AA18,AA$4:AA$128,1),PointsTable,2),"") -> 52 | BB18: =IF(ISNUMBER(AB18),VLOOKUP(_xlfn.RANK.EQ(AB18,AB$4:AB$128,1),PointsTable,2),"") -> 54 | BG18: =bestpoints(AG18, $AG18:$BB18, CountingRaces) -> 47 | BH18: =bestpoints(AH18, $AG18:$BB18, CountingRaces) ->  | BI18: =bestpoints(AI18, $AG18:$BB18, CountingRaces) ->  | BJ18: =bestpoints(AJ18, $AG18:$BB18, CountingRaces) ->  | BK18: =bestpoints(AK18, $AG18:$BB18, CountingRaces) -> 46 | BL18: =bestpoints(AL18, $AG18:$BB18, CountingRaces) ->  | BM18: =bestpoints(AM18, $AG18:$BB18, CountingRaces) ->  | BN18: =bestpoints(AN18, $AG18:$BB18, CountingRaces) ->  | BO18: =bestpoints(AO18, $AG18:$BB18, CountingRaces) ->  | BP18: =bestpoints(AP18, $AG18:$BB18, CountingRaces) -> 47 | BQ18: =bestpoints(AQ18, $AG18:$BB18, CountingRaces) -> 50 | BR18: =bestpoints(AR18, $AG18:$BB18, CountingRaces) -> 50 | BS18: =bestpoints(AS18, $AG18:$BB18, CountingRaces) ->  | BT18: =bestpoints(AT18, $AG18:$BB18, CountingRaces) -> 44 | BU18: =bestpoints(AU18, $AG18:$BB18, CountingRaces) ->  | BV18: =bestpoints(AV18, $AG18:$BB18, CountingRaces) ->  | BW18: =bestpoints(AW18, $AG18:$BB18, CountingRaces) -> 47 | BX18: =bestpoints(AX18, $AG18:$BB18, CountingRaces) -> 50 | BY18: =bestpoints(AY18, $AG18:$BB18, CountingRaces) -> 48 | BZ18: =bestpoints(AZ18, $AG18:$BB18, CountingRaces) -> 50 | CA18: =bestpoints(BA18, $AG18:$BB18, CountingRaces) -> 52 | CB18: =bestpoints(BB18, $AG18:$BB18, CountingRaces) -> 54
A19: =AE19/AF19 -> 47.41666667 | B19: 16 | C19: =IF(AF19 >0,RANK(AE19,AE$4:AE$128),"") -> 16 | D19: Kevin Norman | E19: V50 | F19: SDCC | G19: =IF(ISERROR(VLOOKUP($D19&$F19,'Rnd1'!$H:$I,2,FALSE)),"",VLOOKUP($D19&$F19,'Rnd1'!$H:$I,2,FALSE)) ->  | H19: =IF(ISERROR(VLOOKUP($D19&$F19,'Rnd2'!$H:$I,2,FALSE)),"",VLOOKUP($D19&$F19,'Rnd2'!$H:$I,2,FALSE)) -> 00:13:22 | I19: =IF(ISERROR(VLOOKUP($D19&$F19,'Rnd3'!$H:$I,2,FALSE)),"",VLOOKUP($D19&$F19,'Rnd3'!$H:$I,2,FALSE)) -> 00:23:06 | J19: =IF(ISERROR(VLOOKUP($D19&$F19,'Rnd4'!$H:$I,2,FALSE)),"",VLOOKUP($D19&$F19,'Rnd4'!$H:$I,2,FALSE)) -> 00:27:18 | K19: =IF(ISERROR(VLOOKUP($D19&$F19,'Rnd5'!$H:$I,2,FALSE)),"",VLOOKUP($D19&$F19,'Rnd5'!$H:$I,2,FALSE)) -> 00:26:15 | L19: =IF(ISERROR(VLOOKUP($D19&$F19,'Rnd6'!$H:$I,2,FALSE)),"",VLOOKUP($D19&$F19,'Rnd6'!$H:$I,2,FALSE)) ->  | M19: =IF(ISERROR(VLOOKUP($D19&$F19,'Rnd7'!$H:$I,2,FALSE)),"",VLOOKUP($D19&$F19,'Rnd7'!$H:$I,2,FALSE)) -> 00:25:58 | N19: =IF(ISERROR(VLOOKUP($D19&$F19,'Rnd8'!$H:$I,2,FALSE)),"",VLOOKUP($D19&$F19,'Rnd8'!$H:$I,2,FALSE)) -> 00:25:56 | O19: =IF(ISERROR(VLOOKUP($D19&$F19,'Rnd9'!$H:$I,2,FALSE)),"",VLOOKUP($D19&$F19,'Rnd9'!$H:$I,2,FALSE)) -> 00:25:23 | P19: =IF(ISERROR(VLOOKUP($D19&$F19,'Rnd10'!$H:$I,2,FALSE)),"",VLOOKUP($D19&$F19,'Rnd10'!$H:$I,2,FALSE)) -> 00:25:11 | Q19: =IF(ISERROR(VLOOKUP($D19&$F19,'Rnd11'!$H:$I,2,FALSE)),"",VLOOKUP($D19&$F19,'Rnd11'!$H:$I,2,FALSE)) -> 00:25:27 | R19: =IF(ISERROR(VLOOKUP($D19&$F19,'Rnd12'!$H:$I,2,FALSE)),"",VLOOKUP($D19&$F19,'Rnd12'!$H:$I,2,FALSE)) -> 00:25:46 | S19: =IF(ISERROR(VLOOKUP($D19&$F19,'Rnd13'!$H:$I,2,FALSE)),"",VLOOKUP($D19&$F19,'Rnd13'!$H:$I,2,FALSE)) -> 00:25:06 | T19: =IF(ISERROR(VLOOKUP($D19&$F19,'Rnd14'!$H:$I,2,FALSE)),"",VLOOKUP($D19&$F19,'Rnd14'!$H:$I,2,FALSE)) -> 00:25:43 | U19: =IF(ISERROR(VLOOKUP($D19&$F19,'Rnd15'!$H:$I,2,FALSE)),"",VLOOKUP($D19&$F19,'Rnd15'!$H:$I,2,FALSE)) -> 00:27:23 | V19: =IF(ISERROR(VLOOKUP($D19&$F19,'Rnd16'!$H:$I,2,FALSE)),"",VLOOKUP($D19&$F19,'Rnd16'!$H:$I,2,FALSE)) ->  | W19: =IF(ISERROR(VLOOKUP($D19&$F19,'Rnd17'!$H:$I,2,FALSE)),"",VLOOKUP($D19&$F19,'Rnd17'!$H:$I,2,FALSE)) -> 00:25:42 | X19: =IF(ISERROR(VLOOKUP($D19&$F19,'Rnd18'!$H:$I,2,FALSE)),"",VLOOKUP($D19&$F19,'Rnd18'!$H:$I,2,FALSE)) ->  | Y19: =IF(ISERROR(VLOOKUP($D19&$F19,'Rnd19'!$H:$I,2,FALSE)),"",VLOOKUP($D19&$F19,'Rnd19'!$H:$I,2,FALSE)) -> 00:25:36 | Z19: =IF(ISERROR(VLOOKUP($D19&$F19,'Rnd20'!$H:$I,2,FALSE)),"",VLOOKUP($D19&$F19,'Rnd20'!$H:$I,2,FALSE)) -> 00:25:58 | AA19: =IF(ISERROR(VLOOKUP($D19&$F19,'Rnd21'!$H:$I,2,FALSE)),"",VLOOKUP($D19&$F19,'Rnd21'!$H:$I,2,FALSE)) ->  | AB19: =IF(ISERROR(VLOOKUP($D19&$F19,'Rnd22'!$H:$I,2,FALSE)),"",VLOOKUP($D19&$F19,'Rnd22'!$H:$I,2,FALSE)) ->  | AC19: =SUM(AG19:BB19) -> 734 | AD19: =COUNT(AG19:BB19) -> 16 | AE19: =SUM(BG19:CB19) -> 569 | AF19: =COUNT(BG19:CB19) -> 12 | AG19: =IF(ISNUMBER(G19),VLOOKUP(_xlfn.RANK.EQ(G19,G$4:G$128,1),PointsTable,2),"") ->  | AH19: =IF(ISNUMBER(H19),VLOOKUP(_xlfn.RANK.EQ(H19,H$4:H$128,1),PointsTable,2),"") -> 48 | AI19: =IF(ISNUMBER(I19),VLOOKUP(_xlfn.RANK.EQ(I19,I$4:I$128,1),PointsTable,2),"") -> 38 | AJ19: =IF(ISNUMBER(J19),VLOOKUP(_xlfn.RANK.EQ(J19,J$4:J$128,1),PointsTable,2),"") -> 42 | AK19: =IF(ISNUMBER(K19),VLOOKUP(_xlfn.RANK.EQ(K19,K$4:K$128,1),PointsTable,2),"") -> 48 | AL19: =IF(ISNUMBER(L19),VLOOKUP(_xlfn.RANK.EQ(L19,L$4:L$128,1),PointsTable,2),"") ->  | AM19: =IF(ISNUMBER(M19),VLOOKUP(_xlfn.RANK.EQ(M19,M$4:M$128,1),PointsTable,2),"") -> 49 | AN19: =IF(ISNUMBER(N19),VLOOKUP(_xlfn.RANK.EQ(N19,N$4:N$128,1),PointsTable,2),"") -> 47 | AO19: =IF(ISNUMBER(O19),VLOOKUP(_xlfn.RANK.EQ(O19,O$4:O$128,1),PointsTable,2),"") -> 45 | AP19: =IF(ISNUMBER(P19),VLOOKUP(_xlfn.RANK.EQ(P19,P$4:P$128,1),PointsTable,2),"") -> 45 | AQ19: =IF(ISNUMBER(Q19),VLOOKUP(_xlfn.RANK.EQ(Q19,Q$4:Q$128,1),PointsTable,2),"") -> 46 | AR19: =IF(ISNUMBER(R19),VLOOKUP(_xlfn.RANK.EQ(R19,R$4:R$128,1),PointsTable,2),"") -> 52 | AS19: =IF(ISNUMBER(S19),VLOOKUP(_xlfn.RANK.EQ(S19,S$4:S$128,1),PointsTable,2),"") -> 46 | AT19: =IF(ISNUMBER(T19),VLOOKUP(_xlfn.RANK.EQ(T19,T$4:T$128,1),PointsTable,2),"") -> 40 | AU19: =IF(ISNUMBER(U19),VLOOKUP(_xlfn.RANK.EQ(U19,U$4:U$128,1),PointsTable,2),"") -> 49 | AV19: =IF(ISNUMBER(V19),VLOOKUP(_xlfn.RANK.EQ(V19,V$4:V$128,1),PointsTable,2),"") ->  | AW19: =IF(ISNUMBER(W19),VLOOKUP(_xlfn.RANK.EQ(W19,W$4:W$128,1),PointsTable,2),"") -> 45 | AX19: =IF(ISNUMBER(X19),VLOOKUP(_xlfn.RANK.EQ(X19,X$4:X$128,1),PointsTable,2),"") ->  | AY19: =IF(ISNUMBER(Y19),VLOOKUP(_xlfn.RANK.EQ(Y19,Y$4:Y$128,1),PointsTable,2),"") -> 47 | AZ19: =IF(ISNUMBER(Z19),VLOOKUP(_xlfn.RANK.EQ(Z19,Z$4:Z$128,1),PointsTable,2),"") -> 47 | BA19: =IF(ISNUMBER(AA19),VLOOKUP(_xlfn.RANK.EQ(AA19,AA$4:AA$128,1),PointsTable,2),"") ->  | BB19: =IF(ISNUMBER(AB19),VLOOKUP(_xlfn.RANK.EQ(AB19,AB$4:AB$128,1),PointsTable,2),"") ->  | BG19: =bestpoints(AG19, $AG19:$BB19, CountingRaces) ->  | BH19: =bestpoints(AH19, $AG19:$BB19, CountingRaces) -> 48 | BI19: =bestpoints(AI19, $AG19:$BB19, CountingRaces) ->  | BJ19: =bestpoints(AJ19, $AG19:$BB19, CountingRaces) ->  | BK19: =bestpoints(AK19, $AG19:$BB19, CountingRaces) -> 48 | BL19: =bestpoints(AL19, $AG19:$BB19, CountingRaces) ->  | BM19: =bestpoints(AM19, $AG19:$BB19, CountingRaces) -> 49 | BN19: =bestpoints(AN19, $AG19:$BB19, CountingRaces) -> 47 | BO19: =bestpoints(AO19, $AG19:$BB19, CountingRaces) -> 45 | BP19: =bestpoints(AP19, $AG19:$BB19, CountingRaces) -> 45 | BQ19: =bestpoints(AQ19, $AG19:$BB19, CountingRaces) -> 46 | BR19: =bestpoints(AR19, $AG19:$BB19, CountingRaces) -> 52 | BS19: =bestpoints(AS19, $AG19:$BB19, CountingRaces) -> 46 | BT19: =bestpoints(AT19, $AG19:$BB19, CountingRaces) ->  | BU19: =bestpoints(AU19, $AG19:$BB19, CountingRaces) -> 49 | BV19: =bestpoints(AV19, $AG19:$BB19, CountingRaces) ->  | BW19: =bestpoints(AW19, $AG19:$BB19, CountingRaces) ->  | BX19: =bestpoints(AX19, $AG19:$BB19, CountingRaces) ->  | BY19: =bestpoints(AY19, $AG19:$BB19, CountingRaces) -> 47 | BZ19: =bestpoints(AZ19, $AG19:$BB19, CountingRaces) -> 47 | CA19: =bestpoints(BA19, $AG19:$BB19, CountingRaces) ->  | CB19: =bestpoints(BB19, $AG19:$BB19, CountingRaces) -> 
A20: =AE20/AF20 -> 46.75 | B20: 17 | C20: =IF(AF20 >0,RANK(AE20,AE$4:AE$128),"") -> 17 | D20: Ed Bull | E20: S | F20: IBC | G20: =IF(ISERROR(VLOOKUP($D20&$F20,'Rnd1'!$H:$I,2,FALSE)),"",VLOOKUP($D20&$F20,'Rnd1'!$H:$I,2,FALSE)) -> 00:13:47 | H20: =IF(ISERROR(VLOOKUP($D20&$F20,'Rnd2'!$H:$I,2,FALSE)),"",VLOOKUP($D20&$F20,'Rnd2'!$H:$I,2,FALSE)) -> 00:13:30 | I20: =IF(ISERROR(VLOOKUP($D20&$F20,'Rnd3'!$H:$I,2,FALSE)),"",VLOOKUP($D20&$F20,'Rnd3'!$H:$I,2,FALSE)) -> 00:23:18 | J20: =IF(ISERROR(VLOOKUP($D20&$F20,'Rnd4'!$H:$I,2,FALSE)),"",VLOOKUP($D20&$F20,'Rnd4'!$H:$I,2,FALSE)) ->  | K20: =IF(ISERROR(VLOOKUP($D20&$F20,'Rnd5'!$H:$I,2,FALSE)),"",VLOOKUP($D20&$F20,'Rnd5'!$H:$I,2,FALSE)) ->  | L20: =IF(ISERROR(VLOOKUP($D20&$F20,'Rnd6'!$H:$I,2,FALSE)),"",VLOOKUP($D20&$F20,'Rnd6'!$H:$I,2,FALSE)) -> 00:27:03 | M20: =IF(ISERROR(VLOOKUP($D20&$F20,'Rnd7'!$H:$I,2,FALSE)),"",VLOOKUP($D20&$F20,'Rnd7'!$H:$I,2,FALSE)) -> 00:26:29 | N20: =IF(ISERROR(VLOOKUP($D20&$F20,'Rnd8'!$H:$I,2,FALSE)),"",VLOOKUP($D20&$F20,'Rnd8'!$H:$I,2,FALSE)) ->  | O20: =IF(ISERROR(VLOOKUP($D20&$F20,'Rnd9'!$H:$I,2,FALSE)),"",VLOOKUP($D20&$F20,'Rnd9'!$H:$I,2,FALSE)) -> 00:26:39 | P20: =IF(ISERROR(VLOOKUP($D20&$F20,'Rnd10'!$H:$I,2,FALSE)),"",VLOOKUP($D20&$F20,'Rnd10'!$H:$I,2,FALSE)) -> 00:26:12 | Q20: =IF(ISERROR(VLOOKUP($D20&$F20,'Rnd11'!$H:$I,2,FALSE)),"",VLOOKUP($D20&$F20,'Rnd11'!$H:$I,2,FALSE)) -> 00:26:11 | R20: =IF(ISERROR(VLOOKUP($D20&$F20,'Rnd12'!$H:$I,2,FALSE)),"",VLOOKUP($D20&$F20,'Rnd12'!$H:$I,2,FALSE)) ->  | S20: =IF(ISERROR(VLOOKUP($D20&$F20,'Rnd13'!$H:$I,2,FALSE)),"",VLOOKUP($D20&$F20,'Rnd13'!$H:$I,2,FALSE)) -> 00:26:26 | T20: =IF(ISERROR(VLOOKUP($D20&$F20,'Rnd14'!$H:$I,2,FALSE)),"",VLOOKUP($D20&$F20,'Rnd14'!$H:$I,2,FALSE)) -> 00:26:05 | U20: =IF(ISERROR(VLOOKUP($D20&$F20,'Rnd15'!$H:$I,2,FALSE)),"",VLOOKUP($D20&$F20,'Rnd15'!$H:$I,2,FALSE)) -> 00:26:57 | V20: =IF(ISERROR(VLOOKUP($D20&$F20,'Rnd16'!$H:$I,2,FALSE)),"",VLOOKUP($D20&$F20,'Rnd16'!$H:$I,2,FALSE)) ->  | W20: =IF(ISERROR(VLOOKUP($D20&$F20,'Rnd17'!$H:$I,2,FALSE)),"",VLOOKUP($D20&$F20,'Rnd17'!$H:$I,2,FALSE)) -> 00:26:50 | X20: =IF(ISERROR(VLOOKUP($D20&$F20,'Rnd18'!$H:$I,2,FALSE)),"",VLOOKUP($D20&$F20,'Rnd18'!$H:$I,2,FALSE)) -> 00:26:20 | Y20: =IF(ISERROR(VLOOKUP($D20&$F20,'Rnd19'!$H:$I,2,FALSE)),"",VLOOKUP($D20&$F20,'Rnd19'!$H:$I,2,FALSE)) -> 00:26:37 | Z20: =IF(ISERROR(VLOOKUP($D20&$F20,'Rnd20'!$H:$I,2,FALSE)),"",VLOOKUP($D20&$F20,'Rnd20'!$H:$I,2,FALSE)) -> 00:26:16 | AA20: =IF(ISERROR(VLOOKUP($D20&$F20,'Rnd21'!$H:$I,2,FALSE)),"",VLOOKUP($D20&$F20,'Rnd21'!$H:$I,2,FALSE)) -> 00:13:03 | AB20: =IF(ISERROR(VLOOKUP($D20&$F20,'Rnd22'!$H:$I,2,FALSE)),"",VLOOKUP($D20&$F20,'Rnd22'!$H:$I,2,FALSE)) -> 00:13:05 | AC20: =SUM(AG20:BB20) -> 747 | AD20: =COUNT(AG20:BB20) -> 17 | AE20: =SUM(BG20:CB20) -> 561 | AF20: =COUNT(BG20:CB20) -> 12 | AG20: =IF(ISNUMBER(G20),VLOOKUP(_xlfn.RANK.EQ(G20,G$4:G$128,1),PointsTable,2),"") -> 49 | AH20: =IF(ISNUMBER(H20),VLOOKUP(_xlfn.RANK.EQ(H20,H$4:H$128,1),PointsTable,2),"") -> 47 | AI20: =IF(ISNUMBER(I20),VLOOKUP(_xlfn.RANK.EQ(I20,I$4:I$128,1),PointsTable,2),"") -> 34 | AJ20: =IF(ISNUMBER(J20),VLOOKUP(_xlfn.RANK.EQ(J20,J$4:J$128,1),PointsTable,2),"") ->  | AK20: =IF(ISNUMBER(K20),VLOOKUP(_xlfn.RANK.EQ(K20,K$4:K$128,1),PointsTable,2),"") ->  | AL20: =IF(ISNUMBER(L20),VLOOKUP(_xlfn.RANK.EQ(L20,L$4:L$128,1),PointsTable,2),"") -> 39 | AM20: =IF(ISNUMBER(M20),VLOOKUP(_xlfn.RANK.EQ(M20,M$4:M$128,1),PointsTable,2),"") -> 47 | AN20: =IF(ISNUMBER(N20),VLOOKUP(_xlfn.RANK.EQ(N20,N$4:N$128,1),PointsTable,2),"") ->  | AO20: =IF(ISNUMBER(O20),VLOOKUP(_xlfn.RANK.EQ(O20,O$4:O$128,1),PointsTable,2),"") -> 37 | AP20: =IF(ISNUMBER(P20),VLOOKUP(_xlfn.RANK.EQ(P20,P$4:P$128,1),PointsTable,2),"") -> 39 | AQ20: =IF(ISNUMBER(Q20),VLOOKUP(_xlfn.RANK.EQ(Q20,Q$4:Q$128,1),PointsTable,2),"") -> 43 | AR20: =IF(ISNUMBER(R20),VLOOKUP(_xlfn.RANK.EQ(R20,R$4:R$128,1),PointsTable,2),"") ->  | AS20: =IF(ISNUMBER(S20),VLOOKUP(_xlfn.RANK.EQ(S20,S$4:S$128,1),PointsTable,2),"") -> 38 | AT20: =IF(ISNUMBER(T20),VLOOKUP(_xlfn.RANK.EQ(T20,T$4:T$128,1),PointsTable,2),"") -> 38 | AU20: =IF(ISNUMBER(U20),VLOOKUP(_xlfn.RANK.EQ(U20,U$4:U$128,1),PointsTable,2),"") -> 51 | AV20: =IF(ISNUMBER(V20),VLOOKUP(_xlfn.RANK.EQ(V20,V$4:V$128,1),PointsTable,2),"") ->  | AW20: =IF(ISNUMBER(W20),VLOOKUP(_xlfn.RANK.EQ(W20,W$4:W$128,1),PointsTable,2),"") -> 41 | AX20: =IF(ISNUMBER(X20),VLOOKUP(_xlfn.RANK.EQ(X20,X$4:X$128,1),PointsTable,2),"") -> 47 | AY20: =IF(ISNUMBER(Y20),VLOOKUP(_xlfn.RANK.EQ(Y20,Y$4:Y$128,1),PointsTable,2),"") -> 45 | AZ20: =IF(ISNUMBER(Z20),VLOOKUP(_xlfn.RANK.EQ(Z20,Z$4:Z$128,1),PointsTable,2),"") -> 46 | BA20: =IF(ISNUMBER(AA20),VLOOKUP(_xlfn.RANK.EQ(AA20,AA$4:AA$128,1),PointsTable,2),"") -> 51 | BB20: =IF(ISNUMBER(AB20),VLOOKUP(_xlfn.RANK.EQ(AB20,AB$4:AB$128,1),PointsTable,2),"") -> 55 | BG20: =bestpoints(AG20, $AG20:$BB20, CountingRaces) -> 49 | BH20: =bestpoints(AH20, $AG20:$BB20, CountingRaces) -> 47 | BI20: =bestpoints(AI20, $AG20:$BB20, CountingRaces) ->  | BJ20: =bestpoints(AJ20, $AG20:$BB20, CountingRaces) ->  | BK20: =bestpoints(AK20, $AG20:$BB20, CountingRaces) ->  | BL20: =bestpoints(AL20, $AG20:$BB20, CountingRaces) -> 39 | BM20: =bestpoints(AM20, $AG20:$BB20, CountingRaces) -> 47 | BN20: =bestpoints(AN20, $AG20:$BB20, CountingRaces) ->  | BO20: =bestpoints(AO20, $AG20:$BB20, CountingRaces) ->  | BP20: =bestpoints(AP20, $AG20:$BB20, CountingRaces) ->  | BQ20: =bestpoints(AQ20, $AG20:$BB20, CountingRaces) -> 43 | BR20: =bestpoints(AR20, $AG20:$BB20, CountingRaces) ->  | BS20: =bestpoints(AS20, $AG20:$BB20, CountingRaces) ->  | BT20: =bestpoints(AT20, $AG20:$BB20, CountingRaces) ->  | BU20: =bestpoints(AU20, $AG20:$BB20, CountingRaces) -> 51 | BV20: =bestpoints(AV20, $AG20:$BB20, CountingRaces) ->  | BW20: =bestpoints(AW20, $AG20:$BB20, CountingRaces) -> 41 | BX20: =bestpoints(AX20, $AG20:$BB20, CountingRaces) -> 47 | BY20: =bestpoints(AY20, $AG20:$BB20, CountingRaces) -> 45 | BZ20: =bestpoints(AZ20, $AG20:$BB20, CountingRaces) -> 46 | CA20: =bestpoints(BA20, $AG20:$BB20, CountingRaces) -> 51 | CB20: =bestpoints(BB20, $AG20:$BB20, CountingRaces) -> 55
A21: =AE21/AF21 -> 45.33333333 | B21: 18 | C21: =IF(AF21 >0,RANK(AE21,AE$4:AE$128),"") -> 18 | D21: Will Carlyon | E21: Juv | F21: IBC | G21: =IF(ISERROR(VLOOKUP($D21&$F21,'Rnd1'!$H:$I,2,FALSE)),"",VLOOKUP($D21&$F21,'Rnd1'!$H:$I,2,FALSE)) -> 00:14:30 | H21: =IF(ISERROR(VLOOKUP($D21&$F21,'Rnd2'!$H:$I,2,FALSE)),"",VLOOKUP($D21&$F21,'Rnd2'!$H:$I,2,FALSE)) -> 00:13:53 | I21: =IF(ISERROR(VLOOKUP($D21&$F21,'Rnd3'!$H:$I,2,FALSE)),"",VLOOKUP($D21&$F21,'Rnd3'!$H:$I,2,FALSE)) -> 00:23:16 | J21: =IF(ISERROR(VLOOKUP($D21&$F21,'Rnd4'!$H:$I,2,FALSE)),"",VLOOKUP($D21&$F21,'Rnd4'!$H:$I,2,FALSE)) -> 00:27:18 | K21: =IF(ISERROR(VLOOKUP($D21&$F21,'Rnd5'!$H:$I,2,FALSE)),"",VLOOKUP($D21&$F21,'Rnd5'!$H:$I,2,FALSE)) -> 00:27:04 | L21: =IF(ISERROR(VLOOKUP($D21&$F21,'Rnd6'!$H:$I,2,FALSE)),"",VLOOKUP($D21&$F21,'Rnd6'!$H:$I,2,FALSE)) -> 00:26:27 | M21: =IF(ISERROR(VLOOKUP($D21&$F21,'Rnd7'!$H:$I,2,FALSE)),"",VLOOKUP($D21&$F21,'Rnd7'!$H:$I,2,FALSE)) -> 00:26:32 | N21: =IF(ISERROR(VLOOKUP($D21&$F21,'Rnd8'!$H:$I,2,FALSE)),"",VLOOKUP($D21&$F21,'Rnd8'!$H:$I,2,FALSE)) -> 00:27:00 | O21: =IF(ISERROR(VLOOKUP($D21&$F21,'Rnd9'!$H:$I,2,FALSE)),"",VLOOKUP($D21&$F21,'Rnd9'!$H:$I,2,FALSE)) -> 00:26:28 | P21: =IF(ISERROR(VLOOKUP($D21&$F21,'Rnd10'!$H:$I,2,FALSE)),"",VLOOKUP($D21&$F21,'Rnd10'!$H:$I,2,FALSE)) -> 00:27:56 | Q21: =IF(ISERROR(VLOOKUP($D21&$F21,'Rnd11'!$H:$I,2,FALSE)),"",VLOOKUP($D21&$F21,'Rnd11'!$H:$I,2,FALSE)) -> 00:26:44 | R21: =IF(ISERROR(VLOOKUP($D21&$F21,'Rnd12'!$H:$I,2,FALSE)),"",VLOOKUP($D21&$F21,'Rnd12'!$H:$I,2,FALSE)) -> 00:25:54 | S21: =IF(ISERROR(VLOOKUP($D21&$F21,'Rnd13'!$H:$I,2,FALSE)),"",VLOOKUP($D21&$F21,'Rnd13'!$H:$I,2,FALSE)) -> 00:25:51 | T21: =IF(ISERROR(VLOOKUP($D21&$F21,'Rnd14'!$H:$I,2,FALSE)),"",VLOOKUP($D21&$F21,'Rnd14'!$H:$I,2,FALSE)) -> 00:26:34 | U21: =IF(ISERROR(VLOOKUP($D21&$F21,'Rnd15'!$H:$I,2,FALSE)),"",VLOOKUP($D21&$F21,'Rnd15'!$H:$I,2,FALSE)) ->  | V21: =IF(ISERROR(VLOOKUP($D21&$F21,'Rnd16'!$H:$I,2,FALSE)),"",VLOOKUP($D21&$F21,'Rnd16'!$H:$I,2,FALSE)) ->  | W21: =IF(ISERROR(VLOOKUP($D21&$F21,'Rnd17'!$H:$I,2,FALSE)),"",VLOOKUP($D21&$F21,'Rnd17'!$H:$I,2,FALSE)) -> 00:26:28 | X21: =IF(ISERROR(VLOOKUP($D21&$F21,'Rnd18'!$H:$I,2,FALSE)),"",VLOOKUP($D21&$F21,'Rnd18'!$H:$I,2,FALSE)) -> 00:26:19 | Y21: =IF(ISERROR(VLOOKUP($D21&$F21,'Rnd19'!$H:$I,2,FALSE)),"",VLOOKUP($D21&$F21,'Rnd19'!$H:$I,2,FALSE)) ->  | Z21: =IF(ISERROR(VLOOKUP($D21&$F21,'Rnd20'!$H:$I,2,FALSE)),"",VLOOKUP($D21&$F21,'Rnd20'!$H:$I,2,FALSE)) ->  | AA21: =IF(ISERROR(VLOOKUP($D21&$F21,'Rnd21'!$H:$I,2,FALSE)),"",VLOOKUP($D21&$F21,'Rnd21'!$H:$I,2,FALSE)) -> 00:14:05 | AB21: =IF(ISERROR(VLOOKUP($D21&$F21,'Rnd22'!$H:$I,2,FALSE)),"",VLOOKUP($D21&$F21,'Rnd22'!$H:$I,2,FALSE)) -> 00:13:35 | AC21: =SUM(AG21:BB21) -> 761 | AD21: =COUNT(AG21:BB21) -> 18 | AE21: =SUM(BG21:CB21) -> 544 | AF21: =COUNT(BG21:CB21) -> 12 | AG21: =IF(ISNUMBER(G21),VLOOKUP(_xlfn.RANK.EQ(G21,G$4:G$128,1),PointsTable,2),"") -> 44 | AH21: =IF(ISNUMBER(H21),VLOOKUP(_xlfn.RANK.EQ(H21,H$4:H$128,1),PointsTable,2),"") -> 44 | AI21: =IF(ISNUMBER(I21),VLOOKUP(_xlfn.RANK.EQ(I21,I$4:I$128,1),PointsTable,2),"") -> 35 | AJ21: =IF(ISNUMBER(J21),VLOOKUP(_xlfn.RANK.EQ(J21,J$4:J$128,1),PointsTable,2),"") -> 42 | AK21: =IF(ISNUMBER(K21),VLOOKUP(_xlfn.RANK.EQ(K21,K$4:K$128,1),PointsTable,2),"") -> 44 | AL21: =IF(ISNUMBER(L21),VLOOKUP(_xlfn.RANK.EQ(L21,L$4:L$128,1),PointsTable,2),"") -> 44 | AM21: =IF(ISNUMBER(M21),VLOOKUP(_xlfn.RANK.EQ(M21,M$4:M$128,1),PointsTable,2),"") -> 46 | AN21: =IF(ISNUMBER(N21),VLOOKUP(_xlfn.RANK.EQ(N21,N$4:N$128,1),PointsTable,2),"") -> 41 | AO21: =IF(ISNUMBER(O21),VLOOKUP(_xlfn.RANK.EQ(O21,O$4:O$128,1),PointsTable,2),"") -> 39 | AP21: =IF(ISNUMBER(P21),VLOOKUP(_xlfn.RANK.EQ(P21,P$4:P$128,1),PointsTable,2),"") -> 26 | AQ21: =IF(ISNUMBER(Q21),VLOOKUP(_xlfn.RANK.EQ(Q21,Q$4:Q$128,1),PointsTable,2),"") -> 39 | AR21: =IF(ISNUMBER(R21),VLOOKUP(_xlfn.RANK.EQ(R21,R$4:R$128,1),PointsTable,2),"") -> 51 | AS21: =IF(ISNUMBER(S21),VLOOKUP(_xlfn.RANK.EQ(S21,S$4:S$128,1),PointsTable,2),"") -> 43 | AT21: =IF(ISNUMBER(T21),VLOOKUP(_xlfn.RANK.EQ(T21,T$4:T$128,1),PointsTable,2),"") -> 37 | AU21: =IF(ISNUMBER(U21),VLOOKUP(_xlfn.RANK.EQ(U21,U$4:U$128,1),PointsTable,2),"") ->  | AV21: =IF(ISNUMBER(V21),VLOOKUP(_xlfn.RANK.EQ(V21,V$4:V$128,1),PointsTable,2),"") ->  | AW21: =IF(ISNUMBER(W21),VLOOKUP(_xlfn.RANK.EQ(W21,W$4:W$128,1),PointsTable,2),"") -> 42 | AX21: =IF(ISNUMBER(X21),VLOOKUP(_xlfn.RANK.EQ(X21,X$4:X$128,1),PointsTable,2),"") -> 48 | AY21: =IF(ISNUMBER(Y21),VLOOKUP(_xlfn.RANK.EQ(Y21,Y$4:Y$128,1),PointsTable,2),"") ->  | AZ21: =IF(ISNUMBER(Z21),VLOOKUP(_xlfn.RANK.EQ(Z21,Z$4:Z$128,1),PointsTable,2),"") ->  | BA21: =IF(ISNUMBER(AA21),VLOOKUP(_xlfn.RANK.EQ(AA21,AA$4:AA$128,1),PointsTable,2),"") -> 44 | BB21: =IF(ISNUMBER(AB21),VLOOKUP(_xlfn.RANK.EQ(AB21,AB$4:AB$128,1),PointsTable,2),"") -> 52 | BG21: =bestpoints(AG21, $AG21:$BB21, CountingRaces) -> 44 | BH21: =bestpoints(AH21, $AG21:$BB21, CountingRaces) -> 44 | BI21: =bestpoints(AI21, $AG21:$BB21, CountingRaces) ->  | BJ21: =bestpoints(AJ21, $AG21:$BB21, CountingRaces) -> 42 | BK21: =bestpoints(AK21, $AG21:$BB21, CountingRaces) -> 44 | BL21: =bestpoints(AL21, $AG21:$BB21, CountingRaces) -> 44 | BM21: =bestpoints(AM21, $AG21:$BB21, CountingRaces) -> 46 | BN21: =bestpoints(AN21, $AG21:$BB21, CountingRaces) ->  | BO21: =bestpoints(AO21, $AG21:$BB21, CountingRaces) ->  | BP21: =bestpoints(AP21, $AG21:$BB21, CountingRaces) ->  | BQ21: =bestpoints(AQ21, $AG21:$BB21, CountingRaces) ->  | BR21: =bestpoints(AR21, $AG21:$BB21, CountingRaces) -> 51 | BS21: =bestpoints(AS21, $AG21:$BB21, CountingRaces) -> 43 | BT21: =bestpoints(AT21, $AG21:$BB21, CountingRaces) ->  | BU21: =bestpoints(AU21, $AG21:$BB21, CountingRaces) ->  | BV21: =bestpoints(AV21, $AG21:$BB21, CountingRaces) ->  | BW21: =bestpoints(AW21, $AG21:$BB21, CountingRaces) -> 42 | BX21: =bestpoints(AX21, $AG21:$BB21, CountingRaces) -> 48 | BY21: =bestpoints(AY21, $AG21:$BB21, CountingRaces) ->  | BZ21: =bestpoints(AZ21, $AG21:$BB21, CountingRaces) ->  | CA21: =bestpoints(BA21, $AG21:$BB21, CountingRaces) -> 44 | CB21: =bestpoints(BB21, $AG21:$BB21, CountingRaces) -> 52
A22: =AE22/AF22 -> 43.33333333 | B22: 19 | C22: =IF(AF22 >0,RANK(AE22,AE$4:AE$128),"") -> 19 | D22: Cliff Matthews | E22: V60 | F22: Wolsey | G22: =IF(ISERROR(VLOOKUP($D22&$F22,'Rnd1'!$H:$I,2,FALSE)),"",VLOOKUP($D22&$F22,'Rnd1'!$H:$I,2,FALSE)) -> 00:14:40 | H22: =IF(ISERROR(VLOOKUP($D22&$F22,'Rnd2'!$H:$I,2,FALSE)),"",VLOOKUP($D22&$F22,'Rnd2'!$H:$I,2,FALSE)) -> 00:14:09 | I22: =IF(ISERROR(VLOOKUP($D22&$F22,'Rnd3'!$H:$I,2,FALSE)),"",VLOOKUP($D22&$F22,'Rnd3'!$H:$I,2,FALSE)) -> 00:22:39 | J22: =IF(ISERROR(VLOOKUP($D22&$F22,'Rnd4'!$H:$I,2,FALSE)),"",VLOOKUP($D22&$F22,'Rnd4'!$H:$I,2,FALSE)) -> 00:26:33 | K22: =IF(ISERROR(VLOOKUP($D22&$F22,'Rnd5'!$H:$I,2,FALSE)),"",VLOOKUP($D22&$F22,'Rnd5'!$H:$I,2,FALSE)) -> 00:25:41 | L22: =IF(ISERROR(VLOOKUP($D22&$F22,'Rnd6'!$H:$I,2,FALSE)),"",VLOOKUP($D22&$F22,'Rnd6'!$H:$I,2,FALSE)) -> 00:25:44 | M22: =IF(ISERROR(VLOOKUP($D22&$F22,'Rnd7'!$H:$I,2,FALSE)),"",VLOOKUP($D22&$F22,'Rnd7'!$H:$I,2,FALSE)) ->  | N22: =IF(ISERROR(VLOOKUP($D22&$F22,'Rnd8'!$H:$I,2,FALSE)),"",VLOOKUP($D22&$F22,'Rnd8'!$H:$I,2,FALSE)) ->  | O22: =IF(ISERROR(VLOOKUP($D22&$F22,'Rnd9'!$H:$I,2,FALSE)),"",VLOOKUP($D22&$F22,'Rnd9'!$H:$I,2,FALSE)) ->  | P22: =IF(ISERROR(VLOOKUP($D22&$F22,'Rnd10'!$H:$I,2,FALSE)),"",VLOOKUP($D22&$F22,'Rnd10'!$H:$I,2,FALSE)) -> 00:27:47 | Q22: =IF(ISERROR(VLOOKUP($D22&$F22,'Rnd11'!$H:$I,2,FALSE)),"",VLOOKUP($D22&$F22,'Rnd11'!$H:$I,2,FALSE)) -> 00:27:02 | R22: =IF(ISERROR(VLOOKUP($D22&$F22,'Rnd12'!$H:$I,2,FALSE)),"",VLOOKUP($D22&$F22,'Rnd12'!$H:$I,2,FALSE)) -> 00:26:48 | S22: =IF(ISERROR(VLOOKUP($D22&$F22,'Rnd13'!$H:$I,2,FALSE)),"",VLOOKUP($D22&$F22,'Rnd13'!$H:$I,2,FALSE)) ->  | T22: =IF(ISERROR(VLOOKUP($D22&$F22,'Rnd14'!$H:$I,2,FALSE)),"",VLOOKUP($D22&$F22,'Rnd14'!$H:$I,2,FALSE)) -> 00:26:00 | U22: =IF(ISERROR(VLOOKUP($D22&$F22,'Rnd15'!$H:$I,2,FALSE)),"",VLOOKUP($D22&$F22,'Rnd15'!$H:$I,2,FALSE)) -> 00:26:36 | V22: =IF(ISERROR(VLOOKUP($D22&$F22,'Rnd16'!$H:$I,2,FALSE)),"",VLOOKUP($D22&$F22,'Rnd16'!$H:$I,2,FALSE)) -> 00:26:02 | W22: =IF(ISERROR(VLOOKUP($D22&$F22,'Rnd17'!$H:$I,2,FALSE)),"",VLOOKUP($D22&$F22,'Rnd17'!$H:$I,2,FALSE)) ->  | X22: =IF(ISERROR(VLOOKUP($D22&$F22,'Rnd18'!$H:$I,2,FALSE)),"",VLOOKUP($D22&$F22,'Rnd18'!$H:$I,2,FALSE)) ->  | Y22: =IF(ISERROR(VLOOKUP($D22&$F22,'Rnd19'!$H:$I,2,FALSE)),"",VLOOKUP($D22&$F22,'Rnd19'!$H:$I,2,FALSE)) ->  | Z22: =IF(ISERROR(VLOOKUP($D22&$F22,'Rnd20'!$H:$I,2,FALSE)),"",VLOOKUP($D22&$F22,'Rnd20'!$H:$I,2,FALSE)) ->  | AA22: =IF(ISERROR(VLOOKUP($D22&$F22,'Rnd21'!$H:$I,2,FALSE)),"",VLOOKUP($D22&$F22,'Rnd21'!$H:$I,2,FALSE)) ->  | AB22: =IF(ISERROR(VLOOKUP($D22&$F22,'Rnd22'!$H:$I,2,FALSE)),"",VLOOKUP($D22&$F22,'Rnd22'!$H:$I,2,FALSE)) ->  | AC22: =SUM(AG22:BB22) -> 520 | AD22: =COUNT(AG22:BB22) -> 12 | AE22: =SUM(BG22:CB22) -> 520 | AF22: =COUNT(BG22:CB22) -> 12 | AG22: =IF(ISNUMBER(G22),VLOOKUP(_xlfn.RANK.EQ(G22,G$4:G$128,1),PointsTable,2),"") -> 43 | AH22: =IF(ISNUMBER(H22),VLOOKUP(_xlfn.RANK.EQ(H22,H$4:H$128,1),PointsTable,2),"") -> 39 | AI22: =IF(ISNUMBER(I22),VLOOKUP(_xlfn.RANK.EQ(I22,I$4:I$128,1),PointsTable,2),"") -> 44 | AJ22: =IF(ISNUMBER(J22),VLOOKUP(_xlfn.RANK.EQ(J22,J$4:J$128,1),PointsTable,2),"") -> 47 | AK22: =IF(ISNUMBER(K22),VLOOKUP(_xlfn.RANK.EQ(K22,K$4:K$128,1),PointsTable,2),"") -> 50 | AL22: =IF(ISNUMBER(L22),VLOOKUP(_xlfn.RANK.EQ(L22,L$4:L$128,1),PointsTable,2),"") -> 49 | AM22: =IF(ISNUMBER(M22),VLOOKUP(_xlfn.RANK.EQ(M22,M$4:M$128,1),PointsTable,2),"") ->  | AN22: =IF(ISNUMBER(N22),VLOOKUP(_xlfn.RANK.EQ(N22,N$4:N$128,1),PointsTable,2),"") ->  | AO22: =IF(ISNUMBER(O22),VLOOKUP(_xlfn.RANK.EQ(O22,O$4:O$128,1),PointsTable,2),"") ->  | AP22: =IF(ISNUMBER(P22),VLOOKUP(_xlfn.RANK.EQ(P22,P$4:P$128,1),PointsTable,2),"") -> 27 | AQ22: =IF(ISNUMBER(Q22),VLOOKUP(_xlfn.RANK.EQ(Q22,Q$4:Q$128,1),PointsTable,2),"") -> 38 | AR22: =IF(ISNUMBER(R22),VLOOKUP(_xlfn.RANK.EQ(R22,R$4:R$128,1),PointsTable,2),"") -> 46 | AS22: =IF(ISNUMBER(S22),VLOOKUP(_xlfn.RANK.EQ(S22,S$4:S$128,1),PointsTable,2),"") ->  | AT22: =IF(ISNUMBER(T22),VLOOKUP(_xlfn.RANK.EQ(T22,T$4:T$128,1),PointsTable,2),"") -> 39 | AU22: =IF(ISNUMBER(U22),VLOOKUP(_xlfn.RANK.EQ(U22,U$4:U$128,1),PointsTable,2),"") -> 52 | AV22: =IF(ISNUMBER(V22),VLOOKUP(_xlfn.RANK.EQ(V22,V$4:V$128,1),PointsTable,2),"") -> 46 | AW22: =IF(ISNUMBER(W22),VLOOKUP(_xlfn.RANK.EQ(W22,W$4:W$128,1),PointsTable,2),"") ->  | AX22: =IF(ISNUMBER(X22),VLOOKUP(_xlfn.RANK.EQ(X22,X$4:X$128,1),PointsTable,2),"") ->  | AY22: =IF(ISNUMBER(Y22),VLOOKUP(_xlfn.RANK.EQ(Y22,Y$4:Y$128,1),PointsTable,2),"") ->  | AZ22: =IF(ISNUMBER(Z22),VLOOKUP(_xlfn.RANK.EQ(Z22,Z$4:Z$128,1),PointsTable,2),"") ->  | BA22: =IF(ISNUMBER(AA22),VLOOKUP(_xlfn.RANK.EQ(AA22,AA$4:AA$128,1),PointsTable,2),"") ->  | BB22: =IF(ISNUMBER(AB22),VLOOKUP(_xlfn.RANK.EQ(AB22,AB$4:AB$128,1),PointsTable,2),"") ->  | BG22: =bestpoints(AG22, $AG22:$BB22, CountingRaces) -> 43 | BH22: =bestpoints(AH22, $AG22:$BB22, CountingRaces) -> 39 | BI22: =bestpoints(AI22, $AG22:$BB22, CountingRaces) -> 44 | BJ22: =bestpoints(AJ22, $AG22:$BB22, CountingRaces) -> 47 | BK22: =bestpoints(AK22, $AG22:$BB22, CountingRaces) -> 50 | BL22: =bestpoints(AL22, $AG22:$BB22, CountingRaces) -> 49 | BM22: =bestpoints(AM22, $AG22:$BB22, CountingRaces) ->  | BN22: =bestpoints(AN22, $AG22:$BB22, CountingRaces) ->  | BO22: =bestpoints(AO22, $AG22:$BB22, CountingRaces) ->  | BP22: =bestpoints(AP22, $AG22:$BB22, CountingRaces) -> 27 | BQ22: =bestpoints(AQ22, $AG22:$BB22, CountingRaces) -> 38 | BR22: =bestpoints(AR22, $AG22:$BB22, CountingRaces) -> 46 | BS22: =bestpoints(AS22, $AG22:$BB22, CountingRaces) ->  | BT22: =bestpoints(AT22, $AG22:$BB22, CountingRaces) -> 39 | BU22: =bestpoints(AU22, $AG22:$BB22, CountingRaces) -> 52 | BV22: =bestpoints(AV22, $AG22:$BB22, CountingRaces) -> 46 | BW22: =bestpoints(AW22, $AG22:$BB22, CountingRaces) ->  | BX22: =bestpoints(AX22, $AG22:$BB22, CountingRaces) ->  | BY22: =bestpoints(AY22, $AG22:$BB22, CountingRaces) ->  | BZ22: =bestpoints(AZ22, $AG22:$BB22, CountingRaces) ->  | CA22: =bestpoints(BA22, $AG22:$BB22, CountingRaces) ->  | CB22: =bestpoints(BB22, $AG22:$BB22, CountingRaces) -> 
A23: =AE23/AF23 -> 43.08333333 | B23: 20 | C23: =IF(AF23 >0,RANK(AE23,AE$4:AE$128),"") -> 20 | D23: Jon Carlyon | E23: V40 | F23: IBC | G23: =IF(ISERROR(VLOOKUP($D23&$F23,'Rnd1'!$H:$I,2,FALSE)),"",VLOOKUP($D23&$F23,'Rnd1'!$H:$I,2,FALSE)) ->  | H23: =IF(ISERROR(VLOOKUP($D23&$F23,'Rnd2'!$H:$I,2,FALSE)),"",VLOOKUP($D23&$F23,'Rnd2'!$H:$I,2,FALSE)) ->  | I23: =IF(ISERROR(VLOOKUP($D23&$F23,'Rnd3'!$H:$I,2,FALSE)),"",VLOOKUP($D23&$F23,'Rnd3'!$H:$I,2,FALSE)) ->  | J23: =IF(ISERROR(VLOOKUP($D23&$F23,'Rnd4'!$H:$I,2,FALSE)),"",VLOOKUP($D23&$F23,'Rnd4'!$H:$I,2,FALSE)) -> 00:27:51 | K23: =IF(ISERROR(VLOOKUP($D23&$F23,'Rnd5'!$H:$I,2,FALSE)),"",VLOOKUP($D23&$F23,'Rnd5'!$H:$I,2,FALSE)) -> 00:27:11 | L23: =IF(ISERROR(VLOOKUP($D23&$F23,'Rnd6'!$H:$I,2,FALSE)),"",VLOOKUP($D23&$F23,'Rnd6'!$H:$I,2,FALSE)) -> 00:26:31 | M23: =IF(ISERROR(VLOOKUP($D23&$F23,'Rnd7'!$H:$I,2,FALSE)),"",VLOOKUP($D23&$F23,'Rnd7'!$H:$I,2,FALSE)) -> 00:26:51 | N23: =IF(ISERROR(VLOOKUP($D23&$F23,'Rnd8'!$H:$I,2,FALSE)),"",VLOOKUP($D23&$F23,'Rnd8'!$H:$I,2,FALSE)) -> 00:27:30 | O23: =IF(ISERROR(VLOOKUP($D23&$F23,'Rnd9'!$H:$I,2,FALSE)),"",VLOOKUP($D23&$F23,'Rnd9'!$H:$I,2,FALSE)) -> 00:25:57 | P23: =IF(ISERROR(VLOOKUP($D23&$F23,'Rnd10'!$H:$I,2,FALSE)),"",VLOOKUP($D23&$F23,'Rnd10'!$H:$I,2,FALSE)) -> 00:25:53 | Q23: =IF(ISERROR(VLOOKUP($D23&$F23,'Rnd11'!$H:$I,2,FALSE)),"",VLOOKUP($D23&$F23,'Rnd11'!$H:$I,2,FALSE)) -> 00:25:51 | R23: =IF(ISERROR(VLOOKUP($D23&$F23,'Rnd12'!$H:$I,2,FALSE)),"",VLOOKUP($D23&$F23,'Rnd12'!$H:$I,2,FALSE)) ->  | S23: =IF(ISERROR(VLOOKUP($D23&$F23,'Rnd13'!$H:$I,2,FALSE)),"",VLOOKUP($D23&$F23,'Rnd13'!$H:$I,2,FALSE)) -> 00:25:20 | T23: =IF(ISERROR(VLOOKUP($D23&$F23,'Rnd14'!$H:$I,2,FALSE)),"",VLOOKUP($D23&$F23,'Rnd14'!$H:$I,2,FALSE)) -> 00:24:55 | U23: =IF(ISERROR(VLOOKUP($D23&$F23,'Rnd15'!$H:$I,2,FALSE)),"",VLOOKUP($D23&$F23,'Rnd15'!$H:$I,2,FALSE)) ->  | V23: =IF(ISERROR(VLOOKUP($D23&$F23,'Rnd16'!$H:$I,2,FALSE)),"",VLOOKUP($D23&$F23,'Rnd16'!$H:$I,2,FALSE)) ->  | W23: =IF(ISERROR(VLOOKUP($D23&$F23,'Rnd17'!$H:$I,2,FALSE)),"",VLOOKUP($D23&$F23,'Rnd17'!$H:$I,2,FALSE)) ->  | X23: =IF(ISERROR(VLOOKUP($D23&$F23,'Rnd18'!$H:$I,2,FALSE)),"",VLOOKUP($D23&$F23,'Rnd18'!$H:$I,2,FALSE)) -> 00:26:45 | Y23: =IF(ISERROR(VLOOKUP($D23&$F23,'Rnd19'!$H:$I,2,FALSE)),"",VLOOKUP($D23&$F23,'Rnd19'!$H:$I,2,FALSE)) ->  | Z23: =IF(ISERROR(VLOOKUP($D23&$F23,'Rnd20'!$H:$I,2,FALSE)),"",VLOOKUP($D23&$F23,'Rnd20'!$H:$I,2,FALSE)) ->  | AA23: =IF(ISERROR(VLOOKUP($D23&$F23,'Rnd21'!$H:$I,2,FALSE)),"",VLOOKUP($D23&$F23,'Rnd21'!$H:$I,2,FALSE)) -> 00:13:20 | AB23: =IF(ISERROR(VLOOKUP($D23&$F23,'Rnd22'!$H:$I,2,FALSE)),"",VLOOKUP($D23&$F23,'Rnd22'!$H:$I,2,FALSE)) ->  | AC23: =SUM(AG23:BB23) -> 517 | AD23: =COUNT(AG23:BB23) -> 12 | AE23: =SUM(BG23:CB23) -> 517 | AF23: =COUNT(BG23:CB23) -> 12 | AG23: =IF(ISNUMBER(G23),VLOOKUP(_xlfn.RANK.EQ(G23,G$4:G$128,1),PointsTable,2),"") ->  | AH23: =IF(ISNUMBER(H23),VLOOKUP(_xlfn.RANK.EQ(H23,H$4:H$128,1),PointsTable,2),"") ->  | AI23: =IF(ISNUMBER(I23),VLOOKUP(_xlfn.RANK.EQ(I23,I$4:I$128,1),PointsTable,2),"") ->  | AJ23: =IF(ISNUMBER(J23),VLOOKUP(_xlfn.RANK.EQ(J23,J$4:J$128,1),PointsTable,2),"") -> 40 | AK23: =IF(ISNUMBER(K23),VLOOKUP(_xlfn.RANK.EQ(K23,K$4:K$128,1),PointsTable,2),"") -> 43 | AL23: =IF(ISNUMBER(L23),VLOOKUP(_xlfn.RANK.EQ(L23,L$4:L$128,1),PointsTable,2),"") -> 43 | AM23: =IF(ISNUMBER(M23),VLOOKUP(_xlfn.RANK.EQ(M23,M$4:M$128,1),PointsTable,2),"") -> 43 | AN23: =IF(ISNUMBER(N23),VLOOKUP(_xlfn.RANK.EQ(N23,N$4:N$128,1),PointsTable,2),"") -> 38 | AO23: =IF(ISNUMBER(O23),VLOOKUP(_xlfn.RANK.EQ(O23,O$4:O$128,1),PointsTable,2),"") -> 42 | AP23: =IF(ISNUMBER(P23),VLOOKUP(_xlfn.RANK.EQ(P23,P$4:P$128,1),PointsTable,2),"") -> 43 | AQ23: =IF(ISNUMBER(Q23),VLOOKUP(_xlfn.RANK.EQ(Q23,Q$4:Q$128,1),PointsTable,2),"") -> 45 | AR23: =IF(ISNUMBER(R23),VLOOKUP(_xlfn.RANK.EQ(R23,R$4:R$128,1),PointsTable,2),"") ->  | AS23: =IF(ISNUMBER(S23),VLOOKUP(_xlfn.RANK.EQ(S23,S$4:S$128,1),PointsTable,2),"") -> 45 | AT23: =IF(ISNUMBER(T23),VLOOKUP(_xlfn.RANK.EQ(T23,T$4:T$128,1),PointsTable,2),"") -> 43 | AU23: =IF(ISNUMBER(U23),VLOOKUP(_xlfn.RANK.EQ(U23,U$4:U$128,1),PointsTable,2),"") ->  | AV23: =IF(ISNUMBER(V23),VLOOKUP(_xlfn.RANK.EQ(V23,V$4:V$128,1),PointsTable,2),"") ->  | AW23: =IF(ISNUMBER(W23),VLOOKUP(_xlfn.RANK.EQ(W23,W$4:W$128,1),PointsTable,2),"") ->  | AX23: =IF(ISNUMBER(X23),VLOOKUP(_xlfn.RANK.EQ(X23,X$4:X$128,1),PointsTable,2),"") -> 44 | AY23: =IF(ISNUMBER(Y23),VLOOKUP(_xlfn.RANK.EQ(Y23,Y$4:Y$128,1),PointsTable,2),"") ->  | AZ23: =IF(ISNUMBER(Z23),VLOOKUP(_xlfn.RANK.EQ(Z23,Z$4:Z$128,1),PointsTable,2),"") ->  | BA23: =IF(ISNUMBER(AA23),VLOOKUP(_xlfn.RANK.EQ(AA23,AA$4:AA$128,1),PointsTable,2),"") -> 48 | BB23: =IF(ISNUMBER(AB23),VLOOKUP(_xlfn.RANK.EQ(AB23,AB$4:AB$128,1),PointsTable,2),"") ->  | BG23: =bestpoints(AG23, $AG23:$BB23, CountingRaces) ->  | BH23: =bestpoints(AH23, $AG23:$BB23, CountingRaces) ->  | BI23: =bestpoints(AI23, $AG23:$BB23, CountingRaces) ->  | BJ23: =bestpoints(AJ23, $AG23:$BB23, CountingRaces) -> 40 | BK23: =bestpoints(AK23, $AG23:$BB23, CountingRaces) -> 43 | BL23: =bestpoints(AL23, $AG23:$BB23, CountingRaces) -> 43 | BM23: =bestpoints(AM23, $AG23:$BB23, CountingRaces) -> 43 | BN23: =bestpoints(AN23, $AG23:$BB23, CountingRaces) -> 38 | BO23: =bestpoints(AO23, $AG23:$BB23, CountingRaces) -> 42 | BP23: =bestpoints(AP23, $AG23:$BB23, CountingRaces) -> 43 | BQ23: =bestpoints(AQ23, $AG23:$BB23, CountingRaces) -> 45 | BR23: =bestpoints(AR23, $AG23:$BB23, CountingRaces) ->  | BS23: =bestpoints(AS23, $AG23:$BB23, CountingRaces) -> 45 | BT23: =bestpoints(AT23, $AG23:$BB23, CountingRaces) -> 43 | BU23: =bestpoints(AU23, $AG23:$BB23, CountingRaces) ->  | BV23: =bestpoints(AV23, $AG23:$BB23, CountingRaces) ->  | BW23: =bestpoints(AW23, $AG23:$BB23, CountingRaces) ->  | BX23: =bestpoints(AX23, $AG23:$BB23, CountingRaces) -> 44 | BY23: =bestpoints(AY23, $AG23:$BB23, CountingRaces) ->  | BZ23: =bestpoints(AZ23, $AG23:$BB23, CountingRaces) ->  | CA23: =bestpoints(BA23, $AG23:$BB23, CountingRaces) -> 48 | CB23: =bestpoints(BB23, $AG23:$BB23, CountingRaces) -> 
A24: =AE24/AF24 -> 39.58333333 | B24: 24 | C24: =IF(AF24 >0,RANK(AE24,AE$4:AE$128),"") -> 21 | D24: Joseph Shaw | E24: S | F24: IBC | G24: =IF(ISERROR(VLOOKUP($D24&$F24,'Rnd1'!$H:$I,2,FALSE)),"",VLOOKUP($D24&$F24,'Rnd1'!$H:$I,2,FALSE)) -> 00:15:31 | H24: =IF(ISERROR(VLOOKUP($D24&$F24,'Rnd2'!$H:$I,2,FALSE)),"",VLOOKUP($D24&$F24,'Rnd2'!$H:$I,2,FALSE)) -> 00:14:55 | I24: =IF(ISERROR(VLOOKUP($D24&$F24,'Rnd3'!$H:$I,2,FALSE)),"",VLOOKUP($D24&$F24,'Rnd3'!$H:$I,2,FALSE)) -> 00:25:42 | J24: =IF(ISERROR(VLOOKUP($D24&$F24,'Rnd4'!$H:$I,2,FALSE)),"",VLOOKUP($D24&$F24,'Rnd4'!$H:$I,2,FALSE)) -> 00:29:33 | K24: =IF(ISERROR(VLOOKUP($D24&$F24,'Rnd5'!$H:$I,2,FALSE)),"",VLOOKUP($D24&$F24,'Rnd5'!$H:$I,2,FALSE)) -> DNF | L24: =IF(ISERROR(VLOOKUP($D24&$F24,'Rnd6'!$H:$I,2,FALSE)),"",VLOOKUP($D24&$F24,'Rnd6'!$H:$I,2,FALSE)) ->  | M24: =IF(ISERROR(VLOOKUP($D24&$F24,'Rnd7'!$H:$I,2,FALSE)),"",VLOOKUP($D24&$F24,'Rnd7'!$H:$I,2,FALSE)) ->  | N24: =IF(ISERROR(VLOOKUP($D24&$F24,'Rnd8'!$H:$I,2,FALSE)),"",VLOOKUP($D24&$F24,'Rnd8'!$H:$I,2,FALSE)) -> 00:29:17 | O24: =IF(ISERROR(VLOOKUP($D24&$F24,'Rnd9'!$H:$I,2,FALSE)),"",VLOOKUP($D24&$F24,'Rnd9'!$H:$I,2,FALSE)) -> 00:28:13 | P24: =IF(ISERROR(VLOOKUP($D24&$F24,'Rnd10'!$H:$I,2,FALSE)),"",VLOOKUP($D24&$F24,'Rnd10'!$H:$I,2,FALSE)) -> 00:28:13 | Q24: =IF(ISERROR(VLOOKUP($D24&$F24,'Rnd11'!$H:$I,2,FALSE)),"",VLOOKUP($D24&$F24,'Rnd11'!$H:$I,2,FALSE)) -> 00:27:37 | R24: =IF(ISERROR(VLOOKUP($D24&$F24,'Rnd12'!$H:$I,2,FALSE)),"",VLOOKUP($D24&$F24,'Rnd12'!$H:$I,2,FALSE)) ->  | S24: =IF(ISERROR(VLOOKUP($D24&$F24,'Rnd13'!$H:$I,2,FALSE)),"",VLOOKUP($D24&$F24,'Rnd13'!$H:$I,2,FALSE)) -> 00:27:51 | T24: =IF(ISERROR(VLOOKUP($D24&$F24,'Rnd14'!$H:$I,2,FALSE)),"",VLOOKUP($D24&$F24,'Rnd14'!$H:$I,2,FALSE)) ->  | U24: =IF(ISERROR(VLOOKUP($D24&$F24,'Rnd15'!$H:$I,2,FALSE)),"",VLOOKUP($D24&$F24,'Rnd15'!$H:$I,2,FALSE)) ->  | V24: =IF(ISERROR(VLOOKUP($D24&$F24,'Rnd16'!$H:$I,2,FALSE)),"",VLOOKUP($D24&$F24,'Rnd16'!$H:$I,2,FALSE)) -> 00:27:46 | W24: =IF(ISERROR(VLOOKUP($D24&$F24,'Rnd17'!$H:$I,2,FALSE)),"",VLOOKUP($D24&$F24,'Rnd17'!$H:$I,2,FALSE)) -> 00:27:37 | X24: =IF(ISERROR(VLOOKUP($D24&$F24,'Rnd18'!$H:$I,2,FALSE)),"",VLOOKUP($D24&$F24,'Rnd18'!$H:$I,2,FALSE)) -> 00:28:20 | Y24: =IF(ISERROR(VLOOKUP($D24&$F24,'Rnd19'!$H:$I,2,FALSE)),"",VLOOKUP($D24&$F24,'Rnd19'!$H:$I,2,FALSE)) -> 00:27:05 | Z24: =IF(ISERROR(VLOOKUP($D24&$F24,'Rnd20'!$H:$I,2,FALSE)),"",VLOOKUP($D24&$F24,'Rnd20'!$H:$I,2,FALSE)) -> 00:26:55 | AA24: =IF(ISERROR(VLOOKUP($D24&$F24,'Rnd21'!$H:$I,2,FALSE)),"",VLOOKUP($D24&$F24,'Rnd21'!$H:$I,2,FALSE)) -> 00:13:15 | AB24: =IF(ISERROR(VLOOKUP($D24&$F24,'Rnd22'!$H:$I,2,FALSE)),"",VLOOKUP($D24&$F24,'Rnd22'!$H:$I,2,FALSE)) -> 00:13:12 | AC24: =SUM(AG24:BB24) -> 584 | AD24: =COUNT(AG24:BB24) -> 16 | AE24: =SUM(BG24:CB24) -> 475 | AF24: =COUNT(BG24:CB24) -> 12 | AG24: =IF(ISNUMBER(G24),VLOOKUP(_xlfn.RANK.EQ(G24,G$4:G$128,1),PointsTable,2),"") -> 36 | AH24: =IF(ISNUMBER(H24),VLOOKUP(_xlfn.RANK.EQ(H24,H$4:H$128,1),PointsTable,2),"") -> 30 | AI24: =IF(ISNUMBER(I24),VLOOKUP(_xlfn.RANK.EQ(I24,I$4:I$128,1),PointsTable,2),"") -> 24 | AJ24: =IF(ISNUMBER(J24),VLOOKUP(_xlfn.RANK.EQ(J24,J$4:J$128,1),PointsTable,2),"") -> 36 | AK24: =IF(ISNUMBER(K24),VLOOKUP(_xlfn.RANK.EQ(K24,K$4:K$128,1),PointsTable,2),"") ->  | AL24: =IF(ISNUMBER(L24),VLOOKUP(_xlfn.RANK.EQ(L24,L$4:L$128,1),PointsTable,2),"") ->  | AM24: =IF(ISNUMBER(M24),VLOOKUP(_xlfn.RANK.EQ(M24,M$4:M$128,1),PointsTable,2),"") ->  | AN24: =IF(ISNUMBER(N24),VLOOKUP(_xlfn.RANK.EQ(N24,N$4:N$128,1),PointsTable,2),"") -> 30 | AO24: =IF(ISNUMBER(O24),VLOOKUP(_xlfn.RANK.EQ(O24,O$4:O$128,1),PointsTable,2),"") -> 32 | AP24: =IF(ISNUMBER(P24),VLOOKUP(_xlfn.RANK.EQ(P24,P$4:P$128,1),PointsTable,2),"") -> 25 | AQ24: =IF(ISNUMBER(Q24),VLOOKUP(_xlfn.RANK.EQ(Q24,Q$4:Q$128,1),PointsTable,2),"") -> 33 | AR24: =IF(ISNUMBER(R24),VLOOKUP(_xlfn.RANK.EQ(R24,R$4:R$128,1),PointsTable,2),"") ->  | AS24: =IF(ISNUMBER(S24),VLOOKUP(_xlfn.RANK.EQ(S24,S$4:S$128,1),PointsTable,2),"") -> 32 | AT24: =IF(ISNUMBER(T24),VLOOKUP(_xlfn.RANK.EQ(T24,T$4:T$128,1),PointsTable,2),"") ->  | AU24: =IF(ISNUMBER(U24),VLOOKUP(_xlfn.RANK.EQ(U24,U$4:U$128,1),PointsTable,2),"") ->  | AV24: =IF(ISNUMBER(V24),VLOOKUP(_xlfn.RANK.EQ(V24,V$4:V$128,1),PointsTable,2),"") -> 40 | AW24: =IF(ISNUMBER(W24),VLOOKUP(_xlfn.RANK.EQ(W24,W$4:W$128,1),PointsTable,2),"") -> 39 | AX24: =IF(ISNUMBER(X24),VLOOKUP(_xlfn.RANK.EQ(X24,X$4:X$128,1),PointsTable,2),"") -> 37 | AY24: =IF(ISNUMBER(Y24),VLOOKUP(_xlfn.RANK.EQ(Y24,Y$4:Y$128,1),PointsTable,2),"") -> 43 | AZ24: =IF(ISNUMBER(Z24),VLOOKUP(_xlfn.RANK.EQ(Z24,Z$4:Z$128,1),PointsTable,2),"") -> 45 | BA24: =IF(ISNUMBER(AA24),VLOOKUP(_xlfn.RANK.EQ(AA24,AA$4:AA$128,1),PointsTable,2),"") -> 49 | BB24: =IF(ISNUMBER(AB24),VLOOKUP(_xlfn.RANK.EQ(AB24,AB$4:AB$128,1),PointsTable,2),"") -> 53 | BG24: =bestpoints(AG24, $AG24:$BB24, CountingRaces) -> 36 | BH24: =bestpoints(AH24, $AG24:$BB24, CountingRaces) ->  | BI24: =bestpoints(AI24, $AG24:$BB24, CountingRaces) ->  | BJ24: =bestpoints(AJ24, $AG24:$BB24, CountingRaces) -> 36 | BK24: =bestpoints(AK24, $AG24:$BB24, CountingRaces) ->  | BL24: =bestpoints(AL24, $AG24:$BB24, CountingRaces) ->  | BM24: =bestpoints(AM24, $AG24:$BB24, CountingRaces) ->  | BN24: =bestpoints(AN24, $AG24:$BB24, CountingRaces) ->  | BO24: =bestpoints(AO24, $AG24:$BB24, CountingRaces) -> 32 | BP24: =bestpoints(AP24, $AG24:$BB24, CountingRaces) ->  | BQ24: =bestpoints(AQ24, $AG24:$BB24, CountingRaces) -> 33 | BR24: =bestpoints(AR24, $AG24:$BB24, CountingRaces) ->  | BS24: =bestpoints(AS24, $AG24:$BB24, CountingRaces) -> 32 | BT24: =bestpoints(AT24, $AG24:$BB24, CountingRaces) ->  | BU24: =bestpoints(AU24, $AG24:$BB24, CountingRaces) ->  | BV24: =bestpoints(AV24, $AG24:$BB24, CountingRaces) -> 40 | BW24: =bestpoints(AW24, $AG24:$BB24, CountingRaces) -> 39 | BX24: =bestpoints(AX24, $AG24:$BB24, CountingRaces) -> 37 | BY24: =bestpoints(AY24, $AG24:$BB24, CountingRaces) -> 43 | BZ24: =bestpoints(AZ24, $AG24:$BB24, CountingRaces) -> 45 | CA24: =bestpoints(BA24, $AG24:$BB24, CountingRaces) -> 49 | CB24: =bestpoints(BB24, $AG24:$BB24, CountingRaces) -> 53
A25: =AE25/AF25 -> 38.58333333 | B25: 21 | C25: =IF(AF25 >0,RANK(AE25,AE$4:AE$128),"") -> 22 | D25: Karl Osborn | E25: S | F25: SDCC | G25: =IF(ISERROR(VLOOKUP($D25&$F25,'Rnd1'!$H:$I,2,FALSE)),"",VLOOKUP($D25&$F25,'Rnd1'!$H:$I,2,FALSE)) ->  | H25: =IF(ISERROR(VLOOKUP($D25&$F25,'Rnd2'!$H:$I,2,FALSE)),"",VLOOKUP($D25&$F25,'Rnd2'!$H:$I,2,FALSE)) -> 00:14:22 | I25: =IF(ISERROR(VLOOKUP($D25&$F25,'Rnd3'!$H:$I,2,FALSE)),"",VLOOKUP($D25&$F25,'Rnd3'!$H:$I,2,FALSE)) -> 00:23:50 | J25: =IF(ISERROR(VLOOKUP($D25&$F25,'Rnd4'!$H:$I,2,FALSE)),"",VLOOKUP($D25&$F25,'Rnd4'!$H:$I,2,FALSE)) ->  | K25: =IF(ISERROR(VLOOKUP($D25&$F25,'Rnd5'!$H:$I,2,FALSE)),"",VLOOKUP($D25&$F25,'Rnd5'!$H:$I,2,FALSE)) -> 00:28:07 | L25: =IF(ISERROR(VLOOKUP($D25&$F25,'Rnd6'!$H:$I,2,FALSE)),"",VLOOKUP($D25&$F25,'Rnd6'!$H:$I,2,FALSE)) -> 00:27:22 | M25: =IF(ISERROR(VLOOKUP($D25&$F25,'Rnd7'!$H:$I,2,FALSE)),"",VLOOKUP($D25&$F25,'Rnd7'!$H:$I,2,FALSE)) -> 00:27:28 | N25: =IF(ISERROR(VLOOKUP($D25&$F25,'Rnd8'!$H:$I,2,FALSE)),"",VLOOKUP($D25&$F25,'Rnd8'!$H:$I,2,FALSE)) -> 00:28:54 | O25: =IF(ISERROR(VLOOKUP($D25&$F25,'Rnd9'!$H:$I,2,FALSE)),"",VLOOKUP($D25&$F25,'Rnd9'!$H:$I,2,FALSE)) ->  | P25: =IF(ISERROR(VLOOKUP($D25&$F25,'Rnd10'!$H:$I,2,FALSE)),"",VLOOKUP($D25&$F25,'Rnd10'!$H:$I,2,FALSE)) -> 00:27:15 | Q25: =IF(ISERROR(VLOOKUP($D25&$F25,'Rnd11'!$H:$I,2,FALSE)),"",VLOOKUP($D25&$F25,'Rnd11'!$H:$I,2,FALSE)) -> 00:27:21 | R25: =IF(ISERROR(VLOOKUP($D25&$F25,'Rnd12'!$H:$I,2,FALSE)),"",VLOOKUP($D25&$F25,'Rnd12'!$H:$I,2,FALSE)) -> 00:27:00 | S25: =IF(ISERROR(VLOOKUP($D25&$F25,'Rnd13'!$H:$I,2,FALSE)),"",VLOOKUP($D25&$F25,'Rnd13'!$H:$I,2,FALSE)) -> 00:27:09 | T25: =IF(ISERROR(VLOOKUP($D25&$F25,'Rnd14'!$H:$I,2,FALSE)),"",VLOOKUP($D25&$F25,'Rnd14'!$H:$I,2,FALSE)) ->  | U25: =IF(ISERROR(VLOOKUP($D25&$F25,'Rnd15'!$H:$I,2,FALSE)),"",VLOOKUP($D25&$F25,'Rnd15'!$H:$I,2,FALSE)) -> 00:27:16 | V25: =IF(ISERROR(VLOOKUP($D25&$F25,'Rnd16'!$H:$I,2,FALSE)),"",VLOOKUP($D25&$F25,'Rnd16'!$H:$I,2,FALSE)) -> 00:26:58 | W25: =IF(ISERROR(VLOOKUP($D25&$F25,'Rnd17'!$H:$I,2,FALSE)),"",VLOOKUP($D25&$F25,'Rnd17'!$H:$I,2,FALSE)) ->  | X25: =IF(ISERROR(VLOOKUP($D25&$F25,'Rnd18'!$H:$I,2,FALSE)),"",VLOOKUP($D25&$F25,'Rnd18'!$H:$I,2,FALSE)) ->  | Y25: =IF(ISERROR(VLOOKUP($D25&$F25,'Rnd19'!$H:$I,2,FALSE)),"",VLOOKUP($D25&$F25,'Rnd19'!$H:$I,2,FALSE)) ->  | Z25: =IF(ISERROR(VLOOKUP($D25&$F25,'Rnd20'!$H:$I,2,FALSE)),"",VLOOKUP($D25&$F25,'Rnd20'!$H:$I,2,FALSE)) ->  | AA25: =IF(ISERROR(VLOOKUP($D25&$F25,'Rnd21'!$H:$I,2,FALSE)),"",VLOOKUP($D25&$F25,'Rnd21'!$H:$I,2,FALSE)) ->  | AB25: =IF(ISERROR(VLOOKUP($D25&$F25,'Rnd22'!$H:$I,2,FALSE)),"",VLOOKUP($D25&$F25,'Rnd22'!$H:$I,2,FALSE)) ->  | AC25: =SUM(AG25:BB25) -> 463 | AD25: =COUNT(AG25:BB25) -> 12 | AE25: =SUM(BG25:CB25) -> 463 | AF25: =COUNT(BG25:CB25) -> 12 | AG25: =IF(ISNUMBER(G25),VLOOKUP(_xlfn.RANK.EQ(G25,G$4:G$128,1),PointsTable,2),"") ->  | AH25: =IF(ISNUMBER(H25),VLOOKUP(_xlfn.RANK.EQ(H25,H$4:H$128,1),PointsTable,2),"") -> 37 | AI25: =IF(ISNUMBER(I25),VLOOKUP(_xlfn.RANK.EQ(I25,I$4:I$128,1),PointsTable,2),"") -> 32 | AJ25: =IF(ISNUMBER(J25),VLOOKUP(_xlfn.RANK.EQ(J25,J$4:J$128,1),PointsTable,2),"") ->  | AK25: =IF(ISNUMBER(K25),VLOOKUP(_xlfn.RANK.EQ(K25,K$4:K$128,1),PointsTable,2),"") -> 40 | AL25: =IF(ISNUMBER(L25),VLOOKUP(_xlfn.RANK.EQ(L25,L$4:L$128,1),PointsTable,2),"") -> 36 | AM25: =IF(ISNUMBER(M25),VLOOKUP(_xlfn.RANK.EQ(M25,M$4:M$128,1),PointsTable,2),"") -> 41 | AN25: =IF(ISNUMBER(N25),VLOOKUP(_xlfn.RANK.EQ(N25,N$4:N$128,1),PointsTable,2),"") -> 33 | AO25: =IF(ISNUMBER(O25),VLOOKUP(_xlfn.RANK.EQ(O25,O$4:O$128,1),PointsTable,2),"") ->  | AP25: =IF(ISNUMBER(P25),VLOOKUP(_xlfn.RANK.EQ(P25,P$4:P$128,1),PointsTable,2),"") -> 32 | AQ25: =IF(ISNUMBER(Q25),VLOOKUP(_xlfn.RANK.EQ(Q25,Q$4:Q$128,1),PointsTable,2),"") -> 36 | AR25: =IF(ISNUMBER(R25),VLOOKUP(_xlfn.RANK.EQ(R25,R$4:R$128,1),PointsTable,2),"") -> 45 | AS25: =IF(ISNUMBER(S25),VLOOKUP(_xlfn.RANK.EQ(S25,S$4:S$128,1),PointsTable,2),"") -> 37 | AT25: =IF(ISNUMBER(T25),VLOOKUP(_xlfn.RANK.EQ(T25,T$4:T$128,1),PointsTable,2),"") ->  | AU25: =IF(ISNUMBER(U25),VLOOKUP(_xlfn.RANK.EQ(U25,U$4:U$128,1),PointsTable,2),"") -> 50 | AV25: =IF(ISNUMBER(V25),VLOOKUP(_xlfn.RANK.EQ(V25,V$4:V$128,1),PointsTable,2),"") -> 44 | AW25: =IF(ISNUMBER(W25),VLOOKUP(_xlfn.RANK.EQ(W25,W$4:W$128,1),PointsTable,2),"") ->  | AX25: =IF(ISNUMBER(X25),VLOOKUP(_xlfn.RANK.EQ(X25,X$4:X$128,1),PointsTable,2),"") ->  | AY25: =IF(ISNUMBER(Y25),VLOOKUP(_xlfn.RANK.EQ(Y25,Y$4:Y$128,1),PointsTable,2),"") ->  | AZ25: =IF(ISNUMBER(Z25),VLOOKUP(_xlfn.RANK.EQ(Z25,Z$4:Z$128,1),PointsTable,2),"") ->  | BA25: =IF(ISNUMBER(AA25),VLOOKUP(_xlfn.RANK.EQ(AA25,AA$4:AA$128,1),PointsTable,2),"") ->  | BB25: =IF(ISNUMBER(AB25),VLOOKUP(_xlfn.RANK.EQ(AB25,AB$4:AB$128,1),PointsTable,2),"") ->  | BG25: =bestpoints(AG25, $AG25:$BB25, CountingRaces) ->  | BH25: =bestpoints(AH25, $AG25:$BB25, CountingRaces) -> 37 | BI25: =bestpoints(AI25, $AG25:$BB25, CountingRaces) -> 32 | BJ25: =bestpoints(AJ25, $AG25:$BB25, CountingRaces) ->  | BK25: =bestpoints(AK25, $AG25:$BB25, CountingRaces) -> 40 | BL25: =bestpoints(AL25, $AG25:$BB25, CountingRaces) -> 36 | BM25: =bestpoints(AM25, $AG25:$BB25, CountingRaces) -> 41 | BN25: =bestpoints(AN25, $AG25:$BB25, CountingRaces) -> 33 | BO25: =bestpoints(AO25, $AG25:$BB25, CountingRaces) ->  | BP25: =bestpoints(AP25, $AG25:$BB25, CountingRaces) -> 32 | BQ25: =bestpoints(AQ25, $AG25:$BB25, CountingRaces) -> 36 | BR25: =bestpoints(AR25, $AG25:$BB25, CountingRaces) -> 45 | BS25: =bestpoints(AS25, $AG25:$BB25, CountingRaces) -> 37 | BT25: =bestpoints(AT25, $AG25:$BB25, CountingRaces) ->  | BU25: =bestpoints(AU25, $AG25:$BB25, CountingRaces) -> 50 | BV25: =bestpoints(AV25, $AG25:$BB25, CountingRaces) -> 44 | BW25: =bestpoints(AW25, $AG25:$BB25, CountingRaces) ->  | BX25: =bestpoints(AX25, $AG25:$BB25, CountingRaces) ->  | BY25: =bestpoints(AY25, $AG25:$BB25, CountingRaces) ->  | BZ25: =bestpoints(AZ25, $AG25:$BB25, CountingRaces) ->  | CA25: =bestpoints(BA25, $AG25:$BB25, CountingRaces) ->  | CB25: =bestpoints(BB25, $AG25:$BB25, CountingRaces) -> 
A26: =AE26/AF26 -> 38.08333333 | B26: 22 | C26: =IF(AF26 >0,RANK(AE26,AE$4:AE$128),"") -> 23 | D26: Jasper Barnham | E26: V50 | F26: IBC | G26: =IF(ISERROR(VLOOKUP($D26&$F26,'Rnd1'!$H:$I,2,FALSE)),"",VLOOKUP($D26&$F26,'Rnd1'!$H:$I,2,FALSE)) ->  | H26: =IF(ISERROR(VLOOKUP($D26&$F26,'Rnd2'!$H:$I,2,FALSE)),"",VLOOKUP($D26&$F26,'Rnd2'!$H:$I,2,FALSE)) -> 00:14:40 | I26: =IF(ISERROR(VLOOKUP($D26&$F26,'Rnd3'!$H:$I,2,FALSE)),"",VLOOKUP($D26&$F26,'Rnd3'!$H:$I,2,FALSE)) -> 00:24:32 | J26: =IF(ISERROR(VLOOKUP($D26&$F26,'Rnd4'!$H:$I,2,FALSE)),"",VLOOKUP($D26&$F26,'Rnd4'!$H:$I,2,FALSE)) ->  | K26: =IF(ISERROR(VLOOKUP($D26&$F26,'Rnd5'!$H:$I,2,FALSE)),"",VLOOKUP($D26&$F26,'Rnd5'!$H:$I,2,FALSE)) -> 00:29:26 | L26: =IF(ISERROR(VLOOKUP($D26&$F26,'Rnd6'!$H:$I,2,FALSE)),"",VLOOKUP($D26&$F26,'Rnd6'!$H:$I,2,FALSE)) ->  | M26: =IF(ISERROR(VLOOKUP($D26&$F26,'Rnd7'!$H:$I,2,FALSE)),"",VLOOKUP($D26&$F26,'Rnd7'!$H:$I,2,FALSE)) -> 00:28:24 | N26: =IF(ISERROR(VLOOKUP($D26&$F26,'Rnd8'!$H:$I,2,FALSE)),"",VLOOKUP($D26&$F26,'Rnd8'!$H:$I,2,FALSE)) ->  | O26: =IF(ISERROR(VLOOKUP($D26&$F26,'Rnd9'!$H:$I,2,FALSE)),"",VLOOKUP($D26&$F26,'Rnd9'!$H:$I,2,FALSE)) ->  | P26: =IF(ISERROR(VLOOKUP($D26&$F26,'Rnd10'!$H:$I,2,FALSE)),"",VLOOKUP($D26&$F26,'Rnd10'!$H:$I,2,FALSE)) -> 00:27:39 | Q26: =IF(ISERROR(VLOOKUP($D26&$F26,'Rnd11'!$H:$I,2,FALSE)),"",VLOOKUP($D26&$F26,'Rnd11'!$H:$I,2,FALSE)) ->  | R26: =IF(ISERROR(VLOOKUP($D26&$F26,'Rnd12'!$H:$I,2,FALSE)),"",VLOOKUP($D26&$F26,'Rnd12'!$H:$I,2,FALSE)) -> 00:27:15 | S26: =IF(ISERROR(VLOOKUP($D26&$F26,'Rnd13'!$H:$I,2,FALSE)),"",VLOOKUP($D26&$F26,'Rnd13'!$H:$I,2,FALSE)) -> 00:27:14 | T26: =IF(ISERROR(VLOOKUP($D26&$F26,'Rnd14'!$H:$I,2,FALSE)),"",VLOOKUP($D26&$F26,'Rnd14'!$H:$I,2,FALSE)) ->  | U26: =IF(ISERROR(VLOOKUP($D26&$F26,'Rnd15'!$H:$I,2,FALSE)),"",VLOOKUP($D26&$F26,'Rnd15'!$H:$I,2,FALSE)) -> 00:27:43 | V26: =IF(ISERROR(VLOOKUP($D26&$F26,'Rnd16'!$H:$I,2,FALSE)),"",VLOOKUP($D26&$F26,'Rnd16'!$H:$I,2,FALSE)) -> 00:27:17 | W26: =IF(ISERROR(VLOOKUP($D26&$F26,'Rnd17'!$H:$I,2,FALSE)),"",VLOOKUP($D26&$F26,'Rnd17'!$H:$I,2,FALSE)) ->  | X26: =IF(ISERROR(VLOOKUP($D26&$F26,'Rnd18'!$H:$I,2,FALSE)),"",VLOOKUP($D26&$F26,'Rnd18'!$H:$I,2,FALSE)) -> 00:27:40 | Y26: =IF(ISERROR(VLOOKUP($D26&$F26,'Rnd19'!$H:$I,2,FALSE)),"",VLOOKUP($D26&$F26,'Rnd19'!$H:$I,2,FALSE)) ->  | Z26: =IF(ISERROR(VLOOKUP($D26&$F26,'Rnd20'!$H:$I,2,FALSE)),"",VLOOKUP($D26&$F26,'Rnd20'!$H:$I,2,FALSE)) -> 00:27:46 | AA26: =IF(ISERROR(VLOOKUP($D26&$F26,'Rnd21'!$H:$I,2,FALSE)),"",VLOOKUP($D26&$F26,'Rnd21'!$H:$I,2,FALSE)) -> 00:13:45 | AB26: =IF(ISERROR(VLOOKUP($D26&$F26,'Rnd22'!$H:$I,2,FALSE)),"",VLOOKUP($D26&$F26,'Rnd22'!$H:$I,2,FALSE)) ->  | AC26: =SUM(AG26:BB26) -> 457 | AD26: =COUNT(AG26:BB26) -> 12 | AE26: =SUM(BG26:CB26) -> 457 | AF26: =COUNT(BG26:CB26) -> 12 | AG26: =IF(ISNUMBER(G26),VLOOKUP(_xlfn.RANK.EQ(G26,G$4:G$128,1),PointsTable,2),"") ->  | AH26: =IF(ISNUMBER(H26),VLOOKUP(_xlfn.RANK.EQ(H26,H$4:H$128,1),PointsTable,2),"") -> 32 | AI26: =IF(ISNUMBER(I26),VLOOKUP(_xlfn.RANK.EQ(I26,I$4:I$128,1),PointsTable,2),"") -> 27 | AJ26: =IF(ISNUMBER(J26),VLOOKUP(_xlfn.RANK.EQ(J26,J$4:J$128,1),PointsTable,2),"") ->  | AK26: =IF(ISNUMBER(K26),VLOOKUP(_xlfn.RANK.EQ(K26,K$4:K$128,1),PointsTable,2),"") -> 37 | AL26: =IF(ISNUMBER(L26),VLOOKUP(_xlfn.RANK.EQ(L26,L$4:L$128,1),PointsTable,2),"") ->  | AM26: =IF(ISNUMBER(M26),VLOOKUP(_xlfn.RANK.EQ(M26,M$4:M$128,1),PointsTable,2),"") -> 33 | AN26: =IF(ISNUMBER(N26),VLOOKUP(_xlfn.RANK.EQ(N26,N$4:N$128,1),PointsTable,2),"") ->  | AO26: =IF(ISNUMBER(O26),VLOOKUP(_xlfn.RANK.EQ(O26,O$4:O$128,1),PointsTable,2),"") ->  | AP26: =IF(ISNUMBER(P26),VLOOKUP(_xlfn.RANK.EQ(P26,P$4:P$128,1),PointsTable,2),"") -> 30 | AQ26: =IF(ISNUMBER(Q26),VLOOKUP(_xlfn.RANK.EQ(Q26,Q$4:Q$128,1),PointsTable,2),"") ->  | AR26: =IF(ISNUMBER(R26),VLOOKUP(_xlfn.RANK.EQ(R26,R$4:R$128,1),PointsTable,2),"") -> 43 | AS26: =IF(ISNUMBER(S26),VLOOKUP(_xlfn.RANK.EQ(S26,S$4:S$128,1),PointsTable,2),"") -> 34 | AT26: =IF(ISNUMBER(T26),VLOOKUP(_xlfn.RANK.EQ(T26,T$4:T$128,1),PointsTable,2),"") ->  | AU26: =IF(ISNUMBER(U26),VLOOKUP(_xlfn.RANK.EQ(U26,U$4:U$128,1),PointsTable,2),"") -> 48 | AV26: =IF(ISNUMBER(V26),VLOOKUP(_xlfn.RANK.EQ(V26,V$4:V$128,1),PointsTable,2),"") -> 43 | AW26: =IF(ISNUMBER(W26),VLOOKUP(_xlfn.RANK.EQ(W26,W$4:W$128,1),PointsTable,2),"") ->  | AX26: =IF(ISNUMBER(X26),VLOOKUP(_xlfn.RANK.EQ(X26,X$4:X$128,1),PointsTable,2),"") -> 42 | AY26: =IF(ISNUMBER(Y26),VLOOKUP(_xlfn.RANK.EQ(Y26,Y$4:Y$128,1),PointsTable,2),"") ->  | AZ26: =IF(ISNUMBER(Z26),VLOOKUP(_xlfn.RANK.EQ(Z26,Z$4:Z$128,1),PointsTable,2),"") -> 43 | BA26: =IF(ISNUMBER(AA26),VLOOKUP(_xlfn.RANK.EQ(AA26,AA$4:AA$128,1),PointsTable,2),"") -> 45 | BB26: =IF(ISNUMBER(AB26),VLOOKUP(_xlfn.RANK.EQ(AB26,AB$4:AB$128,1),PointsTable,2),"") ->  | BG26: =bestpoints(AG26, $AG26:$BB26, CountingRaces) ->  | BH26: =bestpoints(AH26, $AG26:$BB26, CountingRaces) -> 32 | BI26: =bestpoints(AI26, $AG26:$BB26, CountingRaces) -> 27 | BJ26: =bestpoints(AJ26, $AG26:$BB26, CountingRaces) ->  | BK26: =bestpoints(AK26, $AG26:$BB26, CountingRaces) -> 37 | BL26: =bestpoints(AL26, $AG26:$BB26, CountingRaces) ->  | BM26: =bestpoints(AM26, $AG26:$BB26, CountingRaces) -> 33 | BN26: =bestpoints(AN26, $AG26:$BB26, CountingRaces) ->  | BO26: =bestpoints(AO26, $AG26:$BB26, CountingRaces) ->  | BP26: =bestpoints(AP26, $AG26:$BB26, CountingRaces) -> 30 | BQ26: =bestpoints(AQ26, $AG26:$BB26, CountingRaces) ->  | BR26: =bestpoints(AR26, $AG26:$BB26, CountingRaces) -> 43 | BS26: =bestpoints(AS26, $AG26:$BB26, CountingRaces) -> 34 | BT26: =bestpoints(AT26, $AG26:$BB26, CountingRaces) ->  | BU26: =bestpoints(AU26, $AG26:$BB26, CountingRaces) -> 48 | BV26: =bestpoints(AV26, $AG26:$BB26, CountingRaces) -> 43 | BW26: =bestpoints(AW26, $AG26:$BB26, CountingRaces) ->  | BX26: =bestpoints(AX26, $AG26:$BB26, CountingRaces) -> 42 | BY26: =bestpoints(AY26, $AG26:$BB26, CountingRaces) ->  | BZ26: =bestpoints(AZ26, $AG26:$BB26, CountingRaces) -> 43 | CA26: =bestpoints(BA26, $AG26:$BB26, CountingRaces) -> 45 | CB26: =bestpoints(BB26, $AG26:$BB26, CountingRaces) -> 
A27: =AE27/AF27 -> 45.5 | B27: 23 | C27: =IF(AF27 >0,RANK(AE27,AE$4:AE$128),"") -> 24 | D27: Adam Palmer | E27: S | F27: IBC | G27: =IF(ISERROR(VLOOKUP($D27&$F27,'Rnd1'!$H:$I,2,FALSE)),"",VLOOKUP($D27&$F27,'Rnd1'!$H:$I,2,FALSE)) ->  | H27: =IF(ISERROR(VLOOKUP($D27&$F27,'Rnd2'!$H:$I,2,FALSE)),"",VLOOKUP($D27&$F27,'Rnd2'!$H:$I,2,FALSE)) -> 00:13:41 | I27: =IF(ISERROR(VLOOKUP($D27&$F27,'Rnd3'!$H:$I,2,FALSE)),"",VLOOKUP($D27&$F27,'Rnd3'!$H:$I,2,FALSE)) -> 00:22:41 | J27: =IF(ISERROR(VLOOKUP($D27&$F27,'Rnd4'!$H:$I,2,FALSE)),"",VLOOKUP($D27&$F27,'Rnd4'!$H:$I,2,FALSE)) -> 00:26:58 | K27: =IF(ISERROR(VLOOKUP($D27&$F27,'Rnd5'!$H:$I,2,FALSE)),"",VLOOKUP($D27&$F27,'Rnd5'!$H:$I,2,FALSE)) ->  | L27: =IF(ISERROR(VLOOKUP($D27&$F27,'Rnd6'!$H:$I,2,FALSE)),"",VLOOKUP($D27&$F27,'Rnd6'!$H:$I,2,FALSE)) -> 00:26:24 | M27: =IF(ISERROR(VLOOKUP($D27&$F27,'Rnd7'!$H:$I,2,FALSE)),"",VLOOKUP($D27&$F27,'Rnd7'!$H:$I,2,FALSE)) -> 00:26:08 | N27: =IF(ISERROR(VLOOKUP($D27&$F27,'Rnd8'!$H:$I,2,FALSE)),"",VLOOKUP($D27&$F27,'Rnd8'!$H:$I,2,FALSE)) -> 00:26:48 | O27: =IF(ISERROR(VLOOKUP($D27&$F27,'Rnd9'!$H:$I,2,FALSE)),"",VLOOKUP($D27&$F27,'Rnd9'!$H:$I,2,FALSE)) ->  | P27: =IF(ISERROR(VLOOKUP($D27&$F27,'Rnd10'!$H:$I,2,FALSE)),"",VLOOKUP($D27&$F27,'Rnd10'!$H:$I,2,FALSE)) ->  | Q27: =IF(ISERROR(VLOOKUP($D27&$F27,'Rnd11'!$H:$I,2,FALSE)),"",VLOOKUP($D27&$F27,'Rnd11'!$H:$I,2,FALSE)) -> 00:25:59 | R27: =IF(ISERROR(VLOOKUP($D27&$F27,'Rnd12'!$H:$I,2,FALSE)),"",VLOOKUP($D27&$F27,'Rnd12'!$H:$I,2,FALSE)) ->  | S27: =IF(ISERROR(VLOOKUP($D27&$F27,'Rnd13'!$H:$I,2,FALSE)),"",VLOOKUP($D27&$F27,'Rnd13'!$H:$I,2,FALSE)) ->  | T27: =IF(ISERROR(VLOOKUP($D27&$F27,'Rnd14'!$H:$I,2,FALSE)),"",VLOOKUP($D27&$F27,'Rnd14'!$H:$I,2,FALSE)) ->  | U27: =IF(ISERROR(VLOOKUP($D27&$F27,'Rnd15'!$H:$I,2,FALSE)),"",VLOOKUP($D27&$F27,'Rnd15'!$H:$I,2,FALSE)) ->  | V27: =IF(ISERROR(VLOOKUP($D27&$F27,'Rnd16'!$H:$I,2,FALSE)),"",VLOOKUP($D27&$F27,'Rnd16'!$H:$I,2,FALSE)) ->  | W27: =IF(ISERROR(VLOOKUP($D27&$F27,'Rnd17'!$H:$I,2,FALSE)),"",VLOOKUP($D27&$F27,'Rnd17'!$H:$I,2,FALSE)) -> 00:26:20 | X27: =IF(ISERROR(VLOOKUP($D27&$F27,'Rnd18'!$H:$I,2,FALSE)),"",VLOOKUP($D27&$F27,'Rnd18'!$H:$I,2,FALSE)) -> 00:25:40 | Y27: =IF(ISERROR(VLOOKUP($D27&$F27,'Rnd19'!$H:$I,2,FALSE)),"",VLOOKUP($D27&$F27,'Rnd19'!$H:$I,2,FALSE)) ->  | Z27: =IF(ISERROR(VLOOKUP($D27&$F27,'Rnd20'!$H:$I,2,FALSE)),"",VLOOKUP($D27&$F27,'Rnd20'!$H:$I,2,FALSE)) ->  | AA27: =IF(ISERROR(VLOOKUP($D27&$F27,'Rnd21'!$H:$I,2,FALSE)),"",VLOOKUP($D27&$F27,'Rnd21'!$H:$I,2,FALSE)) -> 00:13:13 | AB27: =IF(ISERROR(VLOOKUP($D27&$F27,'Rnd22'!$H:$I,2,FALSE)),"",VLOOKUP($D27&$F27,'Rnd22'!$H:$I,2,FALSE)) ->  | AC27: =SUM(AG27:BB27) -> 455 | AD27: =COUNT(AG27:BB27) -> 10 | AE27: =SUM(BG27:CB27) -> 455 | AF27: =COUNT(BG27:CB27) -> 10 | AG27: =IF(ISNUMBER(G27),VLOOKUP(_xlfn.RANK.EQ(G27,G$4:G$128,1),PointsTable,2),"") ->  | AH27: =IF(ISNUMBER(H27),VLOOKUP(_xlfn.RANK.EQ(H27,H$4:H$128,1),PointsTable,2),"") -> 45 | AI27: =IF(ISNUMBER(I27),VLOOKUP(_xlfn.RANK.EQ(I27,I$4:I$128,1),PointsTable,2),"") -> 42 | AJ27: =IF(ISNUMBER(J27),VLOOKUP(_xlfn.RANK.EQ(J27,J$4:J$128,1),PointsTable,2),"") -> 44 | AK27: =IF(ISNUMBER(K27),VLOOKUP(_xlfn.RANK.EQ(K27,K$4:K$128,1),PointsTable,2),"") ->  | AL27: =IF(ISNUMBER(L27),VLOOKUP(_xlfn.RANK.EQ(L27,L$4:L$128,1),PointsTable,2),"") -> 45 | AM27: =IF(ISNUMBER(M27),VLOOKUP(_xlfn.RANK.EQ(M27,M$4:M$128,1),PointsTable,2),"") -> 48 | AN27: =IF(ISNUMBER(N27),VLOOKUP(_xlfn.RANK.EQ(N27,N$4:N$128,1),PointsTable,2),"") -> 44 | AO27: =IF(ISNUMBER(O27),VLOOKUP(_xlfn.RANK.EQ(O27,O$4:O$128,1),PointsTable,2),"") ->  | AP27: =IF(ISNUMBER(P27),VLOOKUP(_xlfn.RANK.EQ(P27,P$4:P$128,1),PointsTable,2),"") ->  | AQ27: =IF(ISNUMBER(Q27),VLOOKUP(_xlfn.RANK.EQ(Q27,Q$4:Q$128,1),PointsTable,2),"") -> 44 | AR27: =IF(ISNUMBER(R27),VLOOKUP(_xlfn.RANK.EQ(R27,R$4:R$128,1),PointsTable,2),"") ->  | AS27: =IF(ISNUMBER(S27),VLOOKUP(_xlfn.RANK.EQ(S27,S$4:S$128,1),PointsTable,2),"") ->  | AT27: =IF(ISNUMBER(T27),VLOOKUP(_xlfn.RANK.EQ(T27,T$4:T$128,1),PointsTable,2),"") ->  | AU27: =IF(ISNUMBER(U27),VLOOKUP(_xlfn.RANK.EQ(U27,U$4:U$128,1),PointsTable,2),"") ->  | AV27: =IF(ISNUMBER(V27),VLOOKUP(_xlfn.RANK.EQ(V27,V$4:V$128,1),PointsTable,2),"") ->  | AW27: =IF(ISNUMBER(W27),VLOOKUP(_xlfn.RANK.EQ(W27,W$4:W$128,1),PointsTable,2),"") -> 44 | AX27: =IF(ISNUMBER(X27),VLOOKUP(_xlfn.RANK.EQ(X27,X$4:X$128,1),PointsTable,2),"") -> 49 | AY27: =IF(ISNUMBER(Y27),VLOOKUP(_xlfn.RANK.EQ(Y27,Y$4:Y$128,1),PointsTable,2),"") ->  | AZ27: =IF(ISNUMBER(Z27),VLOOKUP(_xlfn.RANK.EQ(Z27,Z$4:Z$128,1),PointsTable,2),"") ->  | BA27: =IF(ISNUMBER(AA27),VLOOKUP(_xlfn.RANK.EQ(AA27,AA$4:AA$128,1),PointsTable,2),"") -> 50 | BB27: =IF(ISNUMBER(AB27),VLOOKUP(_xlfn.RANK.EQ(AB27,AB$4:AB$128,1),PointsTable,2),"") ->  | BG27: =bestpoints(AG27, $AG27:$BB27, CountingRaces) ->  | BH27: =bestpoints(AH27, $AG27:$BB27, CountingRaces) -> 45 | BI27: =bestpoints(AI27, $AG27:$BB27, CountingRaces) -> 42 | BJ27: =bestpoints(AJ27, $AG27:$BB27, CountingRaces) -> 44 | BK27: =bestpoints(AK27, $AG27:$BB27, CountingRaces) ->  | BL27: =bestpoints(AL27, $AG27:$BB27, CountingRaces) -> 45 | BM27: =bestpoints(AM27, $AG27:$BB27, CountingRaces) -> 48 | BN27: =bestpoints(AN27, $AG27:$BB27, CountingRaces) -> 44 | BO27: =bestpoints(AO27, $AG27:$BB27, CountingRaces) ->  | BP27: =bestpoints(AP27, $AG27:$BB27, CountingRaces) ->  | BQ27: =bestpoints(AQ27, $AG27:$BB27, CountingRaces) -> 44 | BR27: =bestpoints(AR27, $AG27:$BB27, CountingRaces) ->  | BS27: =bestpoints(AS27, $AG27:$BB27, CountingRaces) ->  | BT27: =bestpoints(AT27, $AG27:$BB27, CountingRaces) ->  | BU27: =bestpoints(AU27, $AG27:$BB27, CountingRaces) ->  | BV27: =bestpoints(AV27, $AG27:$BB27, CountingRaces) ->  | BW27: =bestpoints(AW27, $AG27:$BB27, CountingRaces) -> 44 | BX27: =bestpoints(AX27, $AG27:$BB27, CountingRaces) -> 49 | BY27: =bestpoints(AY27, $AG27:$BB27, CountingRaces) ->  | BZ27: =bestpoints(AZ27, $AG27:$BB27, CountingRaces) ->  | CA27: =bestpoints(BA27, $AG27:$BB27, CountingRaces) -> 50 | CB27: =bestpoints(BB27, $AG27:$BB27, CountingRaces) -> 
A28: =AE28/AF28 -> 37.16666667 | B28: 25 | C28: =IF(AF28 >0,RANK(AE28,AE$4:AE$128),"") -> 25 | D28: Derek Cawston | E28: V40 | F28: Wolsey | G28: =IF(ISERROR(VLOOKUP($D28&$F28,'Rnd1'!$H:$I,2,FALSE)),"",VLOOKUP($D28&$F28,'Rnd1'!$H:$I,2,FALSE)) ->  | H28: =IF(ISERROR(VLOOKUP($D28&$F28,'Rnd2'!$H:$I,2,FALSE)),"",VLOOKUP($D28&$F28,'Rnd2'!$H:$I,2,FALSE)) -> 00:14:33 | I28: =IF(ISERROR(VLOOKUP($D28&$F28,'Rnd3'!$H:$I,2,FALSE)),"",VLOOKUP($D28&$F28,'Rnd3'!$H:$I,2,FALSE)) -> 00:24:02 | J28: =IF(ISERROR(VLOOKUP($D28&$F28,'Rnd4'!$H:$I,2,FALSE)),"",VLOOKUP($D28&$F28,'Rnd4'!$H:$I,2,FALSE)) -> 00:29:06 | K28: =IF(ISERROR(VLOOKUP($D28&$F28,'Rnd5'!$H:$I,2,FALSE)),"",VLOOKUP($D28&$F28,'Rnd5'!$H:$I,2,FALSE)) -> 00:28:03 | L28: =IF(ISERROR(VLOOKUP($D28&$F28,'Rnd6'!$H:$I,2,FALSE)),"",VLOOKUP($D28&$F28,'Rnd6'!$H:$I,2,FALSE)) ->  | M28: =IF(ISERROR(VLOOKUP($D28&$F28,'Rnd7'!$H:$I,2,FALSE)),"",VLOOKUP($D28&$F28,'Rnd7'!$H:$I,2,FALSE)) -> 00:28:00 | N28: =IF(ISERROR(VLOOKUP($D28&$F28,'Rnd8'!$H:$I,2,FALSE)),"",VLOOKUP($D28&$F28,'Rnd8'!$H:$I,2,FALSE)) ->  | O28: =IF(ISERROR(VLOOKUP($D28&$F28,'Rnd9'!$H:$I,2,FALSE)),"",VLOOKUP($D28&$F28,'Rnd9'!$H:$I,2,FALSE)) -> 00:27:56 | P28: =IF(ISERROR(VLOOKUP($D28&$F28,'Rnd10'!$H:$I,2,FALSE)),"",VLOOKUP($D28&$F28,'Rnd10'!$H:$I,2,FALSE)) -> DNF | Q28: =IF(ISERROR(VLOOKUP($D28&$F28,'Rnd11'!$H:$I,2,FALSE)),"",VLOOKUP($D28&$F28,'Rnd11'!$H:$I,2,FALSE)) -> 00:28:01 | R28: =IF(ISERROR(VLOOKUP($D28&$F28,'Rnd12'!$H:$I,2,FALSE)),"",VLOOKUP($D28&$F28,'Rnd12'!$H:$I,2,FALSE)) -> 00:27:12 | S28: =IF(ISERROR(VLOOKUP($D28&$F28,'Rnd13'!$H:$I,2,FALSE)),"",VLOOKUP($D28&$F28,'Rnd13'!$H:$I,2,FALSE)) ->  | T28: =IF(ISERROR(VLOOKUP($D28&$F28,'Rnd14'!$H:$I,2,FALSE)),"",VLOOKUP($D28&$F28,'Rnd14'!$H:$I,2,FALSE)) -> 00:25:29 | U28: =IF(ISERROR(VLOOKUP($D28&$F28,'Rnd15'!$H:$I,2,FALSE)),"",VLOOKUP($D28&$F28,'Rnd15'!$H:$I,2,FALSE)) ->  | V28: =IF(ISERROR(VLOOKUP($D28&$F28,'Rnd16'!$H:$I,2,FALSE)),"",VLOOKUP($D28&$F28,'Rnd16'!$H:$I,2,FALSE)) -> 00:27:29 | W28: =IF(ISERROR(VLOOKUP($D28&$F28,'Rnd17'!$H:$I,2,FALSE)),"",VLOOKUP($D28&$F28,'Rnd17'!$H:$I,2,FALSE)) -> 00:28:13 | X28: =IF(ISERROR(VLOOKUP($D28&$F28,'Rnd18'!$H:$I,2,FALSE)),"",VLOOKUP($D28&$F28,'Rnd18'!$H:$I,2,FALSE)) -> 00:27:52 | Y28: =IF(ISERROR(VLOOKUP($D28&$F28,'Rnd19'!$H:$I,2,FALSE)),"",VLOOKUP($D28&$F28,'Rnd19'!$H:$I,2,FALSE)) ->  | Z28: =IF(ISERROR(VLOOKUP($D28&$F28,'Rnd20'!$H:$I,2,FALSE)),"",VLOOKUP($D28&$F28,'Rnd20'!$H:$I,2,FALSE)) ->  | AA28: =IF(ISERROR(VLOOKUP($D28&$F28,'Rnd21'!$H:$I,2,FALSE)),"",VLOOKUP($D28&$F28,'Rnd21'!$H:$I,2,FALSE)) ->  | AB28: =IF(ISERROR(VLOOKUP($D28&$F28,'Rnd22'!$H:$I,2,FALSE)),"",VLOOKUP($D28&$F28,'Rnd22'!$H:$I,2,FALSE)) ->  | AC28: =SUM(AG28:BB28) -> 446 | AD28: =COUNT(AG28:BB28) -> 12 | AE28: =SUM(BG28:CB28) -> 446 | AF28: =COUNT(BG28:CB28) -> 12 | AG28: =IF(ISNUMBER(G28),VLOOKUP(_xlfn.RANK.EQ(G28,G$4:G$128,1),PointsTable,2),"") ->  | AH28: =IF(ISNUMBER(H28),VLOOKUP(_xlfn.RANK.EQ(H28,H$4:H$128,1),PointsTable,2),"") -> 34 | AI28: =IF(ISNUMBER(I28),VLOOKUP(_xlfn.RANK.EQ(I28,I$4:I$128,1),PointsTable,2),"") -> 31 | AJ28: =IF(ISNUMBER(J28),VLOOKUP(_xlfn.RANK.EQ(J28,J$4:J$128,1),PointsTable,2),"") -> 37 | AK28: =IF(ISNUMBER(K28),VLOOKUP(_xlfn.RANK.EQ(K28,K$4:K$128,1),PointsTable,2),"") -> 41 | AL28: =IF(ISNUMBER(L28),VLOOKUP(_xlfn.RANK.EQ(L28,L$4:L$128,1),PointsTable,2),"") ->  | AM28: =IF(ISNUMBER(M28),VLOOKUP(_xlfn.RANK.EQ(M28,M$4:M$128,1),PointsTable,2),"") -> 36 | AN28: =IF(ISNUMBER(N28),VLOOKUP(_xlfn.RANK.EQ(N28,N$4:N$128,1),PointsTable,2),"") ->  | AO28: =IF(ISNUMBER(O28),VLOOKUP(_xlfn.RANK.EQ(O28,O$4:O$128,1),PointsTable,2),"") -> 33 | AP28: =IF(ISNUMBER(P28),VLOOKUP(_xlfn.RANK.EQ(P28,P$4:P$128,1),PointsTable,2),"") ->  | AQ28: =IF(ISNUMBER(Q28),VLOOKUP(_xlfn.RANK.EQ(Q28,Q$4:Q$128,1),PointsTable,2),"") -> 31 | AR28: =IF(ISNUMBER(R28),VLOOKUP(_xlfn.RANK.EQ(R28,R$4:R$128,1),PointsTable,2),"") -> 44 | AS28: =IF(ISNUMBER(S28),VLOOKUP(_xlfn.RANK.EQ(S28,S$4:S$128,1),PointsTable,2),"") ->  | AT28: =IF(ISNUMBER(T28),VLOOKUP(_xlfn.RANK.EQ(T28,T$4:T$128,1),PointsTable,2),"") -> 41 | AU28: =IF(ISNUMBER(U28),VLOOKUP(_xlfn.RANK.EQ(U28,U$4:U$128,1),PointsTable,2),"") ->  | AV28: =IF(ISNUMBER(V28),VLOOKUP(_xlfn.RANK.EQ(V28,V$4:V$128,1),PointsTable,2),"") -> 42 | AW28: =IF(ISNUMBER(W28),VLOOKUP(_xlfn.RANK.EQ(W28,W$4:W$128,1),PointsTable,2),"") -> 37 | AX28: =IF(ISNUMBER(X28),VLOOKUP(_xlfn.RANK.EQ(X28,X$4:X$128,1),PointsTable,2),"") -> 39 | AY28: =IF(ISNUMBER(Y28),VLOOKUP(_xlfn.RANK.EQ(Y28,Y$4:Y$128,1),PointsTable,2),"") ->  | AZ28: =IF(ISNUMBER(Z28),VLOOKUP(_xlfn.RANK.EQ(Z28,Z$4:Z$128,1),PointsTable,2),"") ->  | BA28: =IF(ISNUMBER(AA28),VLOOKUP(_xlfn.RANK.EQ(AA28,AA$4:AA$128,1),PointsTable,2),"") ->  | BB28: =IF(ISNUMBER(AB28),VLOOKUP(_xlfn.RANK.EQ(AB28,AB$4:AB$128,1),PointsTable,2),"") ->  | BG28: =bestpoints(AG28, $AG28:$BB28, CountingRaces) ->  | BH28: =bestpoints(AH28, $AG28:$BB28, CountingRaces) -> 34 | BI28: =bestpoints(AI28, $AG28:$BB28, CountingRaces) -> 31 | BJ28: =bestpoints(AJ28, $AG28:$BB28, CountingRaces) -> 37 | BK28: =bestpoints(AK28, $AG28:$BB28, CountingRaces) -> 41 | BL28: =bestpoints(AL28, $AG28:$BB28, CountingRaces) ->  | BM28: =bestpoints(AM28, $AG28:$BB28, CountingRaces) -> 36 | BN28: =bestpoints(AN28, $AG28:$BB28, CountingRaces) ->  | BO28: =bestpoints(AO28, $AG28:$BB28, CountingRaces) -> 33 | BP28: =bestpoints(AP28, $AG28:$BB28, CountingRaces) ->  | BQ28: =bestpoints(AQ28, $AG28:$BB28, CountingRaces) -> 31 | BR28: =bestpoints(AR28, $AG28:$BB28, CountingRaces) -> 44 | BS28: =bestpoints(AS28, $AG28:$BB28, CountingRaces) ->  | BT28: =bestpoints(AT28, $AG28:$BB28, CountingRaces) -> 41 | BU28: =bestpoints(AU28, $AG28:$BB28, CountingRaces) ->  | BV28: =bestpoints(AV28, $AG28:$BB28, CountingRaces) -> 42 | BW28: =bestpoints(AW28, $AG28:$BB28, CountingRaces) -> 37 | BX28: =bestpoints(AX28, $AG28:$BB28, CountingRaces) -> 39 | BY28: =bestpoints(AY28, $AG28:$BB28, CountingRaces) ->  | BZ28: =bestpoints(AZ28, $AG28:$BB28, CountingRaces) ->  | CA28: =bestpoints(BA28, $AG28:$BB28, CountingRaces) ->  | CB28: =bestpoints(BB28, $AG28:$BB28, CountingRaces) -> 
A29: =AE29/AF29 -> 36.83333333 | B29: 27 | C29: =IF(AF29 >0,RANK(AE29,AE$4:AE$128),"") -> 26 | D29: Rob Smith | E29: V60 | F29: SDCC | G29: =IF(ISERROR(VLOOKUP($D29&$F29,'Rnd1'!$H:$I,2,FALSE)),"",VLOOKUP($D29&$F29,'Rnd1'!$H:$I,2,FALSE)) ->  | H29: =IF(ISERROR(VLOOKUP($D29&$F29,'Rnd2'!$H:$I,2,FALSE)),"",VLOOKUP($D29&$F29,'Rnd2'!$H:$I,2,FALSE)) -> 00:15:02 | I29: =IF(ISERROR(VLOOKUP($D29&$F29,'Rnd3'!$H:$I,2,FALSE)),"",VLOOKUP($D29&$F29,'Rnd3'!$H:$I,2,FALSE)) -> 00:25:43 | J29: =IF(ISERROR(VLOOKUP($D29&$F29,'Rnd4'!$H:$I,2,FALSE)),"",VLOOKUP($D29&$F29,'Rnd4'!$H:$I,2,FALSE)) -> 00:30:31 | K29: =IF(ISERROR(VLOOKUP($D29&$F29,'Rnd5'!$H:$I,2,FALSE)),"",VLOOKUP($D29&$F29,'Rnd5'!$H:$I,2,FALSE)) -> 00:30:47 | L29: =IF(ISERROR(VLOOKUP($D29&$F29,'Rnd6'!$H:$I,2,FALSE)),"",VLOOKUP($D29&$F29,'Rnd6'!$H:$I,2,FALSE)) ->  | M29: =IF(ISERROR(VLOOKUP($D29&$F29,'Rnd7'!$H:$I,2,FALSE)),"",VLOOKUP($D29&$F29,'Rnd7'!$H:$I,2,FALSE)) ->  | N29: =IF(ISERROR(VLOOKUP($D29&$F29,'Rnd8'!$H:$I,2,FALSE)),"",VLOOKUP($D29&$F29,'Rnd8'!$H:$I,2,FALSE)) ->  | O29: =IF(ISERROR(VLOOKUP($D29&$F29,'Rnd9'!$H:$I,2,FALSE)),"",VLOOKUP($D29&$F29,'Rnd9'!$H:$I,2,FALSE)) ->  | P29: =IF(ISERROR(VLOOKUP($D29&$F29,'Rnd10'!$H:$I,2,FALSE)),"",VLOOKUP($D29&$F29,'Rnd10'!$H:$I,2,FALSE)) -> 00:28:51 | Q29: =IF(ISERROR(VLOOKUP($D29&$F29,'Rnd11'!$H:$I,2,FALSE)),"",VLOOKUP($D29&$F29,'Rnd11'!$H:$I,2,FALSE)) -> 00:28:51 | R29: =IF(ISERROR(VLOOKUP($D29&$F29,'Rnd12'!$H:$I,2,FALSE)),"",VLOOKUP($D29&$F29,'Rnd12'!$H:$I,2,FALSE)) -> 00:28:17 | S29: =IF(ISERROR(VLOOKUP($D29&$F29,'Rnd13'!$H:$I,2,FALSE)),"",VLOOKUP($D29&$F29,'Rnd13'!$H:$I,2,FALSE)) -> 00:28:26 | T29: =IF(ISERROR(VLOOKUP($D29&$F29,'Rnd14'!$H:$I,2,FALSE)),"",VLOOKUP($D29&$F29,'Rnd14'!$H:$I,2,FALSE)) -> 00:28:04 | U29: =IF(ISERROR(VLOOKUP($D29&$F29,'Rnd15'!$H:$I,2,FALSE)),"",VLOOKUP($D29&$F29,'Rnd15'!$H:$I,2,FALSE)) -> 00:29:16 | V29: =IF(ISERROR(VLOOKUP($D29&$F29,'Rnd16'!$H:$I,2,FALSE)),"",VLOOKUP($D29&$F29,'Rnd16'!$H:$I,2,FALSE)) -> 00:28:03 | W29: =IF(ISERROR(VLOOKUP($D29&$F29,'Rnd17'!$H:$I,2,FALSE)),"",VLOOKUP($D29&$F29,'Rnd17'!$H:$I,2,FALSE)) ->  | X29: =IF(ISERROR(VLOOKUP($D29&$F29,'Rnd18'!$H:$I,2,FALSE)),"",VLOOKUP($D29&$F29,'Rnd18'!$H:$I,2,FALSE)) -> 00:28:16 | Y29: =IF(ISERROR(VLOOKUP($D29&$F29,'Rnd19'!$H:$I,2,FALSE)),"",VLOOKUP($D29&$F29,'Rnd19'!$H:$I,2,FALSE)) ->  | Z29: =IF(ISERROR(VLOOKUP($D29&$F29,'Rnd20'!$H:$I,2,FALSE)),"",VLOOKUP($D29&$F29,'Rnd20'!$H:$I,2,FALSE)) -> 00:28:40 | AA29: =IF(ISERROR(VLOOKUP($D29&$F29,'Rnd21'!$H:$I,2,FALSE)),"",VLOOKUP($D29&$F29,'Rnd21'!$H:$I,2,FALSE)) ->  | AB29: =IF(ISERROR(VLOOKUP($D29&$F29,'Rnd22'!$H:$I,2,FALSE)),"",VLOOKUP($D29&$F29,'Rnd22'!$H:$I,2,FALSE)) -> 00:14:10 | AC29: =SUM(AG29:BB29) -> 488 | AD29: =COUNT(AG29:BB29) -> 14 | AE29: =SUM(BG29:CB29) -> 442 | AF29: =COUNT(BG29:CB29) -> 12 | AG29: =IF(ISNUMBER(G29),VLOOKUP(_xlfn.RANK.EQ(G29,G$4:G$128,1),PointsTable,2),"") ->  | AH29: =IF(ISNUMBER(H29),VLOOKUP(_xlfn.RANK.EQ(H29,H$4:H$128,1),PointsTable,2),"") -> 28 | AI29: =IF(ISNUMBER(I29),VLOOKUP(_xlfn.RANK.EQ(I29,I$4:I$128,1),PointsTable,2),"") -> 23 | AJ29: =IF(ISNUMBER(J29),VLOOKUP(_xlfn.RANK.EQ(J29,J$4:J$128,1),PointsTable,2),"") -> 34 | AK29: =IF(ISNUMBER(K29),VLOOKUP(_xlfn.RANK.EQ(K29,K$4:K$128,1),PointsTable,2),"") -> 35 | AL29: =IF(ISNUMBER(L29),VLOOKUP(_xlfn.RANK.EQ(L29,L$4:L$128,1),PointsTable,2),"") ->  | AM29: =IF(ISNUMBER(M29),VLOOKUP(_xlfn.RANK.EQ(M29,M$4:M$128,1),PointsTable,2),"") ->  | AN29: =IF(ISNUMBER(N29),VLOOKUP(_xlfn.RANK.EQ(N29,N$4:N$128,1),PointsTable,2),"") ->  | AO29: =IF(ISNUMBER(O29),VLOOKUP(_xlfn.RANK.EQ(O29,O$4:O$128,1),PointsTable,2),"") ->  | AP29: =IF(ISNUMBER(P29),VLOOKUP(_xlfn.RANK.EQ(P29,P$4:P$128,1),PointsTable,2),"") -> 23 | AQ29: =IF(ISNUMBER(Q29),VLOOKUP(_xlfn.RANK.EQ(Q29,Q$4:Q$128,1),PointsTable,2),"") -> 28 | AR29: =IF(ISNUMBER(R29),VLOOKUP(_xlfn.RANK.EQ(R29,R$4:R$128,1),PointsTable,2),"") -> 41 | AS29: =IF(ISNUMBER(S29),VLOOKUP(_xlfn.RANK.EQ(S29,S$4:S$128,1),PointsTable,2),"") -> 31 | AT29: =IF(ISNUMBER(T29),VLOOKUP(_xlfn.RANK.EQ(T29,T$4:T$128,1),PointsTable,2),"") -> 34 | AU29: =IF(ISNUMBER(U29),VLOOKUP(_xlfn.RANK.EQ(U29,U$4:U$128,1),PointsTable,2),"") -> 45 | AV29: =IF(ISNUMBER(V29),VLOOKUP(_xlfn.RANK.EQ(V29,V$4:V$128,1),PointsTable,2),"") -> 39 | AW29: =IF(ISNUMBER(W29),VLOOKUP(_xlfn.RANK.EQ(W29,W$4:W$128,1),PointsTable,2),"") ->  | AX29: =IF(ISNUMBER(X29),VLOOKUP(_xlfn.RANK.EQ(X29,X$4:X$128,1),PointsTable,2),"") -> 38 | AY29: =IF(ISNUMBER(Y29),VLOOKUP(_xlfn.RANK.EQ(Y29,Y$4:Y$128,1),PointsTable,2),"") ->  | AZ29: =IF(ISNUMBER(Z29),VLOOKUP(_xlfn.RANK.EQ(Z29,Z$4:Z$128,1),PointsTable,2),"") -> 39 | BA29: =IF(ISNUMBER(AA29),VLOOKUP(_xlfn.RANK.EQ(AA29,AA$4:AA$128,1),PointsTable,2),"") ->  | BB29: =IF(ISNUMBER(AB29),VLOOKUP(_xlfn.RANK.EQ(AB29,AB$4:AB$128,1),PointsTable,2),"") -> 50 | BG29: =bestpoints(AG29, $AG29:$BB29, CountingRaces) ->  | BH29: =bestpoints(AH29, $AG29:$BB29, CountingRaces) -> 28 | BI29: =bestpoints(AI29, $AG29:$BB29, CountingRaces) ->  | BJ29: =bestpoints(AJ29, $AG29:$BB29, CountingRaces) -> 34 | BK29: =bestpoints(AK29, $AG29:$BB29, CountingRaces) -> 35 | BL29: =bestpoints(AL29, $AG29:$BB29, CountingRaces) ->  | BM29: =bestpoints(AM29, $AG29:$BB29, CountingRaces) ->  | BN29: =bestpoints(AN29, $AG29:$BB29, CountingRaces) ->  | BO29: =bestpoints(AO29, $AG29:$BB29, CountingRaces) ->  | BP29: =bestpoints(AP29, $AG29:$BB29, CountingRaces) ->  | BQ29: =bestpoints(AQ29, $AG29:$BB29, CountingRaces) -> 28 | BR29: =bestpoints(AR29, $AG29:$BB29, CountingRaces) -> 41 | BS29: =bestpoints(AS29, $AG29:$BB29, CountingRaces) -> 31 | BT29: =bestpoints(AT29, $AG29:$BB29, CountingRaces) -> 34 | BU29: =bestpoints(AU29, $AG29:$BB29, CountingRaces) -> 45 | BV29: =bestpoints(AV29, $AG29:$BB29, CountingRaces) -> 39 | BW29: =bestpoints(AW29, $AG29:$BB29, CountingRaces) ->  | BX29: =bestpoints(AX29, $AG29:$BB29, CountingRaces) -> 38 | BY29: =bestpoints(AY29, $AG29:$BB29, CountingRaces) ->  | BZ29: =bestpoints(AZ29, $AG29:$BB29, CountingRaces) -> 39 | CA29: =bestpoints(BA29, $AG29:$BB29, CountingRaces) ->  | CB29: =bestpoints(BB29, $AG29:$BB29, CountingRaces) -> 50
A30: =AE30/AF30 -> 36.75 | B30: 26 | C30: =IF(AF30 >0,RANK(AE30,AE$4:AE$128),"") -> 27 | D30: Ethan Cawston | E30: S | F30: Wolsey | G30: =IF(ISERROR(VLOOKUP($D30&$F30,'Rnd1'!$H:$I,2,FALSE)),"",VLOOKUP($D30&$F30,'Rnd1'!$H:$I,2,FALSE)) -> 00:15:12 | H30: =IF(ISERROR(VLOOKUP($D30&$F30,'Rnd2'!$H:$I,2,FALSE)),"",VLOOKUP($D30&$F30,'Rnd2'!$H:$I,2,FALSE)) -> 00:14:28 | I30: =IF(ISERROR(VLOOKUP($D30&$F30,'Rnd3'!$H:$I,2,FALSE)),"",VLOOKUP($D30&$F30,'Rnd3'!$H:$I,2,FALSE)) -> 00:24:44 | J30: =IF(ISERROR(VLOOKUP($D30&$F30,'Rnd4'!$H:$I,2,FALSE)),"",VLOOKUP($D30&$F30,'Rnd4'!$H:$I,2,FALSE)) -> 00:29:34 | K30: =IF(ISERROR(VLOOKUP($D30&$F30,'Rnd5'!$H:$I,2,FALSE)),"",VLOOKUP($D30&$F30,'Rnd5'!$H:$I,2,FALSE)) ->  | L30: =IF(ISERROR(VLOOKUP($D30&$F30,'Rnd6'!$H:$I,2,FALSE)),"",VLOOKUP($D30&$F30,'Rnd6'!$H:$I,2,FALSE)) -> 00:28:41 | M30: =IF(ISERROR(VLOOKUP($D30&$F30,'Rnd7'!$H:$I,2,FALSE)),"",VLOOKUP($D30&$F30,'Rnd7'!$H:$I,2,FALSE)) -> 00:28:03 | N30: =IF(ISERROR(VLOOKUP($D30&$F30,'Rnd8'!$H:$I,2,FALSE)),"",VLOOKUP($D30&$F30,'Rnd8'!$H:$I,2,FALSE)) -> 00:29:16 | O30: =IF(ISERROR(VLOOKUP($D30&$F30,'Rnd9'!$H:$I,2,FALSE)),"",VLOOKUP($D30&$F30,'Rnd9'!$H:$I,2,FALSE)) ->  | P30: =IF(ISERROR(VLOOKUP($D30&$F30,'Rnd10'!$H:$I,2,FALSE)),"",VLOOKUP($D30&$F30,'Rnd10'!$H:$I,2,FALSE)) ->  | Q30: =IF(ISERROR(VLOOKUP($D30&$F30,'Rnd11'!$H:$I,2,FALSE)),"",VLOOKUP($D30&$F30,'Rnd11'!$H:$I,2,FALSE)) -> 00:28:19 | R30: =IF(ISERROR(VLOOKUP($D30&$F30,'Rnd12'!$H:$I,2,FALSE)),"",VLOOKUP($D30&$F30,'Rnd12'!$H:$I,2,FALSE)) ->  | S30: =IF(ISERROR(VLOOKUP($D30&$F30,'Rnd13'!$H:$I,2,FALSE)),"",VLOOKUP($D30&$F30,'Rnd13'!$H:$I,2,FALSE)) ->  | T30: =IF(ISERROR(VLOOKUP($D30&$F30,'Rnd14'!$H:$I,2,FALSE)),"",VLOOKUP($D30&$F30,'Rnd14'!$H:$I,2,FALSE)) ->  | U30: =IF(ISERROR(VLOOKUP($D30&$F30,'Rnd15'!$H:$I,2,FALSE)),"",VLOOKUP($D30&$F30,'Rnd15'!$H:$I,2,FALSE)) ->  | V30: =IF(ISERROR(VLOOKUP($D30&$F30,'Rnd16'!$H:$I,2,FALSE)),"",VLOOKUP($D30&$F30,'Rnd16'!$H:$I,2,FALSE)) -> 00:28:51 | W30: =IF(ISERROR(VLOOKUP($D30&$F30,'Rnd17'!$H:$I,2,FALSE)),"",VLOOKUP($D30&$F30,'Rnd17'!$H:$I,2,FALSE)) ->  | X30: =IF(ISERROR(VLOOKUP($D30&$F30,'Rnd18'!$H:$I,2,FALSE)),"",VLOOKUP($D30&$F30,'Rnd18'!$H:$I,2,FALSE)) -> 00:28:54 | Y30: =IF(ISERROR(VLOOKUP($D30&$F30,'Rnd19'!$H:$I,2,FALSE)),"",VLOOKUP($D30&$F30,'Rnd19'!$H:$I,2,FALSE)) -> 00:27:47 | Z30: =IF(ISERROR(VLOOKUP($D30&$F30,'Rnd20'!$H:$I,2,FALSE)),"",VLOOKUP($D30&$F30,'Rnd20'!$H:$I,2,FALSE)) -> 00:28:05 | AA30: =IF(ISERROR(VLOOKUP($D30&$F30,'Rnd21'!$H:$I,2,FALSE)),"",VLOOKUP($D30&$F30,'Rnd21'!$H:$I,2,FALSE)) -> 00:14:12 | AB30: =IF(ISERROR(VLOOKUP($D30&$F30,'Rnd22'!$H:$I,2,FALSE)),"",VLOOKUP($D30&$F30,'Rnd22'!$H:$I,2,FALSE)) ->  | AC30: =SUM(AG30:BB30) -> 467 | AD30: =COUNT(AG30:BB30) -> 13 | AE30: =SUM(BG30:CB30) -> 441 | AF30: =COUNT(BG30:CB30) -> 12 | AG30: =IF(ISNUMBER(G30),VLOOKUP(_xlfn.RANK.EQ(G30,G$4:G$128,1),PointsTable,2),"") -> 40 | AH30: =IF(ISNUMBER(H30),VLOOKUP(_xlfn.RANK.EQ(H30,H$4:H$128,1),PointsTable,2),"") -> 36 | AI30: =IF(ISNUMBER(I30),VLOOKUP(_xlfn.RANK.EQ(I30,I$4:I$128,1),PointsTable,2),"") -> 26 | AJ30: =IF(ISNUMBER(J30),VLOOKUP(_xlfn.RANK.EQ(J30,J$4:J$128,1),PointsTable,2),"") -> 35 | AK30: =IF(ISNUMBER(K30),VLOOKUP(_xlfn.RANK.EQ(K30,K$4:K$128,1),PointsTable,2),"") ->  | AL30: =IF(ISNUMBER(L30),VLOOKUP(_xlfn.RANK.EQ(L30,L$4:L$128,1),PointsTable,2),"") -> 34 | AM30: =IF(ISNUMBER(M30),VLOOKUP(_xlfn.RANK.EQ(M30,M$4:M$128,1),PointsTable,2),"") -> 35 | AN30: =IF(ISNUMBER(N30),VLOOKUP(_xlfn.RANK.EQ(N30,N$4:N$128,1),PointsTable,2),"") -> 31 | AO30: =IF(ISNUMBER(O30),VLOOKUP(_xlfn.RANK.EQ(O30,O$4:O$128,1),PointsTable,2),"") ->  | AP30: =IF(ISNUMBER(P30),VLOOKUP(_xlfn.RANK.EQ(P30,P$4:P$128,1),PointsTable,2),"") ->  | AQ30: =IF(ISNUMBER(Q30),VLOOKUP(_xlfn.RANK.EQ(Q30,Q$4:Q$128,1),PointsTable,2),"") -> 29 | AR30: =IF(ISNUMBER(R30),VLOOKUP(_xlfn.RANK.EQ(R30,R$4:R$128,1),PointsTable,2),"") ->  | AS30: =IF(ISNUMBER(S30),VLOOKUP(_xlfn.RANK.EQ(S30,S$4:S$128,1),PointsTable,2),"") ->  | AT30: =IF(ISNUMBER(T30),VLOOKUP(_xlfn.RANK.EQ(T30,T$4:T$128,1),PointsTable,2),"") ->  | AU30: =IF(ISNUMBER(U30),VLOOKUP(_xlfn.RANK.EQ(U30,U$4:U$128,1),PointsTable,2),"") ->  | AV30: =IF(ISNUMBER(V30),VLOOKUP(_xlfn.RANK.EQ(V30,V$4:V$128,1),PointsTable,2),"") -> 38 | AW30: =IF(ISNUMBER(W30),VLOOKUP(_xlfn.RANK.EQ(W30,W$4:W$128,1),PointsTable,2),"") ->  | AX30: =IF(ISNUMBER(X30),VLOOKUP(_xlfn.RANK.EQ(X30,X$4:X$128,1),PointsTable,2),"") -> 36 | AY30: =IF(ISNUMBER(Y30),VLOOKUP(_xlfn.RANK.EQ(Y30,Y$4:Y$128,1),PointsTable,2),"") -> 42 | AZ30: =IF(ISNUMBER(Z30),VLOOKUP(_xlfn.RANK.EQ(Z30,Z$4:Z$128,1),PointsTable,2),"") -> 42 | BA30: =IF(ISNUMBER(AA30),VLOOKUP(_xlfn.RANK.EQ(AA30,AA$4:AA$128,1),PointsTable,2),"") -> 43 | BB30: =IF(ISNUMBER(AB30),VLOOKUP(_xlfn.RANK.EQ(AB30,AB$4:AB$128,1),PointsTable,2),"") ->  | BG30: =bestpoints(AG30, $AG30:$BB30, CountingRaces) -> 40 | BH30: =bestpoints(AH30, $AG30:$BB30, CountingRaces) -> 36 | BI30: =bestpoints(AI30, $AG30:$BB30, CountingRaces) ->  | BJ30: =bestpoints(AJ30, $AG30:$BB30, CountingRaces) -> 35 | BK30: =bestpoints(AK30, $AG30:$BB30, CountingRaces) ->  | BL30: =bestpoints(AL30, $AG30:$BB30, CountingRaces) -> 34 | BM30: =bestpoints(AM30, $AG30:$BB30, CountingRaces) -> 35 | BN30: =bestpoints(AN30, $AG30:$BB30, CountingRaces) -> 31 | BO30: =bestpoints(AO30, $AG30:$BB30, CountingRaces) ->  | BP30: =bestpoints(AP30, $AG30:$BB30, CountingRaces) ->  | BQ30: =bestpoints(AQ30, $AG30:$BB30, CountingRaces) -> 29 | BR30: =bestpoints(AR30, $AG30:$BB30, CountingRaces) ->  | BS30: =bestpoints(AS30, $AG30:$BB30, CountingRaces) ->  | BT30: =bestpoints(AT30, $AG30:$BB30, CountingRaces) ->  | BU30: =bestpoints(AU30, $AG30:$BB30, CountingRaces) ->  | BV30: =bestpoints(AV30, $AG30:$BB30, CountingRaces) -> 38 | BW30: =bestpoints(AW30, $AG30:$BB30, CountingRaces) ->  | BX30: =bestpoints(AX30, $AG30:$BB30, CountingRaces) -> 36 | BY30: =bestpoints(AY30, $AG30:$BB30, CountingRaces) -> 42 | BZ30: =bestpoints(AZ30, $AG30:$BB30, CountingRaces) -> 42 | CA30: =bestpoints(BA30, $AG30:$BB30, CountingRaces) -> 43 | CB30: =bestpoints(BB30, $AG30:$BB30, CountingRaces) -> 
A31: =AE31/AF31 -> 38.54545455 | B31: 33 | C31: =IF(AF31 >0,RANK(AE31,AE$4:AE$128),"") -> 28 | D31: Chris Lacey | E31: V60 | F31: SDCC | G31: =IF(ISERROR(VLOOKUP($D31&$F31,'Rnd1'!$H:$I,2,FALSE)),"",VLOOKUP($D31&$F31,'Rnd1'!$H:$I,2,FALSE)) ->  | H31: =IF(ISERROR(VLOOKUP($D31&$F31,'Rnd2'!$H:$I,2,FALSE)),"",VLOOKUP($D31&$F31,'Rnd2'!$H:$I,2,FALSE)) ->  | I31: =IF(ISERROR(VLOOKUP($D31&$F31,'Rnd3'!$H:$I,2,FALSE)),"",VLOOKUP($D31&$F31,'Rnd3'!$H:$I,2,FALSE)) ->  | J31: =IF(ISERROR(VLOOKUP($D31&$F31,'Rnd4'!$H:$I,2,FALSE)),"",VLOOKUP($D31&$F31,'Rnd4'!$H:$I,2,FALSE)) ->  | K31: =IF(ISERROR(VLOOKUP($D31&$F31,'Rnd5'!$H:$I,2,FALSE)),"",VLOOKUP($D31&$F31,'Rnd5'!$H:$I,2,FALSE)) ->  | L31: =IF(ISERROR(VLOOKUP($D31&$F31,'Rnd6'!$H:$I,2,FALSE)),"",VLOOKUP($D31&$F31,'Rnd6'!$H:$I,2,FALSE)) ->  | M31: =IF(ISERROR(VLOOKUP($D31&$F31,'Rnd7'!$H:$I,2,FALSE)),"",VLOOKUP($D31&$F31,'Rnd7'!$H:$I,2,FALSE)) ->  | N31: =IF(ISERROR(VLOOKUP($D31&$F31,'Rnd8'!$H:$I,2,FALSE)),"",VLOOKUP($D31&$F31,'Rnd8'!$H:$I,2,FALSE)) -> 00:29:09 | O31: =IF(ISERROR(VLOOKUP($D31&$F31,'Rnd9'!$H:$I,2,FALSE)),"",VLOOKUP($D31&$F31,'Rnd9'!$H:$I,2,FALSE)) -> 00:27:49 | P31: =IF(ISERROR(VLOOKUP($D31&$F31,'Rnd10'!$H:$I,2,FALSE)),"",VLOOKUP($D31&$F31,'Rnd10'!$H:$I,2,FALSE)) -> 00:27:42 | Q31: =IF(ISERROR(VLOOKUP($D31&$F31,'Rnd11'!$H:$I,2,FALSE)),"",VLOOKUP($D31&$F31,'Rnd11'!$H:$I,2,FALSE)) -> 00:28:00 | R31: =IF(ISERROR(VLOOKUP($D31&$F31,'Rnd12'!$H:$I,2,FALSE)),"",VLOOKUP($D31&$F31,'Rnd12'!$H:$I,2,FALSE)) ->  | S31: =IF(ISERROR(VLOOKUP($D31&$F31,'Rnd13'!$H:$I,2,FALSE)),"",VLOOKUP($D31&$F31,'Rnd13'!$H:$I,2,FALSE)) ->  | T31: =IF(ISERROR(VLOOKUP($D31&$F31,'Rnd14'!$H:$I,2,FALSE)),"",VLOOKUP($D31&$F31,'Rnd14'!$H:$I,2,FALSE)) ->  | U31: =IF(ISERROR(VLOOKUP($D31&$F31,'Rnd15'!$H:$I,2,FALSE)),"",VLOOKUP($D31&$F31,'Rnd15'!$H:$I,2,FALSE)) -> 00:28:08 | V31: =IF(ISERROR(VLOOKUP($D31&$F31,'Rnd16'!$H:$I,2,FALSE)),"",VLOOKUP($D31&$F31,'Rnd16'!$H:$I,2,FALSE)) -> 00:27:33 | W31: =IF(ISERROR(VLOOKUP($D31&$F31,'Rnd17'!$H:$I,2,FALSE)),"",VLOOKUP($D31&$F31,'Rnd17'!$H:$I,2,FALSE)) -> 00:28:05 | X31: =IF(ISERROR(VLOOKUP($D31&$F31,'Rnd18'!$H:$I,2,FALSE)),"",VLOOKUP($D31&$F31,'Rnd18'!$H:$I,2,FALSE)) -> 00:27:46 | Y31: =IF(ISERROR(VLOOKUP($D31&$F31,'Rnd19'!$H:$I,2,FALSE)),"",VLOOKUP($D31&$F31,'Rnd19'!$H:$I,2,FALSE)) -> 00:27:52 | Z31: =IF(ISERROR(VLOOKUP($D31&$F31,'Rnd20'!$H:$I,2,FALSE)),"",VLOOKUP($D31&$F31,'Rnd20'!$H:$I,2,FALSE)) -> 00:28:10 | AA31: =IF(ISERROR(VLOOKUP($D31&$F31,'Rnd21'!$H:$I,2,FALSE)),"",VLOOKUP($D31&$F31,'Rnd21'!$H:$I,2,FALSE)) ->  | AB31: =IF(ISERROR(VLOOKUP($D31&$F31,'Rnd22'!$H:$I,2,FALSE)),"",VLOOKUP($D31&$F31,'Rnd22'!$H:$I,2,FALSE)) -> 00:14:07 | AC31: =SUM(AG31:BB31) -> 424 | AD31: =COUNT(AG31:BB31) -> 11 | AE31: =SUM(BG31:CB31) -> 424 | AF31: =COUNT(BG31:CB31) -> 11 | AG31: =IF(ISNUMBER(G31),VLOOKUP(_xlfn.RANK.EQ(G31,G$4:G$128,1),PointsTable,2),"") ->  | AH31: =IF(ISNUMBER(H31),VLOOKUP(_xlfn.RANK.EQ(H31,H$4:H$128,1),PointsTable,2),"") ->  | AI31: =IF(ISNUMBER(I31),VLOOKUP(_xlfn.RANK.EQ(I31,I$4:I$128,1),PointsTable,2),"") ->  | AJ31: =IF(ISNUMBER(J31),VLOOKUP(_xlfn.RANK.EQ(J31,J$4:J$128,1),PointsTable,2),"") ->  | AK31: =IF(ISNUMBER(K31),VLOOKUP(_xlfn.RANK.EQ(K31,K$4:K$128,1),PointsTable,2),"") ->  | AL31: =IF(ISNUMBER(L31),VLOOKUP(_xlfn.RANK.EQ(L31,L$4:L$128,1),PointsTable,2),"") ->  | AM31: =IF(ISNUMBER(M31),VLOOKUP(_xlfn.RANK.EQ(M31,M$4:M$128,1),PointsTable,2),"") ->  | AN31: =IF(ISNUMBER(N31),VLOOKUP(_xlfn.RANK.EQ(N31,N$4:N$128,1),PointsTable,2),"") -> 32 | AO31: =IF(ISNUMBER(O31),VLOOKUP(_xlfn.RANK.EQ(O31,O$4:O$128,1),PointsTable,2),"") -> 34 | AP31: =IF(ISNUMBER(P31),VLOOKUP(_xlfn.RANK.EQ(P31,P$4:P$128,1),PointsTable,2),"") -> 28 | AQ31: =IF(ISNUMBER(Q31),VLOOKUP(_xlfn.RANK.EQ(Q31,Q$4:Q$128,1),PointsTable,2),"") -> 32 | AR31: =IF(ISNUMBER(R31),VLOOKUP(_xlfn.RANK.EQ(R31,R$4:R$128,1),PointsTable,2),"") ->  | AS31: =IF(ISNUMBER(S31),VLOOKUP(_xlfn.RANK.EQ(S31,S$4:S$128,1),PointsTable,2),"") ->  | AT31: =IF(ISNUMBER(T31),VLOOKUP(_xlfn.RANK.EQ(T31,T$4:T$128,1),PointsTable,2),"") ->  | AU31: =IF(ISNUMBER(U31),VLOOKUP(_xlfn.RANK.EQ(U31,U$4:U$128,1),PointsTable,2),"") -> 47 | AV31: =IF(ISNUMBER(V31),VLOOKUP(_xlfn.RANK.EQ(V31,V$4:V$128,1),PointsTable,2),"") -> 41 | AW31: =IF(ISNUMBER(W31),VLOOKUP(_xlfn.RANK.EQ(W31,W$4:W$128,1),PointsTable,2),"") -> 38 | AX31: =IF(ISNUMBER(X31),VLOOKUP(_xlfn.RANK.EQ(X31,X$4:X$128,1),PointsTable,2),"") -> 40 | AY31: =IF(ISNUMBER(Y31),VLOOKUP(_xlfn.RANK.EQ(Y31,Y$4:Y$128,1),PointsTable,2),"") -> 41 | AZ31: =IF(ISNUMBER(Z31),VLOOKUP(_xlfn.RANK.EQ(Z31,Z$4:Z$128,1),PointsTable,2),"") -> 40 | BA31: =IF(ISNUMBER(AA31),VLOOKUP(_xlfn.RANK.EQ(AA31,AA$4:AA$128,1),PointsTable,2),"") ->  | BB31: =IF(ISNUMBER(AB31),VLOOKUP(_xlfn.RANK.EQ(AB31,AB$4:AB$128,1),PointsTable,2),"") -> 51 | BG31: =bestpoints(AG31, $AG31:$BB31, CountingRaces) ->  | BH31: =bestpoints(AH31, $AG31:$BB31, CountingRaces) ->  | BI31: =bestpoints(AI31, $AG31:$BB31, CountingRaces) ->  | BJ31: =bestpoints(AJ31, $AG31:$BB31, CountingRaces) ->  | BK31: =bestpoints(AK31, $AG31:$BB31, CountingRaces) ->  | BL31: =bestpoints(AL31, $AG31:$BB31, CountingRaces) ->  | BM31: =bestpoints(AM31, $AG31:$BB31, CountingRaces) ->  | BN31: =bestpoints(AN31, $AG31:$BB31, CountingRaces) -> 32 | BO31: =bestpoints(AO31, $AG31:$BB31, CountingRaces) -> 34 | BP31: =bestpoints(AP31, $AG31:$BB31, CountingRaces) -> 28 | BQ31: =bestpoints(AQ31, $AG31:$BB31, CountingRaces) -> 32 | BR31: =bestpoints(AR31, $AG31:$BB31, CountingRaces) ->  | BS31: =bestpoints(AS31, $AG31:$BB31, CountingRaces) ->  | BT31: =bestpoints(AT31, $AG31:$BB31, CountingRaces) ->  | BU31: =bestpoints(AU31, $AG31:$BB31, CountingRaces) -> 47 | BV31: =bestpoints(AV31, $AG31:$BB31, CountingRaces) -> 41 | BW31: =bestpoints(AW31, $AG31:$BB31, CountingRaces) -> 38 | BX31: =bestpoints(AX31, $AG31:$BB31, CountingRaces) -> 40 | BY31: =bestpoints(AY31, $AG31:$BB31, CountingRaces) -> 41 | BZ31: =bestpoints(AZ31, $AG31:$BB31, CountingRaces) -> 40 | CA31: =bestpoints(BA31, $AG31:$BB31, CountingRaces) ->  | CB31: =bestpoints(BB31, $AG31:$BB31, CountingRaces) -> 51
A32: =AE32/AF32 -> 34.25 | B32: 28 | C32: =IF(AF32 >0,RANK(AE32,AE$4:AE$128),"") -> 29 | D32: Emma Taylor | E32: LS | F32: SDCC | G32: =IF(ISERROR(VLOOKUP($D32&$F32,'Rnd1'!$H:$I,2,FALSE)),"",VLOOKUP($D32&$F32,'Rnd1'!$H:$I,2,FALSE)) ->  | H32: =IF(ISERROR(VLOOKUP($D32&$F32,'Rnd2'!$H:$I,2,FALSE)),"",VLOOKUP($D32&$F32,'Rnd2'!$H:$I,2,FALSE)) ->  | I32: =IF(ISERROR(VLOOKUP($D32&$F32,'Rnd3'!$H:$I,2,FALSE)),"",VLOOKUP($D32&$F32,'Rnd3'!$H:$I,2,FALSE)) ->  | J32: =IF(ISERROR(VLOOKUP($D32&$F32,'Rnd4'!$H:$I,2,FALSE)),"",VLOOKUP($D32&$F32,'Rnd4'!$H:$I,2,FALSE)) -> 00:32:11 | K32: =IF(ISERROR(VLOOKUP($D32&$F32,'Rnd5'!$H:$I,2,FALSE)),"",VLOOKUP($D32&$F32,'Rnd5'!$H:$I,2,FALSE)) ->  | L32: =IF(ISERROR(VLOOKUP($D32&$F32,'Rnd6'!$H:$I,2,FALSE)),"",VLOOKUP($D32&$F32,'Rnd6'!$H:$I,2,FALSE)) ->  | M32: =IF(ISERROR(VLOOKUP($D32&$F32,'Rnd7'!$H:$I,2,FALSE)),"",VLOOKUP($D32&$F32,'Rnd7'!$H:$I,2,FALSE)) -> 00:30:35 | N32: =IF(ISERROR(VLOOKUP($D32&$F32,'Rnd8'!$H:$I,2,FALSE)),"",VLOOKUP($D32&$F32,'Rnd8'!$H:$I,2,FALSE)) ->  | O32: =IF(ISERROR(VLOOKUP($D32&$F32,'Rnd9'!$H:$I,2,FALSE)),"",VLOOKUP($D32&$F32,'Rnd9'!$H:$I,2,FALSE)) -> 00:29:46 | P32: =IF(ISERROR(VLOOKUP($D32&$F32,'Rnd10'!$H:$I,2,FALSE)),"",VLOOKUP($D32&$F32,'Rnd10'!$H:$I,2,FALSE)) -> 00:29:38 | Q32: =IF(ISERROR(VLOOKUP($D32&$F32,'Rnd11'!$H:$I,2,FALSE)),"",VLOOKUP($D32&$F32,'Rnd11'!$H:$I,2,FALSE)) -> 00:29:41 | R32: =IF(ISERROR(VLOOKUP($D32&$F32,'Rnd12'!$H:$I,2,FALSE)),"",VLOOKUP($D32&$F32,'Rnd12'!$H:$I,2,FALSE)) -> 00:29:06 | S32: =IF(ISERROR(VLOOKUP($D32&$F32,'Rnd13'!$H:$I,2,FALSE)),"",VLOOKUP($D32&$F32,'Rnd13'!$H:$I,2,FALSE)) ->  | T32: =IF(ISERROR(VLOOKUP($D32&$F32,'Rnd14'!$H:$I,2,FALSE)),"",VLOOKUP($D32&$F32,'Rnd14'!$H:$I,2,FALSE)) -> 00:29:11 | U32: =IF(ISERROR(VLOOKUP($D32&$F32,'Rnd15'!$H:$I,2,FALSE)),"",VLOOKUP($D32&$F32,'Rnd15'!$H:$I,2,FALSE)) -> 00:29:05 | V32: =IF(ISERROR(VLOOKUP($D32&$F32,'Rnd16'!$H:$I,2,FALSE)),"",VLOOKUP($D32&$F32,'Rnd16'!$H:$I,2,FALSE)) ->  | W32: =IF(ISERROR(VLOOKUP($D32&$F32,'Rnd17'!$H:$I,2,FALSE)),"",VLOOKUP($D32&$F32,'Rnd17'!$H:$I,2,FALSE)) -> 00:29:17 | X32: =IF(ISERROR(VLOOKUP($D32&$F32,'Rnd18'!$H:$I,2,FALSE)),"",VLOOKUP($D32&$F32,'Rnd18'!$H:$I,2,FALSE)) -> 00:29:00 | Y32: =IF(ISERROR(VLOOKUP($D32&$F32,'Rnd19'!$H:$I,2,FALSE)),"",VLOOKUP($D32&$F32,'Rnd19'!$H:$I,2,FALSE)) ->  | Z32: =IF(ISERROR(VLOOKUP($D32&$F32,'Rnd20'!$H:$I,2,FALSE)),"",VLOOKUP($D32&$F32,'Rnd20'!$H:$I,2,FALSE)) -> 00:29:52 | AA32: =IF(ISERROR(VLOOKUP($D32&$F32,'Rnd21'!$H:$I,2,FALSE)),"",VLOOKUP($D32&$F32,'Rnd21'!$H:$I,2,FALSE)) -> 00:14:49 | AB32: =IF(ISERROR(VLOOKUP($D32&$F32,'Rnd22'!$H:$I,2,FALSE)),"",VLOOKUP($D32&$F32,'Rnd22'!$H:$I,2,FALSE)) ->  | AC32: =SUM(AG32:BB32) -> 411 | AD32: =COUNT(AG32:BB32) -> 12 | AE32: =SUM(BG32:CB32) -> 411 | AF32: =COUNT(BG32:CB32) -> 12 | AG32: =IF(ISNUMBER(G32),VLOOKUP(_xlfn.RANK.EQ(G32,G$4:G$128,1),PointsTable,2),"") ->  | AH32: =IF(ISNUMBER(H32),VLOOKUP(_xlfn.RANK.EQ(H32,H$4:H$128,1),PointsTable,2),"") ->  | AI32: =IF(ISNUMBER(I32),VLOOKUP(_xlfn.RANK.EQ(I32,I$4:I$128,1),PointsTable,2),"") ->  | AJ32: =IF(ISNUMBER(J32),VLOOKUP(_xlfn.RANK.EQ(J32,J$4:J$128,1),PointsTable,2),"") -> 32 | AK32: =IF(ISNUMBER(K32),VLOOKUP(_xlfn.RANK.EQ(K32,K$4:K$128,1),PointsTable,2),"") ->  | AL32: =IF(ISNUMBER(L32),VLOOKUP(_xlfn.RANK.EQ(L32,L$4:L$128,1),PointsTable,2),"") ->  | AM32: =IF(ISNUMBER(M32),VLOOKUP(_xlfn.RANK.EQ(M32,M$4:M$128,1),PointsTable,2),"") -> 32 | AN32: =IF(ISNUMBER(N32),VLOOKUP(_xlfn.RANK.EQ(N32,N$4:N$128,1),PointsTable,2),"") ->  | AO32: =IF(ISNUMBER(O32),VLOOKUP(_xlfn.RANK.EQ(O32,O$4:O$128,1),PointsTable,2),"") -> 31 | AP32: =IF(ISNUMBER(P32),VLOOKUP(_xlfn.RANK.EQ(P32,P$4:P$128,1),PointsTable,2),"") -> 22 | AQ32: =IF(ISNUMBER(Q32),VLOOKUP(_xlfn.RANK.EQ(Q32,Q$4:Q$128,1),PointsTable,2),"") -> 26 | AR32: =IF(ISNUMBER(R32),VLOOKUP(_xlfn.RANK.EQ(R32,R$4:R$128,1),PointsTable,2),"") -> 40 | AS32: =IF(ISNUMBER(S32),VLOOKUP(_xlfn.RANK.EQ(S32,S$4:S$128,1),PointsTable,2),"") ->  | AT32: =IF(ISNUMBER(T32),VLOOKUP(_xlfn.RANK.EQ(T32,T$4:T$128,1),PointsTable,2),"") -> 33 | AU32: =IF(ISNUMBER(U32),VLOOKUP(_xlfn.RANK.EQ(U32,U$4:U$128,1),PointsTable,2),"") -> 46 | AV32: =IF(ISNUMBER(V32),VLOOKUP(_xlfn.RANK.EQ(V32,V$4:V$128,1),PointsTable,2),"") ->  | AW32: =IF(ISNUMBER(W32),VLOOKUP(_xlfn.RANK.EQ(W32,W$4:W$128,1),PointsTable,2),"") -> 36 | AX32: =IF(ISNUMBER(X32),VLOOKUP(_xlfn.RANK.EQ(X32,X$4:X$128,1),PointsTable,2),"") -> 35 | AY32: =IF(ISNUMBER(Y32),VLOOKUP(_xlfn.RANK.EQ(Y32,Y$4:Y$128,1),PointsTable,2),"") ->  | AZ32: =IF(ISNUMBER(Z32),VLOOKUP(_xlfn.RANK.EQ(Z32,Z$4:Z$128,1),PointsTable,2),"") -> 37 | BA32: =IF(ISNUMBER(AA32),VLOOKUP(_xlfn.RANK.EQ(AA32,AA$4:AA$128,1),PointsTable,2),"") -> 41 | BB32: =IF(ISNUMBER(AB32),VLOOKUP(_xlfn.RANK.EQ(AB32,AB$4:AB$128,1),PointsTable,2),"") ->  | BG32: =bestpoints(AG32, $AG32:$BB32, CountingRaces) ->  | BH32: =bestpoints(AH32, $AG32:$BB32, CountingRaces) ->  | BI32: =bestpoints(AI32, $AG32:$BB32, CountingRaces) ->  | BJ32: =bestpoints(AJ32, $AG32:$BB32, CountingRaces) -> 32 | BK32: =bestpoints(AK32, $AG32:$BB32, CountingRaces) ->  | BL32: =bestpoints(AL32, $AG32:$BB32, CountingRaces) ->  | BM32: =bestpoints(AM32, $AG32:$BB32, CountingRaces) -> 32 | BN32: =bestpoints(AN32, $AG32:$BB32, CountingRaces) ->  | BO32: =bestpoints(AO32, $AG32:$BB32, CountingRaces) -> 31 | BP32: =bestpoints(AP32, $AG32:$BB32, CountingRaces) -> 22 | BQ32: =bestpoints(AQ32, $AG32:$BB32, CountingRaces) -> 26 | BR32: =bestpoints(AR32, $AG32:$BB32, CountingRaces) -> 40 | BS32: =bestpoints(AS32, $AG32:$BB32, CountingRaces) ->  | BT32: =bestpoints(AT32, $AG32:$BB32, CountingRaces) -> 33 | BU32: =bestpoints(AU32, $AG32:$BB32, CountingRaces) -> 46 | BV32: =bestpoints(AV32, $AG32:$BB32, CountingRaces) ->  | BW32: =bestpoints(AW32, $AG32:$BB32, CountingRaces) -> 36 | BX32: =bestpoints(AX32, $AG32:$BB32, CountingRaces) -> 35 | BY32: =bestpoints(AY32, $AG32:$BB32, CountingRaces) ->  | BZ32: =bestpoints(AZ32, $AG32:$BB32, CountingRaces) -> 37 | CA32: =bestpoints(BA32, $AG32:$BB32, CountingRaces) -> 41 | CB32: =bestpoints(BB32, $AG32:$BB32, CountingRaces) -> 
A33: =AE33/AF33 -> 56.42857143 | B33: 29 | C33: =IF(AF33 >0,RANK(AE33,AE$4:AE$128),"") -> 30 | D33: Adam Colbert | E33: S | F33: IBC | G33: =IF(ISERROR(VLOOKUP($D33&$F33,'Rnd1'!$H:$I,2,FALSE)),"",VLOOKUP($D33&$F33,'Rnd1'!$H:$I,2,FALSE)) -> 00:12:19 | H33: =IF(ISERROR(VLOOKUP($D33&$F33,'Rnd2'!$H:$I,2,FALSE)),"",VLOOKUP($D33&$F33,'Rnd2'!$H:$I,2,FALSE)) ->  | I33: =IF(ISERROR(VLOOKUP($D33&$F33,'Rnd3'!$H:$I,2,FALSE)),"",VLOOKUP($D33&$F33,'Rnd3'!$H:$I,2,FALSE)) ->  | J33: =IF(ISERROR(VLOOKUP($D33&$F33,'Rnd4'!$H:$I,2,FALSE)),"",VLOOKUP($D33&$F33,'Rnd4'!$H:$I,2,FALSE)) ->  | K33: =IF(ISERROR(VLOOKUP($D33&$F33,'Rnd5'!$H:$I,2,FALSE)),"",VLOOKUP($D33&$F33,'Rnd5'!$H:$I,2,FALSE)) ->  | L33: =IF(ISERROR(VLOOKUP($D33&$F33,'Rnd6'!$H:$I,2,FALSE)),"",VLOOKUP($D33&$F33,'Rnd6'!$H:$I,2,FALSE)) ->  | M33: =IF(ISERROR(VLOOKUP($D33&$F33,'Rnd7'!$H:$I,2,FALSE)),"",VLOOKUP($D33&$F33,'Rnd7'!$H:$I,2,FALSE)) ->  | N33: =IF(ISERROR(VLOOKUP($D33&$F33,'Rnd8'!$H:$I,2,FALSE)),"",VLOOKUP($D33&$F33,'Rnd8'!$H:$I,2,FALSE)) ->  | O33: =IF(ISERROR(VLOOKUP($D33&$F33,'Rnd9'!$H:$I,2,FALSE)),"",VLOOKUP($D33&$F33,'Rnd9'!$H:$I,2,FALSE)) -> 00:24:01 | P33: =IF(ISERROR(VLOOKUP($D33&$F33,'Rnd10'!$H:$I,2,FALSE)),"",VLOOKUP($D33&$F33,'Rnd10'!$H:$I,2,FALSE)) -> 00:23:35 | Q33: =IF(ISERROR(VLOOKUP($D33&$F33,'Rnd11'!$H:$I,2,FALSE)),"",VLOOKUP($D33&$F33,'Rnd11'!$H:$I,2,FALSE)) -> 00:23:18 | R33: =IF(ISERROR(VLOOKUP($D33&$F33,'Rnd12'!$H:$I,2,FALSE)),"",VLOOKUP($D33&$F33,'Rnd12'!$H:$I,2,FALSE)) -> 00:23:37 | S33: =IF(ISERROR(VLOOKUP($D33&$F33,'Rnd13'!$H:$I,2,FALSE)),"",VLOOKUP($D33&$F33,'Rnd13'!$H:$I,2,FALSE)) -> 00:23:12 | T33: =IF(ISERROR(VLOOKUP($D33&$F33,'Rnd14'!$H:$I,2,FALSE)),"",VLOOKUP($D33&$F33,'Rnd14'!$H:$I,2,FALSE)) -> 00:23:07 | U33: =IF(ISERROR(VLOOKUP($D33&$F33,'Rnd15'!$H:$I,2,FALSE)),"",VLOOKUP($D33&$F33,'Rnd15'!$H:$I,2,FALSE)) ->  | V33: =IF(ISERROR(VLOOKUP($D33&$F33,'Rnd16'!$H:$I,2,FALSE)),"",VLOOKUP($D33&$F33,'Rnd16'!$H:$I,2,FALSE)) ->  | W33: =IF(ISERROR(VLOOKUP($D33&$F33,'Rnd17'!$H:$I,2,FALSE)),"",VLOOKUP($D33&$F33,'Rnd17'!$H:$I,2,FALSE)) ->  | X33: =IF(ISERROR(VLOOKUP($D33&$F33,'Rnd18'!$H:$I,2,FALSE)),"",VLOOKUP($D33&$F33,'Rnd18'!$H:$I,2,FALSE)) ->  | Y33: =IF(ISERROR(VLOOKUP($D33&$F33,'Rnd19'!$H:$I,2,FALSE)),"",VLOOKUP($D33&$F33,'Rnd19'!$H:$I,2,FALSE)) ->  | Z33: =IF(ISERROR(VLOOKUP($D33&$F33,'Rnd20'!$H:$I,2,FALSE)),"",VLOOKUP($D33&$F33,'Rnd20'!$H:$I,2,FALSE)) ->  | AA33: =IF(ISERROR(VLOOKUP($D33&$F33,'Rnd21'!$H:$I,2,FALSE)),"",VLOOKUP($D33&$F33,'Rnd21'!$H:$I,2,FALSE)) ->  | AB33: =IF(ISERROR(VLOOKUP($D33&$F33,'Rnd22'!$H:$I,2,FALSE)),"",VLOOKUP($D33&$F33,'Rnd22'!$H:$I,2,FALSE)) ->  | AC33: =SUM(AG33:BB33) -> 395 | AD33: =COUNT(AG33:BB33) -> 7 | AE33: =SUM(BG33:CB33) -> 395 | AF33: =COUNT(BG33:CB33) -> 7 | AG33: =IF(ISNUMBER(G33),VLOOKUP(_xlfn.RANK.EQ(G33,G$4:G$128,1),PointsTable,2),"") -> 58 | AH33: =IF(ISNUMBER(H33),VLOOKUP(_xlfn.RANK.EQ(H33,H$4:H$128,1),PointsTable,2),"") ->  | AI33: =IF(ISNUMBER(I33),VLOOKUP(_xlfn.RANK.EQ(I33,I$4:I$128,1),PointsTable,2),"") ->  | AJ33: =IF(ISNUMBER(J33),VLOOKUP(_xlfn.RANK.EQ(J33,J$4:J$128,1),PointsTable,2),"") ->  | AK33: =IF(ISNUMBER(K33),VLOOKUP(_xlfn.RANK.EQ(K33,K$4:K$128,1),PointsTable,2),"") ->  | AL33: =IF(ISNUMBER(L33),VLOOKUP(_xlfn.RANK.EQ(L33,L$4:L$128,1),PointsTable,2),"") ->  | AM33: =IF(ISNUMBER(M33),VLOOKUP(_xlfn.RANK.EQ(M33,M$4:M$128,1),PointsTable,2),"") ->  | AN33: =IF(ISNUMBER(N33),VLOOKUP(_xlfn.RANK.EQ(N33,N$4:N$128,1),PointsTable,2),"") ->  | AO33: =IF(ISNUMBER(O33),VLOOKUP(_xlfn.RANK.EQ(O33,O$4:O$128,1),PointsTable,2),"") -> 53 | AP33: =IF(ISNUMBER(P33),VLOOKUP(_xlfn.RANK.EQ(P33,P$4:P$128,1),PointsTable,2),"") -> 57 | AQ33: =IF(ISNUMBER(Q33),VLOOKUP(_xlfn.RANK.EQ(Q33,Q$4:Q$128,1),PointsTable,2),"") -> 57 | AR33: =IF(ISNUMBER(R33),VLOOKUP(_xlfn.RANK.EQ(R33,R$4:R$128,1),PointsTable,2),"") -> 56 | AS33: =IF(ISNUMBER(S33),VLOOKUP(_xlfn.RANK.EQ(S33,S$4:S$128,1),PointsTable,2),"") -> 57 | AT33: =IF(ISNUMBER(T33),VLOOKUP(_xlfn.RANK.EQ(T33,T$4:T$128,1),PointsTable,2),"") -> 57 | AU33: =IF(ISNUMBER(U33),VLOOKUP(_xlfn.RANK.EQ(U33,U$4:U$128,1),PointsTable,2),"") ->  | AV33: =IF(ISNUMBER(V33),VLOOKUP(_xlfn.RANK.EQ(V33,V$4:V$128,1),PointsTable,2),"") ->  | AW33: =IF(ISNUMBER(W33),VLOOKUP(_xlfn.RANK.EQ(W33,W$4:W$128,1),PointsTable,2),"") ->  | AX33: =IF(ISNUMBER(X33),VLOOKUP(_xlfn.RANK.EQ(X33,X$4:X$128,1),PointsTable,2),"") ->  | AY33: =IF(ISNUMBER(Y33),VLOOKUP(_xlfn.RANK.EQ(Y33,Y$4:Y$128,1),PointsTable,2),"") ->  | AZ33: =IF(ISNUMBER(Z33),VLOOKUP(_xlfn.RANK.EQ(Z33,Z$4:Z$128,1),PointsTable,2),"") ->  | BA33: =IF(ISNUMBER(AA33),VLOOKUP(_xlfn.RANK.EQ(AA33,AA$4:AA$128,1),PointsTable,2),"") ->  | BB33: =IF(ISNUMBER(AB33),VLOOKUP(_xlfn.RANK.EQ(AB33,AB$4:AB$128,1),PointsTable,2),"") ->  | BG33: =bestpoints(AG33, $AG33:$BB33, CountingRaces) -> 58 | BH33: =bestpoints(AH33, $AG33:$BB33, CountingRaces) ->  | BI33: =bestpoints(AI33, $AG33:$BB33, CountingRaces) ->  | BJ33: =bestpoints(AJ33, $AG33:$BB33, CountingRaces) ->  | BK33: =bestpoints(AK33, $AG33:$BB33, CountingRaces) ->  | BL33: =bestpoints(AL33, $AG33:$BB33, CountingRaces) ->  | BM33: =bestpoints(AM33, $AG33:$BB33, CountingRaces) ->  | BN33: =bestpoints(AN33, $AG33:$BB33, CountingRaces) ->  | BO33: =bestpoints(AO33, $AG33:$BB33, CountingRaces) -> 53 | BP33: =bestpoints(AP33, $AG33:$BB33, CountingRaces) -> 57 | BQ33: =bestpoints(AQ33, $AG33:$BB33, CountingRaces) -> 57 | BR33: =bestpoints(AR33, $AG33:$BB33, CountingRaces) -> 56 | BS33: =bestpoints(AS33, $AG33:$BB33, CountingRaces) -> 57 | BT33: =bestpoints(AT33, $AG33:$BB33, CountingRaces) -> 57 | BU33: =bestpoints(AU33, $AG33:$BB33, CountingRaces) ->  | BV33: =bestpoints(AV33, $AG33:$BB33, CountingRaces) ->  | BW33: =bestpoints(AW33, $AG33:$BB33, CountingRaces) ->  | BX33: =bestpoints(AX33, $AG33:$BB33, CountingRaces) ->  | BY33: =bestpoints(AY33, $AG33:$BB33, CountingRaces) ->  | BZ33: =bestpoints(AZ33, $AG33:$BB33, CountingRaces) ->  | CA33: =bestpoints(BA33, $AG33:$BB33, CountingRaces) ->  | CB33: =bestpoints(BB33, $AG33:$BB33, CountingRaces) -> 
A34: =AE34/AF34 -> 48.625 | B34: 30 | C34: =IF(AF34 >0,RANK(AE34,AE$4:AE$128),"") -> 31 | D34: Grahame Hamilton | E34: V50 | F34: SDCC | G34: =IF(ISERROR(VLOOKUP($D34&$F34,'Rnd1'!$H:$I,2,FALSE)),"",VLOOKUP($D34&$F34,'Rnd1'!$H:$I,2,FALSE)) ->  | H34: =IF(ISERROR(VLOOKUP($D34&$F34,'Rnd2'!$H:$I,2,FALSE)),"",VLOOKUP($D34&$F34,'Rnd2'!$H:$I,2,FALSE)) -> 00:13:38 | I34: =IF(ISERROR(VLOOKUP($D34&$F34,'Rnd3'!$H:$I,2,FALSE)),"",VLOOKUP($D34&$F34,'Rnd3'!$H:$I,2,FALSE)) ->  | J34: =IF(ISERROR(VLOOKUP($D34&$F34,'Rnd4'!$H:$I,2,FALSE)),"",VLOOKUP($D34&$F34,'Rnd4'!$H:$I,2,FALSE)) -> 00:26:44 | K34: =IF(ISERROR(VLOOKUP($D34&$F34,'Rnd5'!$H:$I,2,FALSE)),"",VLOOKUP($D34&$F34,'Rnd5'!$H:$I,2,FALSE)) -> 00:25:57 | L34: =IF(ISERROR(VLOOKUP($D34&$F34,'Rnd6'!$H:$I,2,FALSE)),"",VLOOKUP($D34&$F34,'Rnd6'!$H:$I,2,FALSE)) -> 00:25:06 | M34: =IF(ISERROR(VLOOKUP($D34&$F34,'Rnd7'!$H:$I,2,FALSE)),"",VLOOKUP($D34&$F34,'Rnd7'!$H:$I,2,FALSE)) -> 00:25:52 | N34: =IF(ISERROR(VLOOKUP($D34&$F34,'Rnd8'!$H:$I,2,FALSE)),"",VLOOKUP($D34&$F34,'Rnd8'!$H:$I,2,FALSE)) -> 00:25:25 | O34: =IF(ISERROR(VLOOKUP($D34&$F34,'Rnd9'!$H:$I,2,FALSE)),"",VLOOKUP($D34&$F34,'Rnd9'!$H:$I,2,FALSE)) -> 00:25:00 | P34: =IF(ISERROR(VLOOKUP($D34&$F34,'Rnd10'!$H:$I,2,FALSE)),"",VLOOKUP($D34&$F34,'Rnd10'!$H:$I,2,FALSE)) -> DNF | Q34: =IF(ISERROR(VLOOKUP($D34&$F34,'Rnd11'!$H:$I,2,FALSE)),"",VLOOKUP($D34&$F34,'Rnd11'!$H:$I,2,FALSE)) -> 00:25:07 | R34: =IF(ISERROR(VLOOKUP($D34&$F34,'Rnd12'!$H:$I,2,FALSE)),"",VLOOKUP($D34&$F34,'Rnd12'!$H:$I,2,FALSE)) ->  | S34: =IF(ISERROR(VLOOKUP($D34&$F34,'Rnd13'!$H:$I,2,FALSE)),"",VLOOKUP($D34&$F34,'Rnd13'!$H:$I,2,FALSE)) ->  | T34: =IF(ISERROR(VLOOKUP($D34&$F34,'Rnd14'!$H:$I,2,FALSE)),"",VLOOKUP($D34&$F34,'Rnd14'!$H:$I,2,FALSE)) ->  | U34: =IF(ISERROR(VLOOKUP($D34&$F34,'Rnd15'!$H:$I,2,FALSE)),"",VLOOKUP($D34&$F34,'Rnd15'!$H:$I,2,FALSE)) ->  | V34: =IF(ISERROR(VLOOKUP($D34&$F34,'Rnd16'!$H:$I,2,FALSE)),"",VLOOKUP($D34&$F34,'Rnd16'!$H:$I,2,FALSE)) ->  | W34: =IF(ISERROR(VLOOKUP($D34&$F34,'Rnd17'!$H:$I,2,FALSE)),"",VLOOKUP($D34&$F34,'Rnd17'!$H:$I,2,FALSE)) ->  | X34: =IF(ISERROR(VLOOKUP($D34&$F34,'Rnd18'!$H:$I,2,FALSE)),"",VLOOKUP($D34&$F34,'Rnd18'!$H:$I,2,FALSE)) ->  | Y34: =IF(ISERROR(VLOOKUP($D34&$F34,'Rnd19'!$H:$I,2,FALSE)),"",VLOOKUP($D34&$F34,'Rnd19'!$H:$I,2,FALSE)) ->  | Z34: =IF(ISERROR(VLOOKUP($D34&$F34,'Rnd20'!$H:$I,2,FALSE)),"",VLOOKUP($D34&$F34,'Rnd20'!$H:$I,2,FALSE)) ->  | AA34: =IF(ISERROR(VLOOKUP($D34&$F34,'Rnd21'!$H:$I,2,FALSE)),"",VLOOKUP($D34&$F34,'Rnd21'!$H:$I,2,FALSE)) ->  | AB34: =IF(ISERROR(VLOOKUP($D34&$F34,'Rnd22'!$H:$I,2,FALSE)),"",VLOOKUP($D34&$F34,'Rnd22'!$H:$I,2,FALSE)) ->  | AC34: =SUM(AG34:BB34) -> 389 | AD34: =COUNT(AG34:BB34) -> 8 | AE34: =SUM(BG34:CB34) -> 389 | AF34: =COUNT(BG34:CB34) -> 8 | AG34: =IF(ISNUMBER(G34),VLOOKUP(_xlfn.RANK.EQ(G34,G$4:G$128,1),PointsTable,2),"") ->  | AH34: =IF(ISNUMBER(H34),VLOOKUP(_xlfn.RANK.EQ(H34,H$4:H$128,1),PointsTable,2),"") -> 46 | AI34: =IF(ISNUMBER(I34),VLOOKUP(_xlfn.RANK.EQ(I34,I$4:I$128,1),PointsTable,2),"") ->  | AJ34: =IF(ISNUMBER(J34),VLOOKUP(_xlfn.RANK.EQ(J34,J$4:J$128,1),PointsTable,2),"") -> 46 | AK34: =IF(ISNUMBER(K34),VLOOKUP(_xlfn.RANK.EQ(K34,K$4:K$128,1),PointsTable,2),"") -> 49 | AL34: =IF(ISNUMBER(L34),VLOOKUP(_xlfn.RANK.EQ(L34,L$4:L$128,1),PointsTable,2),"") -> 51 | AM34: =IF(ISNUMBER(M34),VLOOKUP(_xlfn.RANK.EQ(M34,M$4:M$128,1),PointsTable,2),"") -> 51 | AN34: =IF(ISNUMBER(N34),VLOOKUP(_xlfn.RANK.EQ(N34,N$4:N$128,1),PointsTable,2),"") -> 50 | AO34: =IF(ISNUMBER(O34),VLOOKUP(_xlfn.RANK.EQ(O34,O$4:O$128,1),PointsTable,2),"") -> 47 | AP34: =IF(ISNUMBER(P34),VLOOKUP(_xlfn.RANK.EQ(P34,P$4:P$128,1),PointsTable,2),"") ->  | AQ34: =IF(ISNUMBER(Q34),VLOOKUP(_xlfn.RANK.EQ(Q34,Q$4:Q$128,1),PointsTable,2),"") -> 49 | AR34: =IF(ISNUMBER(R34),VLOOKUP(_xlfn.RANK.EQ(R34,R$4:R$128,1),PointsTable,2),"") ->  | AS34: =IF(ISNUMBER(S34),VLOOKUP(_xlfn.RANK.EQ(S34,S$4:S$128,1),PointsTable,2),"") ->  | AT34: =IF(ISNUMBER(T34),VLOOKUP(_xlfn.RANK.EQ(T34,T$4:T$128,1),PointsTable,2),"") ->  | AU34: =IF(ISNUMBER(U34),VLOOKUP(_xlfn.RANK.EQ(U34,U$4:U$128,1),PointsTable,2),"") ->  | AV34: =IF(ISNUMBER(V34),VLOOKUP(_xlfn.RANK.EQ(V34,V$4:V$128,1),PointsTable,2),"") ->  | AW34: =IF(ISNUMBER(W34),VLOOKUP(_xlfn.RANK.EQ(W34,W$4:W$128,1),PointsTable,2),"") ->  | AX34: =IF(ISNUMBER(X34),VLOOKUP(_xlfn.RANK.EQ(X34,X$4:X$128,1),PointsTable,2),"") ->  | AY34: =IF(ISNUMBER(Y34),VLOOKUP(_xlfn.RANK.EQ(Y34,Y$4:Y$128,1),PointsTable,2),"") ->  | AZ34: =IF(ISNUMBER(Z34),VLOOKUP(_xlfn.RANK.EQ(Z34,Z$4:Z$128,1),PointsTable,2),"") ->  | BA34: =IF(ISNUMBER(AA34),VLOOKUP(_xlfn.RANK.EQ(AA34,AA$4:AA$128,1),PointsTable,2),"") ->  | BB34: =IF(ISNUMBER(AB34),VLOOKUP(_xlfn.RANK.EQ(AB34,AB$4:AB$128,1),PointsTable,2),"") ->  | BG34: =bestpoints(AG34, $AG34:$BB34, CountingRaces) ->  | BH34: =bestpoints(AH34, $AG34:$BB34, CountingRaces) -> 46 | BI34: =bestpoints(AI34, $AG34:$BB34, CountingRaces) ->  | BJ34: =bestpoints(AJ34, $AG34:$BB34, CountingRaces) -> 46 | BK34: =bestpoints(AK34, $AG34:$BB34, CountingRaces) -> 49 | BL34: =bestpoints(AL34, $AG34:$BB34, CountingRaces) -> 51 | BM34: =bestpoints(AM34, $AG34:$BB34, CountingRaces) -> 51 | BN34: =bestpoints(AN34, $AG34:$BB34, CountingRaces) -> 50 | BO34: =bestpoints(AO34, $AG34:$BB34, CountingRaces) -> 47 | BP34: =bestpoints(AP34, $AG34:$BB34, CountingRaces) ->  | BQ34: =bestpoints(AQ34, $AG34:$BB34, CountingRaces) -> 49 | BR34: =bestpoints(AR34, $AG34:$BB34, CountingRaces) ->  | BS34: =bestpoints(AS34, $AG34:$BB34, CountingRaces) ->  | BT34: =bestpoints(AT34, $AG34:$BB34, CountingRaces) ->  | BU34: =bestpoints(AU34, $AG34:$BB34, CountingRaces) ->  | BV34: =bestpoints(AV34, $AG34:$BB34, CountingRaces) ->  | BW34: =bestpoints(AW34, $AG34:$BB34, CountingRaces) ->  | BX34: =bestpoints(AX34, $AG34:$BB34, CountingRaces) ->  | BY34: =bestpoints(AY34, $AG34:$BB34, CountingRaces) ->  | BZ34: =bestpoints(AZ34, $AG34:$BB34, CountingRaces) ->  | CA34: =bestpoints(BA34, $AG34:$BB34, CountingRaces) ->  | CB34: =bestpoints(BB34, $AG34:$BB34, CountingRaces) -> 
A35: =AE35/AF35 -> 31.25 | B35: 31 | C35: =IF(AF35 >0,RANK(AE35,AE$4:AE$128),"") -> 32 | D35: Hayley Roche | E35: LV40 | F35: ITC | G35: =IF(ISERROR(VLOOKUP($D35&$F35,'Rnd1'!$H:$I,2,FALSE)),"",VLOOKUP($D35&$F35,'Rnd1'!$H:$I,2,FALSE)) ->  | H35: =IF(ISERROR(VLOOKUP($D35&$F35,'Rnd2'!$H:$I,2,FALSE)),"",VLOOKUP($D35&$F35,'Rnd2'!$H:$I,2,FALSE)) ->  | I35: =IF(ISERROR(VLOOKUP($D35&$F35,'Rnd3'!$H:$I,2,FALSE)),"",VLOOKUP($D35&$F35,'Rnd3'!$H:$I,2,FALSE)) ->  | J35: =IF(ISERROR(VLOOKUP($D35&$F35,'Rnd4'!$H:$I,2,FALSE)),"",VLOOKUP($D35&$F35,'Rnd4'!$H:$I,2,FALSE)) ->  | K35: =IF(ISERROR(VLOOKUP($D35&$F35,'Rnd5'!$H:$I,2,FALSE)),"",VLOOKUP($D35&$F35,'Rnd5'!$H:$I,2,FALSE)) ->  | L35: =IF(ISERROR(VLOOKUP($D35&$F35,'Rnd6'!$H:$I,2,FALSE)),"",VLOOKUP($D35&$F35,'Rnd6'!$H:$I,2,FALSE)) -> 00:34:22 | M35: =IF(ISERROR(VLOOKUP($D35&$F35,'Rnd7'!$H:$I,2,FALSE)),"",VLOOKUP($D35&$F35,'Rnd7'!$H:$I,2,FALSE)) -> 00:35:04 | N35: =IF(ISERROR(VLOOKUP($D35&$F35,'Rnd8'!$H:$I,2,FALSE)),"",VLOOKUP($D35&$F35,'Rnd8'!$H:$I,2,FALSE)) -> 00:35:28 | O35: =IF(ISERROR(VLOOKUP($D35&$F35,'Rnd9'!$H:$I,2,FALSE)),"",VLOOKUP($D35&$F35,'Rnd9'!$H:$I,2,FALSE)) -> 00:34:23 | P35: =IF(ISERROR(VLOOKUP($D35&$F35,'Rnd10'!$H:$I,2,FALSE)),"",VLOOKUP($D35&$F35,'Rnd10'!$H:$I,2,FALSE)) -> 00:32:55 | Q35: =IF(ISERROR(VLOOKUP($D35&$F35,'Rnd11'!$H:$I,2,FALSE)),"",VLOOKUP($D35&$F35,'Rnd11'!$H:$I,2,FALSE)) -> 00:33:34 | R35: =IF(ISERROR(VLOOKUP($D35&$F35,'Rnd12'!$H:$I,2,FALSE)),"",VLOOKUP($D35&$F35,'Rnd12'!$H:$I,2,FALSE)) -> 00:33:39 | S35: =IF(ISERROR(VLOOKUP($D35&$F35,'Rnd13'!$H:$I,2,FALSE)),"",VLOOKUP($D35&$F35,'Rnd13'!$H:$I,2,FALSE)) -> 00:33:22 | T35: =IF(ISERROR(VLOOKUP($D35&$F35,'Rnd14'!$H:$I,2,FALSE)),"",VLOOKUP($D35&$F35,'Rnd14'!$H:$I,2,FALSE)) -> 00:33:39 | U35: =IF(ISERROR(VLOOKUP($D35&$F35,'Rnd15'!$H:$I,2,FALSE)),"",VLOOKUP($D35&$F35,'Rnd15'!$H:$I,2,FALSE)) -> 00:35:27 | V35: =IF(ISERROR(VLOOKUP($D35&$F35,'Rnd16'!$H:$I,2,FALSE)),"",VLOOKUP($D35&$F35,'Rnd16'!$H:$I,2,FALSE)) ->  | W35: =IF(ISERROR(VLOOKUP($D35&$F35,'Rnd17'!$H:$I,2,FALSE)),"",VLOOKUP($D35&$F35,'Rnd17'!$H:$I,2,FALSE)) -> 00:35:28 | X35: =IF(ISERROR(VLOOKUP($D35&$F35,'Rnd18'!$H:$I,2,FALSE)),"",VLOOKUP($D35&$F35,'Rnd18'!$H:$I,2,FALSE)) -> 00:34:19 | Y35: =IF(ISERROR(VLOOKUP($D35&$F35,'Rnd19'!$H:$I,2,FALSE)),"",VLOOKUP($D35&$F35,'Rnd19'!$H:$I,2,FALSE)) -> 00:35:11 | Z35: =IF(ISERROR(VLOOKUP($D35&$F35,'Rnd20'!$H:$I,2,FALSE)),"",VLOOKUP($D35&$F35,'Rnd20'!$H:$I,2,FALSE)) -> 00:35:12 | AA35: =IF(ISERROR(VLOOKUP($D35&$F35,'Rnd21'!$H:$I,2,FALSE)),"",VLOOKUP($D35&$F35,'Rnd21'!$H:$I,2,FALSE)) ->  | AB35: =IF(ISERROR(VLOOKUP($D35&$F35,'Rnd22'!$H:$I,2,FALSE)),"",VLOOKUP($D35&$F35,'Rnd22'!$H:$I,2,FALSE)) ->  | AC35: =SUM(AG35:BB35) -> 418 | AD35: =COUNT(AG35:BB35) -> 14 | AE35: =SUM(BG35:CB35) -> 375 | AF35: =COUNT(BG35:CB35) -> 12 | AG35: =IF(ISNUMBER(G35),VLOOKUP(_xlfn.RANK.EQ(G35,G$4:G$128,1),PointsTable,2),"") ->  | AH35: =IF(ISNUMBER(H35),VLOOKUP(_xlfn.RANK.EQ(H35,H$4:H$128,1),PointsTable,2),"") ->  | AI35: =IF(ISNUMBER(I35),VLOOKUP(_xlfn.RANK.EQ(I35,I$4:I$128,1),PointsTable,2),"") ->  | AJ35: =IF(ISNUMBER(J35),VLOOKUP(_xlfn.RANK.EQ(J35,J$4:J$128,1),PointsTable,2),"") ->  | AK35: =IF(ISNUMBER(K35),VLOOKUP(_xlfn.RANK.EQ(K35,K$4:K$128,1),PointsTable,2),"") ->  | AL35: =IF(ISNUMBER(L35),VLOOKUP(_xlfn.RANK.EQ(L35,L$4:L$128,1),PointsTable,2),"") -> 31 | AM35: =IF(ISNUMBER(M35),VLOOKUP(_xlfn.RANK.EQ(M35,M$4:M$128,1),PointsTable,2),"") -> 29 | AN35: =IF(ISNUMBER(N35),VLOOKUP(_xlfn.RANK.EQ(N35,N$4:N$128,1),PointsTable,2),"") -> 26 | AO35: =IF(ISNUMBER(O35),VLOOKUP(_xlfn.RANK.EQ(O35,O$4:O$128,1),PointsTable,2),"") -> 26 | AP35: =IF(ISNUMBER(P35),VLOOKUP(_xlfn.RANK.EQ(P35,P$4:P$128,1),PointsTable,2),"") -> 19 | AQ35: =IF(ISNUMBER(Q35),VLOOKUP(_xlfn.RANK.EQ(Q35,Q$4:Q$128,1),PointsTable,2),"") -> 24 | AR35: =IF(ISNUMBER(R35),VLOOKUP(_xlfn.RANK.EQ(R35,R$4:R$128,1),PointsTable,2),"") -> 36 | AS35: =IF(ISNUMBER(S35),VLOOKUP(_xlfn.RANK.EQ(S35,S$4:S$128,1),PointsTable,2),"") -> 26 | AT35: =IF(ISNUMBER(T35),VLOOKUP(_xlfn.RANK.EQ(T35,T$4:T$128,1),PointsTable,2),"") -> 29 | AU35: =IF(ISNUMBER(U35),VLOOKUP(_xlfn.RANK.EQ(U35,U$4:U$128,1),PointsTable,2),"") -> 43 | AV35: =IF(ISNUMBER(V35),VLOOKUP(_xlfn.RANK.EQ(V35,V$4:V$128,1),PointsTable,2),"") ->  | AW35: =IF(ISNUMBER(W35),VLOOKUP(_xlfn.RANK.EQ(W35,W$4:W$128,1),PointsTable,2),"") -> 30 | AX35: =IF(ISNUMBER(X35),VLOOKUP(_xlfn.RANK.EQ(X35,X$4:X$128,1),PointsTable,2),"") -> 32 | AY35: =IF(ISNUMBER(Y35),VLOOKUP(_xlfn.RANK.EQ(Y35,Y$4:Y$128,1),PointsTable,2),"") -> 34 | AZ35: =IF(ISNUMBER(Z35),VLOOKUP(_xlfn.RANK.EQ(Z35,Z$4:Z$128,1),PointsTable,2),"") -> 33 | BA35: =IF(ISNUMBER(AA35),VLOOKUP(_xlfn.RANK.EQ(AA35,AA$4:AA$128,1),PointsTable,2),"") ->  | BB35: =IF(ISNUMBER(AB35),VLOOKUP(_xlfn.RANK.EQ(AB35,AB$4:AB$128,1),PointsTable,2),"") ->  | BG35: =bestpoints(AG35, $AG35:$BB35, CountingRaces) ->  | BH35: =bestpoints(AH35, $AG35:$BB35, CountingRaces) ->  | BI35: =bestpoints(AI35, $AG35:$BB35, CountingRaces) ->  | BJ35: =bestpoints(AJ35, $AG35:$BB35, CountingRaces) ->  | BK35: =bestpoints(AK35, $AG35:$BB35, CountingRaces) ->  | BL35: =bestpoints(AL35, $AG35:$BB35, CountingRaces) -> 31 | BM35: =bestpoints(AM35, $AG35:$BB35, CountingRaces) -> 29 | BN35: =bestpoints(AN35, $AG35:$BB35, CountingRaces) -> 26 | BO35: =bestpoints(AO35, $AG35:$BB35, CountingRaces) -> 26 | BP35: =bestpoints(AP35, $AG35:$BB35, CountingRaces) ->  | BQ35: =bestpoints(AQ35, $AG35:$BB35, CountingRaces) ->  | BR35: =bestpoints(AR35, $AG35:$BB35, CountingRaces) -> 36 | BS35: =bestpoints(AS35, $AG35:$BB35, CountingRaces) -> 26 | BT35: =bestpoints(AT35, $AG35:$BB35, CountingRaces) -> 29 | BU35: =bestpoints(AU35, $AG35:$BB35, CountingRaces) -> 43 | BV35: =bestpoints(AV35, $AG35:$BB35, CountingRaces) ->  | BW35: =bestpoints(AW35, $AG35:$BB35, CountingRaces) -> 30 | BX35: =bestpoints(AX35, $AG35:$BB35, CountingRaces) -> 32 | BY35: =bestpoints(AY35, $AG35:$BB35, CountingRaces) -> 34 | BZ35: =bestpoints(AZ35, $AG35:$BB35, CountingRaces) -> 33 | CA35: =bestpoints(BA35, $AG35:$BB35, CountingRaces) ->  | CB35: =bestpoints(BB35, $AG35:$BB35, CountingRaces) -> 
A36: =AE36/AF36 -> 41.66666667 | B36: 31 | C36: =IF(AF36 >0,RANK(AE36,AE$4:AE$128),"") -> 32 | D36: Paul Collins | E36: V60 | F36: ITC | G36: =IF(ISERROR(VLOOKUP($D36&$F36,'Rnd1'!$H:$I,2,FALSE)),"",VLOOKUP($D36&$F36,'Rnd1'!$H:$I,2,FALSE)) ->  | H36: =IF(ISERROR(VLOOKUP($D36&$F36,'Rnd2'!$H:$I,2,FALSE)),"",VLOOKUP($D36&$F36,'Rnd2'!$H:$I,2,FALSE)) ->  | I36: =IF(ISERROR(VLOOKUP($D36&$F36,'Rnd3'!$H:$I,2,FALSE)),"",VLOOKUP($D36&$F36,'Rnd3'!$H:$I,2,FALSE)) ->  | J36: =IF(ISERROR(VLOOKUP($D36&$F36,'Rnd4'!$H:$I,2,FALSE)),"",VLOOKUP($D36&$F36,'Rnd4'!$H:$I,2,FALSE)) ->  | K36: =IF(ISERROR(VLOOKUP($D36&$F36,'Rnd5'!$H:$I,2,FALSE)),"",VLOOKUP($D36&$F36,'Rnd5'!$H:$I,2,FALSE)) ->  | L36: =IF(ISERROR(VLOOKUP($D36&$F36,'Rnd6'!$H:$I,2,FALSE)),"",VLOOKUP($D36&$F36,'Rnd6'!$H:$I,2,FALSE)) ->  | M36: =IF(ISERROR(VLOOKUP($D36&$F36,'Rnd7'!$H:$I,2,FALSE)),"",VLOOKUP($D36&$F36,'Rnd7'!$H:$I,2,FALSE)) -> DNF | N36: =IF(ISERROR(VLOOKUP($D36&$F36,'Rnd8'!$H:$I,2,FALSE)),"",VLOOKUP($D36&$F36,'Rnd8'!$H:$I,2,FALSE)) -> 00:27:46 | O36: =IF(ISERROR(VLOOKUP($D36&$F36,'Rnd9'!$H:$I,2,FALSE)),"",VLOOKUP($D36&$F36,'Rnd9'!$H:$I,2,FALSE)) -> 00:26:51 | P36: =IF(ISERROR(VLOOKUP($D36&$F36,'Rnd10'!$H:$I,2,FALSE)),"",VLOOKUP($D36&$F36,'Rnd10'!$H:$I,2,FALSE)) -> 00:26:41 | Q36: =IF(ISERROR(VLOOKUP($D36&$F36,'Rnd11'!$H:$I,2,FALSE)),"",VLOOKUP($D36&$F36,'Rnd11'!$H:$I,2,FALSE)) -> 00:26:25 | R36: =IF(ISERROR(VLOOKUP($D36&$F36,'Rnd12'!$H:$I,2,FALSE)),"",VLOOKUP($D36&$F36,'Rnd12'!$H:$I,2,FALSE)) -> 00:26:20 | S36: =IF(ISERROR(VLOOKUP($D36&$F36,'Rnd13'!$H:$I,2,FALSE)),"",VLOOKUP($D36&$F36,'Rnd13'!$H:$I,2,FALSE)) -> 00:26:00 | T36: =IF(ISERROR(VLOOKUP($D36&$F36,'Rnd14'!$H:$I,2,FALSE)),"",VLOOKUP($D36&$F36,'Rnd14'!$H:$I,2,FALSE)) ->  | U36: =IF(ISERROR(VLOOKUP($D36&$F36,'Rnd15'!$H:$I,2,FALSE)),"",VLOOKUP($D36&$F36,'Rnd15'!$H:$I,2,FALSE)) ->  | V36: =IF(ISERROR(VLOOKUP($D36&$F36,'Rnd16'!$H:$I,2,FALSE)),"",VLOOKUP($D36&$F36,'Rnd16'!$H:$I,2,FALSE)) -> 00:26:25 | W36: =IF(ISERROR(VLOOKUP($D36&$F36,'Rnd17'!$H:$I,2,FALSE)),"",VLOOKUP($D36&$F36,'Rnd17'!$H:$I,2,FALSE)) ->  | X36: =IF(ISERROR(VLOOKUP($D36&$F36,'Rnd18'!$H:$I,2,FALSE)),"",VLOOKUP($D36&$F36,'Rnd18'!$H:$I,2,FALSE)) -> 00:26:41 | Y36: =IF(ISERROR(VLOOKUP($D36&$F36,'Rnd19'!$H:$I,2,FALSE)),"",VLOOKUP($D36&$F36,'Rnd19'!$H:$I,2,FALSE)) ->  | Z36: =IF(ISERROR(VLOOKUP($D36&$F36,'Rnd20'!$H:$I,2,FALSE)),"",VLOOKUP($D36&$F36,'Rnd20'!$H:$I,2,FALSE)) ->  | AA36: =IF(ISERROR(VLOOKUP($D36&$F36,'Rnd21'!$H:$I,2,FALSE)),"",VLOOKUP($D36&$F36,'Rnd21'!$H:$I,2,FALSE)) -> 00:13:28 | AB36: =IF(ISERROR(VLOOKUP($D36&$F36,'Rnd22'!$H:$I,2,FALSE)),"",VLOOKUP($D36&$F36,'Rnd22'!$H:$I,2,FALSE)) ->  | AC36: =SUM(AG36:BB36) -> 375 | AD36: =COUNT(AG36:BB36) -> 9 | AE36: =SUM(BG36:CB36) -> 375 | AF36: =COUNT(BG36:CB36) -> 9 | AG36: =IF(ISNUMBER(G36),VLOOKUP(_xlfn.RANK.EQ(G36,G$4:G$128,1),PointsTable,2),"") ->  | AH36: =IF(ISNUMBER(H36),VLOOKUP(_xlfn.RANK.EQ(H36,H$4:H$128,1),PointsTable,2),"") ->  | AI36: =IF(ISNUMBER(I36),VLOOKUP(_xlfn.RANK.EQ(I36,I$4:I$128,1),PointsTable,2),"") ->  | AJ36: =IF(ISNUMBER(J36),VLOOKUP(_xlfn.RANK.EQ(J36,J$4:J$128,1),PointsTable,2),"") ->  | AK36: =IF(ISNUMBER(K36),VLOOKUP(_xlfn.RANK.EQ(K36,K$4:K$128,1),PointsTable,2),"") ->  | AL36: =IF(ISNUMBER(L36),VLOOKUP(_xlfn.RANK.EQ(L36,L$4:L$128,1),PointsTable,2),"") ->  | AM36: =IF(ISNUMBER(M36),VLOOKUP(_xlfn.RANK.EQ(M36,M$4:M$128,1),PointsTable,2),"") ->  | AN36: =IF(ISNUMBER(N36),VLOOKUP(_xlfn.RANK.EQ(N36,N$4:N$128,1),PointsTable,2),"") -> 36 | AO36: =IF(ISNUMBER(O36),VLOOKUP(_xlfn.RANK.EQ(O36,O$4:O$128,1),PointsTable,2),"") -> 36 | AP36: =IF(ISNUMBER(P36),VLOOKUP(_xlfn.RANK.EQ(P36,P$4:P$128,1),PointsTable,2),"") -> 35 | AQ36: =IF(ISNUMBER(Q36),VLOOKUP(_xlfn.RANK.EQ(Q36,Q$4:Q$128,1),PointsTable,2),"") -> 42 | AR36: =IF(ISNUMBER(R36),VLOOKUP(_xlfn.RANK.EQ(R36,R$4:R$128,1),PointsTable,2),"") -> 49 | AS36: =IF(ISNUMBER(S36),VLOOKUP(_xlfn.RANK.EQ(S36,S$4:S$128,1),PointsTable,2),"") -> 40 | AT36: =IF(ISNUMBER(T36),VLOOKUP(_xlfn.RANK.EQ(T36,T$4:T$128,1),PointsTable,2),"") ->  | AU36: =IF(ISNUMBER(U36),VLOOKUP(_xlfn.RANK.EQ(U36,U$4:U$128,1),PointsTable,2),"") ->  | AV36: =IF(ISNUMBER(V36),VLOOKUP(_xlfn.RANK.EQ(V36,V$4:V$128,1),PointsTable,2),"") -> 45 | AW36: =IF(ISNUMBER(W36),VLOOKUP(_xlfn.RANK.EQ(W36,W$4:W$128,1),PointsTable,2),"") ->  | AX36: =IF(ISNUMBER(X36),VLOOKUP(_xlfn.RANK.EQ(X36,X$4:X$128,1),PointsTable,2),"") -> 45 | AY36: =IF(ISNUMBER(Y36),VLOOKUP(_xlfn.RANK.EQ(Y36,Y$4:Y$128,1),PointsTable,2),"") ->  | AZ36: =IF(ISNUMBER(Z36),VLOOKUP(_xlfn.RANK.EQ(Z36,Z$4:Z$128,1),PointsTable,2),"") ->  | BA36: =IF(ISNUMBER(AA36),VLOOKUP(_xlfn.RANK.EQ(AA36,AA$4:AA$128,1),PointsTable,2),"") -> 47 | BB36: =IF(ISNUMBER(AB36),VLOOKUP(_xlfn.RANK.EQ(AB36,AB$4:AB$128,1),PointsTable,2),"") ->  | BG36: =bestpoints(AG36, $AG36:$BB36, CountingRaces) ->  | BH36: =bestpoints(AH36, $AG36:$BB36, CountingRaces) ->  | BI36: =bestpoints(AI36, $AG36:$BB36, CountingRaces) ->  | BJ36: =bestpoints(AJ36, $AG36:$BB36, CountingRaces) ->  | BK36: =bestpoints(AK36, $AG36:$BB36, CountingRaces) ->  | BL36: =bestpoints(AL36, $AG36:$BB36, CountingRaces) ->  | BM36: =bestpoints(AM36, $AG36:$BB36, CountingRaces) ->  | BN36: =bestpoints(AN36, $AG36:$BB36, CountingRaces) -> 36 | BO36: =bestpoints(AO36, $AG36:$BB36, CountingRaces) -> 36 | BP36: =bestpoints(AP36, $AG36:$BB36, CountingRaces) -> 35 | BQ36: =bestpoints(AQ36, $AG36:$BB36, CountingRaces) -> 42 | BR36: =bestpoints(AR36, $AG36:$BB36, CountingRaces) -> 49 | BS36: =bestpoints(AS36, $AG36:$BB36, CountingRaces) -> 40 | BT36: =bestpoints(AT36, $AG36:$BB36, CountingRaces) ->  | BU36: =bestpoints(AU36, $AG36:$BB36, CountingRaces) ->  | BV36: =bestpoints(AV36, $AG36:$BB36, CountingRaces) -> 45 | BW36: =bestpoints(AW36, $AG36:$BB36, CountingRaces) ->  | BX36: =bestpoints(AX36, $AG36:$BB36, CountingRaces) -> 45 | BY36: =bestpoints(AY36, $AG36:$BB36, CountingRaces) ->  | BZ36: =bestpoints(AZ36, $AG36:$BB36, CountingRaces) ->  | CA36: =bestpoints(BA36, $AG36:$BB36, CountingRaces) -> 47 | CB36: =bestpoints(BB36, $AG36:$BB36, CountingRaces) -> 
A37: =AE37/AF37 -> 30.58333333 | B37: 34 | C37: =IF(AF37 >0,RANK(AE37,AE$4:AE$128),"") -> 34 | D37: Susannah Rosenberg | E37: LV50 | F37: IBC | G37: =IF(ISERROR(VLOOKUP($D37&$F37,'Rnd1'!$H:$I,2,FALSE)),"",VLOOKUP($D37&$F37,'Rnd1'!$H:$I,2,FALSE)) -> 00:19:30 | H37: =IF(ISERROR(VLOOKUP($D37&$F37,'Rnd2'!$H:$I,2,FALSE)),"",VLOOKUP($D37&$F37,'Rnd2'!$H:$I,2,FALSE)) -> 00:18:01 | I37: =IF(ISERROR(VLOOKUP($D37&$F37,'Rnd3'!$H:$I,2,FALSE)),"",VLOOKUP($D37&$F37,'Rnd3'!$H:$I,2,FALSE)) -> 00:30:58 | J37: =IF(ISERROR(VLOOKUP($D37&$F37,'Rnd4'!$H:$I,2,FALSE)),"",VLOOKUP($D37&$F37,'Rnd4'!$H:$I,2,FALSE)) -> DNF | K37: =IF(ISERROR(VLOOKUP($D37&$F37,'Rnd5'!$H:$I,2,FALSE)),"",VLOOKUP($D37&$F37,'Rnd5'!$H:$I,2,FALSE)) -> 00:35:18 | L37: =IF(ISERROR(VLOOKUP($D37&$F37,'Rnd6'!$H:$I,2,FALSE)),"",VLOOKUP($D37&$F37,'Rnd6'!$H:$I,2,FALSE)) -> 00:34:04 | M37: =IF(ISERROR(VLOOKUP($D37&$F37,'Rnd7'!$H:$I,2,FALSE)),"",VLOOKUP($D37&$F37,'Rnd7'!$H:$I,2,FALSE)) -> 00:33:36 | N37: =IF(ISERROR(VLOOKUP($D37&$F37,'Rnd8'!$H:$I,2,FALSE)),"",VLOOKUP($D37&$F37,'Rnd8'!$H:$I,2,FALSE)) -> 00:33:20 | O37: =IF(ISERROR(VLOOKUP($D37&$F37,'Rnd9'!$H:$I,2,FALSE)),"",VLOOKUP($D37&$F37,'Rnd9'!$H:$I,2,FALSE)) -> 00:33:06 | P37: =IF(ISERROR(VLOOKUP($D37&$F37,'Rnd10'!$H:$I,2,FALSE)),"",VLOOKUP($D37&$F37,'Rnd10'!$H:$I,2,FALSE)) -> 00:32:30 | Q37: =IF(ISERROR(VLOOKUP($D37&$F37,'Rnd11'!$H:$I,2,FALSE)),"",VLOOKUP($D37&$F37,'Rnd11'!$H:$I,2,FALSE)) ->  | R37: =IF(ISERROR(VLOOKUP($D37&$F37,'Rnd12'!$H:$I,2,FALSE)),"",VLOOKUP($D37&$F37,'Rnd12'!$H:$I,2,FALSE)) ->  | S37: =IF(ISERROR(VLOOKUP($D37&$F37,'Rnd13'!$H:$I,2,FALSE)),"",VLOOKUP($D37&$F37,'Rnd13'!$H:$I,2,FALSE)) -> 00:32:23 | T37: =IF(ISERROR(VLOOKUP($D37&$F37,'Rnd14'!$H:$I,2,FALSE)),"",VLOOKUP($D37&$F37,'Rnd14'!$H:$I,2,FALSE)) ->  | U37: =IF(ISERROR(VLOOKUP($D37&$F37,'Rnd15'!$H:$I,2,FALSE)),"",VLOOKUP($D37&$F37,'Rnd15'!$H:$I,2,FALSE)) ->  | V37: =IF(ISERROR(VLOOKUP($D37&$F37,'Rnd16'!$H:$I,2,FALSE)),"",VLOOKUP($D37&$F37,'Rnd16'!$H:$I,2,FALSE)) -> 00:32:00 | W37: =IF(ISERROR(VLOOKUP($D37&$F37,'Rnd17'!$H:$I,2,FALSE)),"",VLOOKUP($D37&$F37,'Rnd17'!$H:$I,2,FALSE)) -> 00:32:56 | X37: =IF(ISERROR(VLOOKUP($D37&$F37,'Rnd18'!$H:$I,2,FALSE)),"",VLOOKUP($D37&$F37,'Rnd18'!$H:$I,2,FALSE)) ->  | Y37: =IF(ISERROR(VLOOKUP($D37&$F37,'Rnd19'!$H:$I,2,FALSE)),"",VLOOKUP($D37&$F37,'Rnd19'!$H:$I,2,FALSE)) -> 00:32:54 | Z37: =IF(ISERROR(VLOOKUP($D37&$F37,'Rnd20'!$H:$I,2,FALSE)),"",VLOOKUP($D37&$F37,'Rnd20'!$H:$I,2,FALSE)) -> 00:33:39 | AA37: =IF(ISERROR(VLOOKUP($D37&$F37,'Rnd21'!$H:$I,2,FALSE)),"",VLOOKUP($D37&$F37,'Rnd21'!$H:$I,2,FALSE)) ->  | AB37: =IF(ISERROR(VLOOKUP($D37&$F37,'Rnd22'!$H:$I,2,FALSE)),"",VLOOKUP($D37&$F37,'Rnd22'!$H:$I,2,FALSE)) ->  | AC37: =SUM(AG37:BB37) -> 406 | AD37: =COUNT(AG37:BB37) -> 14 | AE37: =SUM(BG37:CB37) -> 367 | AF37: =COUNT(BG37:CB37) -> 12 | AG37: =IF(ISNUMBER(G37),VLOOKUP(_xlfn.RANK.EQ(G37,G$4:G$128,1),PointsTable,2),"") -> 33 | AH37: =IF(ISNUMBER(H37),VLOOKUP(_xlfn.RANK.EQ(H37,H$4:H$128,1),PointsTable,2),"") -> 21 | AI37: =IF(ISNUMBER(I37),VLOOKUP(_xlfn.RANK.EQ(I37,I$4:I$128,1),PointsTable,2),"") -> 19 | AJ37: =IF(ISNUMBER(J37),VLOOKUP(_xlfn.RANK.EQ(J37,J$4:J$128,1),PointsTable,2),"") ->  | AK37: =IF(ISNUMBER(K37),VLOOKUP(_xlfn.RANK.EQ(K37,K$4:K$128,1),PointsTable,2),"") -> 34 | AL37: =IF(ISNUMBER(L37),VLOOKUP(_xlfn.RANK.EQ(L37,L$4:L$128,1),PointsTable,2),"") -> 32 | AM37: =IF(ISNUMBER(M37),VLOOKUP(_xlfn.RANK.EQ(M37,M$4:M$128,1),PointsTable,2),"") -> 30 | AN37: =IF(ISNUMBER(N37),VLOOKUP(_xlfn.RANK.EQ(N37,N$4:N$128,1),PointsTable,2),"") -> 27 | AO37: =IF(ISNUMBER(O37),VLOOKUP(_xlfn.RANK.EQ(O37,O$4:O$128,1),PointsTable,2),"") -> 27 | AP37: =IF(ISNUMBER(P37),VLOOKUP(_xlfn.RANK.EQ(P37,P$4:P$128,1),PointsTable,2),"") -> 20 | AQ37: =IF(ISNUMBER(Q37),VLOOKUP(_xlfn.RANK.EQ(Q37,Q$4:Q$128,1),PointsTable,2),"") ->  | AR37: =IF(ISNUMBER(R37),VLOOKUP(_xlfn.RANK.EQ(R37,R$4:R$128,1),PointsTable,2),"") ->  | AS37: =IF(ISNUMBER(S37),VLOOKUP(_xlfn.RANK.EQ(S37,S$4:S$128,1),PointsTable,2),"") -> 27 | AT37: =IF(ISNUMBER(T37),VLOOKUP(_xlfn.RANK.EQ(T37,T$4:T$128,1),PointsTable,2),"") ->  | AU37: =IF(ISNUMBER(U37),VLOOKUP(_xlfn.RANK.EQ(U37,U$4:U$128,1),PointsTable,2),"") ->  | AV37: =IF(ISNUMBER(V37),VLOOKUP(_xlfn.RANK.EQ(V37,V$4:V$128,1),PointsTable,2),"") -> 36 | AW37: =IF(ISNUMBER(W37),VLOOKUP(_xlfn.RANK.EQ(W37,W$4:W$128,1),PointsTable,2),"") -> 31 | AX37: =IF(ISNUMBER(X37),VLOOKUP(_xlfn.RANK.EQ(X37,X$4:X$128,1),PointsTable,2),"") ->  | AY37: =IF(ISNUMBER(Y37),VLOOKUP(_xlfn.RANK.EQ(Y37,Y$4:Y$128,1),PointsTable,2),"") -> 35 | AZ37: =IF(ISNUMBER(Z37),VLOOKUP(_xlfn.RANK.EQ(Z37,Z$4:Z$128,1),PointsTable,2),"") -> 34 | BA37: =IF(ISNUMBER(AA37),VLOOKUP(_xlfn.RANK.EQ(AA37,AA$4:AA$128,1),PointsTable,2),"") ->  | BB37: =IF(ISNUMBER(AB37),VLOOKUP(_xlfn.RANK.EQ(AB37,AB$4:AB$128,1),PointsTable,2),"") ->  | BG37: =bestpoints(AG37, $AG37:$BB37, CountingRaces) -> 33 | BH37: =bestpoints(AH37, $AG37:$BB37, CountingRaces) -> 21 | BI37: =bestpoints(AI37, $AG37:$BB37, CountingRaces) ->  | BJ37: =bestpoints(AJ37, $AG37:$BB37, CountingRaces) ->  | BK37: =bestpoints(AK37, $AG37:$BB37, CountingRaces) -> 34 | BL37: =bestpoints(AL37, $AG37:$BB37, CountingRaces) -> 32 | BM37: =bestpoints(AM37, $AG37:$BB37, CountingRaces) -> 30 | BN37: =bestpoints(AN37, $AG37:$BB37, CountingRaces) -> 27 | BO37: =bestpoints(AO37, $AG37:$BB37, CountingRaces) -> 27 | BP37: =bestpoints(AP37, $AG37:$BB37, CountingRaces) ->  | BQ37: =bestpoints(AQ37, $AG37:$BB37, CountingRaces) ->  | BR37: =bestpoints(AR37, $AG37:$BB37, CountingRaces) ->  | BS37: =bestpoints(AS37, $AG37:$BB37, CountingRaces) -> 27 | BT37: =bestpoints(AT37, $AG37:$BB37, CountingRaces) ->  | BU37: =bestpoints(AU37, $AG37:$BB37, CountingRaces) ->  | BV37: =bestpoints(AV37, $AG37:$BB37, CountingRaces) -> 36 | BW37: =bestpoints(AW37, $AG37:$BB37, CountingRaces) -> 31 | BX37: =bestpoints(AX37, $AG37:$BB37, CountingRaces) ->  | BY37: =bestpoints(AY37, $AG37:$BB37, CountingRaces) -> 35 | BZ37: =bestpoints(AZ37, $AG37:$BB37, CountingRaces) -> 34 | CA37: =bestpoints(BA37, $AG37:$BB37, CountingRaces) ->  | CB37: =bestpoints(BB37, $AG37:$BB37, CountingRaces) -> 
A38: =AE38/AF38 -> 44.125 | B38: 35 | C38: =IF(AF38 >0,RANK(AE38,AE$4:AE$128),"") -> 35 | D38: Martin Page | E38: V40 | F38: IBC | G38: =IF(ISERROR(VLOOKUP($D38&$F38,'Rnd1'!$H:$I,2,FALSE)),"",VLOOKUP($D38&$F38,'Rnd1'!$H:$I,2,FALSE)) -> 00:14:15 | H38: =IF(ISERROR(VLOOKUP($D38&$F38,'Rnd2'!$H:$I,2,FALSE)),"",VLOOKUP($D38&$F38,'Rnd2'!$H:$I,2,FALSE)) -> 00:13:55 | I38: =IF(ISERROR(VLOOKUP($D38&$F38,'Rnd3'!$H:$I,2,FALSE)),"",VLOOKUP($D38&$F38,'Rnd3'!$H:$I,2,FALSE)) -> 00:23:06 | J38: =IF(ISERROR(VLOOKUP($D38&$F38,'Rnd4'!$H:$I,2,FALSE)),"",VLOOKUP($D38&$F38,'Rnd4'!$H:$I,2,FALSE)) -> 00:26:52 | K38: =IF(ISERROR(VLOOKUP($D38&$F38,'Rnd5'!$H:$I,2,FALSE)),"",VLOOKUP($D38&$F38,'Rnd5'!$H:$I,2,FALSE)) -> 00:26:27 | L38: =IF(ISERROR(VLOOKUP($D38&$F38,'Rnd6'!$H:$I,2,FALSE)),"",VLOOKUP($D38&$F38,'Rnd6'!$H:$I,2,FALSE)) -> 00:26:07 | M38: =IF(ISERROR(VLOOKUP($D38&$F38,'Rnd7'!$H:$I,2,FALSE)),"",VLOOKUP($D38&$F38,'Rnd7'!$H:$I,2,FALSE)) -> 00:26:36 | N38: =IF(ISERROR(VLOOKUP($D38&$F38,'Rnd8'!$H:$I,2,FALSE)),"",VLOOKUP($D38&$F38,'Rnd8'!$H:$I,2,FALSE)) ->  | O38: =IF(ISERROR(VLOOKUP($D38&$F38,'Rnd9'!$H:$I,2,FALSE)),"",VLOOKUP($D38&$F38,'Rnd9'!$H:$I,2,FALSE)) ->  | P38: =IF(ISERROR(VLOOKUP($D38&$F38,'Rnd10'!$H:$I,2,FALSE)),"",VLOOKUP($D38&$F38,'Rnd10'!$H:$I,2,FALSE)) ->  | Q38: =IF(ISERROR(VLOOKUP($D38&$F38,'Rnd11'!$H:$I,2,FALSE)),"",VLOOKUP($D38&$F38,'Rnd11'!$H:$I,2,FALSE)) -> 00:26:34 | R38: =IF(ISERROR(VLOOKUP($D38&$F38,'Rnd12'!$H:$I,2,FALSE)),"",VLOOKUP($D38&$F38,'Rnd12'!$H:$I,2,FALSE)) ->  | S38: =IF(ISERROR(VLOOKUP($D38&$F38,'Rnd13'!$H:$I,2,FALSE)),"",VLOOKUP($D38&$F38,'Rnd13'!$H:$I,2,FALSE)) ->  | T38: =IF(ISERROR(VLOOKUP($D38&$F38,'Rnd14'!$H:$I,2,FALSE)),"",VLOOKUP($D38&$F38,'Rnd14'!$H:$I,2,FALSE)) ->  | U38: =IF(ISERROR(VLOOKUP($D38&$F38,'Rnd15'!$H:$I,2,FALSE)),"",VLOOKUP($D38&$F38,'Rnd15'!$H:$I,2,FALSE)) ->  | V38: =IF(ISERROR(VLOOKUP($D38&$F38,'Rnd16'!$H:$I,2,FALSE)),"",VLOOKUP($D38&$F38,'Rnd16'!$H:$I,2,FALSE)) ->  | W38: =IF(ISERROR(VLOOKUP($D38&$F38,'Rnd17'!$H:$I,2,FALSE)),"",VLOOKUP($D38&$F38,'Rnd17'!$H:$I,2,FALSE)) ->  | X38: =IF(ISERROR(VLOOKUP($D38&$F38,'Rnd18'!$H:$I,2,FALSE)),"",VLOOKUP($D38&$F38,'Rnd18'!$H:$I,2,FALSE)) ->  | Y38: =IF(ISERROR(VLOOKUP($D38&$F38,'Rnd19'!$H:$I,2,FALSE)),"",VLOOKUP($D38&$F38,'Rnd19'!$H:$I,2,FALSE)) ->  | Z38: =IF(ISERROR(VLOOKUP($D38&$F38,'Rnd20'!$H:$I,2,FALSE)),"",VLOOKUP($D38&$F38,'Rnd20'!$H:$I,2,FALSE)) ->  | AA38: =IF(ISERROR(VLOOKUP($D38&$F38,'Rnd21'!$H:$I,2,FALSE)),"",VLOOKUP($D38&$F38,'Rnd21'!$H:$I,2,FALSE)) ->  | AB38: =IF(ISERROR(VLOOKUP($D38&$F38,'Rnd22'!$H:$I,2,FALSE)),"",VLOOKUP($D38&$F38,'Rnd22'!$H:$I,2,FALSE)) ->  | AC38: =SUM(AG38:BB38) -> 353 | AD38: =COUNT(AG38:BB38) -> 8 | AE38: =SUM(BG38:CB38) -> 353 | AF38: =COUNT(BG38:CB38) -> 8 | AG38: =IF(ISNUMBER(G38),VLOOKUP(_xlfn.RANK.EQ(G38,G$4:G$128,1),PointsTable,2),"") -> 48 | AH38: =IF(ISNUMBER(H38),VLOOKUP(_xlfn.RANK.EQ(H38,H$4:H$128,1),PointsTable,2),"") -> 43 | AI38: =IF(ISNUMBER(I38),VLOOKUP(_xlfn.RANK.EQ(I38,I$4:I$128,1),PointsTable,2),"") -> 38 | AJ38: =IF(ISNUMBER(J38),VLOOKUP(_xlfn.RANK.EQ(J38,J$4:J$128,1),PointsTable,2),"") -> 45 | AK38: =IF(ISNUMBER(K38),VLOOKUP(_xlfn.RANK.EQ(K38,K$4:K$128,1),PointsTable,2),"") -> 47 | AL38: =IF(ISNUMBER(L38),VLOOKUP(_xlfn.RANK.EQ(L38,L$4:L$128,1),PointsTable,2),"") -> 47 | AM38: =IF(ISNUMBER(M38),VLOOKUP(_xlfn.RANK.EQ(M38,M$4:M$128,1),PointsTable,2),"") -> 45 | AN38: =IF(ISNUMBER(N38),VLOOKUP(_xlfn.RANK.EQ(N38,N$4:N$128,1),PointsTable,2),"") ->  | AO38: =IF(ISNUMBER(O38),VLOOKUP(_xlfn.RANK.EQ(O38,O$4:O$128,1),PointsTable,2),"") ->  | AP38: =IF(ISNUMBER(P38),VLOOKUP(_xlfn.RANK.EQ(P38,P$4:P$128,1),PointsTable,2),"") ->  | AQ38: =IF(ISNUMBER(Q38),VLOOKUP(_xlfn.RANK.EQ(Q38,Q$4:Q$128,1),PointsTable,2),"") -> 40 | AR38: =IF(ISNUMBER(R38),VLOOKUP(_xlfn.RANK.EQ(R38,R$4:R$128,1),PointsTable,2),"") ->  | AS38: =IF(ISNUMBER(S38),VLOOKUP(_xlfn.RANK.EQ(S38,S$4:S$128,1),PointsTable,2),"") ->  | AT38: =IF(ISNUMBER(T38),VLOOKUP(_xlfn.RANK.EQ(T38,T$4:T$128,1),PointsTable,2),"") ->  | AU38: =IF(ISNUMBER(U38),VLOOKUP(_xlfn.RANK.EQ(U38,U$4:U$128,1),PointsTable,2),"") ->  | AV38: =IF(ISNUMBER(V38),VLOOKUP(_xlfn.RANK.EQ(V38,V$4:V$128,1),PointsTable,2),"") ->  | AW38: =IF(ISNUMBER(W38),VLOOKUP(_xlfn.RANK.EQ(W38,W$4:W$128,1),PointsTable,2),"") ->  | AX38: =IF(ISNUMBER(X38),VLOOKUP(_xlfn.RANK.EQ(X38,X$4:X$128,1),PointsTable,2),"") ->  | AY38: =IF(ISNUMBER(Y38),VLOOKUP(_xlfn.RANK.EQ(Y38,Y$4:Y$128,1),PointsTable,2),"") ->  | AZ38: =IF(ISNUMBER(Z38),VLOOKUP(_xlfn.RANK.EQ(Z38,Z$4:Z$128,1),PointsTable,2),"") ->  | BA38: =IF(ISNUMBER(AA38),VLOOKUP(_xlfn.RANK.EQ(AA38,AA$4:AA$128,1),PointsTable,2),"") ->  | BB38: =IF(ISNUMBER(AB38),VLOOKUP(_xlfn.RANK.EQ(AB38,AB$4:AB$128,1),PointsTable,2),"") ->  | BG38: =bestpoints(AG38, $AG38:$BB38, CountingRaces) -> 48 | BH38: =bestpoints(AH38, $AG38:$BB38, CountingRaces) -> 43 | BI38: =bestpoints(AI38, $AG38:$BB38, CountingRaces) -> 38 | BJ38: =bestpoints(AJ38, $AG38:$BB38, CountingRaces) -> 45 | BK38: =bestpoints(AK38, $AG38:$BB38, CountingRaces) -> 47 | BL38: =bestpoints(AL38, $AG38:$BB38, CountingRaces) -> 47 | BM38: =bestpoints(AM38, $AG38:$BB38, CountingRaces) -> 45 | BN38: =bestpoints(AN38, $AG38:$BB38, CountingRaces) ->  | BO38: =bestpoints(AO38, $AG38:$BB38, CountingRaces) ->  | BP38: =bestpoints(AP38, $AG38:$BB38, CountingRaces) ->  | BQ38: =bestpoints(AQ38, $AG38:$BB38, CountingRaces) -> 40 | BR38: =bestpoints(AR38, $AG38:$BB38, CountingRaces) ->  | BS38: =bestpoints(AS38, $AG38:$BB38, CountingRaces) ->  | BT38: =bestpoints(AT38, $AG38:$BB38, CountingRaces) ->  | BU38: =bestpoints(AU38, $AG38:$BB38, CountingRaces) ->  | BV38: =bestpoints(AV38, $AG38:$BB38, CountingRaces) ->  | BW38: =bestpoints(AW38, $AG38:$BB38, CountingRaces) ->  | BX38: =bestpoints(AX38, $AG38:$BB38, CountingRaces) ->  | BY38: =bestpoints(AY38, $AG38:$BB38, CountingRaces) ->  | BZ38: =bestpoints(AZ38, $AG38:$BB38, CountingRaces) ->  | CA38: =bestpoints(BA38, $AG38:$BB38, CountingRaces) ->  | CB38: =bestpoints(BB38, $AG38:$BB38, CountingRaces) -> 
A39: =AE39/AF39 -> 31.7 | B39: 36 | C39: =IF(AF39 >0,RANK(AE39,AE$4:AE$128),"") -> 36 | D39: Rob Roche | E39: V50 | F39: ITC | G39: =IF(ISERROR(VLOOKUP($D39&$F39,'Rnd1'!$H:$I,2,FALSE)),"",VLOOKUP($D39&$F39,'Rnd1'!$H:$I,2,FALSE)) ->  | H39: =IF(ISERROR(VLOOKUP($D39&$F39,'Rnd2'!$H:$I,2,FALSE)),"",VLOOKUP($D39&$F39,'Rnd2'!$H:$I,2,FALSE)) ->  | I39: =IF(ISERROR(VLOOKUP($D39&$F39,'Rnd3'!$H:$I,2,FALSE)),"",VLOOKUP($D39&$F39,'Rnd3'!$H:$I,2,FALSE)) ->  | J39: =IF(ISERROR(VLOOKUP($D39&$F39,'Rnd4'!$H:$I,2,FALSE)),"",VLOOKUP($D39&$F39,'Rnd4'!$H:$I,2,FALSE)) ->  | K39: =IF(ISERROR(VLOOKUP($D39&$F39,'Rnd5'!$H:$I,2,FALSE)),"",VLOOKUP($D39&$F39,'Rnd5'!$H:$I,2,FALSE)) ->  | L39: =IF(ISERROR(VLOOKUP($D39&$F39,'Rnd6'!$H:$I,2,FALSE)),"",VLOOKUP($D39&$F39,'Rnd6'!$H:$I,2,FALSE)) ->  | M39: =IF(ISERROR(VLOOKUP($D39&$F39,'Rnd7'!$H:$I,2,FALSE)),"",VLOOKUP($D39&$F39,'Rnd7'!$H:$I,2,FALSE)) -> 00:32:26 | N39: =IF(ISERROR(VLOOKUP($D39&$F39,'Rnd8'!$H:$I,2,FALSE)),"",VLOOKUP($D39&$F39,'Rnd8'!$H:$I,2,FALSE)) ->  | O39: =IF(ISERROR(VLOOKUP($D39&$F39,'Rnd9'!$H:$I,2,FALSE)),"",VLOOKUP($D39&$F39,'Rnd9'!$H:$I,2,FALSE)) -> 00:30:37 | P39: =IF(ISERROR(VLOOKUP($D39&$F39,'Rnd10'!$H:$I,2,FALSE)),"",VLOOKUP($D39&$F39,'Rnd10'!$H:$I,2,FALSE)) -> 00:30:00 | Q39: =IF(ISERROR(VLOOKUP($D39&$F39,'Rnd11'!$H:$I,2,FALSE)),"",VLOOKUP($D39&$F39,'Rnd11'!$H:$I,2,FALSE)) -> 00:29:40 | R39: =IF(ISERROR(VLOOKUP($D39&$F39,'Rnd12'!$H:$I,2,FALSE)),"",VLOOKUP($D39&$F39,'Rnd12'!$H:$I,2,FALSE)) -> 00:29:27 | S39: =IF(ISERROR(VLOOKUP($D39&$F39,'Rnd13'!$H:$I,2,FALSE)),"",VLOOKUP($D39&$F39,'Rnd13'!$H:$I,2,FALSE)) -> 00:29:42 | T39: =IF(ISERROR(VLOOKUP($D39&$F39,'Rnd14'!$H:$I,2,FALSE)),"",VLOOKUP($D39&$F39,'Rnd14'!$H:$I,2,FALSE)) -> 00:30:06 | U39: =IF(ISERROR(VLOOKUP($D39&$F39,'Rnd15'!$H:$I,2,FALSE)),"",VLOOKUP($D39&$F39,'Rnd15'!$H:$I,2,FALSE)) ->  | V39: =IF(ISERROR(VLOOKUP($D39&$F39,'Rnd16'!$H:$I,2,FALSE)),"",VLOOKUP($D39&$F39,'Rnd16'!$H:$I,2,FALSE)) ->  | W39: =IF(ISERROR(VLOOKUP($D39&$F39,'Rnd17'!$H:$I,2,FALSE)),"",VLOOKUP($D39&$F39,'Rnd17'!$H:$I,2,FALSE)) ->  | X39: =IF(ISERROR(VLOOKUP($D39&$F39,'Rnd18'!$H:$I,2,FALSE)),"",VLOOKUP($D39&$F39,'Rnd18'!$H:$I,2,FALSE)) -> 00:30:12 | Y39: =IF(ISERROR(VLOOKUP($D39&$F39,'Rnd19'!$H:$I,2,FALSE)),"",VLOOKUP($D39&$F39,'Rnd19'!$H:$I,2,FALSE)) -> 00:30:51 | Z39: =IF(ISERROR(VLOOKUP($D39&$F39,'Rnd20'!$H:$I,2,FALSE)),"",VLOOKUP($D39&$F39,'Rnd20'!$H:$I,2,FALSE)) -> 00:30:10 | AA39: =IF(ISERROR(VLOOKUP($D39&$F39,'Rnd21'!$H:$I,2,FALSE)),"",VLOOKUP($D39&$F39,'Rnd21'!$H:$I,2,FALSE)) ->  | AB39: =IF(ISERROR(VLOOKUP($D39&$F39,'Rnd22'!$H:$I,2,FALSE)),"",VLOOKUP($D39&$F39,'Rnd22'!$H:$I,2,FALSE)) ->  | AC39: =SUM(AG39:BB39) -> 317 | AD39: =COUNT(AG39:BB39) -> 10 | AE39: =SUM(BG39:CB39) -> 317 | AF39: =COUNT(BG39:CB39) -> 10 | AG39: =IF(ISNUMBER(G39),VLOOKUP(_xlfn.RANK.EQ(G39,G$4:G$128,1),PointsTable,2),"") ->  | AH39: =IF(ISNUMBER(H39),VLOOKUP(_xlfn.RANK.EQ(H39,H$4:H$128,1),PointsTable,2),"") ->  | AI39: =IF(ISNUMBER(I39),VLOOKUP(_xlfn.RANK.EQ(I39,I$4:I$128,1),PointsTable,2),"") ->  | AJ39: =IF(ISNUMBER(J39),VLOOKUP(_xlfn.RANK.EQ(J39,J$4:J$128,1),PointsTable,2),"") ->  | AK39: =IF(ISNUMBER(K39),VLOOKUP(_xlfn.RANK.EQ(K39,K$4:K$128,1),PointsTable,2),"") ->  | AL39: =IF(ISNUMBER(L39),VLOOKUP(_xlfn.RANK.EQ(L39,L$4:L$128,1),PointsTable,2),"") ->  | AM39: =IF(ISNUMBER(M39),VLOOKUP(_xlfn.RANK.EQ(M39,M$4:M$128,1),PointsTable,2),"") -> 31 | AN39: =IF(ISNUMBER(N39),VLOOKUP(_xlfn.RANK.EQ(N39,N$4:N$128,1),PointsTable,2),"") ->  | AO39: =IF(ISNUMBER(O39),VLOOKUP(_xlfn.RANK.EQ(O39,O$4:O$128,1),PointsTable,2),"") -> 30 | AP39: =IF(ISNUMBER(P39),VLOOKUP(_xlfn.RANK.EQ(P39,P$4:P$128,1),PointsTable,2),"") -> 21 | AQ39: =IF(ISNUMBER(Q39),VLOOKUP(_xlfn.RANK.EQ(Q39,Q$4:Q$128,1),PointsTable,2),"") -> 27 | AR39: =IF(ISNUMBER(R39),VLOOKUP(_xlfn.RANK.EQ(R39,R$4:R$128,1),PointsTable,2),"") -> 39 | AS39: =IF(ISNUMBER(S39),VLOOKUP(_xlfn.RANK.EQ(S39,S$4:S$128,1),PointsTable,2),"") -> 30 | AT39: =IF(ISNUMBER(T39),VLOOKUP(_xlfn.RANK.EQ(T39,T$4:T$128,1),PointsTable,2),"") -> 32 | AU39: =IF(ISNUMBER(U39),VLOOKUP(_xlfn.RANK.EQ(U39,U$4:U$128,1),PointsTable,2),"") ->  | AV39: =IF(ISNUMBER(V39),VLOOKUP(_xlfn.RANK.EQ(V39,V$4:V$128,1),PointsTable,2),"") ->  | AW39: =IF(ISNUMBER(W39),VLOOKUP(_xlfn.RANK.EQ(W39,W$4:W$128,1),PointsTable,2),"") ->  | AX39: =IF(ISNUMBER(X39),VLOOKUP(_xlfn.RANK.EQ(X39,X$4:X$128,1),PointsTable,2),"") -> 34 | AY39: =IF(ISNUMBER(Y39),VLOOKUP(_xlfn.RANK.EQ(Y39,Y$4:Y$128,1),PointsTable,2),"") -> 37 | AZ39: =IF(ISNUMBER(Z39),VLOOKUP(_xlfn.RANK.EQ(Z39,Z$4:Z$128,1),PointsTable,2),"") -> 36 | BA39: =IF(ISNUMBER(AA39),VLOOKUP(_xlfn.RANK.EQ(AA39,AA$4:AA$128,1),PointsTable,2),"") ->  | BB39: =IF(ISNUMBER(AB39),VLOOKUP(_xlfn.RANK.EQ(AB39,AB$4:AB$128,1),PointsTable,2),"") ->  | BG39: =bestpoints(AG39, $AG39:$BB39, CountingRaces) ->  | BH39: =bestpoints(AH39, $AG39:$BB39, CountingRaces) ->  | BI39: =bestpoints(AI39, $AG39:$BB39, CountingRaces) ->  | BJ39: =bestpoints(AJ39, $AG39:$BB39, CountingRaces) ->  | BK39: =bestpoints(AK39, $AG39:$BB39, CountingRaces) ->  | BL39: =bestpoints(AL39, $AG39:$BB39, CountingRaces) ->  | BM39: =bestpoints(AM39, $AG39:$BB39, CountingRaces) -> 31 | BN39: =bestpoints(AN39, $AG39:$BB39, CountingRaces) ->  | BO39: =bestpoints(AO39, $AG39:$BB39, CountingRaces) -> 30 | BP39: =bestpoints(AP39, $AG39:$BB39, CountingRaces) -> 21 | BQ39: =bestpoints(AQ39, $AG39:$BB39, CountingRaces) -> 27 | BR39: =bestpoints(AR39, $AG39:$BB39, CountingRaces) -> 39 | BS39: =bestpoints(AS39, $AG39:$BB39, CountingRaces) -> 30 | BT39: =bestpoints(AT39, $AG39:$BB39, CountingRaces) -> 32 | BU39: =bestpoints(AU39, $AG39:$BB39, CountingRaces) ->  | BV39: =bestpoints(AV39, $AG39:$BB39, CountingRaces) ->  | BW39: =bestpoints(AW39, $AG39:$BB39, CountingRaces) ->  | BX39: =bestpoints(AX39, $AG39:$BB39, CountingRaces) -> 34 | BY39: =bestpoints(AY39, $AG39:$BB39, CountingRaces) -> 37 | BZ39: =bestpoints(AZ39, $AG39:$BB39, CountingRaces) -> 36 | CA39: =bestpoints(BA39, $AG39:$BB39, CountingRaces) ->  | CB39: =bestpoints(BB39, $AG39:$BB39, CountingRaces) -> 
A40: =AE40/AF40 -> 50.5 | B40: 37 | C40: =IF(AF40 >0,RANK(AE40,AE$4:AE$128),"") -> 37 | D40: Angus Jardine | E40: V50 | F40: IBC | G40: =IF(ISERROR(VLOOKUP($D40&$F40,'Rnd1'!$H:$I,2,FALSE)),"",VLOOKUP($D40&$F40,'Rnd1'!$H:$I,2,FALSE)) ->  | H40: =IF(ISERROR(VLOOKUP($D40&$F40,'Rnd2'!$H:$I,2,FALSE)),"",VLOOKUP($D40&$F40,'Rnd2'!$H:$I,2,FALSE)) ->  | I40: =IF(ISERROR(VLOOKUP($D40&$F40,'Rnd3'!$H:$I,2,FALSE)),"",VLOOKUP($D40&$F40,'Rnd3'!$H:$I,2,FALSE)) ->  | J40: =IF(ISERROR(VLOOKUP($D40&$F40,'Rnd4'!$H:$I,2,FALSE)),"",VLOOKUP($D40&$F40,'Rnd4'!$H:$I,2,FALSE)) ->  | K40: =IF(ISERROR(VLOOKUP($D40&$F40,'Rnd5'!$H:$I,2,FALSE)),"",VLOOKUP($D40&$F40,'Rnd5'!$H:$I,2,FALSE)) ->  | L40: =IF(ISERROR(VLOOKUP($D40&$F40,'Rnd6'!$H:$I,2,FALSE)),"",VLOOKUP($D40&$F40,'Rnd6'!$H:$I,2,FALSE)) ->  | M40: =IF(ISERROR(VLOOKUP($D40&$F40,'Rnd7'!$H:$I,2,FALSE)),"",VLOOKUP($D40&$F40,'Rnd7'!$H:$I,2,FALSE)) ->  | N40: =IF(ISERROR(VLOOKUP($D40&$F40,'Rnd8'!$H:$I,2,FALSE)),"",VLOOKUP($D40&$F40,'Rnd8'!$H:$I,2,FALSE)) ->  | O40: =IF(ISERROR(VLOOKUP($D40&$F40,'Rnd9'!$H:$I,2,FALSE)),"",VLOOKUP($D40&$F40,'Rnd9'!$H:$I,2,FALSE)) -> 00:24:22 | P40: =IF(ISERROR(VLOOKUP($D40&$F40,'Rnd10'!$H:$I,2,FALSE)),"",VLOOKUP($D40&$F40,'Rnd10'!$H:$I,2,FALSE)) -> 00:24:28 | Q40: =IF(ISERROR(VLOOKUP($D40&$F40,'Rnd11'!$H:$I,2,FALSE)),"",VLOOKUP($D40&$F40,'Rnd11'!$H:$I,2,FALSE)) ->  | R40: =IF(ISERROR(VLOOKUP($D40&$F40,'Rnd12'!$H:$I,2,FALSE)),"",VLOOKUP($D40&$F40,'Rnd12'!$H:$I,2,FALSE)) ->  | S40: =IF(ISERROR(VLOOKUP($D40&$F40,'Rnd13'!$H:$I,2,FALSE)),"",VLOOKUP($D40&$F40,'Rnd13'!$H:$I,2,FALSE)) ->  | T40: =IF(ISERROR(VLOOKUP($D40&$F40,'Rnd14'!$H:$I,2,FALSE)),"",VLOOKUP($D40&$F40,'Rnd14'!$H:$I,2,FALSE)) -> 00:23:56 | U40: =IF(ISERROR(VLOOKUP($D40&$F40,'Rnd15'!$H:$I,2,FALSE)),"",VLOOKUP($D40&$F40,'Rnd15'!$H:$I,2,FALSE)) -> 00:25:14 | V40: =IF(ISERROR(VLOOKUP($D40&$F40,'Rnd16'!$H:$I,2,FALSE)),"",VLOOKUP($D40&$F40,'Rnd16'!$H:$I,2,FALSE)) -> 00:24:48 | W40: =IF(ISERROR(VLOOKUP($D40&$F40,'Rnd17'!$H:$I,2,FALSE)),"",VLOOKUP($D40&$F40,'Rnd17'!$H:$I,2,FALSE)) -> 00:24:48 | X40: =IF(ISERROR(VLOOKUP($D40&$F40,'Rnd18'!$H:$I,2,FALSE)),"",VLOOKUP($D40&$F40,'Rnd18'!$H:$I,2,FALSE)) ->  | Y40: =IF(ISERROR(VLOOKUP($D40&$F40,'Rnd19'!$H:$I,2,FALSE)),"",VLOOKUP($D40&$F40,'Rnd19'!$H:$I,2,FALSE)) ->  | Z40: =IF(ISERROR(VLOOKUP($D40&$F40,'Rnd20'!$H:$I,2,FALSE)),"",VLOOKUP($D40&$F40,'Rnd20'!$H:$I,2,FALSE)) ->  | AA40: =IF(ISERROR(VLOOKUP($D40&$F40,'Rnd21'!$H:$I,2,FALSE)),"",VLOOKUP($D40&$F40,'Rnd21'!$H:$I,2,FALSE)) ->  | AB40: =IF(ISERROR(VLOOKUP($D40&$F40,'Rnd22'!$H:$I,2,FALSE)),"",VLOOKUP($D40&$F40,'Rnd22'!$H:$I,2,FALSE)) ->  | AC40: =SUM(AG40:BB40) -> 303 | AD40: =COUNT(AG40:BB40) -> 6 | AE40: =SUM(BG40:CB40) -> 303 | AF40: =COUNT(BG40:CB40) -> 6 | AG40: =IF(ISNUMBER(G40),VLOOKUP(_xlfn.RANK.EQ(G40,G$4:G$128,1),PointsTable,2),"") ->  | AH40: =IF(ISNUMBER(H40),VLOOKUP(_xlfn.RANK.EQ(H40,H$4:H$128,1),PointsTable,2),"") ->  | AI40: =IF(ISNUMBER(I40),VLOOKUP(_xlfn.RANK.EQ(I40,I$4:I$128,1),PointsTable,2),"") ->  | AJ40: =IF(ISNUMBER(J40),VLOOKUP(_xlfn.RANK.EQ(J40,J$4:J$128,1),PointsTable,2),"") ->  | AK40: =IF(ISNUMBER(K40),VLOOKUP(_xlfn.RANK.EQ(K40,K$4:K$128,1),PointsTable,2),"") ->  | AL40: =IF(ISNUMBER(L40),VLOOKUP(_xlfn.RANK.EQ(L40,L$4:L$128,1),PointsTable,2),"") ->  | AM40: =IF(ISNUMBER(M40),VLOOKUP(_xlfn.RANK.EQ(M40,M$4:M$128,1),PointsTable,2),"") ->  | AN40: =IF(ISNUMBER(N40),VLOOKUP(_xlfn.RANK.EQ(N40,N$4:N$128,1),PointsTable,2),"") ->  | AO40: =IF(ISNUMBER(O40),VLOOKUP(_xlfn.RANK.EQ(O40,O$4:O$128,1),PointsTable,2),"") -> 51 | AP40: =IF(ISNUMBER(P40),VLOOKUP(_xlfn.RANK.EQ(P40,P$4:P$128,1),PointsTable,2),"") -> 50 | AQ40: =IF(ISNUMBER(Q40),VLOOKUP(_xlfn.RANK.EQ(Q40,Q$4:Q$128,1),PointsTable,2),"") ->  | AR40: =IF(ISNUMBER(R40),VLOOKUP(_xlfn.RANK.EQ(R40,R$4:R$128,1),PointsTable,2),"") ->  | AS40: =IF(ISNUMBER(S40),VLOOKUP(_xlfn.RANK.EQ(S40,S$4:S$128,1),PointsTable,2),"") ->  | AT40: =IF(ISNUMBER(T40),VLOOKUP(_xlfn.RANK.EQ(T40,T$4:T$128,1),PointsTable,2),"") -> 51 | AU40: =IF(ISNUMBER(U40),VLOOKUP(_xlfn.RANK.EQ(U40,U$4:U$128,1),PointsTable,2),"") -> 53 | AV40: =IF(ISNUMBER(V40),VLOOKUP(_xlfn.RANK.EQ(V40,V$4:V$128,1),PointsTable,2),"") -> 48 | AW40: =IF(ISNUMBER(W40),VLOOKUP(_xlfn.RANK.EQ(W40,W$4:W$128,1),PointsTable,2),"") -> 50 | AX40: =IF(ISNUMBER(X40),VLOOKUP(_xlfn.RANK.EQ(X40,X$4:X$128,1),PointsTable,2),"") ->  | AY40: =IF(ISNUMBER(Y40),VLOOKUP(_xlfn.RANK.EQ(Y40,Y$4:Y$128,1),PointsTable,2),"") ->  | AZ40: =IF(ISNUMBER(Z40),VLOOKUP(_xlfn.RANK.EQ(Z40,Z$4:Z$128,1),PointsTable,2),"") ->  | BA40: =IF(ISNUMBER(AA40),VLOOKUP(_xlfn.RANK.EQ(AA40,AA$4:AA$128,1),PointsTable,2),"") ->  | BB40: =IF(ISNUMBER(AB40),VLOOKUP(_xlfn.RANK.EQ(AB40,AB$4:AB$128,1),PointsTable,2),"") ->  | BG40: =bestpoints(AG40, $AG40:$BB40, CountingRaces) ->  | BH40: =bestpoints(AH40, $AG40:$BB40, CountingRaces) ->  | BI40: =bestpoints(AI40, $AG40:$BB40, CountingRaces) ->  | BJ40: =bestpoints(AJ40, $AG40:$BB40, CountingRaces) ->  | BK40: =bestpoints(AK40, $AG40:$BB40, CountingRaces) ->  | BL40: =bestpoints(AL40, $AG40:$BB40, CountingRaces) ->  | BM40: =bestpoints(AM40, $AG40:$BB40, CountingRaces) ->  | BN40: =bestpoints(AN40, $AG40:$BB40, CountingRaces) ->  | BO40: =bestpoints(AO40, $AG40:$BB40, CountingRaces) -> 51 | BP40: =bestpoints(AP40, $AG40:$BB40, CountingRaces) -> 50 | BQ40: =bestpoints(AQ40, $AG40:$BB40, CountingRaces) ->  | BR40: =bestpoints(AR40, $AG40:$BB40, CountingRaces) ->  | BS40: =bestpoints(AS40, $AG40:$BB40, CountingRaces) ->  | BT40: =bestpoints(AT40, $AG40:$BB40, CountingRaces) -> 51 | BU40: =bestpoints(AU40, $AG40:$BB40, CountingRaces) -> 53 | BV40: =bestpoints(AV40, $AG40:$BB40, CountingRaces) -> 48 | BW40: =bestpoints(AW40, $AG40:$BB40, CountingRaces) -> 50 | BX40: =bestpoints(AX40, $AG40:$BB40, CountingRaces) ->  | BY40: =bestpoints(AY40, $AG40:$BB40, CountingRaces) ->  | BZ40: =bestpoints(AZ40, $AG40:$BB40, CountingRaces) ->  | CA40: =bestpoints(BA40, $AG40:$BB40, CountingRaces) ->  | CB40: =bestpoints(BB40, $AG40:$BB40, CountingRaces) -> 
A41: =AE41/AF41 -> 35.75 | B41: 40 | C41: =IF(AF41 >0,RANK(AE41,AE$4:AE$128),"") -> 38 | D41: Keith Sparkes | E41: V50 | F41: Wolsey | G41: =IF(ISERROR(VLOOKUP($D41&$F41,'Rnd1'!$H:$I,2,FALSE)),"",VLOOKUP($D41&$F41,'Rnd1'!$H:$I,2,FALSE)) ->  | H41: =IF(ISERROR(VLOOKUP($D41&$F41,'Rnd2'!$H:$I,2,FALSE)),"",VLOOKUP($D41&$F41,'Rnd2'!$H:$I,2,FALSE)) -> 00:15:49 | I41: =IF(ISERROR(VLOOKUP($D41&$F41,'Rnd3'!$H:$I,2,FALSE)),"",VLOOKUP($D41&$F41,'Rnd3'!$H:$I,2,FALSE)) ->  | J41: =IF(ISERROR(VLOOKUP($D41&$F41,'Rnd4'!$H:$I,2,FALSE)),"",VLOOKUP($D41&$F41,'Rnd4'!$H:$I,2,FALSE)) -> 00:32:30 | K41: =IF(ISERROR(VLOOKUP($D41&$F41,'Rnd5'!$H:$I,2,FALSE)),"",VLOOKUP($D41&$F41,'Rnd5'!$H:$I,2,FALSE)) ->  | L41: =IF(ISERROR(VLOOKUP($D41&$F41,'Rnd6'!$H:$I,2,FALSE)),"",VLOOKUP($D41&$F41,'Rnd6'!$H:$I,2,FALSE)) ->  | M41: =IF(ISERROR(VLOOKUP($D41&$F41,'Rnd7'!$H:$I,2,FALSE)),"",VLOOKUP($D41&$F41,'Rnd7'!$H:$I,2,FALSE)) ->  | N41: =IF(ISERROR(VLOOKUP($D41&$F41,'Rnd8'!$H:$I,2,FALSE)),"",VLOOKUP($D41&$F41,'Rnd8'!$H:$I,2,FALSE)) ->  | O41: =IF(ISERROR(VLOOKUP($D41&$F41,'Rnd9'!$H:$I,2,FALSE)),"",VLOOKUP($D41&$F41,'Rnd9'!$H:$I,2,FALSE)) ->  | P41: =IF(ISERROR(VLOOKUP($D41&$F41,'Rnd10'!$H:$I,2,FALSE)),"",VLOOKUP($D41&$F41,'Rnd10'!$H:$I,2,FALSE)) ->  | Q41: =IF(ISERROR(VLOOKUP($D41&$F41,'Rnd11'!$H:$I,2,FALSE)),"",VLOOKUP($D41&$F41,'Rnd11'!$H:$I,2,FALSE)) ->  | R41: =IF(ISERROR(VLOOKUP($D41&$F41,'Rnd12'!$H:$I,2,FALSE)),"",VLOOKUP($D41&$F41,'Rnd12'!$H:$I,2,FALSE)) ->  | S41: =IF(ISERROR(VLOOKUP($D41&$F41,'Rnd13'!$H:$I,2,FALSE)),"",VLOOKUP($D41&$F41,'Rnd13'!$H:$I,2,FALSE)) ->  | T41: =IF(ISERROR(VLOOKUP($D41&$F41,'Rnd14'!$H:$I,2,FALSE)),"",VLOOKUP($D41&$F41,'Rnd14'!$H:$I,2,FALSE)) ->  | U41: =IF(ISERROR(VLOOKUP($D41&$F41,'Rnd15'!$H:$I,2,FALSE)),"",VLOOKUP($D41&$F41,'Rnd15'!$H:$I,2,FALSE)) -> 00:31:11 | V41: =IF(ISERROR(VLOOKUP($D41&$F41,'Rnd16'!$H:$I,2,FALSE)),"",VLOOKUP($D41&$F41,'Rnd16'!$H:$I,2,FALSE)) -> 00:45:00 | W41: =IF(ISERROR(VLOOKUP($D41&$F41,'Rnd17'!$H:$I,2,FALSE)),"",VLOOKUP($D41&$F41,'Rnd17'!$H:$I,2,FALSE)) -> 00:30:44 | X41: =IF(ISERROR(VLOOKUP($D41&$F41,'Rnd18'!$H:$I,2,FALSE)),"",VLOOKUP($D41&$F41,'Rnd18'!$H:$I,2,FALSE)) ->  | Y41: =IF(ISERROR(VLOOKUP($D41&$F41,'Rnd19'!$H:$I,2,FALSE)),"",VLOOKUP($D41&$F41,'Rnd19'!$H:$I,2,FALSE)) -> 00:31:56 | Z41: =IF(ISERROR(VLOOKUP($D41&$F41,'Rnd20'!$H:$I,2,FALSE)),"",VLOOKUP($D41&$F41,'Rnd20'!$H:$I,2,FALSE)) -> 00:31:18 | AA41: =IF(ISERROR(VLOOKUP($D41&$F41,'Rnd21'!$H:$I,2,FALSE)),"",VLOOKUP($D41&$F41,'Rnd21'!$H:$I,2,FALSE)) ->  | AB41: =IF(ISERROR(VLOOKUP($D41&$F41,'Rnd22'!$H:$I,2,FALSE)),"",VLOOKUP($D41&$F41,'Rnd22'!$H:$I,2,FALSE)) -> 00:14:58 | AC41: =SUM(AG41:BB41) -> 286 | AD41: =COUNT(AG41:BB41) -> 8 | AE41: =SUM(BG41:CB41) -> 286 | AF41: =COUNT(BG41:CB41) -> 8 | AG41: =IF(ISNUMBER(G41),VLOOKUP(_xlfn.RANK.EQ(G41,G$4:G$128,1),PointsTable,2),"") ->  | AH41: =IF(ISNUMBER(H41),VLOOKUP(_xlfn.RANK.EQ(H41,H$4:H$128,1),PointsTable,2),"") -> 23 | AI41: =IF(ISNUMBER(I41),VLOOKUP(_xlfn.RANK.EQ(I41,I$4:I$128,1),PointsTable,2),"") ->  | AJ41: =IF(ISNUMBER(J41),VLOOKUP(_xlfn.RANK.EQ(J41,J$4:J$128,1),PointsTable,2),"") -> 31 | AK41: =IF(ISNUMBER(K41),VLOOKUP(_xlfn.RANK.EQ(K41,K$4:K$128,1),PointsTable,2),"") ->  | AL41: =IF(ISNUMBER(L41),VLOOKUP(_xlfn.RANK.EQ(L41,L$4:L$128,1),PointsTable,2),"") ->  | AM41: =IF(ISNUMBER(M41),VLOOKUP(_xlfn.RANK.EQ(M41,M$4:M$128,1),PointsTable,2),"") ->  | AN41: =IF(ISNUMBER(N41),VLOOKUP(_xlfn.RANK.EQ(N41,N$4:N$128,1),PointsTable,2),"") ->  | AO41: =IF(ISNUMBER(O41),VLOOKUP(_xlfn.RANK.EQ(O41,O$4:O$128,1),PointsTable,2),"") ->  | AP41: =IF(ISNUMBER(P41),VLOOKUP(_xlfn.RANK.EQ(P41,P$4:P$128,1),PointsTable,2),"") ->  | AQ41: =IF(ISNUMBER(Q41),VLOOKUP(_xlfn.RANK.EQ(Q41,Q$4:Q$128,1),PointsTable,2),"") ->  | AR41: =IF(ISNUMBER(R41),VLOOKUP(_xlfn.RANK.EQ(R41,R$4:R$128,1),PointsTable,2),"") ->  | AS41: =IF(ISNUMBER(S41),VLOOKUP(_xlfn.RANK.EQ(S41,S$4:S$128,1),PointsTable,2),"") ->  | AT41: =IF(ISNUMBER(T41),VLOOKUP(_xlfn.RANK.EQ(T41,T$4:T$128,1),PointsTable,2),"") ->  | AU41: =IF(ISNUMBER(U41),VLOOKUP(_xlfn.RANK.EQ(U41,U$4:U$128,1),PointsTable,2),"") -> 44 | AV41: =IF(ISNUMBER(V41),VLOOKUP(_xlfn.RANK.EQ(V41,V$4:V$128,1),PointsTable,2),"") -> 35 | AW41: =IF(ISNUMBER(W41),VLOOKUP(_xlfn.RANK.EQ(W41,W$4:W$128,1),PointsTable,2),"") -> 34 | AX41: =IF(ISNUMBER(X41),VLOOKUP(_xlfn.RANK.EQ(X41,X$4:X$128,1),PointsTable,2),"") ->  | AY41: =IF(ISNUMBER(Y41),VLOOKUP(_xlfn.RANK.EQ(Y41,Y$4:Y$128,1),PointsTable,2),"") -> 36 | AZ41: =IF(ISNUMBER(Z41),VLOOKUP(_xlfn.RANK.EQ(Z41,Z$4:Z$128,1),PointsTable,2),"") -> 35 | BA41: =IF(ISNUMBER(AA41),VLOOKUP(_xlfn.RANK.EQ(AA41,AA$4:AA$128,1),PointsTable,2),"") ->  | BB41: =IF(ISNUMBER(AB41),VLOOKUP(_xlfn.RANK.EQ(AB41,AB$4:AB$128,1),PointsTable,2),"") -> 48 | BG41: =bestpoints(AG41, $AG41:$BB41, CountingRaces) ->  | BH41: =bestpoints(AH41, $AG41:$BB41, CountingRaces) -> 23 | BI41: =bestpoints(AI41, $AG41:$BB41, CountingRaces) ->  | BJ41: =bestpoints(AJ41, $AG41:$BB41, CountingRaces) -> 31 | BK41: =bestpoints(AK41, $AG41:$BB41, CountingRaces) ->  | BL41: =bestpoints(AL41, $AG41:$BB41, CountingRaces) ->  | BM41: =bestpoints(AM41, $AG41:$BB41, CountingRaces) ->  | BN41: =bestpoints(AN41, $AG41:$BB41, CountingRaces) ->  | BO41: =bestpoints(AO41, $AG41:$BB41, CountingRaces) ->  | BP41: =bestpoints(AP41, $AG41:$BB41, CountingRaces) ->  | BQ41: =bestpoints(AQ41, $AG41:$BB41, CountingRaces) ->  | BR41: =bestpoints(AR41, $AG41:$BB41, CountingRaces) ->  | BS41: =bestpoints(AS41, $AG41:$BB41, CountingRaces) ->  | BT41: =bestpoints(AT41, $AG41:$BB41, CountingRaces) ->  | BU41: =bestpoints(AU41, $AG41:$BB41, CountingRaces) -> 44 | BV41: =bestpoints(AV41, $AG41:$BB41, CountingRaces) -> 35 | BW41: =bestpoints(AW41, $AG41:$BB41, CountingRaces) -> 34 | BX41: =bestpoints(AX41, $AG41:$BB41, CountingRaces) ->  | BY41: =bestpoints(AY41, $AG41:$BB41, CountingRaces) -> 36 | BZ41: =bestpoints(AZ41, $AG41:$BB41, CountingRaces) -> 35 | CA41: =bestpoints(BA41, $AG41:$BB41, CountingRaces) ->  | CB41: =bestpoints(BB41, $AG41:$BB41, CountingRaces) -> 48
A42: =AE42/AF42 -> 37.14285714 | B42: 38 | C42: =IF(AF42 >0,RANK(AE42,AE$4:AE$128),"") -> 39 | D42: Josh Bowyer | E42: Juv | F42: IBC | G42: =IF(ISERROR(VLOOKUP($D42&$F42,'Rnd1'!$H:$I,2,FALSE)),"",VLOOKUP($D42&$F42,'Rnd1'!$H:$I,2,FALSE)) -> 00:15:27 | H42: =IF(ISERROR(VLOOKUP($D42&$F42,'Rnd2'!$H:$I,2,FALSE)),"",VLOOKUP($D42&$F42,'Rnd2'!$H:$I,2,FALSE)) -> 00:14:34 | I42: =IF(ISERROR(VLOOKUP($D42&$F42,'Rnd3'!$H:$I,2,FALSE)),"",VLOOKUP($D42&$F42,'Rnd3'!$H:$I,2,FALSE)) -> 00:24:22 | J42: =IF(ISERROR(VLOOKUP($D42&$F42,'Rnd4'!$H:$I,2,FALSE)),"",VLOOKUP($D42&$F42,'Rnd4'!$H:$I,2,FALSE)) -> DNF | K42: =IF(ISERROR(VLOOKUP($D42&$F42,'Rnd5'!$H:$I,2,FALSE)),"",VLOOKUP($D42&$F42,'Rnd5'!$H:$I,2,FALSE)) -> 00:27:44 | L42: =IF(ISERROR(VLOOKUP($D42&$F42,'Rnd6'!$H:$I,2,FALSE)),"",VLOOKUP($D42&$F42,'Rnd6'!$H:$I,2,FALSE)) -> 00:27:07 | M42: =IF(ISERROR(VLOOKUP($D42&$F42,'Rnd7'!$H:$I,2,FALSE)),"",VLOOKUP($D42&$F42,'Rnd7'!$H:$I,2,FALSE)) -> 00:27:32 | N42: =IF(ISERROR(VLOOKUP($D42&$F42,'Rnd8'!$H:$I,2,FALSE)),"",VLOOKUP($D42&$F42,'Rnd8'!$H:$I,2,FALSE)) ->  | O42: =IF(ISERROR(VLOOKUP($D42&$F42,'Rnd9'!$H:$I,2,FALSE)),"",VLOOKUP($D42&$F42,'Rnd9'!$H:$I,2,FALSE)) ->  | P42: =IF(ISERROR(VLOOKUP($D42&$F42,'Rnd10'!$H:$I,2,FALSE)),"",VLOOKUP($D42&$F42,'Rnd10'!$H:$I,2,FALSE)) ->  | Q42: =IF(ISERROR(VLOOKUP($D42&$F42,'Rnd11'!$H:$I,2,FALSE)),"",VLOOKUP($D42&$F42,'Rnd11'!$H:$I,2,FALSE)) ->  | R42: =IF(ISERROR(VLOOKUP($D42&$F42,'Rnd12'!$H:$I,2,FALSE)),"",VLOOKUP($D42&$F42,'Rnd12'!$H:$I,2,FALSE)) ->  | S42: =IF(ISERROR(VLOOKUP($D42&$F42,'Rnd13'!$H:$I,2,FALSE)),"",VLOOKUP($D42&$F42,'Rnd13'!$H:$I,2,FALSE)) ->  | T42: =IF(ISERROR(VLOOKUP($D42&$F42,'Rnd14'!$H:$I,2,FALSE)),"",VLOOKUP($D42&$F42,'Rnd14'!$H:$I,2,FALSE)) ->  | U42: =IF(ISERROR(VLOOKUP($D42&$F42,'Rnd15'!$H:$I,2,FALSE)),"",VLOOKUP($D42&$F42,'Rnd15'!$H:$I,2,FALSE)) ->  | V42: =IF(ISERROR(VLOOKUP($D42&$F42,'Rnd16'!$H:$I,2,FALSE)),"",VLOOKUP($D42&$F42,'Rnd16'!$H:$I,2,FALSE)) ->  | W42: =IF(ISERROR(VLOOKUP($D42&$F42,'Rnd17'!$H:$I,2,FALSE)),"",VLOOKUP($D42&$F42,'Rnd17'!$H:$I,2,FALSE)) ->  | X42: =IF(ISERROR(VLOOKUP($D42&$F42,'Rnd18'!$H:$I,2,FALSE)),"",VLOOKUP($D42&$F42,'Rnd18'!$H:$I,2,FALSE)) ->  | Y42: =IF(ISERROR(VLOOKUP($D42&$F42,'Rnd19'!$H:$I,2,FALSE)),"",VLOOKUP($D42&$F42,'Rnd19'!$H:$I,2,FALSE)) -> 00:27:52 | Z42: =IF(ISERROR(VLOOKUP($D42&$F42,'Rnd20'!$H:$I,2,FALSE)),"",VLOOKUP($D42&$F42,'Rnd20'!$H:$I,2,FALSE)) ->  | AA42: =IF(ISERROR(VLOOKUP($D42&$F42,'Rnd21'!$H:$I,2,FALSE)),"",VLOOKUP($D42&$F42,'Rnd21'!$H:$I,2,FALSE)) ->  | AB42: =IF(ISERROR(VLOOKUP($D42&$F42,'Rnd22'!$H:$I,2,FALSE)),"",VLOOKUP($D42&$F42,'Rnd22'!$H:$I,2,FALSE)) ->  | AC42: =SUM(AG42:BB42) -> 260 | AD42: =COUNT(AG42:BB42) -> 7 | AE42: =SUM(BG42:CB42) -> 260 | AF42: =COUNT(BG42:CB42) -> 7 | AG42: =IF(ISNUMBER(G42),VLOOKUP(_xlfn.RANK.EQ(G42,G$4:G$128,1),PointsTable,2),"") -> 37 | AH42: =IF(ISNUMBER(H42),VLOOKUP(_xlfn.RANK.EQ(H42,H$4:H$128,1),PointsTable,2),"") -> 33 | AI42: =IF(ISNUMBER(I42),VLOOKUP(_xlfn.RANK.EQ(I42,I$4:I$128,1),PointsTable,2),"") -> 29 | AJ42: =IF(ISNUMBER(J42),VLOOKUP(_xlfn.RANK.EQ(J42,J$4:J$128,1),PointsTable,2),"") ->  | AK42: =IF(ISNUMBER(K42),VLOOKUP(_xlfn.RANK.EQ(K42,K$4:K$128,1),PointsTable,2),"") -> 42 | AL42: =IF(ISNUMBER(L42),VLOOKUP(_xlfn.RANK.EQ(L42,L$4:L$128,1),PointsTable,2),"") -> 38 | AM42: =IF(ISNUMBER(M42),VLOOKUP(_xlfn.RANK.EQ(M42,M$4:M$128,1),PointsTable,2),"") -> 40 | AN42: =IF(ISNUMBER(N42),VLOOKUP(_xlfn.RANK.EQ(N42,N$4:N$128,1),PointsTable,2),"") ->  | AO42: =IF(ISNUMBER(O42),VLOOKUP(_xlfn.RANK.EQ(O42,O$4:O$128,1),PointsTable,2),"") ->  | AP42: =IF(ISNUMBER(P42),VLOOKUP(_xlfn.RANK.EQ(P42,P$4:P$128,1),PointsTable,2),"") ->  | AQ42: =IF(ISNUMBER(Q42),VLOOKUP(_xlfn.RANK.EQ(Q42,Q$4:Q$128,1),PointsTable,2),"") ->  | AR42: =IF(ISNUMBER(R42),VLOOKUP(_xlfn.RANK.EQ(R42,R$4:R$128,1),PointsTable,2),"") ->  | AS42: =IF(ISNUMBER(S42),VLOOKUP(_xlfn.RANK.EQ(S42,S$4:S$128,1),PointsTable,2),"") ->  | AT42: =IF(ISNUMBER(T42),VLOOKUP(_xlfn.RANK.EQ(T42,T$4:T$128,1),PointsTable,2),"") ->  | AU42: =IF(ISNUMBER(U42),VLOOKUP(_xlfn.RANK.EQ(U42,U$4:U$128,1),PointsTable,2),"") ->  | AV42: =IF(ISNUMBER(V42),VLOOKUP(_xlfn.RANK.EQ(V42,V$4:V$128,1),PointsTable,2),"") ->  | AW42: =IF(ISNUMBER(W42),VLOOKUP(_xlfn.RANK.EQ(W42,W$4:W$128,1),PointsTable,2),"") ->  | AX42: =IF(ISNUMBER(X42),VLOOKUP(_xlfn.RANK.EQ(X42,X$4:X$128,1),PointsTable,2),"") ->  | AY42: =IF(ISNUMBER(Y42),VLOOKUP(_xlfn.RANK.EQ(Y42,Y$4:Y$128,1),PointsTable,2),"") -> 41 | AZ42: =IF(ISNUMBER(Z42),VLOOKUP(_xlfn.RANK.EQ(Z42,Z$4:Z$128,1),PointsTable,2),"") ->  | BA42: =IF(ISNUMBER(AA42),VLOOKUP(_xlfn.RANK.EQ(AA42,AA$4:AA$128,1),PointsTable,2),"") ->  | BB42: =IF(ISNUMBER(AB42),VLOOKUP(_xlfn.RANK.EQ(AB42,AB$4:AB$128,1),PointsTable,2),"") ->  | BG42: =bestpoints(AG42, $AG42:$BB42, CountingRaces) -> 37 | BH42: =bestpoints(AH42, $AG42:$BB42, CountingRaces) -> 33 | BI42: =bestpoints(AI42, $AG42:$BB42, CountingRaces) -> 29 | BJ42: =bestpoints(AJ42, $AG42:$BB42, CountingRaces) ->  | BK42: =bestpoints(AK42, $AG42:$BB42, CountingRaces) -> 42 | BL42: =bestpoints(AL42, $AG42:$BB42, CountingRaces) -> 38 | BM42: =bestpoints(AM42, $AG42:$BB42, CountingRaces) -> 40 | BN42: =bestpoints(AN42, $AG42:$BB42, CountingRaces) ->  | BO42: =bestpoints(AO42, $AG42:$BB42, CountingRaces) ->  | BP42: =bestpoints(AP42, $AG42:$BB42, CountingRaces) ->  | BQ42: =bestpoints(AQ42, $AG42:$BB42, CountingRaces) ->  | BR42: =bestpoints(AR42, $AG42:$BB42, CountingRaces) ->  | BS42: =bestpoints(AS42, $AG42:$BB42, CountingRaces) ->  | BT42: =bestpoints(AT42, $AG42:$BB42, CountingRaces) ->  | BU42: =bestpoints(AU42, $AG42:$BB42, CountingRaces) ->  | BV42: =bestpoints(AV42, $AG42:$BB42, CountingRaces) ->  | BW42: =bestpoints(AW42, $AG42:$BB42, CountingRaces) ->  | BX42: =bestpoints(AX42, $AG42:$BB42, CountingRaces) ->  | BY42: =bestpoints(AY42, $AG42:$BB42, CountingRaces) -> 41 | BZ42: =bestpoints(AZ42, $AG42:$BB42, CountingRaces) ->  | CA42: =bestpoints(BA42, $AG42:$BB42, CountingRaces) ->  | CB42: =bestpoints(BB42, $AG42:$BB42, CountingRaces) -> 
A43: =AE43/AF43 -> 36 | B43: 39 | C43: =IF(AF43 >0,RANK(AE43,AE$4:AE$128),"") -> 40 | D43: Ruth Hamilton | E43: LV50 | F43: SDCC | G43: =IF(ISERROR(VLOOKUP($D43&$F43,'Rnd1'!$H:$I,2,FALSE)),"",VLOOKUP($D43&$F43,'Rnd1'!$H:$I,2,FALSE)) ->  | H43: =IF(ISERROR(VLOOKUP($D43&$F43,'Rnd2'!$H:$I,2,FALSE)),"",VLOOKUP($D43&$F43,'Rnd2'!$H:$I,2,FALSE)) ->  | I43: =IF(ISERROR(VLOOKUP($D43&$F43,'Rnd3'!$H:$I,2,FALSE)),"",VLOOKUP($D43&$F43,'Rnd3'!$H:$I,2,FALSE)) ->  | J43: =IF(ISERROR(VLOOKUP($D43&$F43,'Rnd4'!$H:$I,2,FALSE)),"",VLOOKUP($D43&$F43,'Rnd4'!$H:$I,2,FALSE)) ->  | K43: =IF(ISERROR(VLOOKUP($D43&$F43,'Rnd5'!$H:$I,2,FALSE)),"",VLOOKUP($D43&$F43,'Rnd5'!$H:$I,2,FALSE)) -> 00:28:32 | L43: =IF(ISERROR(VLOOKUP($D43&$F43,'Rnd6'!$H:$I,2,FALSE)),"",VLOOKUP($D43&$F43,'Rnd6'!$H:$I,2,FALSE)) -> 00:27:18 | M43: =IF(ISERROR(VLOOKUP($D43&$F43,'Rnd7'!$H:$I,2,FALSE)),"",VLOOKUP($D43&$F43,'Rnd7'!$H:$I,2,FALSE)) -> 00:27:44 | N43: =IF(ISERROR(VLOOKUP($D43&$F43,'Rnd8'!$H:$I,2,FALSE)),"",VLOOKUP($D43&$F43,'Rnd8'!$H:$I,2,FALSE)) -> 00:28:07 | O43: =IF(ISERROR(VLOOKUP($D43&$F43,'Rnd9'!$H:$I,2,FALSE)),"",VLOOKUP($D43&$F43,'Rnd9'!$H:$I,2,FALSE)) -> 00:27:01 | P43: =IF(ISERROR(VLOOKUP($D43&$F43,'Rnd10'!$H:$I,2,FALSE)),"",VLOOKUP($D43&$F43,'Rnd10'!$H:$I,2,FALSE)) -> 00:26:54 | Q43: =IF(ISERROR(VLOOKUP($D43&$F43,'Rnd11'!$H:$I,2,FALSE)),"",VLOOKUP($D43&$F43,'Rnd11'!$H:$I,2,FALSE)) -> 00:27:29 | R43: =IF(ISERROR(VLOOKUP($D43&$F43,'Rnd12'!$H:$I,2,FALSE)),"",VLOOKUP($D43&$F43,'Rnd12'!$H:$I,2,FALSE)) ->  | S43: =IF(ISERROR(VLOOKUP($D43&$F43,'Rnd13'!$H:$I,2,FALSE)),"",VLOOKUP($D43&$F43,'Rnd13'!$H:$I,2,FALSE)) ->  | T43: =IF(ISERROR(VLOOKUP($D43&$F43,'Rnd14'!$H:$I,2,FALSE)),"",VLOOKUP($D43&$F43,'Rnd14'!$H:$I,2,FALSE)) ->  | U43: =IF(ISERROR(VLOOKUP($D43&$F43,'Rnd15'!$H:$I,2,FALSE)),"",VLOOKUP($D43&$F43,'Rnd15'!$H:$I,2,FALSE)) ->  | V43: =IF(ISERROR(VLOOKUP($D43&$F43,'Rnd16'!$H:$I,2,FALSE)),"",VLOOKUP($D43&$F43,'Rnd16'!$H:$I,2,FALSE)) ->  | W43: =IF(ISERROR(VLOOKUP($D43&$F43,'Rnd17'!$H:$I,2,FALSE)),"",VLOOKUP($D43&$F43,'Rnd17'!$H:$I,2,FALSE)) ->  | X43: =IF(ISERROR(VLOOKUP($D43&$F43,'Rnd18'!$H:$I,2,FALSE)),"",VLOOKUP($D43&$F43,'Rnd18'!$H:$I,2,FALSE)) ->  | Y43: =IF(ISERROR(VLOOKUP($D43&$F43,'Rnd19'!$H:$I,2,FALSE)),"",VLOOKUP($D43&$F43,'Rnd19'!$H:$I,2,FALSE)) ->  | Z43: =IF(ISERROR(VLOOKUP($D43&$F43,'Rnd20'!$H:$I,2,FALSE)),"",VLOOKUP($D43&$F43,'Rnd20'!$H:$I,2,FALSE)) ->  | AA43: =IF(ISERROR(VLOOKUP($D43&$F43,'Rnd21'!$H:$I,2,FALSE)),"",VLOOKUP($D43&$F43,'Rnd21'!$H:$I,2,FALSE)) ->  | AB43: =IF(ISERROR(VLOOKUP($D43&$F43,'Rnd22'!$H:$I,2,FALSE)),"",VLOOKUP($D43&$F43,'Rnd22'!$H:$I,2,FALSE)) ->  | AC43: =SUM(AG43:BB43) -> 252 | AD43: =COUNT(AG43:BB43) -> 7 | AE43: =SUM(BG43:CB43) -> 252 | AF43: =COUNT(BG43:CB43) -> 7 | AG43: =IF(ISNUMBER(G43),VLOOKUP(_xlfn.RANK.EQ(G43,G$4:G$128,1),PointsTable,2),"") ->  | AH43: =IF(ISNUMBER(H43),VLOOKUP(_xlfn.RANK.EQ(H43,H$4:H$128,1),PointsTable,2),"") ->  | AI43: =IF(ISNUMBER(I43),VLOOKUP(_xlfn.RANK.EQ(I43,I$4:I$128,1),PointsTable,2),"") ->  | AJ43: =IF(ISNUMBER(J43),VLOOKUP(_xlfn.RANK.EQ(J43,J$4:J$128,1),PointsTable,2),"") ->  | AK43: =IF(ISNUMBER(K43),VLOOKUP(_xlfn.RANK.EQ(K43,K$4:K$128,1),PointsTable,2),"") -> 39 | AL43: =IF(ISNUMBER(L43),VLOOKUP(_xlfn.RANK.EQ(L43,L$4:L$128,1),PointsTable,2),"") -> 37 | AM43: =IF(ISNUMBER(M43),VLOOKUP(_xlfn.RANK.EQ(M43,M$4:M$128,1),PointsTable,2),"") -> 38 | AN43: =IF(ISNUMBER(N43),VLOOKUP(_xlfn.RANK.EQ(N43,N$4:N$128,1),PointsTable,2),"") -> 35 | AO43: =IF(ISNUMBER(O43),VLOOKUP(_xlfn.RANK.EQ(O43,O$4:O$128,1),PointsTable,2),"") -> 35 | AP43: =IF(ISNUMBER(P43),VLOOKUP(_xlfn.RANK.EQ(P43,P$4:P$128,1),PointsTable,2),"") -> 33 | AQ43: =IF(ISNUMBER(Q43),VLOOKUP(_xlfn.RANK.EQ(Q43,Q$4:Q$128,1),PointsTable,2),"") -> 35 | AR43: =IF(ISNUMBER(R43),VLOOKUP(_xlfn.RANK.EQ(R43,R$4:R$128,1),PointsTable,2),"") ->  | AS43: =IF(ISNUMBER(S43),VLOOKUP(_xlfn.RANK.EQ(S43,S$4:S$128,1),PointsTable,2),"") ->  | AT43: =IF(ISNUMBER(T43),VLOOKUP(_xlfn.RANK.EQ(T43,T$4:T$128,1),PointsTable,2),"") ->  | AU43: =IF(ISNUMBER(U43),VLOOKUP(_xlfn.RANK.EQ(U43,U$4:U$128,1),PointsTable,2),"") ->  | AV43: =IF(ISNUMBER(V43),VLOOKUP(_xlfn.RANK.EQ(V43,V$4:V$128,1),PointsTable,2),"") ->  | AW43: =IF(ISNUMBER(W43),VLOOKUP(_xlfn.RANK.EQ(W43,W$4:W$128,1),PointsTable,2),"") ->  | AX43: =IF(ISNUMBER(X43),VLOOKUP(_xlfn.RANK.EQ(X43,X$4:X$128,1),PointsTable,2),"") ->  | AY43: =IF(ISNUMBER(Y43),VLOOKUP(_xlfn.RANK.EQ(Y43,Y$4:Y$128,1),PointsTable,2),"") ->  | AZ43: =IF(ISNUMBER(Z43),VLOOKUP(_xlfn.RANK.EQ(Z43,Z$4:Z$128,1),PointsTable,2),"") ->  | BA43: =IF(ISNUMBER(AA43),VLOOKUP(_xlfn.RANK.EQ(AA43,AA$4:AA$128,1),PointsTable,2),"") ->  | BB43: =IF(ISNUMBER(AB43),VLOOKUP(_xlfn.RANK.EQ(AB43,AB$4:AB$128,1),PointsTable,2),"") ->  | BG43: =bestpoints(AG43, $AG43:$BB43, CountingRaces) ->  | BH43: =bestpoints(AH43, $AG43:$BB43, CountingRaces) ->  | BI43: =bestpoints(AI43, $AG43:$BB43, CountingRaces) ->  | BJ43: =bestpoints(AJ43, $AG43:$BB43, CountingRaces) ->  | BK43: =bestpoints(AK43, $AG43:$BB43, CountingRaces) -> 39 | BL43: =bestpoints(AL43, $AG43:$BB43, CountingRaces) -> 37 | BM43: =bestpoints(AM43, $AG43:$BB43, CountingRaces) -> 38 | BN43: =bestpoints(AN43, $AG43:$BB43, CountingRaces) -> 35 | BO43: =bestpoints(AO43, $AG43:$BB43, CountingRaces) -> 35 | BP43: =bestpoints(AP43, $AG43:$BB43, CountingRaces) -> 33 | BQ43: =bestpoints(AQ43, $AG43:$BB43, CountingRaces) -> 35 | BR43: =bestpoints(AR43, $AG43:$BB43, CountingRaces) ->  | BS43: =bestpoints(AS43, $AG43:$BB43, CountingRaces) ->  | BT43: =bestpoints(AT43, $AG43:$BB43, CountingRaces) ->  | BU43: =bestpoints(AU43, $AG43:$BB43, CountingRaces) ->  | BV43: =bestpoints(AV43, $AG43:$BB43, CountingRaces) ->  | BW43: =bestpoints(AW43, $AG43:$BB43, CountingRaces) ->  | BX43: =bestpoints(AX43, $AG43:$BB43, CountingRaces) ->  | BY43: =bestpoints(AY43, $AG43:$BB43, CountingRaces) ->  | BZ43: =bestpoints(AZ43, $AG43:$BB43, CountingRaces) ->  | CA43: =bestpoints(BA43, $AG43:$BB43, CountingRaces) ->  | CB43: =bestpoints(BB43, $AG43:$BB43, CountingRaces) -> 
A44: =AE44/AF44 -> 32.71428571 | B44: 51 | C44: =IF(AF44 >0,RANK(AE44,AE$4:AE$128),"") -> 41 | D44: Sean Marner | E44: V40 | F44: IBC | G44: =IF(ISERROR(VLOOKUP($D44&$F44,'Rnd1'!$H:$I,2,FALSE)),"",VLOOKUP($D44&$F44,'Rnd1'!$H:$I,2,FALSE)) -> 00:17:04 | H44: =IF(ISERROR(VLOOKUP($D44&$F44,'Rnd2'!$H:$I,2,FALSE)),"",VLOOKUP($D44&$F44,'Rnd2'!$H:$I,2,FALSE)) -> 00:15:41 | I44: =IF(ISERROR(VLOOKUP($D44&$F44,'Rnd3'!$H:$I,2,FALSE)),"",VLOOKUP($D44&$F44,'Rnd3'!$H:$I,2,FALSE)) ->  | J44: =IF(ISERROR(VLOOKUP($D44&$F44,'Rnd4'!$H:$I,2,FALSE)),"",VLOOKUP($D44&$F44,'Rnd4'!$H:$I,2,FALSE)) ->  | K44: =IF(ISERROR(VLOOKUP($D44&$F44,'Rnd5'!$H:$I,2,FALSE)),"",VLOOKUP($D44&$F44,'Rnd5'!$H:$I,2,FALSE)) ->  | L44: =IF(ISERROR(VLOOKUP($D44&$F44,'Rnd6'!$H:$I,2,FALSE)),"",VLOOKUP($D44&$F44,'Rnd6'!$H:$I,2,FALSE)) ->  | M44: =IF(ISERROR(VLOOKUP($D44&$F44,'Rnd7'!$H:$I,2,FALSE)),"",VLOOKUP($D44&$F44,'Rnd7'!$H:$I,2,FALSE)) ->  | N44: =IF(ISERROR(VLOOKUP($D44&$F44,'Rnd8'!$H:$I,2,FALSE)),"",VLOOKUP($D44&$F44,'Rnd8'!$H:$I,2,FALSE)) -> 00:30:57 | O44: =IF(ISERROR(VLOOKUP($D44&$F44,'Rnd9'!$H:$I,2,FALSE)),"",VLOOKUP($D44&$F44,'Rnd9'!$H:$I,2,FALSE)) -> 00:30:38 | P44: =IF(ISERROR(VLOOKUP($D44&$F44,'Rnd10'!$H:$I,2,FALSE)),"",VLOOKUP($D44&$F44,'Rnd10'!$H:$I,2,FALSE)) ->  | Q44: =IF(ISERROR(VLOOKUP($D44&$F44,'Rnd11'!$H:$I,2,FALSE)),"",VLOOKUP($D44&$F44,'Rnd11'!$H:$I,2,FALSE)) ->  | R44: =IF(ISERROR(VLOOKUP($D44&$F44,'Rnd12'!$H:$I,2,FALSE)),"",VLOOKUP($D44&$F44,'Rnd12'!$H:$I,2,FALSE)) ->  | S44: =IF(ISERROR(VLOOKUP($D44&$F44,'Rnd13'!$H:$I,2,FALSE)),"",VLOOKUP($D44&$F44,'Rnd13'!$H:$I,2,FALSE)) ->  | T44: =IF(ISERROR(VLOOKUP($D44&$F44,'Rnd14'!$H:$I,2,FALSE)),"",VLOOKUP($D44&$F44,'Rnd14'!$H:$I,2,FALSE)) ->  | U44: =IF(ISERROR(VLOOKUP($D44&$F44,'Rnd15'!$H:$I,2,FALSE)),"",VLOOKUP($D44&$F44,'Rnd15'!$H:$I,2,FALSE)) ->  | V44: =IF(ISERROR(VLOOKUP($D44&$F44,'Rnd16'!$H:$I,2,FALSE)),"",VLOOKUP($D44&$F44,'Rnd16'!$H:$I,2,FALSE)) ->  | W44: =IF(ISERROR(VLOOKUP($D44&$F44,'Rnd17'!$H:$I,2,FALSE)),"",VLOOKUP($D44&$F44,'Rnd17'!$H:$I,2,FALSE)) -> 00:30:44 | X44: =IF(ISERROR(VLOOKUP($D44&$F44,'Rnd18'!$H:$I,2,FALSE)),"",VLOOKUP($D44&$F44,'Rnd18'!$H:$I,2,FALSE)) -> 00:31:09 | Y44: =IF(ISERROR(VLOOKUP($D44&$F44,'Rnd19'!$H:$I,2,FALSE)),"",VLOOKUP($D44&$F44,'Rnd19'!$H:$I,2,FALSE)) ->  | Z44: =IF(ISERROR(VLOOKUP($D44&$F44,'Rnd20'!$H:$I,2,FALSE)),"",VLOOKUP($D44&$F44,'Rnd20'!$H:$I,2,FALSE)) ->  | AA44: =IF(ISERROR(VLOOKUP($D44&$F44,'Rnd21'!$H:$I,2,FALSE)),"",VLOOKUP($D44&$F44,'Rnd21'!$H:$I,2,FALSE)) ->  | AB44: =IF(ISERROR(VLOOKUP($D44&$F44,'Rnd22'!$H:$I,2,FALSE)),"",VLOOKUP($D44&$F44,'Rnd22'!$H:$I,2,FALSE)) -> 00:15:08 | AC44: =SUM(AG44:BB44) -> 229 | AD44: =COUNT(AG44:BB44) -> 7 | AE44: =SUM(BG44:CB44) -> 229 | AF44: =COUNT(BG44:CB44) -> 7 | AG44: =IF(ISNUMBER(G44),VLOOKUP(_xlfn.RANK.EQ(G44,G$4:G$128,1),PointsTable,2),"") -> 34 | AH44: =IF(ISNUMBER(H44),VLOOKUP(_xlfn.RANK.EQ(H44,H$4:H$128,1),PointsTable,2),"") -> 24 | AI44: =IF(ISNUMBER(I44),VLOOKUP(_xlfn.RANK.EQ(I44,I$4:I$128,1),PointsTable,2),"") ->  | AJ44: =IF(ISNUMBER(J44),VLOOKUP(_xlfn.RANK.EQ(J44,J$4:J$128,1),PointsTable,2),"") ->  | AK44: =IF(ISNUMBER(K44),VLOOKUP(_xlfn.RANK.EQ(K44,K$4:K$128,1),PointsTable,2),"") ->  | AL44: =IF(ISNUMBER(L44),VLOOKUP(_xlfn.RANK.EQ(L44,L$4:L$128,1),PointsTable,2),"") ->  | AM44: =IF(ISNUMBER(M44),VLOOKUP(_xlfn.RANK.EQ(M44,M$4:M$128,1),PointsTable,2),"") ->  | AN44: =IF(ISNUMBER(N44),VLOOKUP(_xlfn.RANK.EQ(N44,N$4:N$128,1),PointsTable,2),"") -> 28 | AO44: =IF(ISNUMBER(O44),VLOOKUP(_xlfn.RANK.EQ(O44,O$4:O$128,1),PointsTable,2),"") -> 29 | AP44: =IF(ISNUMBER(P44),VLOOKUP(_xlfn.RANK.EQ(P44,P$4:P$128,1),PointsTable,2),"") ->  | AQ44: =IF(ISNUMBER(Q44),VLOOKUP(_xlfn.RANK.EQ(Q44,Q$4:Q$128,1),PointsTable,2),"") ->  | AR44: =IF(ISNUMBER(R44),VLOOKUP(_xlfn.RANK.EQ(R44,R$4:R$128,1),PointsTable,2),"") ->  | AS44: =IF(ISNUMBER(S44),VLOOKUP(_xlfn.RANK.EQ(S44,S$4:S$128,1),PointsTable,2),"") ->  | AT44: =IF(ISNUMBER(T44),VLOOKUP(_xlfn.RANK.EQ(T44,T$4:T$128,1),PointsTable,2),"") ->  | AU44: =IF(ISNUMBER(U44),VLOOKUP(_xlfn.RANK.EQ(U44,U$4:U$128,1),PointsTable,2),"") ->  | AV44: =IF(ISNUMBER(V44),VLOOKUP(_xlfn.RANK.EQ(V44,V$4:V$128,1),PointsTable,2),"") ->  | AW44: =IF(ISNUMBER(W44),VLOOKUP(_xlfn.RANK.EQ(W44,W$4:W$128,1),PointsTable,2),"") -> 34 | AX44: =IF(ISNUMBER(X44),VLOOKUP(_xlfn.RANK.EQ(X44,X$4:X$128,1),PointsTable,2),"") -> 33 | AY44: =IF(ISNUMBER(Y44),VLOOKUP(_xlfn.RANK.EQ(Y44,Y$4:Y$128,1),PointsTable,2),"") ->  | AZ44: =IF(ISNUMBER(Z44),VLOOKUP(_xlfn.RANK.EQ(Z44,Z$4:Z$128,1),PointsTable,2),"") ->  | BA44: =IF(ISNUMBER(AA44),VLOOKUP(_xlfn.RANK.EQ(AA44,AA$4:AA$128,1),PointsTable,2),"") ->  | BB44: =IF(ISNUMBER(AB44),VLOOKUP(_xlfn.RANK.EQ(AB44,AB$4:AB$128,1),PointsTable,2),"") -> 47 | BG44: =bestpoints(AG44, $AG44:$BB44, CountingRaces) -> 34 | BH44: =bestpoints(AH44, $AG44:$BB44, CountingRaces) -> 24 | BI44: =bestpoints(AI44, $AG44:$BB44, CountingRaces) ->  | BJ44: =bestpoints(AJ44, $AG44:$BB44, CountingRaces) ->  | BK44: =bestpoints(AK44, $AG44:$BB44, CountingRaces) ->  | BL44: =bestpoints(AL44, $AG44:$BB44, CountingRaces) ->  | BM44: =bestpoints(AM44, $AG44:$BB44, CountingRaces) ->  | BN44: =bestpoints(AN44, $AG44:$BB44, CountingRaces) -> 28 | BO44: =bestpoints(AO44, $AG44:$BB44, CountingRaces) -> 29 | BP44: =bestpoints(AP44, $AG44:$BB44, CountingRaces) ->  | BQ44: =bestpoints(AQ44, $AG44:$BB44, CountingRaces) ->  | BR44: =bestpoints(AR44, $AG44:$BB44, CountingRaces) ->  | BS44: =bestpoints(AS44, $AG44:$BB44, CountingRaces) ->  | BT44: =bestpoints(AT44, $AG44:$BB44, CountingRaces) ->  | BU44: =bestpoints(AU44, $AG44:$BB44, CountingRaces) ->  | BV44: =bestpoints(AV44, $AG44:$BB44, CountingRaces) ->  | BW44: =bestpoints(AW44, $AG44:$BB44, CountingRaces) -> 34 | BX44: =bestpoints(AX44, $AG44:$BB44, CountingRaces) -> 33 | BY44: =bestpoints(AY44, $AG44:$BB44, CountingRaces) ->  | BZ44: =bestpoints(AZ44, $AG44:$BB44, CountingRaces) ->  | CA44: =bestpoints(BA44, $AG44:$BB44, CountingRaces) ->  | CB44: =bestpoints(BB44, $AG44:$BB44, CountingRaces) -> 47
A45: =AE45/AF45 -> 37.16666667 | B45: 41 | C45: =IF(AF45 >0,RANK(AE45,AE$4:AE$128),"") -> 42 | D45: Jason Everett | E45: V40 | F45: SDCC | G45: =IF(ISERROR(VLOOKUP($D45&$F45,'Rnd1'!$H:$I,2,FALSE)),"",VLOOKUP($D45&$F45,'Rnd1'!$H:$I,2,FALSE)) ->  | H45: =IF(ISERROR(VLOOKUP($D45&$F45,'Rnd2'!$H:$I,2,FALSE)),"",VLOOKUP($D45&$F45,'Rnd2'!$H:$I,2,FALSE)) ->  | I45: =IF(ISERROR(VLOOKUP($D45&$F45,'Rnd3'!$H:$I,2,FALSE)),"",VLOOKUP($D45&$F45,'Rnd3'!$H:$I,2,FALSE)) ->  | J45: =IF(ISERROR(VLOOKUP($D45&$F45,'Rnd4'!$H:$I,2,FALSE)),"",VLOOKUP($D45&$F45,'Rnd4'!$H:$I,2,FALSE)) ->  | K45: =IF(ISERROR(VLOOKUP($D45&$F45,'Rnd5'!$H:$I,2,FALSE)),"",VLOOKUP($D45&$F45,'Rnd5'!$H:$I,2,FALSE)) ->  | L45: =IF(ISERROR(VLOOKUP($D45&$F45,'Rnd6'!$H:$I,2,FALSE)),"",VLOOKUP($D45&$F45,'Rnd6'!$H:$I,2,FALSE)) ->  | M45: =IF(ISERROR(VLOOKUP($D45&$F45,'Rnd7'!$H:$I,2,FALSE)),"",VLOOKUP($D45&$F45,'Rnd7'!$H:$I,2,FALSE)) ->  | N45: =IF(ISERROR(VLOOKUP($D45&$F45,'Rnd8'!$H:$I,2,FALSE)),"",VLOOKUP($D45&$F45,'Rnd8'!$H:$I,2,FALSE)) -> 00:28:52 | O45: =IF(ISERROR(VLOOKUP($D45&$F45,'Rnd9'!$H:$I,2,FALSE)),"",VLOOKUP($D45&$F45,'Rnd9'!$H:$I,2,FALSE)) ->  | P45: =IF(ISERROR(VLOOKUP($D45&$F45,'Rnd10'!$H:$I,2,FALSE)),"",VLOOKUP($D45&$F45,'Rnd10'!$H:$I,2,FALSE)) -> 00:27:34 | Q45: =IF(ISERROR(VLOOKUP($D45&$F45,'Rnd11'!$H:$I,2,FALSE)),"",VLOOKUP($D45&$F45,'Rnd11'!$H:$I,2,FALSE)) -> 00:27:31 | R45: =IF(ISERROR(VLOOKUP($D45&$F45,'Rnd12'!$H:$I,2,FALSE)),"",VLOOKUP($D45&$F45,'Rnd12'!$H:$I,2,FALSE)) -> 00:26:47 | S45: =IF(ISERROR(VLOOKUP($D45&$F45,'Rnd13'!$H:$I,2,FALSE)),"",VLOOKUP($D45&$F45,'Rnd13'!$H:$I,2,FALSE)) -> 00:27:11 | T45: =IF(ISERROR(VLOOKUP($D45&$F45,'Rnd14'!$H:$I,2,FALSE)),"",VLOOKUP($D45&$F45,'Rnd14'!$H:$I,2,FALSE)) ->  | U45: =IF(ISERROR(VLOOKUP($D45&$F45,'Rnd15'!$H:$I,2,FALSE)),"",VLOOKUP($D45&$F45,'Rnd15'!$H:$I,2,FALSE)) ->  | V45: =IF(ISERROR(VLOOKUP($D45&$F45,'Rnd16'!$H:$I,2,FALSE)),"",VLOOKUP($D45&$F45,'Rnd16'!$H:$I,2,FALSE)) ->  | W45: =IF(ISERROR(VLOOKUP($D45&$F45,'Rnd17'!$H:$I,2,FALSE)),"",VLOOKUP($D45&$F45,'Rnd17'!$H:$I,2,FALSE)) ->  | X45: =IF(ISERROR(VLOOKUP($D45&$F45,'Rnd18'!$H:$I,2,FALSE)),"",VLOOKUP($D45&$F45,'Rnd18'!$H:$I,2,FALSE)) -> 00:27:44 | Y45: =IF(ISERROR(VLOOKUP($D45&$F45,'Rnd19'!$H:$I,2,FALSE)),"",VLOOKUP($D45&$F45,'Rnd19'!$H:$I,2,FALSE)) ->  | Z45: =IF(ISERROR(VLOOKUP($D45&$F45,'Rnd20'!$H:$I,2,FALSE)),"",VLOOKUP($D45&$F45,'Rnd20'!$H:$I,2,FALSE)) ->  | AA45: =IF(ISERROR(VLOOKUP($D45&$F45,'Rnd21'!$H:$I,2,FALSE)),"",VLOOKUP($D45&$F45,'Rnd21'!$H:$I,2,FALSE)) ->  | AB45: =IF(ISERROR(VLOOKUP($D45&$F45,'Rnd22'!$H:$I,2,FALSE)),"",VLOOKUP($D45&$F45,'Rnd22'!$H:$I,2,FALSE)) ->  | AC45: =SUM(AG45:BB45) -> 223 | AD45: =COUNT(AG45:BB45) -> 6 | AE45: =SUM(BG45:CB45) -> 223 | AF45: =COUNT(BG45:CB45) -> 6 | AG45: =IF(ISNUMBER(G45),VLOOKUP(_xlfn.RANK.EQ(G45,G$4:G$128,1),PointsTable,2),"") ->  | AH45: =IF(ISNUMBER(H45),VLOOKUP(_xlfn.RANK.EQ(H45,H$4:H$128,1),PointsTable,2),"") ->  | AI45: =IF(ISNUMBER(I45),VLOOKUP(_xlfn.RANK.EQ(I45,I$4:I$128,1),PointsTable,2),"") ->  | AJ45: =IF(ISNUMBER(J45),VLOOKUP(_xlfn.RANK.EQ(J45,J$4:J$128,1),PointsTable,2),"") ->  | AK45: =IF(ISNUMBER(K45),VLOOKUP(_xlfn.RANK.EQ(K45,K$4:K$128,1),PointsTable,2),"") ->  | AL45: =IF(ISNUMBER(L45),VLOOKUP(_xlfn.RANK.EQ(L45,L$4:L$128,1),PointsTable,2),"") ->  | AM45: =IF(ISNUMBER(M45),VLOOKUP(_xlfn.RANK.EQ(M45,M$4:M$128,1),PointsTable,2),"") ->  | AN45: =IF(ISNUMBER(N45),VLOOKUP(_xlfn.RANK.EQ(N45,N$4:N$128,1),PointsTable,2),"") -> 34 | AO45: =IF(ISNUMBER(O45),VLOOKUP(_xlfn.RANK.EQ(O45,O$4:O$128,1),PointsTable,2),"") ->  | AP45: =IF(ISNUMBER(P45),VLOOKUP(_xlfn.RANK.EQ(P45,P$4:P$128,1),PointsTable,2),"") -> 31 | AQ45: =IF(ISNUMBER(Q45),VLOOKUP(_xlfn.RANK.EQ(Q45,Q$4:Q$128,1),PointsTable,2),"") -> 34 | AR45: =IF(ISNUMBER(R45),VLOOKUP(_xlfn.RANK.EQ(R45,R$4:R$128,1),PointsTable,2),"") -> 47 | AS45: =IF(ISNUMBER(S45),VLOOKUP(_xlfn.RANK.EQ(S45,S$4:S$128,1),PointsTable,2),"") -> 36 | AT45: =IF(ISNUMBER(T45),VLOOKUP(_xlfn.RANK.EQ(T45,T$4:T$128,1),PointsTable,2),"") ->  | AU45: =IF(ISNUMBER(U45),VLOOKUP(_xlfn.RANK.EQ(U45,U$4:U$128,1),PointsTable,2),"") ->  | AV45: =IF(ISNUMBER(V45),VLOOKUP(_xlfn.RANK.EQ(V45,V$4:V$128,1),PointsTable,2),"") ->  | AW45: =IF(ISNUMBER(W45),VLOOKUP(_xlfn.RANK.EQ(W45,W$4:W$128,1),PointsTable,2),"") ->  | AX45: =IF(ISNUMBER(X45),VLOOKUP(_xlfn.RANK.EQ(X45,X$4:X$128,1),PointsTable,2),"") -> 41 | AY45: =IF(ISNUMBER(Y45),VLOOKUP(_xlfn.RANK.EQ(Y45,Y$4:Y$128,1),PointsTable,2),"") ->  | AZ45: =IF(ISNUMBER(Z45),VLOOKUP(_xlfn.RANK.EQ(Z45,Z$4:Z$128,1),PointsTable,2),"") ->  | BA45: =IF(ISNUMBER(AA45),VLOOKUP(_xlfn.RANK.EQ(AA45,AA$4:AA$128,1),PointsTable,2),"") ->  | BB45: =IF(ISNUMBER(AB45),VLOOKUP(_xlfn.RANK.EQ(AB45,AB$4:AB$128,1),PointsTable,2),"") ->  | BG45: =bestpoints(AG45, $AG45:$BB45, CountingRaces) ->  | BH45: =bestpoints(AH45, $AG45:$BB45, CountingRaces) ->  | BI45: =bestpoints(AI45, $AG45:$BB45, CountingRaces) ->  | BJ45: =bestpoints(AJ45, $AG45:$BB45, CountingRaces) ->  | BK45: =bestpoints(AK45, $AG45:$BB45, CountingRaces) ->  | BL45: =bestpoints(AL45, $AG45:$BB45, CountingRaces) ->  | BM45: =bestpoints(AM45, $AG45:$BB45, CountingRaces) ->  | BN45: =bestpoints(AN45, $AG45:$BB45, CountingRaces) -> 34 | BO45: =bestpoints(AO45, $AG45:$BB45, CountingRaces) ->  | BP45: =bestpoints(AP45, $AG45:$BB45, CountingRaces) -> 31 | BQ45: =bestpoints(AQ45, $AG45:$BB45, CountingRaces) -> 34 | BR45: =bestpoints(AR45, $AG45:$BB45, CountingRaces) -> 47 | BS45: =bestpoints(AS45, $AG45:$BB45, CountingRaces) -> 36 | BT45: =bestpoints(AT45, $AG45:$BB45, CountingRaces) ->  | BU45: =bestpoints(AU45, $AG45:$BB45, CountingRaces) ->  | BV45: =bestpoints(AV45, $AG45:$BB45, CountingRaces) ->  | BW45: =bestpoints(AW45, $AG45:$BB45, CountingRaces) ->  | BX45: =bestpoints(AX45, $AG45:$BB45, CountingRaces) -> 41 | BY45: =bestpoints(AY45, $AG45:$BB45, CountingRaces) ->  | BZ45: =bestpoints(AZ45, $AG45:$BB45, CountingRaces) ->  | CA45: =bestpoints(BA45, $AG45:$BB45, CountingRaces) ->  | CB45: =bestpoints(BB45, $AG45:$BB45, CountingRaces) -> 
A46: =AE46/AF46 -> 43.2 | B46: 42 | C46: =IF(AF46 >0,RANK(AE46,AE$4:AE$128),"") -> 43 | D46: Callam Stewart | E46: S | F46: SDCC | G46: =IF(ISERROR(VLOOKUP($D46&$F46,'Rnd1'!$H:$I,2,FALSE)),"",VLOOKUP($D46&$F46,'Rnd1'!$H:$I,2,FALSE)) ->  | H46: =IF(ISERROR(VLOOKUP($D46&$F46,'Rnd2'!$H:$I,2,FALSE)),"",VLOOKUP($D46&$F46,'Rnd2'!$H:$I,2,FALSE)) ->  | I46: =IF(ISERROR(VLOOKUP($D46&$F46,'Rnd3'!$H:$I,2,FALSE)),"",VLOOKUP($D46&$F46,'Rnd3'!$H:$I,2,FALSE)) ->  | J46: =IF(ISERROR(VLOOKUP($D46&$F46,'Rnd4'!$H:$I,2,FALSE)),"",VLOOKUP($D46&$F46,'Rnd4'!$H:$I,2,FALSE)) ->  | K46: =IF(ISERROR(VLOOKUP($D46&$F46,'Rnd5'!$H:$I,2,FALSE)),"",VLOOKUP($D46&$F46,'Rnd5'!$H:$I,2,FALSE)) ->  | L46: =IF(ISERROR(VLOOKUP($D46&$F46,'Rnd6'!$H:$I,2,FALSE)),"",VLOOKUP($D46&$F46,'Rnd6'!$H:$I,2,FALSE)) ->  | M46: =IF(ISERROR(VLOOKUP($D46&$F46,'Rnd7'!$H:$I,2,FALSE)),"",VLOOKUP($D46&$F46,'Rnd7'!$H:$I,2,FALSE)) -> 00:27:32 | N46: =IF(ISERROR(VLOOKUP($D46&$F46,'Rnd8'!$H:$I,2,FALSE)),"",VLOOKUP($D46&$F46,'Rnd8'!$H:$I,2,FALSE)) -> 00:26:42 | O46: =IF(ISERROR(VLOOKUP($D46&$F46,'Rnd9'!$H:$I,2,FALSE)),"",VLOOKUP($D46&$F46,'Rnd9'!$H:$I,2,FALSE)) ->  | P46: =IF(ISERROR(VLOOKUP($D46&$F46,'Rnd10'!$H:$I,2,FALSE)),"",VLOOKUP($D46&$F46,'Rnd10'!$H:$I,2,FALSE)) ->  | Q46: =IF(ISERROR(VLOOKUP($D46&$F46,'Rnd11'!$H:$I,2,FALSE)),"",VLOOKUP($D46&$F46,'Rnd11'!$H:$I,2,FALSE)) -> 00:26:26 | R46: =IF(ISERROR(VLOOKUP($D46&$F46,'Rnd12'!$H:$I,2,FALSE)),"",VLOOKUP($D46&$F46,'Rnd12'!$H:$I,2,FALSE)) -> 00:26:26 | S46: =IF(ISERROR(VLOOKUP($D46&$F46,'Rnd13'!$H:$I,2,FALSE)),"",VLOOKUP($D46&$F46,'Rnd13'!$H:$I,2,FALSE)) -> 00:25:54 | T46: =IF(ISERROR(VLOOKUP($D46&$F46,'Rnd14'!$H:$I,2,FALSE)),"",VLOOKUP($D46&$F46,'Rnd14'!$H:$I,2,FALSE)) ->  | U46: =IF(ISERROR(VLOOKUP($D46&$F46,'Rnd15'!$H:$I,2,FALSE)),"",VLOOKUP($D46&$F46,'Rnd15'!$H:$I,2,FALSE)) ->  | V46: =IF(ISERROR(VLOOKUP($D46&$F46,'Rnd16'!$H:$I,2,FALSE)),"",VLOOKUP($D46&$F46,'Rnd16'!$H:$I,2,FALSE)) ->  | W46: =IF(ISERROR(VLOOKUP($D46&$F46,'Rnd17'!$H:$I,2,FALSE)),"",VLOOKUP($D46&$F46,'Rnd17'!$H:$I,2,FALSE)) ->  | X46: =IF(ISERROR(VLOOKUP($D46&$F46,'Rnd18'!$H:$I,2,FALSE)),"",VLOOKUP($D46&$F46,'Rnd18'!$H:$I,2,FALSE)) ->  | Y46: =IF(ISERROR(VLOOKUP($D46&$F46,'Rnd19'!$H:$I,2,FALSE)),"",VLOOKUP($D46&$F46,'Rnd19'!$H:$I,2,FALSE)) ->  | Z46: =IF(ISERROR(VLOOKUP($D46&$F46,'Rnd20'!$H:$I,2,FALSE)),"",VLOOKUP($D46&$F46,'Rnd20'!$H:$I,2,FALSE)) ->  | AA46: =IF(ISERROR(VLOOKUP($D46&$F46,'Rnd21'!$H:$I,2,FALSE)),"",VLOOKUP($D46&$F46,'Rnd21'!$H:$I,2,FALSE)) ->  | AB46: =IF(ISERROR(VLOOKUP($D46&$F46,'Rnd22'!$H:$I,2,FALSE)),"",VLOOKUP($D46&$F46,'Rnd22'!$H:$I,2,FALSE)) ->  | AC46: =SUM(AG46:BB46) -> 216 | AD46: =COUNT(AG46:BB46) -> 5 | AE46: =SUM(BG46:CB46) -> 216 | AF46: =COUNT(BG46:CB46) -> 5 | AG46: =IF(ISNUMBER(G46),VLOOKUP(_xlfn.RANK.EQ(G46,G$4:G$128,1),PointsTable,2),"") ->  | AH46: =IF(ISNUMBER(H46),VLOOKUP(_xlfn.RANK.EQ(H46,H$4:H$128,1),PointsTable,2),"") ->  | AI46: =IF(ISNUMBER(I46),VLOOKUP(_xlfn.RANK.EQ(I46,I$4:I$128,1),PointsTable,2),"") ->  | AJ46: =IF(ISNUMBER(J46),VLOOKUP(_xlfn.RANK.EQ(J46,J$4:J$128,1),PointsTable,2),"") ->  | AK46: =IF(ISNUMBER(K46),VLOOKUP(_xlfn.RANK.EQ(K46,K$4:K$128,1),PointsTable,2),"") ->  | AL46: =IF(ISNUMBER(L46),VLOOKUP(_xlfn.RANK.EQ(L46,L$4:L$128,1),PointsTable,2),"") ->  | AM46: =IF(ISNUMBER(M46),VLOOKUP(_xlfn.RANK.EQ(M46,M$4:M$128,1),PointsTable,2),"") -> 40 | AN46: =IF(ISNUMBER(N46),VLOOKUP(_xlfn.RANK.EQ(N46,N$4:N$128,1),PointsTable,2),"") -> 45 | AO46: =IF(ISNUMBER(O46),VLOOKUP(_xlfn.RANK.EQ(O46,O$4:O$128,1),PointsTable,2),"") ->  | AP46: =IF(ISNUMBER(P46),VLOOKUP(_xlfn.RANK.EQ(P46,P$4:P$128,1),PointsTable,2),"") ->  | AQ46: =IF(ISNUMBER(Q46),VLOOKUP(_xlfn.RANK.EQ(Q46,Q$4:Q$128,1),PointsTable,2),"") -> 41 | AR46: =IF(ISNUMBER(R46),VLOOKUP(_xlfn.RANK.EQ(R46,R$4:R$128,1),PointsTable,2),"") -> 48 | AS46: =IF(ISNUMBER(S46),VLOOKUP(_xlfn.RANK.EQ(S46,S$4:S$128,1),PointsTable,2),"") -> 42 | AT46: =IF(ISNUMBER(T46),VLOOKUP(_xlfn.RANK.EQ(T46,T$4:T$128,1),PointsTable,2),"") ->  | AU46: =IF(ISNUMBER(U46),VLOOKUP(_xlfn.RANK.EQ(U46,U$4:U$128,1),PointsTable,2),"") ->  | AV46: =IF(ISNUMBER(V46),VLOOKUP(_xlfn.RANK.EQ(V46,V$4:V$128,1),PointsTable,2),"") ->  | AW46: =IF(ISNUMBER(W46),VLOOKUP(_xlfn.RANK.EQ(W46,W$4:W$128,1),PointsTable,2),"") ->  | AX46: =IF(ISNUMBER(X46),VLOOKUP(_xlfn.RANK.EQ(X46,X$4:X$128,1),PointsTable,2),"") ->  | AY46: =IF(ISNUMBER(Y46),VLOOKUP(_xlfn.RANK.EQ(Y46,Y$4:Y$128,1),PointsTable,2),"") ->  | AZ46: =IF(ISNUMBER(Z46),VLOOKUP(_xlfn.RANK.EQ(Z46,Z$4:Z$128,1),PointsTable,2),"") ->  | BA46: =IF(ISNUMBER(AA46),VLOOKUP(_xlfn.RANK.EQ(AA46,AA$4:AA$128,1),PointsTable,2),"") ->  | BB46: =IF(ISNUMBER(AB46),VLOOKUP(_xlfn.RANK.EQ(AB46,AB$4:AB$128,1),PointsTable,2),"") ->  | BG46: =bestpoints(AG46, $AG46:$BB46, CountingRaces) ->  | BH46: =bestpoints(AH46, $AG46:$BB46, CountingRaces) ->  | BI46: =bestpoints(AI46, $AG46:$BB46, CountingRaces) ->  | BJ46: =bestpoints(AJ46, $AG46:$BB46, CountingRaces) ->  | BK46: =bestpoints(AK46, $AG46:$BB46, CountingRaces) ->  | BL46: =bestpoints(AL46, $AG46:$BB46, CountingRaces) ->  | BM46: =bestpoints(AM46, $AG46:$BB46, CountingRaces) -> 40 | BN46: =bestpoints(AN46, $AG46:$BB46, CountingRaces) -> 45 | BO46: =bestpoints(AO46, $AG46:$BB46, CountingRaces) ->  | BP46: =bestpoints(AP46, $AG46:$BB46, CountingRaces) ->  | BQ46: =bestpoints(AQ46, $AG46:$BB46, CountingRaces) -> 41 | BR46: =bestpoints(AR46, $AG46:$BB46, CountingRaces) -> 48 | BS46: =bestpoints(AS46, $AG46:$BB46, CountingRaces) -> 42 | BT46: =bestpoints(AT46, $AG46:$BB46, CountingRaces) ->  | BU46: =bestpoints(AU46, $AG46:$BB46, CountingRaces) ->  | BV46: =bestpoints(AV46, $AG46:$BB46, CountingRaces) ->  | BW46: =bestpoints(AW46, $AG46:$BB46, CountingRaces) ->  | BX46: =bestpoints(AX46, $AG46:$BB46, CountingRaces) ->  | BY46: =bestpoints(AY46, $AG46:$BB46, CountingRaces) ->  | BZ46: =bestpoints(AZ46, $AG46:$BB46, CountingRaces) ->  | CA46: =bestpoints(BA46, $AG46:$BB46, CountingRaces) ->  | CB46: =bestpoints(BB46, $AG46:$BB46, CountingRaces) -> 
A47: =AE47/AF47 -> 53.75 | B47: 43 | C47: =IF(AF47 >0,RANK(AE47,AE$4:AE$128),"") -> 44 | D47: Rebecca Johnson | E47: LS | F47: SDCC | G47: =IF(ISERROR(VLOOKUP($D47&$F47,'Rnd1'!$H:$I,2,FALSE)),"",VLOOKUP($D47&$F47,'Rnd1'!$H:$I,2,FALSE)) -> 00:12:56 | H47: =IF(ISERROR(VLOOKUP($D47&$F47,'Rnd2'!$H:$I,2,FALSE)),"",VLOOKUP($D47&$F47,'Rnd2'!$H:$I,2,FALSE)) ->  | I47: =IF(ISERROR(VLOOKUP($D47&$F47,'Rnd3'!$H:$I,2,FALSE)),"",VLOOKUP($D47&$F47,'Rnd3'!$H:$I,2,FALSE)) ->  | J47: =IF(ISERROR(VLOOKUP($D47&$F47,'Rnd4'!$H:$I,2,FALSE)),"",VLOOKUP($D47&$F47,'Rnd4'!$H:$I,2,FALSE)) -> 00:24:25 | K47: =IF(ISERROR(VLOOKUP($D47&$F47,'Rnd5'!$H:$I,2,FALSE)),"",VLOOKUP($D47&$F47,'Rnd5'!$H:$I,2,FALSE)) ->  | L47: =IF(ISERROR(VLOOKUP($D47&$F47,'Rnd6'!$H:$I,2,FALSE)),"",VLOOKUP($D47&$F47,'Rnd6'!$H:$I,2,FALSE)) ->  | M47: =IF(ISERROR(VLOOKUP($D47&$F47,'Rnd7'!$H:$I,2,FALSE)),"",VLOOKUP($D47&$F47,'Rnd7'!$H:$I,2,FALSE)) -> 00:24:12 | N47: =IF(ISERROR(VLOOKUP($D47&$F47,'Rnd8'!$H:$I,2,FALSE)),"",VLOOKUP($D47&$F47,'Rnd8'!$H:$I,2,FALSE)) ->  | O47: =IF(ISERROR(VLOOKUP($D47&$F47,'Rnd9'!$H:$I,2,FALSE)),"",VLOOKUP($D47&$F47,'Rnd9'!$H:$I,2,FALSE)) ->  | P47: =IF(ISERROR(VLOOKUP($D47&$F47,'Rnd10'!$H:$I,2,FALSE)),"",VLOOKUP($D47&$F47,'Rnd10'!$H:$I,2,FALSE)) ->  | Q47: =IF(ISERROR(VLOOKUP($D47&$F47,'Rnd11'!$H:$I,2,FALSE)),"",VLOOKUP($D47&$F47,'Rnd11'!$H:$I,2,FALSE)) -> 00:24:39 | R47: =IF(ISERROR(VLOOKUP($D47&$F47,'Rnd12'!$H:$I,2,FALSE)),"",VLOOKUP($D47&$F47,'Rnd12'!$H:$I,2,FALSE)) ->  | S47: =IF(ISERROR(VLOOKUP($D47&$F47,'Rnd13'!$H:$I,2,FALSE)),"",VLOOKUP($D47&$F47,'Rnd13'!$H:$I,2,FALSE)) ->  | T47: =IF(ISERROR(VLOOKUP($D47&$F47,'Rnd14'!$H:$I,2,FALSE)),"",VLOOKUP($D47&$F47,'Rnd14'!$H:$I,2,FALSE)) ->  | U47: =IF(ISERROR(VLOOKUP($D47&$F47,'Rnd15'!$H:$I,2,FALSE)),"",VLOOKUP($D47&$F47,'Rnd15'!$H:$I,2,FALSE)) ->  | V47: =IF(ISERROR(VLOOKUP($D47&$F47,'Rnd16'!$H:$I,2,FALSE)),"",VLOOKUP($D47&$F47,'Rnd16'!$H:$I,2,FALSE)) ->  | W47: =IF(ISERROR(VLOOKUP($D47&$F47,'Rnd17'!$H:$I,2,FALSE)),"",VLOOKUP($D47&$F47,'Rnd17'!$H:$I,2,FALSE)) ->  | X47: =IF(ISERROR(VLOOKUP($D47&$F47,'Rnd18'!$H:$I,2,FALSE)),"",VLOOKUP($D47&$F47,'Rnd18'!$H:$I,2,FALSE)) ->  | Y47: =IF(ISERROR(VLOOKUP($D47&$F47,'Rnd19'!$H:$I,2,FALSE)),"",VLOOKUP($D47&$F47,'Rnd19'!$H:$I,2,FALSE)) ->  | Z47: =IF(ISERROR(VLOOKUP($D47&$F47,'Rnd20'!$H:$I,2,FALSE)),"",VLOOKUP($D47&$F47,'Rnd20'!$H:$I,2,FALSE)) ->  | AA47: =IF(ISERROR(VLOOKUP($D47&$F47,'Rnd21'!$H:$I,2,FALSE)),"",VLOOKUP($D47&$F47,'Rnd21'!$H:$I,2,FALSE)) ->  | AB47: =IF(ISERROR(VLOOKUP($D47&$F47,'Rnd22'!$H:$I,2,FALSE)),"",VLOOKUP($D47&$F47,'Rnd22'!$H:$I,2,FALSE)) ->  | AC47: =SUM(AG47:BB47) -> 215 | AD47: =COUNT(AG47:BB47) -> 4 | AE47: =SUM(BG47:CB47) -> 215 | AF47: =COUNT(BG47:CB47) -> 4 | AG47: =IF(ISNUMBER(G47),VLOOKUP(_xlfn.RANK.EQ(G47,G$4:G$128,1),PointsTable,2),"") -> 54 | AH47: =IF(ISNUMBER(H47),VLOOKUP(_xlfn.RANK.EQ(H47,H$4:H$128,1),PointsTable,2),"") ->  | AI47: =IF(ISNUMBER(I47),VLOOKUP(_xlfn.RANK.EQ(I47,I$4:I$128,1),PointsTable,2),"") ->  | AJ47: =IF(ISNUMBER(J47),VLOOKUP(_xlfn.RANK.EQ(J47,J$4:J$128,1),PointsTable,2),"") -> 56 | AK47: =IF(ISNUMBER(K47),VLOOKUP(_xlfn.RANK.EQ(K47,K$4:K$128,1),PointsTable,2),"") ->  | AL47: =IF(ISNUMBER(L47),VLOOKUP(_xlfn.RANK.EQ(L47,L$4:L$128,1),PointsTable,2),"") ->  | AM47: =IF(ISNUMBER(M47),VLOOKUP(_xlfn.RANK.EQ(M47,M$4:M$128,1),PointsTable,2),"") -> 54 | AN47: =IF(ISNUMBER(N47),VLOOKUP(_xlfn.RANK.EQ(N47,N$4:N$128,1),PointsTable,2),"") ->  | AO47: =IF(ISNUMBER(O47),VLOOKUP(_xlfn.RANK.EQ(O47,O$4:O$128,1),PointsTable,2),"") ->  | AP47: =IF(ISNUMBER(P47),VLOOKUP(_xlfn.RANK.EQ(P47,P$4:P$128,1),PointsTable,2),"") ->  | AQ47: =IF(ISNUMBER(Q47),VLOOKUP(_xlfn.RANK.EQ(Q47,Q$4:Q$128,1),PointsTable,2),"") -> 51 | AR47: =IF(ISNUMBER(R47),VLOOKUP(_xlfn.RANK.EQ(R47,R$4:R$128,1),PointsTable,2),"") ->  | AS47: =IF(ISNUMBER(S47),VLOOKUP(_xlfn.RANK.EQ(S47,S$4:S$128,1),PointsTable,2),"") ->  | AT47: =IF(ISNUMBER(T47),VLOOKUP(_xlfn.RANK.EQ(T47,T$4:T$128,1),PointsTable,2),"") ->  | AU47: =IF(ISNUMBER(U47),VLOOKUP(_xlfn.RANK.EQ(U47,U$4:U$128,1),PointsTable,2),"") ->  | AV47: =IF(ISNUMBER(V47),VLOOKUP(_xlfn.RANK.EQ(V47,V$4:V$128,1),PointsTable,2),"") ->  | AW47: =IF(ISNUMBER(W47),VLOOKUP(_xlfn.RANK.EQ(W47,W$4:W$128,1),PointsTable,2),"") ->  | AX47: =IF(ISNUMBER(X47),VLOOKUP(_xlfn.RANK.EQ(X47,X$4:X$128,1),PointsTable,2),"") ->  | AY47: =IF(ISNUMBER(Y47),VLOOKUP(_xlfn.RANK.EQ(Y47,Y$4:Y$128,1),PointsTable,2),"") ->  | AZ47: =IF(ISNUMBER(Z47),VLOOKUP(_xlfn.RANK.EQ(Z47,Z$4:Z$128,1),PointsTable,2),"") ->  | BA47: =IF(ISNUMBER(AA47),VLOOKUP(_xlfn.RANK.EQ(AA47,AA$4:AA$128,1),PointsTable,2),"") ->  | BB47: =IF(ISNUMBER(AB47),VLOOKUP(_xlfn.RANK.EQ(AB47,AB$4:AB$128,1),PointsTable,2),"") ->  | BG47: =bestpoints(AG47, $AG47:$BB47, CountingRaces) -> 54 | BH47: =bestpoints(AH47, $AG47:$BB47, CountingRaces) ->  | BI47: =bestpoints(AI47, $AG47:$BB47, CountingRaces) ->  | BJ47: =bestpoints(AJ47, $AG47:$BB47, CountingRaces) -> 56 | BK47: =bestpoints(AK47, $AG47:$BB47, CountingRaces) ->  | BL47: =bestpoints(AL47, $AG47:$BB47, CountingRaces) ->  | BM47: =bestpoints(AM47, $AG47:$BB47, CountingRaces) -> 54 | BN47: =bestpoints(AN47, $AG47:$BB47, CountingRaces) ->  | BO47: =bestpoints(AO47, $AG47:$BB47, CountingRaces) ->  | BP47: =bestpoints(AP47, $AG47:$BB47, CountingRaces) ->  | BQ47: =bestpoints(AQ47, $AG47:$BB47, CountingRaces) -> 51 | BR47: =bestpoints(AR47, $AG47:$BB47, CountingRaces) ->  | BS47: =bestpoints(AS47, $AG47:$BB47, CountingRaces) ->  | BT47: =bestpoints(AT47, $AG47:$BB47, CountingRaces) ->  | BU47: =bestpoints(AU47, $AG47:$BB47, CountingRaces) ->  | BV47: =bestpoints(AV47, $AG47:$BB47, CountingRaces) ->  | BW47: =bestpoints(AW47, $AG47:$BB47, CountingRaces) ->  | BX47: =bestpoints(AX47, $AG47:$BB47, CountingRaces) ->  | BY47: =bestpoints(AY47, $AG47:$BB47, CountingRaces) ->  | BZ47: =bestpoints(AZ47, $AG47:$BB47, CountingRaces) ->  | CA47: =bestpoints(BA47, $AG47:$BB47, CountingRaces) ->  | CB47: =bestpoints(BB47, $AG47:$BB47, CountingRaces) -> 
A48: =AE48/AF48 -> 35.83333333 | B48: 43 | C48: =IF(AF48 >0,RANK(AE48,AE$4:AE$128),"") -> 44 | D48: Nick Bowyer | E48: V50 | F48: IBC | G48: =IF(ISERROR(VLOOKUP($D48&$F48,'Rnd1'!$H:$I,2,FALSE)),"",VLOOKUP($D48&$F48,'Rnd1'!$H:$I,2,FALSE)) -> 00:15:18 | H48: =IF(ISERROR(VLOOKUP($D48&$F48,'Rnd2'!$H:$I,2,FALSE)),"",VLOOKUP($D48&$F48,'Rnd2'!$H:$I,2,FALSE)) -> 00:14:28 | I48: =IF(ISERROR(VLOOKUP($D48&$F48,'Rnd3'!$H:$I,2,FALSE)),"",VLOOKUP($D48&$F48,'Rnd3'!$H:$I,2,FALSE)) -> 00:24:25 | J48: =IF(ISERROR(VLOOKUP($D48&$F48,'Rnd4'!$H:$I,2,FALSE)),"",VLOOKUP($D48&$F48,'Rnd4'!$H:$I,2,FALSE)) ->  | K48: =IF(ISERROR(VLOOKUP($D48&$F48,'Rnd5'!$H:$I,2,FALSE)),"",VLOOKUP($D48&$F48,'Rnd5'!$H:$I,2,FALSE)) -> 00:28:32 | L48: =IF(ISERROR(VLOOKUP($D48&$F48,'Rnd6'!$H:$I,2,FALSE)),"",VLOOKUP($D48&$F48,'Rnd6'!$H:$I,2,FALSE)) ->  | M48: =IF(ISERROR(VLOOKUP($D48&$F48,'Rnd7'!$H:$I,2,FALSE)),"",VLOOKUP($D48&$F48,'Rnd7'!$H:$I,2,FALSE)) -> 00:28:13 | N48: =IF(ISERROR(VLOOKUP($D48&$F48,'Rnd8'!$H:$I,2,FALSE)),"",VLOOKUP($D48&$F48,'Rnd8'!$H:$I,2,FALSE)) ->  | O48: =IF(ISERROR(VLOOKUP($D48&$F48,'Rnd9'!$H:$I,2,FALSE)),"",VLOOKUP($D48&$F48,'Rnd9'!$H:$I,2,FALSE)) ->  | P48: =IF(ISERROR(VLOOKUP($D48&$F48,'Rnd10'!$H:$I,2,FALSE)),"",VLOOKUP($D48&$F48,'Rnd10'!$H:$I,2,FALSE)) ->  | Q48: =IF(ISERROR(VLOOKUP($D48&$F48,'Rnd11'!$H:$I,2,FALSE)),"",VLOOKUP($D48&$F48,'Rnd11'!$H:$I,2,FALSE)) ->  | R48: =IF(ISERROR(VLOOKUP($D48&$F48,'Rnd12'!$H:$I,2,FALSE)),"",VLOOKUP($D48&$F48,'Rnd12'!$H:$I,2,FALSE)) ->  | S48: =IF(ISERROR(VLOOKUP($D48&$F48,'Rnd13'!$H:$I,2,FALSE)),"",VLOOKUP($D48&$F48,'Rnd13'!$H:$I,2,FALSE)) ->  | T48: =IF(ISERROR(VLOOKUP($D48&$F48,'Rnd14'!$H:$I,2,FALSE)),"",VLOOKUP($D48&$F48,'Rnd14'!$H:$I,2,FALSE)) ->  | U48: =IF(ISERROR(VLOOKUP($D48&$F48,'Rnd15'!$H:$I,2,FALSE)),"",VLOOKUP($D48&$F48,'Rnd15'!$H:$I,2,FALSE)) ->  | V48: =IF(ISERROR(VLOOKUP($D48&$F48,'Rnd16'!$H:$I,2,FALSE)),"",VLOOKUP($D48&$F48,'Rnd16'!$H:$I,2,FALSE)) ->  | W48: =IF(ISERROR(VLOOKUP($D48&$F48,'Rnd17'!$H:$I,2,FALSE)),"",VLOOKUP($D48&$F48,'Rnd17'!$H:$I,2,FALSE)) ->  | X48: =IF(ISERROR(VLOOKUP($D48&$F48,'Rnd18'!$H:$I,2,FALSE)),"",VLOOKUP($D48&$F48,'Rnd18'!$H:$I,2,FALSE)) ->  | Y48: =IF(ISERROR(VLOOKUP($D48&$F48,'Rnd19'!$H:$I,2,FALSE)),"",VLOOKUP($D48&$F48,'Rnd19'!$H:$I,2,FALSE)) -> 00:28:31 | Z48: =IF(ISERROR(VLOOKUP($D48&$F48,'Rnd20'!$H:$I,2,FALSE)),"",VLOOKUP($D48&$F48,'Rnd20'!$H:$I,2,FALSE)) ->  | AA48: =IF(ISERROR(VLOOKUP($D48&$F48,'Rnd21'!$H:$I,2,FALSE)),"",VLOOKUP($D48&$F48,'Rnd21'!$H:$I,2,FALSE)) ->  | AB48: =IF(ISERROR(VLOOKUP($D48&$F48,'Rnd22'!$H:$I,2,FALSE)),"",VLOOKUP($D48&$F48,'Rnd22'!$H:$I,2,FALSE)) ->  | AC48: =SUM(AG48:BB48) -> 215 | AD48: =COUNT(AG48:BB48) -> 6 | AE48: =SUM(BG48:CB48) -> 215 | AF48: =COUNT(BG48:CB48) -> 6 | AG48: =IF(ISNUMBER(G48),VLOOKUP(_xlfn.RANK.EQ(G48,G$4:G$128,1),PointsTable,2),"") -> 39 | AH48: =IF(ISNUMBER(H48),VLOOKUP(_xlfn.RANK.EQ(H48,H$4:H$128,1),PointsTable,2),"") -> 36 | AI48: =IF(ISNUMBER(I48),VLOOKUP(_xlfn.RANK.EQ(I48,I$4:I$128,1),PointsTable,2),"") -> 28 | AJ48: =IF(ISNUMBER(J48),VLOOKUP(_xlfn.RANK.EQ(J48,J$4:J$128,1),PointsTable,2),"") ->  | AK48: =IF(ISNUMBER(K48),VLOOKUP(_xlfn.RANK.EQ(K48,K$4:K$128,1),PointsTable,2),"") -> 39 | AL48: =IF(ISNUMBER(L48),VLOOKUP(_xlfn.RANK.EQ(L48,L$4:L$128,1),PointsTable,2),"") ->  | AM48: =IF(ISNUMBER(M48),VLOOKUP(_xlfn.RANK.EQ(M48,M$4:M$128,1),PointsTable,2),"") -> 34 | AN48: =IF(ISNUMBER(N48),VLOOKUP(_xlfn.RANK.EQ(N48,N$4:N$128,1),PointsTable,2),"") ->  | AO48: =IF(ISNUMBER(O48),VLOOKUP(_xlfn.RANK.EQ(O48,O$4:O$128,1),PointsTable,2),"") ->  | AP48: =IF(ISNUMBER(P48),VLOOKUP(_xlfn.RANK.EQ(P48,P$4:P$128,1),PointsTable,2),"") ->  | AQ48: =IF(ISNUMBER(Q48),VLOOKUP(_xlfn.RANK.EQ(Q48,Q$4:Q$128,1),PointsTable,2),"") ->  | AR48: =IF(ISNUMBER(R48),VLOOKUP(_xlfn.RANK.EQ(R48,R$4:R$128,1),PointsTable,2),"") ->  | AS48: =IF(ISNUMBER(S48),VLOOKUP(_xlfn.RANK.EQ(S48,S$4:S$128,1),PointsTable,2),"") ->  | AT48: =IF(ISNUMBER(T48),VLOOKUP(_xlfn.RANK.EQ(T48,T$4:T$128,1),PointsTable,2),"") ->  | AU48: =IF(ISNUMBER(U48),VLOOKUP(_xlfn.RANK.EQ(U48,U$4:U$128,1),PointsTable,2),"") ->  | AV48: =IF(ISNUMBER(V48),VLOOKUP(_xlfn.RANK.EQ(V48,V$4:V$128,1),PointsTable,2),"") ->  | AW48: =IF(ISNUMBER(W48),VLOOKUP(_xlfn.RANK.EQ(W48,W$4:W$128,1),PointsTable,2),"") ->  | AX48: =IF(ISNUMBER(X48),VLOOKUP(_xlfn.RANK.EQ(X48,X$4:X$128,1),PointsTable,2),"") ->  | AY48: =IF(ISNUMBER(Y48),VLOOKUP(_xlfn.RANK.EQ(Y48,Y$4:Y$128,1),PointsTable,2),"") -> 39 | AZ48: =IF(ISNUMBER(Z48),VLOOKUP(_xlfn.RANK.EQ(Z48,Z$4:Z$128,1),PointsTable,2),"") ->  | BA48: =IF(ISNUMBER(AA48),VLOOKUP(_xlfn.RANK.EQ(AA48,AA$4:AA$128,1),PointsTable,2),"") ->  | BB48: =IF(ISNUMBER(AB48),VLOOKUP(_xlfn.RANK.EQ(AB48,AB$4:AB$128,1),PointsTable,2),"") ->  | BG48: =bestpoints(AG48, $AG48:$BB48, CountingRaces) -> 39 | BH48: =bestpoints(AH48, $AG48:$BB48, CountingRaces) -> 36 | BI48: =bestpoints(AI48, $AG48:$BB48, CountingRaces) -> 28 | BJ48: =bestpoints(AJ48, $AG48:$BB48, CountingRaces) ->  | BK48: =bestpoints(AK48, $AG48:$BB48, CountingRaces) -> 39 | BL48: =bestpoints(AL48, $AG48:$BB48, CountingRaces) ->  | BM48: =bestpoints(AM48, $AG48:$BB48, CountingRaces) -> 34 | BN48: =bestpoints(AN48, $AG48:$BB48, CountingRaces) ->  | BO48: =bestpoints(AO48, $AG48:$BB48, CountingRaces) ->  | BP48: =bestpoints(AP48, $AG48:$BB48, CountingRaces) ->  | BQ48: =bestpoints(AQ48, $AG48:$BB48, CountingRaces) ->  | BR48: =bestpoints(AR48, $AG48:$BB48, CountingRaces) ->  | BS48: =bestpoints(AS48, $AG48:$BB48, CountingRaces) ->  | BT48: =bestpoints(AT48, $AG48:$BB48, CountingRaces) ->  | BU48: =bestpoints(AU48, $AG48:$BB48, CountingRaces) ->  | BV48: =bestpoints(AV48, $AG48:$BB48, CountingRaces) ->  | BW48: =bestpoints(AW48, $AG48:$BB48, CountingRaces) ->  | BX48: =bestpoints(AX48, $AG48:$BB48, CountingRaces) ->  | BY48: =bestpoints(AY48, $AG48:$BB48, CountingRaces) -> 39 | BZ48: =bestpoints(AZ48, $AG48:$BB48, CountingRaces) ->  | CA48: =bestpoints(BA48, $AG48:$BB48, CountingRaces) ->  | CB48: =bestpoints(BB48, $AG48:$BB48, CountingRaces) -> 
A49: =AE49/AF49 -> 42.4 | B49: 45 | C49: =IF(AF49 >0,RANK(AE49,AE$4:AE$128),"") -> 46 | D49: Andy Kennedy | E49: V50 | F49: IBC | G49: =IF(ISERROR(VLOOKUP($D49&$F49,'Rnd1'!$H:$I,2,FALSE)),"",VLOOKUP($D49&$F49,'Rnd1'!$H:$I,2,FALSE)) ->  | H49: =IF(ISERROR(VLOOKUP($D49&$F49,'Rnd2'!$H:$I,2,FALSE)),"",VLOOKUP($D49&$F49,'Rnd2'!$H:$I,2,FALSE)) ->  | I49: =IF(ISERROR(VLOOKUP($D49&$F49,'Rnd3'!$H:$I,2,FALSE)),"",VLOOKUP($D49&$F49,'Rnd3'!$H:$I,2,FALSE)) ->  | J49: =IF(ISERROR(VLOOKUP($D49&$F49,'Rnd4'!$H:$I,2,FALSE)),"",VLOOKUP($D49&$F49,'Rnd4'!$H:$I,2,FALSE)) ->  | K49: =IF(ISERROR(VLOOKUP($D49&$F49,'Rnd5'!$H:$I,2,FALSE)),"",VLOOKUP($D49&$F49,'Rnd5'!$H:$I,2,FALSE)) ->  | L49: =IF(ISERROR(VLOOKUP($D49&$F49,'Rnd6'!$H:$I,2,FALSE)),"",VLOOKUP($D49&$F49,'Rnd6'!$H:$I,2,FALSE)) -> 00:26:44 | M49: =IF(ISERROR(VLOOKUP($D49&$F49,'Rnd7'!$H:$I,2,FALSE)),"",VLOOKUP($D49&$F49,'Rnd7'!$H:$I,2,FALSE)) -> 00:27:10 | N49: =IF(ISERROR(VLOOKUP($D49&$F49,'Rnd8'!$H:$I,2,FALSE)),"",VLOOKUP($D49&$F49,'Rnd8'!$H:$I,2,FALSE)) -> 00:27:28 | O49: =IF(ISERROR(VLOOKUP($D49&$F49,'Rnd9'!$H:$I,2,FALSE)),"",VLOOKUP($D49&$F49,'Rnd9'!$H:$I,2,FALSE)) ->  | P49: =IF(ISERROR(VLOOKUP($D49&$F49,'Rnd10'!$H:$I,2,FALSE)),"",VLOOKUP($D49&$F49,'Rnd10'!$H:$I,2,FALSE)) -> 00:26:14 | Q49: =IF(ISERROR(VLOOKUP($D49&$F49,'Rnd11'!$H:$I,2,FALSE)),"",VLOOKUP($D49&$F49,'Rnd11'!$H:$I,2,FALSE)) ->  | R49: =IF(ISERROR(VLOOKUP($D49&$F49,'Rnd12'!$H:$I,2,FALSE)),"",VLOOKUP($D49&$F49,'Rnd12'!$H:$I,2,FALSE)) ->  | S49: =IF(ISERROR(VLOOKUP($D49&$F49,'Rnd13'!$H:$I,2,FALSE)),"",VLOOKUP($D49&$F49,'Rnd13'!$H:$I,2,FALSE)) ->  | T49: =IF(ISERROR(VLOOKUP($D49&$F49,'Rnd14'!$H:$I,2,FALSE)),"",VLOOKUP($D49&$F49,'Rnd14'!$H:$I,2,FALSE)) ->  | U49: =IF(ISERROR(VLOOKUP($D49&$F49,'Rnd15'!$H:$I,2,FALSE)),"",VLOOKUP($D49&$F49,'Rnd15'!$H:$I,2,FALSE)) ->  | V49: =IF(ISERROR(VLOOKUP($D49&$F49,'Rnd16'!$H:$I,2,FALSE)),"",VLOOKUP($D49&$F49,'Rnd16'!$H:$I,2,FALSE)) ->  | W49: =IF(ISERROR(VLOOKUP($D49&$F49,'Rnd17'!$H:$I,2,FALSE)),"",VLOOKUP($D49&$F49,'Rnd17'!$H:$I,2,FALSE)) ->  | X49: =IF(ISERROR(VLOOKUP($D49&$F49,'Rnd18'!$H:$I,2,FALSE)),"",VLOOKUP($D49&$F49,'Rnd18'!$H:$I,2,FALSE)) ->  | Y49: =IF(ISERROR(VLOOKUP($D49&$F49,'Rnd19'!$H:$I,2,FALSE)),"",VLOOKUP($D49&$F49,'Rnd19'!$H:$I,2,FALSE)) -> 00:24:46 | Z49: =IF(ISERROR(VLOOKUP($D49&$F49,'Rnd20'!$H:$I,2,FALSE)),"",VLOOKUP($D49&$F49,'Rnd20'!$H:$I,2,FALSE)) ->  | AA49: =IF(ISERROR(VLOOKUP($D49&$F49,'Rnd21'!$H:$I,2,FALSE)),"",VLOOKUP($D49&$F49,'Rnd21'!$H:$I,2,FALSE)) ->  | AB49: =IF(ISERROR(VLOOKUP($D49&$F49,'Rnd22'!$H:$I,2,FALSE)),"",VLOOKUP($D49&$F49,'Rnd22'!$H:$I,2,FALSE)) ->  | AC49: =SUM(AG49:BB49) -> 212 | AD49: =COUNT(AG49:BB49) -> 5 | AE49: =SUM(BG49:CB49) -> 212 | AF49: =COUNT(BG49:CB49) -> 5 | AG49: =IF(ISNUMBER(G49),VLOOKUP(_xlfn.RANK.EQ(G49,G$4:G$128,1),PointsTable,2),"") ->  | AH49: =IF(ISNUMBER(H49),VLOOKUP(_xlfn.RANK.EQ(H49,H$4:H$128,1),PointsTable,2),"") ->  | AI49: =IF(ISNUMBER(I49),VLOOKUP(_xlfn.RANK.EQ(I49,I$4:I$128,1),PointsTable,2),"") ->  | AJ49: =IF(ISNUMBER(J49),VLOOKUP(_xlfn.RANK.EQ(J49,J$4:J$128,1),PointsTable,2),"") ->  | AK49: =IF(ISNUMBER(K49),VLOOKUP(_xlfn.RANK.EQ(K49,K$4:K$128,1),PointsTable,2),"") ->  | AL49: =IF(ISNUMBER(L49),VLOOKUP(_xlfn.RANK.EQ(L49,L$4:L$128,1),PointsTable,2),"") -> 41 | AM49: =IF(ISNUMBER(M49),VLOOKUP(_xlfn.RANK.EQ(M49,M$4:M$128,1),PointsTable,2),"") -> 42 | AN49: =IF(ISNUMBER(N49),VLOOKUP(_xlfn.RANK.EQ(N49,N$4:N$128,1),PointsTable,2),"") -> 39 | AO49: =IF(ISNUMBER(O49),VLOOKUP(_xlfn.RANK.EQ(O49,O$4:O$128,1),PointsTable,2),"") ->  | AP49: =IF(ISNUMBER(P49),VLOOKUP(_xlfn.RANK.EQ(P49,P$4:P$128,1),PointsTable,2),"") -> 38 | AQ49: =IF(ISNUMBER(Q49),VLOOKUP(_xlfn.RANK.EQ(Q49,Q$4:Q$128,1),PointsTable,2),"") ->  | AR49: =IF(ISNUMBER(R49),VLOOKUP(_xlfn.RANK.EQ(R49,R$4:R$128,1),PointsTable,2),"") ->  | AS49: =IF(ISNUMBER(S49),VLOOKUP(_xlfn.RANK.EQ(S49,S$4:S$128,1),PointsTable,2),"") ->  | AT49: =IF(ISNUMBER(T49),VLOOKUP(_xlfn.RANK.EQ(T49,T$4:T$128,1),PointsTable,2),"") ->  | AU49: =IF(ISNUMBER(U49),VLOOKUP(_xlfn.RANK.EQ(U49,U$4:U$128,1),PointsTable,2),"") ->  | AV49: =IF(ISNUMBER(V49),VLOOKUP(_xlfn.RANK.EQ(V49,V$4:V$128,1),PointsTable,2),"") ->  | AW49: =IF(ISNUMBER(W49),VLOOKUP(_xlfn.RANK.EQ(W49,W$4:W$128,1),PointsTable,2),"") ->  | AX49: =IF(ISNUMBER(X49),VLOOKUP(_xlfn.RANK.EQ(X49,X$4:X$128,1),PointsTable,2),"") ->  | AY49: =IF(ISNUMBER(Y49),VLOOKUP(_xlfn.RANK.EQ(Y49,Y$4:Y$128,1),PointsTable,2),"") -> 52 | AZ49: =IF(ISNUMBER(Z49),VLOOKUP(_xlfn.RANK.EQ(Z49,Z$4:Z$128,1),PointsTable,2),"") ->  | BA49: =IF(ISNUMBER(AA49),VLOOKUP(_xlfn.RANK.EQ(AA49,AA$4:AA$128,1),PointsTable,2),"") ->  | BB49: =IF(ISNUMBER(AB49),VLOOKUP(_xlfn.RANK.EQ(AB49,AB$4:AB$128,1),PointsTable,2),"") ->  | BG49: =bestpoints(AG49, $AG49:$BB49, CountingRaces) ->  | BH49: =bestpoints(AH49, $AG49:$BB49, CountingRaces) ->  | BI49: =bestpoints(AI49, $AG49:$BB49, CountingRaces) ->  | BJ49: =bestpoints(AJ49, $AG49:$BB49, CountingRaces) ->  | BK49: =bestpoints(AK49, $AG49:$BB49, CountingRaces) ->  | BL49: =bestpoints(AL49, $AG49:$BB49, CountingRaces) -> 41 | BM49: =bestpoints(AM49, $AG49:$BB49, CountingRaces) -> 42 | BN49: =bestpoints(AN49, $AG49:$BB49, CountingRaces) -> 39 | BO49: =bestpoints(AO49, $AG49:$BB49, CountingRaces) ->  | BP49: =bestpoints(AP49, $AG49:$BB49, CountingRaces) -> 38 | BQ49: =bestpoints(AQ49, $AG49:$BB49, CountingRaces) ->  | BR49: =bestpoints(AR49, $AG49:$BB49, CountingRaces) ->  | BS49: =bestpoints(AS49, $AG49:$BB49, CountingRaces) ->  | BT49: =bestpoints(AT49, $AG49:$BB49, CountingRaces) ->  | BU49: =bestpoints(AU49, $AG49:$BB49, CountingRaces) ->  | BV49: =bestpoints(AV49, $AG49:$BB49, CountingRaces) ->  | BW49: =bestpoints(AW49, $AG49:$BB49, CountingRaces) ->  | BX49: =bestpoints(AX49, $AG49:$BB49, CountingRaces) ->  | BY49: =bestpoints(AY49, $AG49:$BB49, CountingRaces) -> 52 | BZ49: =bestpoints(AZ49, $AG49:$BB49, CountingRaces) ->  | CA49: =bestpoints(BA49, $AG49:$BB49, CountingRaces) ->  | CB49: =bestpoints(BB49, $AG49:$BB49, CountingRaces) -> 
A50: =AE50/AF50 -> 35.33333333 | B50: 45 | C50: =IF(AF50 >0,RANK(AE50,AE$4:AE$128),"") -> 46 | D50: Nicola Powell | E50: LS | F50: SDCC | G50: =IF(ISERROR(VLOOKUP($D50&$F50,'Rnd1'!$H:$I,2,FALSE)),"",VLOOKUP($D50&$F50,'Rnd1'!$H:$I,2,FALSE)) -> 00:14:48 | H50: =IF(ISERROR(VLOOKUP($D50&$F50,'Rnd2'!$H:$I,2,FALSE)),"",VLOOKUP($D50&$F50,'Rnd2'!$H:$I,2,FALSE)) ->  | I50: =IF(ISERROR(VLOOKUP($D50&$F50,'Rnd3'!$H:$I,2,FALSE)),"",VLOOKUP($D50&$F50,'Rnd3'!$H:$I,2,FALSE)) ->  | J50: =IF(ISERROR(VLOOKUP($D50&$F50,'Rnd4'!$H:$I,2,FALSE)),"",VLOOKUP($D50&$F50,'Rnd4'!$H:$I,2,FALSE)) ->  | K50: =IF(ISERROR(VLOOKUP($D50&$F50,'Rnd5'!$H:$I,2,FALSE)),"",VLOOKUP($D50&$F50,'Rnd5'!$H:$I,2,FALSE)) ->  | L50: =IF(ISERROR(VLOOKUP($D50&$F50,'Rnd6'!$H:$I,2,FALSE)),"",VLOOKUP($D50&$F50,'Rnd6'!$H:$I,2,FALSE)) ->  | M50: =IF(ISERROR(VLOOKUP($D50&$F50,'Rnd7'!$H:$I,2,FALSE)),"",VLOOKUP($D50&$F50,'Rnd7'!$H:$I,2,FALSE)) ->  | N50: =IF(ISERROR(VLOOKUP($D50&$F50,'Rnd8'!$H:$I,2,FALSE)),"",VLOOKUP($D50&$F50,'Rnd8'!$H:$I,2,FALSE)) ->  | O50: =IF(ISERROR(VLOOKUP($D50&$F50,'Rnd9'!$H:$I,2,FALSE)),"",VLOOKUP($D50&$F50,'Rnd9'!$H:$I,2,FALSE)) ->  | P50: =IF(ISERROR(VLOOKUP($D50&$F50,'Rnd10'!$H:$I,2,FALSE)),"",VLOOKUP($D50&$F50,'Rnd10'!$H:$I,2,FALSE)) -> 00:28:25 | Q50: =IF(ISERROR(VLOOKUP($D50&$F50,'Rnd11'!$H:$I,2,FALSE)),"",VLOOKUP($D50&$F50,'Rnd11'!$H:$I,2,FALSE)) -> 00:27:19 | R50: =IF(ISERROR(VLOOKUP($D50&$F50,'Rnd12'!$H:$I,2,FALSE)),"",VLOOKUP($D50&$F50,'Rnd12'!$H:$I,2,FALSE)) ->  | S50: =IF(ISERROR(VLOOKUP($D50&$F50,'Rnd13'!$H:$I,2,FALSE)),"",VLOOKUP($D50&$F50,'Rnd13'!$H:$I,2,FALSE)) -> 00:27:47 | T50: =IF(ISERROR(VLOOKUP($D50&$F50,'Rnd14'!$H:$I,2,FALSE)),"",VLOOKUP($D50&$F50,'Rnd14'!$H:$I,2,FALSE)) -> 00:27:11 | U50: =IF(ISERROR(VLOOKUP($D50&$F50,'Rnd15'!$H:$I,2,FALSE)),"",VLOOKUP($D50&$F50,'Rnd15'!$H:$I,2,FALSE)) ->  | V50: =IF(ISERROR(VLOOKUP($D50&$F50,'Rnd16'!$H:$I,2,FALSE)),"",VLOOKUP($D50&$F50,'Rnd16'!$H:$I,2,FALSE)) ->  | W50: =IF(ISERROR(VLOOKUP($D50&$F50,'Rnd17'!$H:$I,2,FALSE)),"",VLOOKUP($D50&$F50,'Rnd17'!$H:$I,2,FALSE)) ->  | X50: =IF(ISERROR(VLOOKUP($D50&$F50,'Rnd18'!$H:$I,2,FALSE)),"",VLOOKUP($D50&$F50,'Rnd18'!$H:$I,2,FALSE)) ->  | Y50: =IF(ISERROR(VLOOKUP($D50&$F50,'Rnd19'!$H:$I,2,FALSE)),"",VLOOKUP($D50&$F50,'Rnd19'!$H:$I,2,FALSE)) ->  | Z50: =IF(ISERROR(VLOOKUP($D50&$F50,'Rnd20'!$H:$I,2,FALSE)),"",VLOOKUP($D50&$F50,'Rnd20'!$H:$I,2,FALSE)) -> 00:28:07 | AA50: =IF(ISERROR(VLOOKUP($D50&$F50,'Rnd21'!$H:$I,2,FALSE)),"",VLOOKUP($D50&$F50,'Rnd21'!$H:$I,2,FALSE)) ->  | AB50: =IF(ISERROR(VLOOKUP($D50&$F50,'Rnd22'!$H:$I,2,FALSE)),"",VLOOKUP($D50&$F50,'Rnd22'!$H:$I,2,FALSE)) ->  | AC50: =SUM(AG50:BB50) -> 212 | AD50: =COUNT(AG50:BB50) -> 6 | AE50: =SUM(BG50:CB50) -> 212 | AF50: =COUNT(BG50:CB50) -> 6 | AG50: =IF(ISNUMBER(G50),VLOOKUP(_xlfn.RANK.EQ(G50,G$4:G$128,1),PointsTable,2),"") -> 41 | AH50: =IF(ISNUMBER(H50),VLOOKUP(_xlfn.RANK.EQ(H50,H$4:H$128,1),PointsTable,2),"") ->  | AI50: =IF(ISNUMBER(I50),VLOOKUP(_xlfn.RANK.EQ(I50,I$4:I$128,1),PointsTable,2),"") ->  | AJ50: =IF(ISNUMBER(J50),VLOOKUP(_xlfn.RANK.EQ(J50,J$4:J$128,1),PointsTable,2),"") ->  | AK50: =IF(ISNUMBER(K50),VLOOKUP(_xlfn.RANK.EQ(K50,K$4:K$128,1),PointsTable,2),"") ->  | AL50: =IF(ISNUMBER(L50),VLOOKUP(_xlfn.RANK.EQ(L50,L$4:L$128,1),PointsTable,2),"") ->  | AM50: =IF(ISNUMBER(M50),VLOOKUP(_xlfn.RANK.EQ(M50,M$4:M$128,1),PointsTable,2),"") ->  | AN50: =IF(ISNUMBER(N50),VLOOKUP(_xlfn.RANK.EQ(N50,N$4:N$128,1),PointsTable,2),"") ->  | AO50: =IF(ISNUMBER(O50),VLOOKUP(_xlfn.RANK.EQ(O50,O$4:O$128,1),PointsTable,2),"") ->  | AP50: =IF(ISNUMBER(P50),VLOOKUP(_xlfn.RANK.EQ(P50,P$4:P$128,1),PointsTable,2),"") -> 24 | AQ50: =IF(ISNUMBER(Q50),VLOOKUP(_xlfn.RANK.EQ(Q50,Q$4:Q$128,1),PointsTable,2),"") -> 37 | AR50: =IF(ISNUMBER(R50),VLOOKUP(_xlfn.RANK.EQ(R50,R$4:R$128,1),PointsTable,2),"") ->  | AS50: =IF(ISNUMBER(S50),VLOOKUP(_xlfn.RANK.EQ(S50,S$4:S$128,1),PointsTable,2),"") -> 33 | AT50: =IF(ISNUMBER(T50),VLOOKUP(_xlfn.RANK.EQ(T50,T$4:T$128,1),PointsTable,2),"") -> 36 | AU50: =IF(ISNUMBER(U50),VLOOKUP(_xlfn.RANK.EQ(U50,U$4:U$128,1),PointsTable,2),"") ->  | AV50: =IF(ISNUMBER(V50),VLOOKUP(_xlfn.RANK.EQ(V50,V$4:V$128,1),PointsTable,2),"") ->  | AW50: =IF(ISNUMBER(W50),VLOOKUP(_xlfn.RANK.EQ(W50,W$4:W$128,1),PointsTable,2),"") ->  | AX50: =IF(ISNUMBER(X50),VLOOKUP(_xlfn.RANK.EQ(X50,X$4:X$128,1),PointsTable,2),"") ->  | AY50: =IF(ISNUMBER(Y50),VLOOKUP(_xlfn.RANK.EQ(Y50,Y$4:Y$128,1),PointsTable,2),"") ->  | AZ50: =IF(ISNUMBER(Z50),VLOOKUP(_xlfn.RANK.EQ(Z50,Z$4:Z$128,1),PointsTable,2),"") -> 41 | BA50: =IF(ISNUMBER(AA50),VLOOKUP(_xlfn.RANK.EQ(AA50,AA$4:AA$128,1),PointsTable,2),"") ->  | BB50: =IF(ISNUMBER(AB50),VLOOKUP(_xlfn.RANK.EQ(AB50,AB$4:AB$128,1),PointsTable,2),"") ->  | BG50: =bestpoints(AG50, $AG50:$BB50, CountingRaces) -> 41 | BH50: =bestpoints(AH50, $AG50:$BB50, CountingRaces) ->  | BI50: =bestpoints(AI50, $AG50:$BB50, CountingRaces) ->  | BJ50: =bestpoints(AJ50, $AG50:$BB50, CountingRaces) ->  | BK50: =bestpoints(AK50, $AG50:$BB50, CountingRaces) ->  | BL50: =bestpoints(AL50, $AG50:$BB50, CountingRaces) ->  | BM50: =bestpoints(AM50, $AG50:$BB50, CountingRaces) ->  | BN50: =bestpoints(AN50, $AG50:$BB50, CountingRaces) ->  | BO50: =bestpoints(AO50, $AG50:$BB50, CountingRaces) ->  | BP50: =bestpoints(AP50, $AG50:$BB50, CountingRaces) -> 24 | BQ50: =bestpoints(AQ50, $AG50:$BB50, CountingRaces) -> 37 | BR50: =bestpoints(AR50, $AG50:$BB50, CountingRaces) ->  | BS50: =bestpoints(AS50, $AG50:$BB50, CountingRaces) -> 33 | BT50: =bestpoints(AT50, $AG50:$BB50, CountingRaces) -> 36 | BU50: =bestpoints(AU50, $AG50:$BB50, CountingRaces) ->  | BV50: =bestpoints(AV50, $AG50:$BB50, CountingRaces) ->  | BW50: =bestpoints(AW50, $AG50:$BB50, CountingRaces) ->  | BX50: =bestpoints(AX50, $AG50:$BB50, CountingRaces) ->  | BY50: =bestpoints(AY50, $AG50:$BB50, CountingRaces) ->  | BZ50: =bestpoints(AZ50, $AG50:$BB50, CountingRaces) -> 41 | CA50: =bestpoints(BA50, $AG50:$BB50, CountingRaces) ->  | CB50: =bestpoints(BB50, $AG50:$BB50, CountingRaces) -> 
A51: =AE51/AF51 -> 42.2 | B51: 47 | C51: =IF(AF51 >0,RANK(AE51,AE$4:AE$128),"") -> 48 | D51: Tim Ostler | E51: V50 | F51: ITC | G51: =IF(ISERROR(VLOOKUP($D51&$F51,'Rnd1'!$H:$I,2,FALSE)),"",VLOOKUP($D51&$F51,'Rnd1'!$H:$I,2,FALSE)) ->  | H51: =IF(ISERROR(VLOOKUP($D51&$F51,'Rnd2'!$H:$I,2,FALSE)),"",VLOOKUP($D51&$F51,'Rnd2'!$H:$I,2,FALSE)) ->  | I51: =IF(ISERROR(VLOOKUP($D51&$F51,'Rnd3'!$H:$I,2,FALSE)),"",VLOOKUP($D51&$F51,'Rnd3'!$H:$I,2,FALSE)) -> 00:22:40 | J51: =IF(ISERROR(VLOOKUP($D51&$F51,'Rnd4'!$H:$I,2,FALSE)),"",VLOOKUP($D51&$F51,'Rnd4'!$H:$I,2,FALSE)) ->  | K51: =IF(ISERROR(VLOOKUP($D51&$F51,'Rnd5'!$H:$I,2,FALSE)),"",VLOOKUP($D51&$F51,'Rnd5'!$H:$I,2,FALSE)) -> 00:26:44 | L51: =IF(ISERROR(VLOOKUP($D51&$F51,'Rnd6'!$H:$I,2,FALSE)),"",VLOOKUP($D51&$F51,'Rnd6'!$H:$I,2,FALSE)) ->  | M51: =IF(ISERROR(VLOOKUP($D51&$F51,'Rnd7'!$H:$I,2,FALSE)),"",VLOOKUP($D51&$F51,'Rnd7'!$H:$I,2,FALSE)) ->  | N51: =IF(ISERROR(VLOOKUP($D51&$F51,'Rnd8'!$H:$I,2,FALSE)),"",VLOOKUP($D51&$F51,'Rnd8'!$H:$I,2,FALSE)) -> 00:26:51 | O51: =IF(ISERROR(VLOOKUP($D51&$F51,'Rnd9'!$H:$I,2,FALSE)),"",VLOOKUP($D51&$F51,'Rnd9'!$H:$I,2,FALSE)) -> 00:26:19 | P51: =IF(ISERROR(VLOOKUP($D51&$F51,'Rnd10'!$H:$I,2,FALSE)),"",VLOOKUP($D51&$F51,'Rnd10'!$H:$I,2,FALSE)) -> 00:26:02 | Q51: =IF(ISERROR(VLOOKUP($D51&$F51,'Rnd11'!$H:$I,2,FALSE)),"",VLOOKUP($D51&$F51,'Rnd11'!$H:$I,2,FALSE)) ->  | R51: =IF(ISERROR(VLOOKUP($D51&$F51,'Rnd12'!$H:$I,2,FALSE)),"",VLOOKUP($D51&$F51,'Rnd12'!$H:$I,2,FALSE)) ->  | S51: =IF(ISERROR(VLOOKUP($D51&$F51,'Rnd13'!$H:$I,2,FALSE)),"",VLOOKUP($D51&$F51,'Rnd13'!$H:$I,2,FALSE)) ->  | T51: =IF(ISERROR(VLOOKUP($D51&$F51,'Rnd14'!$H:$I,2,FALSE)),"",VLOOKUP($D51&$F51,'Rnd14'!$H:$I,2,FALSE)) ->  | U51: =IF(ISERROR(VLOOKUP($D51&$F51,'Rnd15'!$H:$I,2,FALSE)),"",VLOOKUP($D51&$F51,'Rnd15'!$H:$I,2,FALSE)) ->  | V51: =IF(ISERROR(VLOOKUP($D51&$F51,'Rnd16'!$H:$I,2,FALSE)),"",VLOOKUP($D51&$F51,'Rnd16'!$H:$I,2,FALSE)) ->  | W51: =IF(ISERROR(VLOOKUP($D51&$F51,'Rnd17'!$H:$I,2,FALSE)),"",VLOOKUP($D51&$F51,'Rnd17'!$H:$I,2,FALSE)) ->  | X51: =IF(ISERROR(VLOOKUP($D51&$F51,'Rnd18'!$H:$I,2,FALSE)),"",VLOOKUP($D51&$F51,'Rnd18'!$H:$I,2,FALSE)) ->  | Y51: =IF(ISERROR(VLOOKUP($D51&$F51,'Rnd19'!$H:$I,2,FALSE)),"",VLOOKUP($D51&$F51,'Rnd19'!$H:$I,2,FALSE)) ->  | Z51: =IF(ISERROR(VLOOKUP($D51&$F51,'Rnd20'!$H:$I,2,FALSE)),"",VLOOKUP($D51&$F51,'Rnd20'!$H:$I,2,FALSE)) ->  | AA51: =IF(ISERROR(VLOOKUP($D51&$F51,'Rnd21'!$H:$I,2,FALSE)),"",VLOOKUP($D51&$F51,'Rnd21'!$H:$I,2,FALSE)) ->  | AB51: =IF(ISERROR(VLOOKUP($D51&$F51,'Rnd22'!$H:$I,2,FALSE)),"",VLOOKUP($D51&$F51,'Rnd22'!$H:$I,2,FALSE)) ->  | AC51: =SUM(AG51:BB51) -> 211 | AD51: =COUNT(AG51:BB51) -> 5 | AE51: =SUM(BG51:CB51) -> 211 | AF51: =COUNT(BG51:CB51) -> 5 | AG51: =IF(ISNUMBER(G51),VLOOKUP(_xlfn.RANK.EQ(G51,G$4:G$128,1),PointsTable,2),"") ->  | AH51: =IF(ISNUMBER(H51),VLOOKUP(_xlfn.RANK.EQ(H51,H$4:H$128,1),PointsTable,2),"") ->  | AI51: =IF(ISNUMBER(I51),VLOOKUP(_xlfn.RANK.EQ(I51,I$4:I$128,1),PointsTable,2),"") -> 43 | AJ51: =IF(ISNUMBER(J51),VLOOKUP(_xlfn.RANK.EQ(J51,J$4:J$128,1),PointsTable,2),"") ->  | AK51: =IF(ISNUMBER(K51),VLOOKUP(_xlfn.RANK.EQ(K51,K$4:K$128,1),PointsTable,2),"") -> 45 | AL51: =IF(ISNUMBER(L51),VLOOKUP(_xlfn.RANK.EQ(L51,L$4:L$128,1),PointsTable,2),"") ->  | AM51: =IF(ISNUMBER(M51),VLOOKUP(_xlfn.RANK.EQ(M51,M$4:M$128,1),PointsTable,2),"") ->  | AN51: =IF(ISNUMBER(N51),VLOOKUP(_xlfn.RANK.EQ(N51,N$4:N$128,1),PointsTable,2),"") -> 43 | AO51: =IF(ISNUMBER(O51),VLOOKUP(_xlfn.RANK.EQ(O51,O$4:O$128,1),PointsTable,2),"") -> 40 | AP51: =IF(ISNUMBER(P51),VLOOKUP(_xlfn.RANK.EQ(P51,P$4:P$128,1),PointsTable,2),"") -> 40 | AQ51: =IF(ISNUMBER(Q51),VLOOKUP(_xlfn.RANK.EQ(Q51,Q$4:Q$128,1),PointsTable,2),"") ->  | AR51: =IF(ISNUMBER(R51),VLOOKUP(_xlfn.RANK.EQ(R51,R$4:R$128,1),PointsTable,2),"") ->  | AS51: =IF(ISNUMBER(S51),VLOOKUP(_xlfn.RANK.EQ(S51,S$4:S$128,1),PointsTable,2),"") ->  | AT51: =IF(ISNUMBER(T51),VLOOKUP(_xlfn.RANK.EQ(T51,T$4:T$128,1),PointsTable,2),"") ->  | AU51: =IF(ISNUMBER(U51),VLOOKUP(_xlfn.RANK.EQ(U51,U$4:U$128,1),PointsTable,2),"") ->  | AV51: =IF(ISNUMBER(V51),VLOOKUP(_xlfn.RANK.EQ(V51,V$4:V$128,1),PointsTable,2),"") ->  | AW51: =IF(ISNUMBER(W51),VLOOKUP(_xlfn.RANK.EQ(W51,W$4:W$128,1),PointsTable,2),"") ->  | AX51: =IF(ISNUMBER(X51),VLOOKUP(_xlfn.RANK.EQ(X51,X$4:X$128,1),PointsTable,2),"") ->  | AY51: =IF(ISNUMBER(Y51),VLOOKUP(_xlfn.RANK.EQ(Y51,Y$4:Y$128,1),PointsTable,2),"") ->  | AZ51: =IF(ISNUMBER(Z51),VLOOKUP(_xlfn.RANK.EQ(Z51,Z$4:Z$128,1),PointsTable,2),"") ->  | BA51: =IF(ISNUMBER(AA51),VLOOKUP(_xlfn.RANK.EQ(AA51,AA$4:AA$128,1),PointsTable,2),"") ->  | BB51: =IF(ISNUMBER(AB51),VLOOKUP(_xlfn.RANK.EQ(AB51,AB$4:AB$128,1),PointsTable,2),"") ->  | BG51: =bestpoints(AG51, $AG51:$BB51, CountingRaces) ->  | BH51: =bestpoints(AH51, $AG51:$BB51, CountingRaces) ->  | BI51: =bestpoints(AI51, $AG51:$BB51, CountingRaces) -> 43 | BJ51: =bestpoints(AJ51, $AG51:$BB51, CountingRaces) ->  | BK51: =bestpoints(AK51, $AG51:$BB51, CountingRaces) -> 45 | BL51: =bestpoints(AL51, $AG51:$BB51, CountingRaces) ->  | BM51: =bestpoints(AM51, $AG51:$BB51, CountingRaces) ->  | BN51: =bestpoints(AN51, $AG51:$BB51, CountingRaces) -> 43 | BO51: =bestpoints(AO51, $AG51:$BB51, CountingRaces) -> 40 | BP51: =bestpoints(AP51, $AG51:$BB51, CountingRaces) -> 40 | BQ51: =bestpoints(AQ51, $AG51:$BB51, CountingRaces) ->  | BR51: =bestpoints(AR51, $AG51:$BB51, CountingRaces) ->  | BS51: =bestpoints(AS51, $AG51:$BB51, CountingRaces) ->  | BT51: =bestpoints(AT51, $AG51:$BB51, CountingRaces) ->  | BU51: =bestpoints(AU51, $AG51:$BB51, CountingRaces) ->  | BV51: =bestpoints(AV51, $AG51:$BB51, CountingRaces) ->  | BW51: =bestpoints(AW51, $AG51:$BB51, CountingRaces) ->  | BX51: =bestpoints(AX51, $AG51:$BB51, CountingRaces) ->  | BY51: =bestpoints(AY51, $AG51:$BB51, CountingRaces) ->  | BZ51: =bestpoints(AZ51, $AG51:$BB51, CountingRaces) ->  | CA51: =bestpoints(BA51, $AG51:$BB51, CountingRaces) ->  | CB51: =bestpoints(BB51, $AG51:$BB51, CountingRaces) -> 
A52: =AE52/AF52 -> 52.25 | B52: 48 | C52: =IF(AF52 >0,RANK(AE52,AE$4:AE$128),"") -> 49 | D52: Owen Geeson | E52: S | F52: SDCC | G52: =IF(ISERROR(VLOOKUP($D52&$F52,'Rnd1'!$H:$I,2,FALSE)),"",VLOOKUP($D52&$F52,'Rnd1'!$H:$I,2,FALSE)) ->  | H52: =IF(ISERROR(VLOOKUP($D52&$F52,'Rnd2'!$H:$I,2,FALSE)),"",VLOOKUP($D52&$F52,'Rnd2'!$H:$I,2,FALSE)) ->  | I52: =IF(ISERROR(VLOOKUP($D52&$F52,'Rnd3'!$H:$I,2,FALSE)),"",VLOOKUP($D52&$F52,'Rnd3'!$H:$I,2,FALSE)) ->  | J52: =IF(ISERROR(VLOOKUP($D52&$F52,'Rnd4'!$H:$I,2,FALSE)),"",VLOOKUP($D52&$F52,'Rnd4'!$H:$I,2,FALSE)) ->  | K52: =IF(ISERROR(VLOOKUP($D52&$F52,'Rnd5'!$H:$I,2,FALSE)),"",VLOOKUP($D52&$F52,'Rnd5'!$H:$I,2,FALSE)) ->  | L52: =IF(ISERROR(VLOOKUP($D52&$F52,'Rnd6'!$H:$I,2,FALSE)),"",VLOOKUP($D52&$F52,'Rnd6'!$H:$I,2,FALSE)) ->  | M52: =IF(ISERROR(VLOOKUP($D52&$F52,'Rnd7'!$H:$I,2,FALSE)),"",VLOOKUP($D52&$F52,'Rnd7'!$H:$I,2,FALSE)) ->  | N52: =IF(ISERROR(VLOOKUP($D52&$F52,'Rnd8'!$H:$I,2,FALSE)),"",VLOOKUP($D52&$F52,'Rnd8'!$H:$I,2,FALSE)) -> 00:24:19 | O52: =IF(ISERROR(VLOOKUP($D52&$F52,'Rnd9'!$H:$I,2,FALSE)),"",VLOOKUP($D52&$F52,'Rnd9'!$H:$I,2,FALSE)) -> 00:23:22 | P52: =IF(ISERROR(VLOOKUP($D52&$F52,'Rnd10'!$H:$I,2,FALSE)),"",VLOOKUP($D52&$F52,'Rnd10'!$H:$I,2,FALSE)) ->  | Q52: =IF(ISERROR(VLOOKUP($D52&$F52,'Rnd11'!$H:$I,2,FALSE)),"",VLOOKUP($D52&$F52,'Rnd11'!$H:$I,2,FALSE)) ->  | R52: =IF(ISERROR(VLOOKUP($D52&$F52,'Rnd12'!$H:$I,2,FALSE)),"",VLOOKUP($D52&$F52,'Rnd12'!$H:$I,2,FALSE)) ->  | S52: =IF(ISERROR(VLOOKUP($D52&$F52,'Rnd13'!$H:$I,2,FALSE)),"",VLOOKUP($D52&$F52,'Rnd13'!$H:$I,2,FALSE)) -> 00:24:35 | T52: =IF(ISERROR(VLOOKUP($D52&$F52,'Rnd14'!$H:$I,2,FALSE)),"",VLOOKUP($D52&$F52,'Rnd14'!$H:$I,2,FALSE)) -> 00:24:39 | U52: =IF(ISERROR(VLOOKUP($D52&$F52,'Rnd15'!$H:$I,2,FALSE)),"",VLOOKUP($D52&$F52,'Rnd15'!$H:$I,2,FALSE)) ->  | V52: =IF(ISERROR(VLOOKUP($D52&$F52,'Rnd16'!$H:$I,2,FALSE)),"",VLOOKUP($D52&$F52,'Rnd16'!$H:$I,2,FALSE)) ->  | W52: =IF(ISERROR(VLOOKUP($D52&$F52,'Rnd17'!$H:$I,2,FALSE)),"",VLOOKUP($D52&$F52,'Rnd17'!$H:$I,2,FALSE)) ->  | X52: =IF(ISERROR(VLOOKUP($D52&$F52,'Rnd18'!$H:$I,2,FALSE)),"",VLOOKUP($D52&$F52,'Rnd18'!$H:$I,2,FALSE)) ->  | Y52: =IF(ISERROR(VLOOKUP($D52&$F52,'Rnd19'!$H:$I,2,FALSE)),"",VLOOKUP($D52&$F52,'Rnd19'!$H:$I,2,FALSE)) ->  | Z52: =IF(ISERROR(VLOOKUP($D52&$F52,'Rnd20'!$H:$I,2,FALSE)),"",VLOOKUP($D52&$F52,'Rnd20'!$H:$I,2,FALSE)) ->  | AA52: =IF(ISERROR(VLOOKUP($D52&$F52,'Rnd21'!$H:$I,2,FALSE)),"",VLOOKUP($D52&$F52,'Rnd21'!$H:$I,2,FALSE)) ->  | AB52: =IF(ISERROR(VLOOKUP($D52&$F52,'Rnd22'!$H:$I,2,FALSE)),"",VLOOKUP($D52&$F52,'Rnd22'!$H:$I,2,FALSE)) ->  | AC52: =SUM(AG52:BB52) -> 209 | AD52: =COUNT(AG52:BB52) -> 4 | AE52: =SUM(BG52:CB52) -> 209 | AF52: =COUNT(BG52:CB52) -> 4 | AG52: =IF(ISNUMBER(G52),VLOOKUP(_xlfn.RANK.EQ(G52,G$4:G$128,1),PointsTable,2),"") ->  | AH52: =IF(ISNUMBER(H52),VLOOKUP(_xlfn.RANK.EQ(H52,H$4:H$128,1),PointsTable,2),"") ->  | AI52: =IF(ISNUMBER(I52),VLOOKUP(_xlfn.RANK.EQ(I52,I$4:I$128,1),PointsTable,2),"") ->  | AJ52: =IF(ISNUMBER(J52),VLOOKUP(_xlfn.RANK.EQ(J52,J$4:J$128,1),PointsTable,2),"") ->  | AK52: =IF(ISNUMBER(K52),VLOOKUP(_xlfn.RANK.EQ(K52,K$4:K$128,1),PointsTable,2),"") ->  | AL52: =IF(ISNUMBER(L52),VLOOKUP(_xlfn.RANK.EQ(L52,L$4:L$128,1),PointsTable,2),"") ->  | AM52: =IF(ISNUMBER(M52),VLOOKUP(_xlfn.RANK.EQ(M52,M$4:M$128,1),PointsTable,2),"") ->  | AN52: =IF(ISNUMBER(N52),VLOOKUP(_xlfn.RANK.EQ(N52,N$4:N$128,1),PointsTable,2),"") -> 57 | AO52: =IF(ISNUMBER(O52),VLOOKUP(_xlfn.RANK.EQ(O52,O$4:O$128,1),PointsTable,2),"") -> 58 | AP52: =IF(ISNUMBER(P52),VLOOKUP(_xlfn.RANK.EQ(P52,P$4:P$128,1),PointsTable,2),"") ->  | AQ52: =IF(ISNUMBER(Q52),VLOOKUP(_xlfn.RANK.EQ(Q52,Q$4:Q$128,1),PointsTable,2),"") ->  | AR52: =IF(ISNUMBER(R52),VLOOKUP(_xlfn.RANK.EQ(R52,R$4:R$128,1),PointsTable,2),"") ->  | AS52: =IF(ISNUMBER(S52),VLOOKUP(_xlfn.RANK.EQ(S52,S$4:S$128,1),PointsTable,2),"") -> 49 | AT52: =IF(ISNUMBER(T52),VLOOKUP(_xlfn.RANK.EQ(T52,T$4:T$128,1),PointsTable,2),"") -> 45 | AU52: =IF(ISNUMBER(U52),VLOOKUP(_xlfn.RANK.EQ(U52,U$4:U$128,1),PointsTable,2),"") ->  | AV52: =IF(ISNUMBER(V52),VLOOKUP(_xlfn.RANK.EQ(V52,V$4:V$128,1),PointsTable,2),"") ->  | AW52: =IF(ISNUMBER(W52),VLOOKUP(_xlfn.RANK.EQ(W52,W$4:W$128,1),PointsTable,2),"") ->  | AX52: =IF(ISNUMBER(X52),VLOOKUP(_xlfn.RANK.EQ(X52,X$4:X$128,1),PointsTable,2),"") ->  | AY52: =IF(ISNUMBER(Y52),VLOOKUP(_xlfn.RANK.EQ(Y52,Y$4:Y$128,1),PointsTable,2),"") ->  | AZ52: =IF(ISNUMBER(Z52),VLOOKUP(_xlfn.RANK.EQ(Z52,Z$4:Z$128,1),PointsTable,2),"") ->  | BA52: =IF(ISNUMBER(AA52),VLOOKUP(_xlfn.RANK.EQ(AA52,AA$4:AA$128,1),PointsTable,2),"") ->  | BB52: =IF(ISNUMBER(AB52),VLOOKUP(_xlfn.RANK.EQ(AB52,AB$4:AB$128,1),PointsTable,2),"") ->  | BG52: =bestpoints(AG52, $AG52:$BB52, CountingRaces) ->  | BH52: =bestpoints(AH52, $AG52:$BB52, CountingRaces) ->  | BI52: =bestpoints(AI52, $AG52:$BB52, CountingRaces) ->  | BJ52: =bestpoints(AJ52, $AG52:$BB52, CountingRaces) ->  | BK52: =bestpoints(AK52, $AG52:$BB52, CountingRaces) ->  | BL52: =bestpoints(AL52, $AG52:$BB52, CountingRaces) ->  | BM52: =bestpoints(AM52, $AG52:$BB52, CountingRaces) ->  | BN52: =bestpoints(AN52, $AG52:$BB52, CountingRaces) -> 57 | BO52: =bestpoints(AO52, $AG52:$BB52, CountingRaces) -> 58 | BP52: =bestpoints(AP52, $AG52:$BB52, CountingRaces) ->  | BQ52: =bestpoints(AQ52, $AG52:$BB52, CountingRaces) ->  | BR52: =bestpoints(AR52, $AG52:$BB52, CountingRaces) ->  | BS52: =bestpoints(AS52, $AG52:$BB52, CountingRaces) -> 49 | BT52: =bestpoints(AT52, $AG52:$BB52, CountingRaces) -> 45 | BU52: =bestpoints(AU52, $AG52:$BB52, CountingRaces) ->  | BV52: =bestpoints(AV52, $AG52:$BB52, CountingRaces) ->  | BW52: =bestpoints(AW52, $AG52:$BB52, CountingRaces) ->  | BX52: =bestpoints(AX52, $AG52:$BB52, CountingRaces) ->  | BY52: =bestpoints(AY52, $AG52:$BB52, CountingRaces) ->  | BZ52: =bestpoints(AZ52, $AG52:$BB52, CountingRaces) ->  | CA52: =bestpoints(BA52, $AG52:$BB52, CountingRaces) ->  | CB52: =bestpoints(BB52, $AG52:$BB52, CountingRaces) -> 
